Workbook

Sheet Kold
B2: Bruger: | D2: =Makro!D20 -> 0 | L2: Bjælkeberegning | N2: Betonelement-Foreningen maj 2021
B3: Sagsnavn: | I3: Sag nr.: | L3: =BF16 -> 
B4: Bygningsdel: | I4: Dato:
B5: Emne: | D5: Normale lastkombinationer | I5: Init:
L7: Spændvidde | N7: Tværsnit | O7: h | P7: 400
L8: L | M8: 1.7 | O8: b | P8: 150 | AX8: Anvendelsestilstand, tøjninger, spændinger og revnevidder | BJ8: BRUDLAST, MOMENTKAPACITET
L9: Længdearmering c' = | N9: 37 | O9: beff | P9: =MIN(P8,2.0001*(P8-2*N9)) -> 150 | AT9: A_1 | AU9: =P11*0.25*PI()*N11^2 -> 157.0796327 | AV9: mm2 | BB9: e_0 | BC9: s_o | BD9: s_2 | BE9: s_3 | BF9: s_m | BG9: w | BJ9: L | BK9: h | BL9: b | BM9: fck | BN9: fcd | BO9: Ecd | BP9: Ac | BQ9: ac | BR9: Esc | BS9: fyd_c | BT9: At | BU9: at | BV9: Est | BW9: fyd_t | BX9: At | BY9: at | BZ9: Est | CA9: fyd_t | CB9: Modenhed | CC9: 1+f | CD9: uterm | CE9: emax | CF9: e1 | CG9: k | CH9: Tilstand: | CI9: Nf
N10: d (mm) | O10: c (mm) | P10: antal | AT10: A_2 | AU10: =P12*0.25*PI()*N12^2 -> 0 | AV10: mm2 | AX10: Langtid | BB10: =BK79 -> 0.000250657493 | BC10: =BR79 -> 110.3530627 | BD10: =BV79 -> 440.976483 | BE10: =BT79 -> 384.9347435 | BF10: =(BE10*AU11+BD10*AU10)/(AU10+AU11) -> 384.9347435 | BG10: =BT141 -> 0.3045417547 | BJ10: (m) | BK10: (m) | BL10: (m) | BM10: (Mpa) | BN10: (Mpa) | BO10: (Mpa) | BP10: (m2) | BQ10: (m) | BR10: (Mpa) | BS10: (Mpa) | BT10: (m2) | BU10: (m) | BV10: (Mpa) | BW10: (Mpa) | BX10: (m2) | BY10: (m) | BZ10: (Mpa) | CA10: (Mpa) | CB10: (døgn) | CD10: (m)
L11: Tryklag t | N11: 10 | O11: 36 | P11: 2 | AT11: A_3 | AU11: =P13*0.25*PI()*N13^2 -> 226.1946711 | AV11: mm2 | AX11: Korttid | BB11: =BK102 -> 3.476268336e-05 | BC11: =BR102 -> 3.337023155 | BD11: =BV102 -> 33.21983573 | BE11: =BT102 -> 29.50389129 | BF11: =(BE11*AU11+BD11*AU10)/(AU10+AU11) -> 29.50389129 | BJ11: =M8 -> 1.7 | BK11: =P7/1000 -> 0.4 | BL11: =P9/1000 -> 0.15 | BM11: =M21 -> 35 | BN11: =BM11/M18 -> 25 | BO11: =22000*((BM11+8)/10)^0.3/M18 -> 24340.81871 | BP11: =AU9/1000000 -> 0.0001570796327 | BQ11: =O11/1000 -> 0.036 | BR11: 200000 | BS11: =P18/M19 -> 416.6666667 | BT11: =AU11/1000000 -> 0.0002261946711 | BU11: =O13/1000 -> 0.037 | BV11: 200000 | BW11: =P18/M19 -> 416.6666667 | BX11: =AU10/1000000 -> 0 | BY11: =O12/1000 -> 0 | BZ11: 200000 | CA11: =P19 -> 416.6666667 | CC11: 1 | CD11: 0 | CE11: =0.0035 -> 0.0035 | CF11: =0.7*($M$21+8)^(0.31)/1000 -> 0.002246328469 | CG11: =1.05*BO11*CF11/BN11 -> 2.29645391 | CH11: 1 | CI11: =0+0.000001 -> 1e-06
L12: Træklag 1 | N12: 0 | O12: 0 | P12: 0 | AT12: E_sk | AU12: 200000 | AV12: Mpa | AX12: Kar. last | BB12: =BB11+BB10 -> 0.0002854201763 | BC12: =BC11+BC10 -> 113.6900859 | BD12: =BD11+BD10 -> 474.1963188 | BE12: =BE11+BE10 -> 414.4386348 | BF12: =BF11+BF10 -> 414.4386348 | BG12: =BS141 -> 0.3045417547 | BJ12: hc | BK12: e0 | BL12: a' | BM12: b' | BN12: N' | BO12: tN' | BP12: t' | BQ12: Nc | BR12: sac | BS12: Nac | BT12: sat | BU12: Nat | BV12: sat | BW12: Nat | BX12: Mtot | BY12: N | BZ12: N | CA12: A | CB12: B1 | CC12: B2 | CD12: B2' | CE12: B3 | CF12: C1 | CG12: C2 | CH12: C2'
L13: Træklag 2 | N13: 12 | O13: 37 | P13: 2 | AT13: E_sd | AU13: =AU12/M19 -> 166666.6667 | AV13: MPa
L14: Bøjler | N14: d (mm) | O14: a (mm) | P14: cotq | AT14: d | AU14: =P7-(AU10*O12+AU11*O13)/(AU10+AU11) -> 363 | AV14: mm | BJ14: =0.5*(-(CB14+CC14+CD14+CE14)+SQRT(MAX((CB14+CC14+CD14+CE14)^2+4*CA14*(CF14+CG14+CH14),0)))/CA14 -> 0.07835666747 | BK14: =0.025*$CE$11 -> 8.75e-05 | BL14: =IF($CH$11=1,BK14/($CG$11*$CF$11),2^(1/3)*$CF$11/BK14) -> 0.01696199998 | BM14: =IF($CH$11=1,-($CG$11-2)*BK14/$CF$11,3*($CF$11/BK14)^2) -> -0.01154760644 | BN14: =IF(CH$11=1,0.5*(CG$11*BK14*BN$11/CF$11)*(1-CI13^2+(BL14-BM14)*(BM14^2*(1-CI13^2)+2*BM14*(1-CI13)+2*LN((1-BM14)/(1-BM14*CI13)))/(BM14^3)),BN$11*BM14*(LN((1-BL14+BL14^2)/(1+BL14)^2)/(6*BL14)+ATAN((2-BL14)/(BL14*3^0.5))/(BL14*3^0.5)-LN((CI13^2-BL14*CI13+BL14^2)/(CI13+BL14)^2)/(6*BL14)-ATAN((2*CI13-BL14)/(BL14*3^0.5))/(BL14*3^0.5))) -> 1.097086602 | BO14: =IF(CH$11=1,(CG$11*BK14*BN$11/CF$11)*(1-CI13^3-(BL14-BM14)*(-2*BM14^3*(1-CI13^3)-3*BM14^2*(1-CI13^2)-6*BM14*(1-CI13)-6*LN((1-BM14)/(1-BM14*CI13)))/(2*BM14^4))/3,BN$11*BM14*(LN((1+BL14^3)/(BL14^3+CI13^3)))/3) -> 0.729644318 | BP14: =BO14/BN14 -> 0.6650744951 | BQ14: =BN14*BJ14*BL$11 -> 0.01289460751 | BR14: =MAX(MIN(BS$11,CC$11*BR$11*BK14*(BJ14-BQ$11)/BJ14),-BS$11) -> 9.459841831 | BS14: =BR14*BP$11 -> 0.00148594848 | BT14: =MIN(BW$11,CC$11*BV$11*BK14*(BK$11-BJ14-BU$11)/BJ14) -> 63.57159487 | BU14: =BT14*BT$11 -> 0.01437955599 | BV14: =MIN($CA$11,CC$11*$BZ$11*BK14*(BK$11-BJ14-$BY$11)/BJ14) -> 71.83509076 | BW14: =BV14*$BX$11 -> 0 | BX14: =(0.5*BK$11-BJ14+BP14*BJ14)*BQ14+(0.5*BK$11-BQ$11)*BS14+(0.5*BK$11-BU$11)*BU14+(0.5*BK$11-BY$11)*BW14 -> 0.004828083159 | BY14: =BQ14+BS14-BU14-BW14 -> 1e-06 | BZ14: =$CI$11 -> 1e-06 | CA14: =BN14*BL$11 -> 0.1645629903 | CB14: =IF(BR13<BS$11,CC$11*BK14*BP$11*BR$11,BP$11*BS$11) -> 0.002748893572 | CC14: =IF(BT13<BW$11,CC$11*BK14*BT$11*BV$11,-BT$11*BW$11) -> 0.003958406744 | CD14: =IF(BV13<CA$11,CC$11*BK14*$BX$11*$BZ$11,-$BX$11*CA$11) -> 0 | CE14: =-BZ14 -> -1e-06 | CF14: =IF(BR13<BS$11,BQ$11*CC$11*BK14*BP$11*BR$11,0) -> 9.896016859e-05 | CG14: =IF(BT13<BW$11,(BK$11-BU$11)*CC$11*BK14*BT$11*BV$11,0) -> 0.001436901648 | CH14: =IF(BV13<CA$11,(BK$11-$BY$11)*CC$11*BK14*$BX$11*$BZ$11,0) -> 0 | CI14: =IF(BX14>BX13,BK14,CI13) -> 8.75e-05 | CJ14: =IF(BX14>BX13,BR14,CJ13) -> 9.459841831 | CK14: =IF(BX14>BX13,BT14,CK13) -> 63.57159487 | CL14: =IF(BX14>BX13,BV14,CL13) -> 71.83509076
L15: Type 1 | N15: 6 | O15: 150 | P15: 1.5 | AT15: c_w | AU15: =(AU11*O13+AU10*O12)/(AU10+AU11) -> 37 | BJ15: =0.5*(-(CB15+CC15+CD15+CE15)+SQRT(MAX((CB15+CC15+CD15+CE15)^2+4*CA15*(CF15+CG15+CH15),0)))/CA15 -> 0.07894958384 | BK15: =0.025*$CE$11+BK14 -> 0.000175 | BL15: 0.03392399996 | BM15: -0.02309521288 | BN15: 2.15274995 | BO15: 1.428274493 | BP15: =BO15/BN15 -> 0.663465115 | BQ15: 0.0254938069 | BR15: 19.04044786 | BS15: 0.002990866555 | BT15: 125.9254841 | BU15: 0.02848367346 | BV15: 142.3283572 | BW15: =BV15*$BX$11 -> 0 | BX15: 0.009554749943 | BY15: =BQ15+BS15-BU15-BW15 -> 1e-06 | BZ15: =$CI$11 -> 1e-06 | CA15: 0.3229124925 | CB15: =IF(2*BR14-BR13<BS$11,CC$11*BK15*BP$11*BR$11,BP$11*BS$11) -> 0.005497787144 | CC15: =IF(2*BT14-BT13<BW$11,CC$11*BK15*BT$11*BV$11,-BT$11*BW$11) -> 0.007916813487 | CD15: =IF(2*BV14-BV13<CA$11,CC$11*BK15*$BX$11*$BZ$11,-$BX$11*CA$11) -> 0 | CE15: =-BZ15 -> -1e-06 | CF15: =IF(2*BR14-BR13<BS$11,BQ$11*CC$11*BK15*BP$11*BR$11,0) -> 0.0001979203372 | CG15: =IF(2*BT14-BT13<BW$11,(BK$11-BU$11)*CC$11*BK15*BT$11*BV$11,0) -> 0.002873803296 | CH15: =IF(2*BV14-BV13<CA$11,(BK$11-$BY$11)*CC$11*BK15*$BX$11*$BZ$11,0) -> 0 | CI15: 0.000175 | CJ15: 19.04044786 | CK15: 125.9254841 | CL15: =IF(BX15>BX14,BV15,CL14) -> 142.3283572
L16: Type 2 | N16: 6 | O16: 150 | P16: =P15 -> 1.5 | AX16: Fejltabel | BE16: Fejl | BF16: =IF(BG46=1,BF46,BF17&BF18&BF19&BF20&BF21&BF22&BF23&BF24&BF25&BF26&BF27&BF28&BF29&BF30&BF31&BF32&BF33&BF34&BF35&BF36&BF37&BF38&BF39&BF40&BF41&BF42&BF43&BF44&BF45) ->  | BG16: NB'er | BJ16: 0.07954762081 | BK16: 0.0002625 | BL16: 0.05088599994 | BM16: -0.03464281932 | BN16: 3.168035501 | BO16: 2.096725026 | BP16: =BO16/BN16 -> 0.6618376043 | BQ16: =BN16*BJ16*BL$11 -> 0.03780145301 | BR16: 28.74064704 | BS16: 0.00451457028 | BT16: 187.0734757 | BU16: 0.04231502329 | BV16: 211.4928107 | BW16: 0 | BX16: 0.01418116931 | BY16: 1e-06 | BZ16: 1e-06 | CA16: 0.4752053252 | CB16: =IF(2*BR15-BR14<BS$11,CC$11*BK16*BP$11*BR$11,BP$11*BS$11) -> 0.008246680716 | CC16: =IF(2*BT15-BT14<BW$11,CC$11*BK16*BT$11*BV$11,-BT$11*BW$11) -> 0.01187522023 | CD16: =IF(2*BV15-BV14<CA$11,CC$11*BK16*$BX$11*$BZ$11,-$BX$11*CA$11) -> 0 | CE16: -1e-06 | CF16: =IF(2*BR15-BR14<BS$11,BQ$11*CC$11*BK16*BP$11*BR$11,0) -> 0.0002968805058 | CG16: =IF(2*BT15-BT14<BW$11,(BK$11-BU$11)*CC$11*BK16*BT$11*BV$11,0) -> 0.004310704944 | CH16: =IF(2*BV15-BV14<CA$11,(BK$11-$BY$11)*CC$11*BK16*$BX$11*$BZ$11,0) -> 0 | CI16: 0.0002625 | CJ16: 28.74064704 | CK16: 187.0734757 | CL16: 211.4928107
L17: Partialkoefficienter | N17: Længdearmering | AT17: h_int | AU17: =P7-BJ56*(1-BP56)*1000-(AU10*O12+AU11*O13)/(AU10+AU11) -> 348.9474076 | AV17: mm | AX17: Negative inddata accepteres ikke; | BE17: =IF(MIN(M8,P7:P9,N9,N11:P13,N15:P15,N16:O16,M18:M19,P18,P21,M21,P24,P25,C22:K28)<0,1,0) -> 0 | BF17: =IF(BE17=1,AX17,"") ->  | BJ17: 0.08015032574 | BK17: 0.00035 | BL17: 0.06784799991 | BM17: -0.04619042576 | BN17: 4.14395159 | BO17: 2.735799566 | BP17: 0.6601910052 | BQ17: 0.04982086047 | BR17: 38.55907975 | BS17: 0.006056846083 | BT17: 247.0292792 | BU17: 0.05587670656 | BV17: 279.3435584 | BW17: 0 | BX17: 0.01870848695 | BY17: 1e-06 | BZ17: 1e-06 | CA17: 0.6215927385 | CB17: 0.01099557429 | CC17: 0.01583362697 | CD17: 0 | CE17: -1e-06 | CF17: 0.0003958406744 | CG17: 0.005747606592 | CH17: 0 | CI17: 0.00035 | CJ17: 38.55907975 | CK17: 247.0292792 | CL17: 279.3435584
L18: gc | M18: 1.4 | O18: fyk | P18: 500 | AT18: Min arm | AU18: =CEILING(MAX(0.26*0.3*M21^(2/3)*P9*AU14/P18,0.0013*P9*AU14),1) -> 91 | AV18: mm2 | AX18: ="Bøjleafstand, a_1 skal være < "&CEILING(MIN(2*(N15^2*PI()/4)*P21/(0.063*P9*SQRT(M21)),0.75*AU14*MIN(1,P15)),1)&" mm; " -> Bøjleafstand, a_1 skal være < 273 mm; | BE18: 0 | BF18: =IF(BG18=1,AX18,"") ->  | BG18: =IF(O15>MIN(5*2*(N15^2*PI()/4)*P21/(P9*SQRT(10*M21)/10),0.75*AU14*MIN(1,P15)),1,0) -> 0 | BJ18: 0.08075772354 | BK18: 0.0004375 | BL18: 0.08480999989 | BM18: -0.0577380322 | BN18: 5.08147113 | BO18: 3.346272362 | BP18: 0.6585243282 | BQ18: 0.0615552061 | BR18: 48.49444286 | BS18: 0.007617489272 | BT18: 305.8060345 | BU18: 0.06917169537 | BV18: 345.8950793 | BW18: 0 | BX18: 0.02313780033 | BY18: 1e-06 | BZ18: 1e-06 | CA18: 0.7622206694 | CB18: 0.01374446786 | CC18: 0.01979203372 | CD18: 0 | CE18: -1e-06 | CF18: 0.0004948008429 | CG18: 0.007184508239 | CH18: 0 | CI18: 0.0004375 | CJ18: 48.49444286 | CK18: 305.8060345 | CL18: 345.8950793
C19: ="="&IF(AU23>M30," "&TEXT(ROUNDUP(AU23,2),"0,0")&" kNm > "," "&TEXT(ROUNDUP(AU23,2),"0,0")&" kNm < ") -> = 28,5 kNm < | D19: =IF(AU23>M30,"!"," ") ->  | L19: gs | M19: 1.2 | O19: fyd | P19: =P18/M19 -> 416.6666667 | AT19: Max arm | AU19: =0.04*P7*P9 -> 2400 | AV19: mm2 | AX19: ="Bøjleafstand, a_2 skal være < "&CEILING(MIN(2*(N16^2*PI()/4)*P21/(0.063*P9*SQRT(M21)),0.75*AU14*MIN(1,P15)),1)&" mm; " -> Bøjleafstand, a_2 skal være < 273 mm; | BE19: 0 | BF19: =IF(BG19=1,AX19,"") ->  | BG19: =IF(O16>MIN(5*2*(N16^2*PI()/4)*P21/(P9*SQRT(10*M21)/10),0.75*AU14*MIN(1,P15)),1,0) -> 0 | BJ19: 0.08136992163 | BK19: 0.000525 | BL19: 0.1017719999 | BM19: -0.06928563864 | BN19: 5.981533211 | BO19: 3.928889632 | BP19: 0.656836549 | BQ19: 0.07300753329 | BR19: 58.54548801 | BS19: 0.009196303752 | BT19: 363.4163292 | BU19: 0.08220283705 | BV19: 411.1612443 | BW19: 0 | BX19: 0.02747016019 | BY19: 1e-06 | BZ19: 1e-06 | CA19: 0.8972299817 | CB19: 0.01649336143 | CC19: 0.02375044046 | CD19: 0 | CE19: -1e-06 | CF19: 0.0005937610115 | CG19: 0.008621409887 | CH19: 0 | CI19: 0.000525 | CJ19: 58.54548801 | CK19: 363.4163292 | CL19: 411.1612443
L20: Beton | N20: Bøjlearmering | AT20: Akt. arm | AU20: =CEILING((N12^2*P12+N13^2*P13)*PI()/4,1) -> 227 | AV20: mm2 | AX20: 20 MPa < f_ck < 50 MPa; | BE20: =IF(OR(M21<20,M21>50),1,0) -> 0 | BF20: =IF(BE20=1,AX20,"") ->  | BJ20: 0.08134574557 | BK20: 0.0006125 | BL20: 0.1187339998 | BM20: -0.08083324508 | BN20: 6.845044619 | BO20: 4.484370853 | BP20: 0.6551266065 | BQ20: 0.08352228871 | BR20: 68.28696195 | BS20: 0.0107264909 | BT20: 416.6666667 | BU20: 0.09424777961 | BV20: 416.6666667 | BW20: 0 | BX20: 0.03148285743 | BY20: 1e-06 | BZ20: 1e-06 | CA20: 1.026756693 | CB20: 0.019242255 | CC20: -0.09424777961 | CD20: 0 | CE20: -1e-06 | CF20: 0.0006927211801 | CG20: 0 | CH20: 0 | CI20: 0.0006125 | CJ20: 68.28696195 | CK20: 416.6666667 | CL20: 416.6666667
B21: Lastparametre: | C21: gk [kN/m] | D21: qk [kN/m] | E21: e [mm] | F21: x1 [m] | G21: x2 [m] | H21: ϒg | I21: ϒq | J21: ψ1 | K21: ψ2 | L21: fck | M21: 35 | O21: fyk | P21: 500 | AT21: M_L | AU21: =MAX(Kold2!P31:BG31) -> 28.45219765 | AV21: kNm | AW21: Langtid | AX21: x_2 skal være større end x_1; | BE21: =IF(OR(Kold2!D91>Kold2!D92,Kold2!E91>Kold2!E92,Kold2!F91>Kold2!F92),1,0) -> 0 | BJ21: 0.07229630159 | BK21: 0.0007 | BL21: 0.1356959998 | BM21: -0.09238085152 | BN21: 7.672881264 | BO21: 5.013409978 | BP21: 0.6533934002 | BQ21: 0.08320814069 | BR21: 70.28689035 | BS21: 0.01104063892 | BT21: 416.6666667 | BU21: 0.09424777961 | BV21: 416.6666667 | BW21: 0 | BX21: 0.03172962018 | BY21: 1e-06 | BZ21: 1e-06 | CA21: 1.15093219 | CB21: 0.02199114858 | CC21: -0.09424777961 | CD21: 0 | CE21: -1e-06 | CF21: 0.0007916813487 | CG21: 0 | CH21: 0 | CI21: 0.0007 | CJ21: 70.28689035 | CK21: 416.6666667 | CL21: 416.6666667
B22: p1 | C22: 1.4 | D22: 0 | E22: 0 | F22: =0 -> 0 | G22: =M8 -> 1.7 | H22: 1 | I22: 0 | J22: 0 | K22: 0 | L22: fcd | M22: =M21/M18 -> 25 | O22: fyd | P22: =P21/M19 -> 416.6666667 | AT22: M_k | AU22: =MAX(Kold2!P32:BG32) -> 28.45219765 | AV22: kNm | AW22: Kar. | AX22: x_2 skal være mindre end L; | BE22: =IF(OR(Kold2!D92>M8,Kold2!E92>M8,Kold2!F92>M8),1,0) -> 0 | BJ22: 0.06545191849 | BK22: 0.0007875 | BL22: 0.1526579998 | BM22: -0.103928458 | BN22: 8.465889535 | BO22: 5.516676592 | BP22: 0.6516357873 | BQ22: 0.08311630677 | BR22: 70.87152324 | BS22: 0.01113247284 | BT22: 416.6666667 | BU22: 0.09424777961 | BV22: 416.6666667 | BW22: 0 | BX22: 0.03191623125 | BY22: 1e-06 | BZ22: 1e-06 | CA22: 1.26988343 | CB22: 0.02474004215 | CC22: -0.09424777961 | CD22: 0 | CE22: -1e-06 | CF22: 0.0008906415173 | CG22: 0 | CH22: 0 | CI22: 0.0007875 | CJ22: 70.87152324 | CK22: 416.6666667 | CL22: 416.6666667
B23: p2 | C23: 0 | D23: 0 | E23: 0 | F23: 0 | G23: 0 | H23: 1 | I23: 1.5 | J23: 0.6 | K23: 0.5 | L23: Nedbøjninger | N23: Krybetal | AT23: M_d | AU23: =MAX(Kold2!P33:BG33) -> 28.45219765 | AV23: kNm | AX23: x_1 skal være mindre end L; | BE23: =IF(OR(Kold2!H91>M8,Kold2!I91>M8,Kold2!J91>M8),1,0) -> 0 | BJ23: 0.06013824994 | BK23: 0.000875 | BL23: 0.1696199998 | BM23: -0.1154760644 | BN23: 9.22488758 | BO23: 5.994816994 | BP23: 0.64985258 | BQ23: 0.08321528925 | BR23: 70.24138122 | BS23: 0.01103349036 | BT23: 416.6666667 | BU23: 0.09424777961 | BV23: 416.6666667 | BW23: 0 | BX23: 0.03206265294 | BY23: 1e-06 | BZ23: 1e-06 | CA23: 1.383733137 | CB23: 0.02748893572 | CC23: -0.09424777961 | CD23: 0 | CE23: -1e-06 | CF23: 0.0009896016859 | CG23: 0 | CH23: 0 | CI23: 0.000875 | CJ23: 70.24138122 | CK23: 416.6666667 | CL23: 416.6666667
B24: p3 | C24: 0 | D24: 0 | E24: 0 | F24: 0 | G24: 0 | H24: 1 | I24: 1.5 | J24: 0.6 | K24: 0.5 | L24: uL | M24: =IF(OR(BG28=1,BG29=1,BG30=1),"",BO141) -> 1.822114966 | O24: RH | P24: 0.5 | AT24: maks V_d | AU24: =MAX(Kold2!P56:BD56) -> 109.6135294 | AV24: kN | AX24: ="Trækarmering, "&AU20&" mm^2 opfylder ikke minimumskrav: "&AU18&" mm^2; " -> Trækarmering, 227 mm^2 opfylder ikke minimumskrav: 91 mm^2; | BE24: 0 | BF24: =IF(BG24=1,AX24,"") ->  | BG24: =IF(AU18>AU20,1,0) -> 0 | BJ24: 0.05592607019 | BK24: 0.0009625 | BL24: 0.1865819998 | BM24: -0.1270236708 | BN24: 9.950666521 | BO24: 6.448455233 | BP24: 0.6480425425 | BQ24: 0.08347525115 | BR24: 68.58641236 | BS24: 0.01077352846 | BT24: 416.6666667 | BU24: 0.09424777961 | BV24: 416.6666667 | BW24: 0 | BX24: 0.03218120373 | BY24: 1e-06 | BZ24: 1e-06 | CA24: 1.492599978 | CB24: 0.03023782929 | CC24: -0.09424777961 | CD24: 0 | CE24: -1e-06 | CF24: 0.001088561854 | CG24: 0 | CH24: 0 | CI24: 0.0009625 | CJ24: 68.58641236 | CK24: 416.6666667 | CL24: 416.6666667
C25: Gk [kN] | D25: Qk [kN] | E25: e [mm] | F25: x1 [m] | L25: ukar | M25: =IF(OR(BG28=1,BG29=1,BG30=1),"",BM141) -> 1.822114966 | O25: to | P25: 28 | AX25: Grænse forskydningstrykbrud (V_ud_0) overskredet; | BE25: 0 | BF25: =IF(BG25=1,AX25,"") ->  | BG25: =IF(AU24>P30,1,0) -> 0 | BJ25: 0.05252964181 | BK25: 0.00105 | BL25: 0.2035439997 | BM25: -0.1385712773 | BN25: 10.64399161 | BO25: 6.878194077 | BP25: 0.6462043875 | BQ25: 0.08386875997 | BR25: 66.08125737 | BS25: 0.01038001963 | BT25: 416.6666667 | BU25: 0.09424777961 | BV25: 416.6666667 | BW25: 0 | BX25: 0.03227978278 | BY25: 1e-06 | BZ25: 1e-06 | CA25: 1.596598741 | CB25: 0.03298672286 | CC25: -0.09424777961 | CD25: 0 | CE25: -1e-06 | CF25: 0.001187522023 | CG25: 0 | CH25: 0 | CI25: 0.00105 | CJ25: 66.08125737 | CK25: 416.6666667 | CL25: 416.6666667
B26: P1 | C26: 128 | D26: 0 | E26: 0 | F26: 0.26 | H26: 1 | I26: 1.5 | J26: 0.6 | K26: 0.5 | L26: Revnevidder | O26: fo | P26: =AU36 -> 2.288953358 | AT26: Beregning af slutkrybetal | AX26: Grænser 1 < cot0 < 2 overholdes ikke; | BE26: 0 | BF26: =IF(BG26=1,AX26,"") ->  | BG26: =IF(OR(P15<1,P15>2),1,0) -> 0 | BJ26: 0.04975182213 | BK26: 0.0011375 | BL26: 0.2205059997 | BM26: -0.1501188837 | BN26: 11.30560329 | BO26: 7.28461594 | BP26: 0.6443367727 | BQ26: 0.08437115463 | BR26: 62.88291365 | BS26: 0.009877624978 | BT26: 416.6666667 | BU26: 0.09424777961 | BV26: 416.6666667 | BW26: 0 | BX26: 0.03236361089 | BY26: 1e-06 | BZ26: 1e-06 | CA26: 1.695840494 | CB26: 0.03573561643 | CC26: -0.09424777961 | CD26: 0 | CE26: -1e-06 | CF26: 0.001286482192 | CG26: 0 | CH26: 0 | CI26: 0.0011375 | CJ26: 62.88291365 | CK26: 416.6666667 | CL26: 416.6666667
B27: P2 | C27: 0 | D27: 0 | E27: 0 | F27: 0 | H27: 1 | I27: 1.5 | J27: 0.6 | K27: 0.5 | L27: wk,L | M27: =IF(OR(BG28=1,BG29=1,BG30=1),"",IF(BO136=0,"urevnet",BT141)) -> 0.3045417547 | N27: Svindtøjning | AT27: to | AU27: =P25 -> 28 | AX27: Partialkoefficienter skal være større end 1; | BE27: =IF(MIN(M18:M19)<1,1,0) -> 0 | BJ27: 0.04745256809 | BK27: 0.001225 | BL27: 0.2374679997 | BM27: -0.1616664902 | BN27: 11.93621829 | BO27: 7.668283753 | BP27: 0.6424382971 | BQ27: 0.08496063169 | BR27: 59.13018611 | BS27: 0.009288147914 | BT27: 416.6666667 | BU27: 0.09424777961 | BV27: 416.6666667 | BW27: 0 | BX27: 0.03243622485 | BY27: 1e-06 | BZ27: 1e-06 | CA27: 1.790432744 | CB27: 0.03848451001 | CC27: -0.09424777961 | CD27: 0 | CE27: -1e-06 | CF27: 0.00138544236 | CG27: 0 | CH27: 0 | CI27: 0.001225 | CJ27: 59.13018611 | CK27: 416.6666667 | CL27: 416.6666667
B28: P3 | C28: 0 | D28: 0 | E28: 0 | F28: 0 | H28: 1 | I28: 1.5 | J28: 0.6 | K28: 0.5 | L28: wk,kar | M28: =IF(OR(BG28=1,BG29=1,BG30=1),"",IF(BM136=0,"urevnet",BS141)) -> 0.3045417547 | O28: ecs | P28: =1000*BX140 -> 0.5104646177 | AT28: RH | AU28: =P24*100 -> 50 | AX28: M_d > M_ud ! | BF28: =IF(BG28=1,AX28,"") ->  | BG28: =IF(AU23>M30,1,0) -> 0 | BJ28: 0.04552995217 | BK28: 0.0013125 | BL28: 0.2544299997 | BM28: -0.1732140966 | BN28: 12.53653054 | BO28: 8.029741796 | BP28: 0.640507497 | BQ28: 0.08561814537 | BR28: 54.94432403 | BS28: 0.008630634237 | BT28: 416.6666667 | BU28: 0.09424777961 | BV28: 416.6666667 | BW28: 0 | BX28: 0.03250007106 | BY28: 1e-06 | BZ28: 1e-06 | CA28: 1.880479581 | CB28: 0.04123340358 | CC28: -0.09424777961 | CD28: 0 | CE28: -1e-06 | CF28: 0.001484402529 | CG28: 0 | CH28: 0 | CI28: 0.0013125 | CJ28: 54.94432403 | CK28: 416.6666667 | CL28: 416.6666667
C29: Jævnt fordelte laste [kN/m] | F29: Punktlaste [kN] | I29: Kontrol: | J29: Langtid | K29: Brudstadie | L29: Momentkapacitet | N29: Forskydningskapacitet | AT29: h | AU29: =P7 -> 400 | AX29: ="Armeringsspænding = "&TEXT(MAX(BD10+BD11,BE10+BE11),0)&" MPa > f_yk for kar. last ! " -> Armeringsspænding = 474 MPa > f_yk for kar. last ! | BG29: =IF(BG28=1,0,IF(OR(BD10+BD11>P18,BE10+BE11>P18),1,0)) -> 0 | BJ29: 0.0439082432 | BK29: 0.0014 | BL29: 0.2713919997 | BM29: -0.184761703 | BN29: 13.10721213 | BO29: 8.369516479 | BP29: 0.6385428417 | BQ29: 0.08632719867 | BR29: 50.43035055 | BS29: 0.00792158094 | BT29: 416.6666667 | BU29: 0.09424777961 | BV29: 416.6666667 | BW29: 0 | BX29: 0.03255687253 | BY29: 1e-06 | BZ29: 1e-06 | CA29: 1.966081819 | CB29: 0.04398229715 | CC29: -0.09424777961 | CD29: 0 | CE29: -1e-06 | CF29: 0.001583362697 | CG29: 0 | CH29: 0 | CI29: 0.0014 | CJ29: 50.43035055 | CK29: 416.6666667 | CL29: 416.6666667
C30: p1 | D30: p2 | E30: p3 | F30: P1 | G30: P2 | H30: P3 | I30: M (kNm) | J30: =INDEX(AU21:AU22,MATCH(J29,AW21:AW22,0)) -> 28.45219765 | K30: =M30 -> 32.98295532 | L30: MRd | M30: =BX56*1000 -> 32.98295532 | N30: v/ trykbrud i krop: | O30: VRd,0 | P30: =BL110 -> 317.072404 | AT30: b | AU30: =P9 -> 150 | AX30: ="Betonkanttøjning = "&TEXT(1000*(BB10+BB11),"0,00")&" 0/00 > 0,6*e_1 for kar. last ! " -> Betonkanttøjning = 0,29 0/00 > 0,6*e_1 for kar. last ! | BG30: =IF(BG28=1,0,IF(BB10+BB11>0.6*CF63,IF(BG28=0,1,0),0)) -> 0 | BJ30: 0.04253016329 | BK30: 0.0014875 | BL30: 0.2883539996 | BM30: -0.1963093095 | BN30: 13.6489142 | BO30: 8.688117092 | BP30: 0.6365427288 | BQ30: 0.08707358247 | BR30: 45.67872371 | BS30: 0.007175197141 | BT30: 416.6666667 | BU30: 0.09424777961 | BV30: 416.6666667 | BW30: 0 | BX30: 0.03260786242 | BY30: 1e-06 | BZ30: 1e-06 | CA30: 2.047337131 | CB30: 0.04673119072 | CC30: -0.09424777961 | CD30: 0 | CE30: -1e-06 | CF30: 0.001682322866 | CG30: 0 | CH30: 0 | CI30: 0.0014875 | CJ30: 45.67872371 | CK30: 416.6666667 | CL30: 416.6666667
B31: Langtidsværdi | C31: =Kold2!D87 -> 1.4 | D31: =Kold2!E87 -> 0 | E31: =Kold2!F87 -> 0 | F31: =Kold2!H87 -> 128 | G31: =Kold2!I87 -> 0 | H31: =Kold2!J87 -> 0 | I31: x (mm) | J31: =IF(OR(BG28=1,BG29=1,BG30=1),"-",IF(IF(J29="langtid",BO136,BM136)=0,"urevnet",IF(J29="langtid",BJ79,BJ102)*1000)) -> 108.8575407 | K31: =BJ56*1000 -> 34.44617744 | L31: EIL,revnet | M31: =IF(OR(BG28=1,BG29=1,BG30=1),"",CK63) -> 3756.954447 | N31: v/ type 1 bøjler: | O31: VRd,1 | P31: =BL111 -> 82.21879591 | R31: NB: Resultaterne skal altid kontrolleres af ansvarlig statiker | AT31: ho | AU31: =2*AU29*AU30/(2*(AU29+AU30)) -> 109.0909091 | BJ31: 0.04135171074 | BK31: 0.001575 | BL31: 0.3053159996 | BM31: -0.2078569159 | BN31: 14.1622678 | BO31: 8.986036512 | BP31: 0.6345054789 | BQ31: 0.0878451002 | BR31: 40.76708925 | BS31: 0.006403679404 | BT31: 416.6666667 | BU31: 0.09424777961 | BV31: 416.6666667 | BW31: 0 | BX31: 0.03265393618 | BY31: 1e-06 | BZ31: 1e-06 | CA31: 2.12434017 | CB31: 0.04948008429 | CC31: -0.09424777961 | CD31: 0 | CE31: -1e-06 | CF31: 0.001781283035 | CG31: 0 | CH31: 0 | CI31: 0.001575 | CJ31: 40.76708925 | CK31: 416.6666667 | CL31: 416.6666667
B32: Kar. værdi | C32: =Kold2!D88 -> 1.4 | D32: =Kold2!E88 -> 0 | E32: =Kold2!F88 -> 0 | F32: =Kold2!H88 -> 128 | G32: =Kold2!I88 -> 0 | H32: =Kold2!J88 -> 0 | I32: e0 (o/oo) | J32: =IF(OR(BG28=1,BG29=1,BG30=1),"-",IF(IF(J29="langtid",BO136,BM136)=0,"urevnet",1000*IF(J29="langtid",BB10,BB12))) -> 0.250657493 | K32: =1000*BK56 -> 3.0625 | L32: EIkort,revnet | M32: =IF(OR(BG28=1,BG29=1,BG30=1),"",CK86) -> 4504.48221 | N32: v/ type 2 bøjler: | O32: VRd,2 | P32: =BL112 -> 82.21879591 | AT32: fck | AU32: =M21 -> 35 | AX32: Kar. last mindre end langtidslast ! | BG32: =IF(OR(Kold2!D88<Kold2!D87,Kold2!E88<Kold2!E87,Kold2!F88<Kold2!F87,Kold2!H88<Kold2!H87,Kold2!I88<Kold2!I87,Kold2!J88<Kold2!J87),1,0) -> 0 | BJ32: 0.04033861239 | BK32: 0.0016625 | BL32: 0.3222779996 | BM32: -0.2194045224 | BN32: 14.64788463 | BO32: 9.263751875 | BP32: 0.632429331 | BQ32: 0.08863130104 | BR32: 35.76197925 | BS32: 0.005617478564 | BT32: 416.6666667 | BU32: 0.09424777961 | BV32: 416.6666667 | BW32: 0 | BX32: 0.0326957527 | BY32: 1e-06 | BZ32: 1e-06 | CA32: 2.197182694 | CB32: 0.05222897787 | CC32: -0.09424777961 | CD32: 0 | CE32: -1e-06 | CF32: 0.001880243203 | CG32: 0 | CH32: 0 | CI32: 0.0016625 | CJ32: 35.76197925 | CK32: 416.6666667 | CL32: 416.6666667
B33: Regnm. værdi | C33: =Kold2!D89 -> 1.4 | D33: =Kold2!E89 -> 0 | E33: =Kold2!F89 -> 0 | F33: =Kold2!H89 -> 128 | G33: =Kold2!I89 -> 0 | H33: =Kold2!J89 -> 0 | I33: sst (MPa) | J33: =IF(OR(BG28=1,BG29=1,BG30=1),"-",IF(IF(J29="langtid",BO136,BM136)=0,"urevnet",IF(J29="langtid",BT79,BT102))) -> 384.9347435 | K33: =BT56 -> 416.6666667 | L33: Forskydningskraftens største excentricitet, exc.: | P33: =MAX(Kold2!P61:BD61) -> 0 | R33: Vejledning: | U33: Betonelementbyggeriers statik | AT33: fcm | AU33: =AU32+8 -> 43 | AX33: Regnm. last mindre end kar. last ! | BG33: =IF(OR(Kold2!D89<Kold2!D88,Kold2!E89<Kold2!E88,Kold2!F89<Kold2!F88,Kold2!H89<Kold2!H88,Kold2!I89<Kold2!I88,Kold2!J89<Kold2!J88),1,0) -> 0 | BJ33: 0.03946384023 | BK33: 0.00175 | BL33: 0.3392399996 | BM33: -0.2309521288 | BN33: 15.10635786 | BO33: 9.521725216 | BP33: 0.6303124357 | BQ33: 0.08942323395 | BR33: 30.72037778 | BS33: 0.004825545658 | BT33: 416.6666667 | BU33: 0.09424777961 | BV33: 416.6666667 | BW33: 0 | BX33: 0.03273380277 | BY33: 1e-06 | BZ33: 1e-06 | CA33: 2.265953679 | CB33: 0.05497787144 | CC33: -0.09424777961 | CD33: 0 | CE33: -1e-06 | CF33: 0.001979203372 | CG33: 0 | CH33: 0 | CI33: 0.00175 | CJ33: 30.72037778 | CK33: 416.6666667 | CL33: 416.6666667
I34: z (mm) | J34: - | K34: =AU17 -> 348.9474076 | L34: Forankringskrav til hovedarmering over lejer, Na : | P34: =CF112 -> 82.21014706 | R34: Polyteknisk Forlag 2010 eller www.bef.dk | AT34: a1 | AU34: =IF(AU33<35,1,(35/AU33)^0.7) -> 0.8658042477 | AX34: Forskydningsarmering bør vurderes nærmere ! | BG34: =IF(Kold2!I81=1,1,0) -> 0 | BJ34: 0.03870584037 | BK34: 0.0018375 | BL34: 0.3562019995 | BM34: -0.2424997352 | BN34: 15.53826283 | BO34: 9.760404075 | BP34: 0.6281528496 | BQ34: 0.09021322813 | BR34: 25.69111865 | BS34: 0.00403555148 | BT34: 416.6666667 | BU34: 0.09424777961 | BV34: 416.6666667 | BW34: 0 | BX34: 0.03276845614 | BY34: 1e-06 | BZ34: 1e-06 | CA34: 2.330739425 | CB34: 0.05772676501 | CC34: -0.09424777961 | CD34: 0 | CE34: -1e-06 | CF34: 0.00207816354 | CG34: 0 | CH34: 0 | CI34: 0.0018375 | CJ34: 25.69111865 | CK34: 416.6666667 | CL34: 416.6666667
B35: Note: | AT35: a2 | AU35: =IF(AU33<35,1,(35/AU33)^0.2) -> 0.9596655786 | AX35: b - 2*c' skal mindst være 3*maks(d) ! | BE35: =IF(P8-2*N9<3*MAX(N11:N13),1,0) -> 0 | BF35: =IF(BE35=1,AX35,"") ->  | BJ35: 0.03804724905 | BK35: 0.001925 | BL35: 0.3731639995 | BM35: -0.2540473417 | BN35: 15.94415775 | BO35: 9.980222077 | BP35: 0.6259485282 | BQ35: 0.09099470112 | BR35: 20.71610707 | BS35: 0.003254078489 | BT35: 416.6666667 | BU35: 0.09424777961 | BV35: 416.6666667 | BW35: 0 | BX35: 0.0327999943 | BY35: 1e-06 | BZ35: 1e-06 | CA35: 2.391623662 | CB35: 0.06047565858 | CC35: -0.09424777961 | CD35: 0 | CE35: -1e-06 | CF35: 0.002177123709 | CG35: 0 | CH35: 0 | CI35: 0.001925 | CJ35: 20.71610707 | CK35: 416.6666667 | CL35: 416.6666667
AT36: f | AU36: =(1/(0.1+AU27^0.2))*(16.8/AU33^0.5)*(1+10*AU34*(1-AU28/100)/AU31^(1/3))*AU35 -> 2.288953358 | AX36: ="Trækarmering, "&AU20&" mm^2 overstiger maksimumværdi: "&AU19&" mm^2; " -> Trækarmering, 227 mm^2 overstiger maksimumværdi: 2400 mm^2; | BE36: 0 | BF36: =IF(BG36=1,AX36,"") ->  | BG36: =IF(AU20>AU19,1,0) -> 0 | BJ36: 0.0374739479 | BK36: 0.0020125 | BL36: 0.3901259995 | BM36: -0.2655949481 | BN36: 16.32458433 | BO36: 10.18159948 | BP36: 0.6236973189 | BQ36: 0.09176199342 | BR36: 15.83137255 | BS36: 0.002486786184 | BT36: 416.6666667 | BU36: 0.09424777961 | BV36: 416.6666667 | BW36: 0 | BX36: 0.03282863363 | BY36: 1e-06 | BZ36: 1e-06 | CA36: 2.44868765 | CB36: 0.06322455215 | CC36: -0.09424777961 | CD36: 0 | CE36: -1e-06 | CF36: 0.002276083878 | CG36: 0 | CH36: 0 | CI36: 0.0020125 | CJ36: 15.83137255 | CK36: 416.6666667 | CL36: 416.6666667
AX37: Træklag 1 skal ligge højere end træklag 2 | BE37: =IF(AND(O12<O13,AU10>0),1,0) -> 0 | BF37: =IF(BE37=1,AX37,"") ->  | BJ37: 0.03697435957 | BK37: 0.0021 | BL37: 0.4070879995 | BM37: -0.2771425546 | BN37: 16.68006846 | BO37: 10.3649437 | BP37: 0.6213969524 | BQ37: 0.09251022731 | BR37: 11.0679677 | BS37: 0.001738552301 | BT37: 416.6666667 | BU37: 0.09424777961 | BV37: 416.6666667 | BW37: 0 | BX37: 0.03285454196 | BY37: 1e-06 | BZ37: 1e-06 | CA37: 2.502010269 | CB37: 0.06597344573 | CC37: -0.09424777961 | CD37: 0 | CE37: -1e-06 | CF37: 0.002375044046 | CG37: 0 | CH37: 0 | CI37: 0.0021 | CJ37: 11.0679677 | CK37: 416.6666667 | CL37: 416.6666667
BJ38: 0.0365389161 | BK38: 0.0021875 | BL38: 0.4240499995 | BM38: -0.288690161 | BN38: 17.01112073 | BO38: 10.53064982 | BP38: 0.6190450345 | BQ38: 0.093235187 | BR38: 6.452730968 | BS38: 0.00101359261 | BT38: 416.6666667 | BU38: 0.09424777961 | BV38: 416.6666667 | BW38: 0 | BX38: 0.03287785055 | BY38: 1e-06 | BZ38: 1e-06 | CA38: 2.55166811 | CB38: 0.0687223393 | CC38: -0.09424777961 | CD38: 0 | CE38: -1e-06 | CF38: 0.002474004215 | CG38: 0 | CH38: 0 | CI38: 0.0021875 | CJ38: 6.452730968 | CK38: 416.6666667 | CL38: 416.6666667
AX39: Relativ fugtighed < 100% | BE39: 0 | BF39: =IF(BG39=1,AX39,"") ->  | BG39: =IF(P24>1,1,0) -> 0 | BJ39: 0.03615965332 | BK39: 0.002275 | BL39: 0.4410119994 | BM39: -0.3002377674 | BN39: 17.31823709 | BO39: 10.67910104 | BP39: 0.6166390368 | BQ39: 0.09393321741 | BR39: 2.008931341 | BS39: 0.0003155621971 | BT39: 416.6666667 | BU39: 0.09424777961 | BV39: 416.6666667 | BW39: 0 | BX39: 0.03289866276 | BY39: 1e-06 | BZ39: 1e-06 | CA39: 2.597735564 | CB39: 0.07147123287 | CC39: -0.09424777961 | CD39: 0 | CE39: -1e-06 | CF39: 0.002572964383 | CG39: 0 | CH39: 0 | CI39: 0.002275 | CJ39: 2.008931341 | CK39: 416.6666667 | CL39: 416.6666667
BJ40: 0.03582989803 | BK40: 0.0023625 | BL40: 0.4579739994 | BM40: -0.3117853739 | BN40: 17.60189932 | BO40: 10.81066915 | BP40: 0.6141762858 | BQ40: 0.09460113868 | BR40: -2.243187543 | BS40: -0.0003523590753 | BT40: 416.6666667 | BU40: 0.09424777961 | BV40: 416.6666667 | BW40: 0 | BX40: 0.03291706048 | BY40: 1e-06 | BZ40: 1e-06 | CA40: 2.640284899 | CB40: 0.07422012644 | CC40: -0.09424777961 | CD40: 0 | CE40: -1e-06 | CF40: 0.002671924552 | CG40: 0 | CH40: 0 | CI40: 0.0023625 | CJ40: -2.243187543 | CK40: 416.6666667 | CL40: 416.6666667
BJ41: 0.03554402467 | BK41: 0.00245 | BL41: 0.4749359994 | BM41: -0.3233329803 | BN41: 17.86257559 | BO41: 10.92571496 | BP41: 0.6116539524 | BQ41: 0.09523617411 | BR41: -6.285948633 | BS41: -0.0009873945023 | BT41: 416.6666667 | BU41: 0.09424777961 | BV41: 416.6666667 | BW41: 0 | BX41: 0.03293310896 | BY41: 1e-06 | BZ41: 1e-06 | CA41: 2.679386339 | CB41: 0.07696902001 | CC41: -0.09424777961 | CD41: 0 | CE41: -1e-06 | CF41: 0.00277088472 | CG41: 0 | CH41: 0 | CI41: 0.00245 | CJ41: -6.285948633 | CK41: 416.6666667 | CL41: 416.6666667
BJ42: 0.0352972642 | BK42: 0.0025375 | BL42: 0.4918979994 | BM42: -0.3348805868 | BN42: 18.10072093 | BO42: 11.02458871 | BP42: 0.6090690395 | BQ42: 0.09583588935 | BR42: -10.10385442 | BS42: -0.001587109741 | BT42: 416.6666667 | BU42: 0.09424777961 | BV42: 416.6666667 | BW42: 0 | BX42: 0.03294686031 | BY42: 1e-06 | BZ42: 1e-06 | CA42: 2.71510814 | CB42: 0.07971791358 | CC42: -0.09424777961 | CD42: 0 | CE42: -1e-06 | CF42: 0.002869844889 | CG42: 0 | CH42: 0 | CI42: 0.0025375 | CJ42: -10.10385442 | CK42: 416.6666667 | CL42: 416.6666667
BJ43: 0.03508555287 | BK43: 0.002625 | BL43: 0.5088599994 | BM43: -0.3464281932 | BN43: 18.31677774 | BO43: 11.10763047 | BP43: 0.6064183684 | BQ43: 0.09639814107 | BR43: -13.68326005 | BS43: -0.002149361462 | BT43: 416.6666667 | BU43: 0.09424777961 | BV43: 416.6666667 | BW43: 0 | BX43: 0.03295835627 | BY43: 1e-06 | BZ43: 1e-06 | CA43: 2.747516661 | CB43: 0.08246680716 | CC43: -0.09424777961 | CD43: 0 | CE43: -1e-06 | CF43: 0.002968805058 | CG43: 0 | CH43: 0 | CI43: 0.002625 | CJ43: -13.68326005 | CK43: 416.6666667 | CL43: 416.6666667
BJ44: 0.03490541155 | BK44: 0.0027125 | BL44: 0.5258219993 | BM44: -0.3579757996 | BN44: 18.5111762 | BO44: 11.1751705 | BP44: 0.6036985645 | BQ44: 0.09692103351 | BR44: -17.0120967 | BS44: -0.002672253902 | BT44: 416.6666667 | BU44: 0.09424777961 | BV44: 416.6666667 | BW44: 0 | BX44: 0.03296763021 | BY44: 1e-06 | BZ44: 1e-06 | CA44: 2.77667643 | CB44: 0.08521570073 | CC44: -0.09424777961 | CD44: 0 | CE44: -1e-06 | CF44: 0.003067765226 | CG44: 0 | CH44: 0 | CI44: 0.0027125 | CJ44: -17.0120967 | CK44: 416.6666667 | CL44: 416.6666667
BJ45: 0.0347538488 | BK45: 0.0028 | BL45: 0.5427839993 | BM45: -0.3695234061 | BN45: 18.68433473 | BO45: 11.22752961 | BP45: 0.6009060411 | BQ45: 0.09740288162 | BR45: -20.07963707 | BS45: -0.003154102016 | BT45: 416.6666667 | BU45: 0.09424777961 | BV45: 416.6666667 | BW45: 0 | BX45: 0.03297470872 | BY45: 1e-06 | BZ45: 1e-06 | CA45: 2.802650209 | CB45: 0.0879645943 | CC45: -0.09424777961 | CD45: 0 | CE45: -1e-06 | CF45: 0.003166725395 | CG45: 0 | CH45: 0 | CI45: 0.0028 | CJ45: -20.07963707 | CK45: 416.6666667 | CL45: 416.6666667
AX46: For ny bruger: Klik på knappen 'angiv nyt brugernavn' for ibrugtagning. | BF46: =IF(BG46=1,AX46,"") ->  | BG46: =Makro!E20 -> 0 | BJ46: 0.03462828253 | BK46: 0.0028875 | BL46: 0.5597459993 | BM46: -0.3810710125 | BN46: 18.8366604 | BO46: 11.26501954 | BP46: 0.598036982 | BQ46: 0.09784217976 | BR46: -22.8762959 | BS46: -0.003593400157 | BT46: 416.6666667 | BU46: 0.09424777961 | BV46: 416.6666667 | BW46: 0 | BX46: 0.03297961283 | BY46: 1e-06 | BZ46: 1e-06 | CA46: 2.825499061 | CB46: 0.09071348787 | CC46: -0.09424777961 | CD46: 0 | CE46: -1e-06 | CF46: 0.003265685563 | CG46: 0 | CH46: 0 | CI46: 0.0028875 | CJ46: -22.8762959 | CK46: 416.6666667 | CL46: 416.6666667
BJ47: 0.03452647616 | BK47: 0.002975 | BL47: 0.5767079993 | BM47: -0.392618619 | BN47: 18.96854934 | BO47: 11.28794323 | BP47: 0.5950873222 | BQ47: 0.09823757496 | BR47: -25.39345988 | BS47: -0.00398879535 | BT47: 416.6666667 | BU47: 0.09424777961 | BV47: 416.6666667 | BW47: 0 | BX47: 0.03298235891 | BY47: 1e-06 | BZ47: 1e-06 | CA47: 2.8452824 | CB47: 0.09346238144 | CC47: -0.09424777961 | CD47: 0 | CE47: -1e-06 | CF47: 0.003364645732 | CG47: 0 | CH47: 0 | CI47: 0.002975 | CJ47: -25.39345988 | CK47: 416.6666667 | CL47: 416.6666667
BJ48: 0.0344464864 | BK48: 0.0030625 | BL48: 0.5936699992 | BM48: -0.4041662254 | BN48: 19.08038707 | BO48: 11.29659518 | BP48: 0.5920527263 | BQ48: 0.09858784404 | BR48: -27.62334213 | BS48: -0.004339064436 | BT48: 416.6666667 | BU48: 0.09424777961 | BV48: 416.6666667 | BW48: 0 | BX48: 0.03298295941 | BY48: 1e-06 | BZ48: 1e-06 | CA48: 2.86205806 | CB48: 0.09621127502 | CC48: -0.09424777961 | CD48: 0 | CE48: -1e-06 | CF48: 0.003463605901 | CG48: 0 | CH48: 0 | CI48: 0.0030625 | CJ48: -27.62334213 | CK48: 416.6666667 | CL48: 416.6666667
BJ49: 0.03438662032 | BK49: 0.00315 | BL49: 0.6106319992 | BM49: -0.4157138318 | BN49: 19.17254892 | BO49: 11.29126173 | BP49: 0.5889285654 | BQ49: 0.09889187404 | BR49: -29.55885723 | BS49: -0.004643094436 | BT49: 416.6666667 | BU49: 0.09424777961 | BV49: 416.6666667 | BW49: 0 | BX49: 0.03298142342 | BY49: 1e-06 | BZ49: 1e-06 | CA49: 2.875882338 | CB49: 0.09896016859 | CC49: -0.09424777961 | CD49: 0 | CE49: -1e-06 | CF49: 0.003562566069 | CG49: 0 | CH49: 0 | CI49: 0.0030625 | CJ49: -27.62334213 | CK49: 416.6666667 | CL49: 416.6666667
BJ50: 0.03434538044 | BK50: 0.0032375 | BL50: 0.6275939992 | BM50: -0.4272614383 | BN50: 19.24542278 | BO50: 11.27222142 | BP50: 0.5857092123 | BQ50: 0.09914870507 | BR50: -31.19389433 | BS50: -0.004899925462 | BT50: 416.6666667 | BU50: 0.09424777961 | BV50: 416.6666667 | BW50: 0 | BX50: 0.0329777569 | BY50: 1e-06 | BZ50: 1e-06 | CA50: 2.886813417 | CB50: 0.1017090622 | CC50: -0.09424777961 | CD50: 0 | CE50: -1e-06 | CF50: 0.003661526238 | CG50: 0 | CH50: 0 | CI50: 0.0030625 | CJ50: -27.62334213 | CK50: 416.6666667 | CL50: 416.6666667
BJ51: 0.03432149211 | BK51: 0.003325 | BL51: 0.6445559992 | BM51: -0.4388090447 | BN51: 19.29934402 | BO51: 11.23974505 | BP51: 0.5823900046 | BQ51: 0.09935734254 | BR51: -32.52212173 | BS51: -0.005108562936 | BT51: 416.6666667 | BU51: 0.09424777961 | BV51: 416.6666667 | BW51: 0 | BX51: 0.03297196366 | BY51: 1e-06 | BZ51: 1e-06 | CA51: 2.894901603 | CB51: 0.1044579557 | CC51: -0.09424777961 | CD51: 0 | CE51: -1e-06 | CF51: 0.003760486406 | CG51: 0 | CH51: 0 | CI51: 0.0030625 | CJ51: -27.62334213 | CK51: 416.6666667 | CL51: 416.6666667
BJ52: 0.0343138228 | BK52: 0.0034125 | BL52: 0.6615179992 | BM52: -0.4503566512 | BN52: 19.33465941 | BO52: 11.19409618 | BP52: 0.5789652636 | BQ52: 0.09951691153 | BR52: -33.53796946 | BS52: -0.005268131924 | BT52: 416.6666667 | BU52: 0.09424777961 | BV52: 416.6666667 | BW52: 0 | BX52: 0.03296404494 | BY52: 1e-06 | BZ52: 1e-06 | CA52: 2.900198912 | CB52: 0.1072068493 | CC52: -0.09424777961 | CD52: 0 | CE52: -1e-06 | CF52: 0.003859446575 | CG52: 0 | CH52: 0 | CI52: 0.0030625 | CJ52: -27.62334213 | CK52: 416.6666667 | CL52: 416.6666667
BJ53: 0.03432137976 | BK53: 0.0035 | BL53: 0.6784799991 | BM53: -0.4619042576 | BN53: 19.35170682 | BO53: 11.13553126 | BP53: 0.5754288945 | BQ53: 0.09962659183 | BR53: -34.23621595 | BS53: -0.005377812226 | BT53: 416.6666667 | BU53: 0.09424777961 | BV53: 416.6666667 | BW53: 0 | BX53: 0.03295399988 | BY53: 1e-06 | BZ53: 1e-06 | CA53: 2.902756024 | CB53: 0.1099557429 | CC53: -0.09424777961 | CD53: 0 | CE53: -1e-06 | CF53: 0.003958406744 | CG53: 0 | CH53: 0 | CI53: 0.0030625 | CJ53: -27.62334213 | CK53: 416.6666667 | CL53: 416.6666667
BR54: =CJ53 -> -27.62334213 | BS54: -0.004339064436 | BT54: =CK53 -> 416.6666667 | BU54: 0.09424777961 | BV54: =CL53 -> 416.6666667 | BW54: 0
BJ55: 0.03444617744 | BK55: =CI53 -> 0.0030625 | BL55: =IF($CH$11=1,BK55/($CG$11*$CF$11),2^(1/3)*$CF$11/BK55) -> 0.5936699992 | BM55: =IF($CH$11=1,-($CG$11-2)*BK55/$CF$11,3*($CF$11/BK55)^2) -> -0.4041662254 | BN55: =IF(CH$11=1,0.5*(CG$11*BK55*BN$11/CF$11)*(1-CI54^2+(BL55-BM55)*(BM55^2*(1-CI54^2)+2*BM55*(1-CI54)+2*LN((1-BM55)/(1-BM55*CI54)))/(BM55^3)),BN$11*BM55*(LN((1-BL55+BL55^2)/(1+BL55)^2)/(6*BL55)+ATAN((2-BL55)/(BL55*3^0.5))/(BL55*3^0.5)-LN((CI54^2-BL55*CI54+BL55^2)/(CI54+BL55)^2)/(6*BL55)-ATAN((2*CI54-BL55)/(BL55*3^0.5))/(BL55*3^0.5))) -> 19.08073276 | BO55: =IF(CH$11=1,(CG$11*BK55*BN$11/CF$11)*(1-CI54^3-(BL55-BM55)*(-2*BM55^3*(1-CI54^3)-3*BM55^2*(1-CI54^2)-6*BM55*(1-CI54)-6*LN((1-BM55)/(1-BM55*CI54)))/(2*BM55^4))/3,BN$11*BM55*(LN((1+BL55^3)/(BL55^3+CI54^3)))/3) -> 11.29659587 | BP55: =BO55/BN55 -> 0.5920420359 | BQ55: =BN55*BJ55*BL$11 -> 0.09858874592 | BR55: =MAX(MIN(BS$11,CC$11*BR$11*BK55*(BJ55-BQ$11)/BJ55),-BS$11) -> -27.62908367 | BS55: -0.004339966315 | BT55: =MIN(BW$11,CC$11*BV$11*BK55*(BK$11-BJ55-BU$11)/BJ55) -> 416.6666667 | BU55: 0.09424777961 | BV55: =MIN($CA$11,CC$11*$BZ$11*BK55*(BK$11-BJ55-$BY$11)/BJ55) -> 416.6666667 | BW55: 0 | BX55: =(0.5*BK$11-BJ55+BP55*BJ55)*BQ55+(0.5*BK$11-BQ$11)*BS55+(0.5*BK$11-BU$11)*BU55+(0.5*BK$11-BY$11)*BW55 -> 0.03298295532 | BY55: =BQ55+BS55-BU55-BW55 -> 1e-06 | BZ55: =$CI$11 -> 1e-06 | CA55: =BN55*BL$11 -> 2.862109913 | CB55: =IF(BR54<BS$11,CC$11*BK55*BP$11*BR$11,BP$11*BS$11) -> 0.09621127502 | CC55: =IF(BT54<BW$11,CC$11*BK55*BT$11*BV$11,-BT$11*BW$11) -> -0.09424777961 | CD55: =IF(BV54<CA$11,CC$11*BK55*$BX$11*$BZ$11,-$BX$11*CA$11) -> 0 | CE55: =-BZ55 -> -1e-06 | CF55: =IF(BR54<BS$11,BQ$11*CC$11*BK55*BP$11*BR$11,0) -> 0.003463605901 | CG55: =IF(BT54<BW$11,(BK$11-BU$11)*CC$11*BK55*BT$11*BV$11,0) -> 0 | CH55: =IF(BV54<CA$11,(BK$11-$BY$11)*CC$11*BK55*$BX$11*$BZ$11,0) -> 0
BJ56: 0.03444617744 | BK56: =BK55 -> 0.0030625 | BL56: =IF($CH$11=1,BK56/($CG$11*$CF$11),2^(1/3)*$CF$11/BK56) -> 0.5936699992 | BM56: =IF($CH$11=1,-($CG$11-2)*BK56/$CF$11,3*($CF$11/BK56)^2) -> -0.4041662254 | BN56: =IF(CH$11=1,0.5*(CG$11*BK56*BN$11/CF$11)*(1-CI55^2+(BL56-BM56)*(BM56^2*(1-CI55^2)+2*BM56*(1-CI55)+2*LN((1-BM56)/(1-BM56*CI55)))/(BM56^3)),BN$11*BM56*(LN((1-BL56+BL56^2)/(1+BL56)^2)/(6*BL56)+ATAN((2-BL56)/(BL56*3^0.5))/(BL56*3^0.5)-LN((CI55^2-BL56*CI55+BL56^2)/(CI55+BL56)^2)/(6*BL56)-ATAN((2*CI55-BL56)/(BL56*3^0.5))/(BL56*3^0.5))) -> 19.08073276 | BO56: =IF(CH$11=1,(CG$11*BK56*BN$11/CF$11)*(1-CI55^3-(BL56-BM56)*(-2*BM56^3*(1-CI55^3)-3*BM56^2*(1-CI55^2)-6*BM56*(1-CI55)-6*LN((1-BM56)/(1-BM56*CI55)))/(2*BM56^4))/3,BN$11*BM56*(LN((1+BL56^3)/(BL56^3+CI55^3)))/3) -> 11.29659587 | BP56: =BO56/BN56 -> 0.5920420359 | BQ56: =BN56*BJ56*BL$11 -> 0.09858874592 | BR56: =MAX(MIN(BS$11,CC$11*BR$11*BK56*(BJ56-BQ$11)/BJ56),-BS$11) -> -27.62908367 | BS56: -0.004339966315 | BT56: =MIN(BW$11,CC$11*BV$11*BK56*(BK$11-BJ56-BU$11)/BJ56) -> 416.6666667 | BU56: 0.09424777961 | BV56: =MIN($CA$11,CC$11*$BZ$11*BK56*(BK$11-BJ56-$BY$11)/BJ56) -> 416.6666667 | BW56: 0 | BX56: =(0.5*BK$11-BJ56+BP56*BJ56)*BQ56+(0.5*BK$11-BQ$11)*BS56+(0.5*BK$11-BU$11)*BU56+(0.5*BK$11-BY$11)*BW56 -> 0.03298295532 | BY56: =BQ56+BS56-BU56-BW56 -> 1e-06 | BZ56: =$CI$11 -> 1e-06 | CA56: =BN56*BL$11 -> 2.862109913 | CB56: =IF(BR55<BS$11,CC$11*BK56*BP$11*BR$11,BP$11*BS$11) -> 0.09621127502 | CC56: =IF(BT55<BW$11,CC$11*BK56*BT$11*BV$11,-BT$11*BW$11) -> -0.09424777961 | CD56: =IF(BV55<CA$11,CC$11*BK56*$BX$11*$BZ$11,-$BX$11*CA$11) -> 0 | CE56: =-BZ56 -> -1e-06 | CF56: =IF(BR55<BS$11,BQ$11*CC$11*BK56*BP$11*BR$11,0) -> 0.003463605901 | CG56: =IF(BT55<BW$11,(BK$11-BU$11)*CC$11*BK56*BT$11*BV$11,0) -> 0 | CH56: =IF(BV55<CA$11,(BK$11-$BY$11)*CC$11*BK56*$BX$11*$BZ$11,0) -> 0
BJ57: hc | BK57: e0 | BL57: a' | BM57: b' | BN57: N' | BO57: tN' | BP57: t' | BQ57: Nc | BR57: sac | BS57: Nac | BT57: sat | BU57: Nat | BV57: sat | BW57: Nat | BX57: Mtot | BY57: N | BZ57: N | CA57: A | CB57: B1 | CC57: B2' | CD57: B2 | CE57: B3 | CF57: C1 | CG57: C2 | CH57: C2'
BJ60: LANGTIDSLAST
BJ61: L | BK61: h | BL61: b | BM61: fck | BN61: fcd | BO61: Ecd | BP61: Ac | BQ61: ac | BR61: Esc | BS61: fyd_c | BT61: At | BU61: at | BV61: Est | BW61: fyd_t | BX61: At | BY61: at | BZ61: Est | CA61: fyd_t | CB61: Modenhed | CC61: 1+f | CD61: uterm | CE61: emax | CF61: e1 | CG61: k | CH61: Tilstand: | CI61: Nf | CK61: EIL
BJ62: (m) | BK62: (m) | BL62: (m) | BM62: (Mpa) | BN62: (Mpa) | BO62: (Mpa) | BP62: (m2) | BQ62: (m) | BR62: (Mpa) | BS62: (Mpa) | BT62: (m2) | BU62: (m) | BV62: (Mpa) | BW62: (Mpa) | BX62: (m2) | BY62: (m) | BZ62: (Mpa) | CA62: (Mpa) | CB62: (døgn) | CD62: (m) | CK62: (kNm2)
BJ63: =BJ11 -> 1.7 | BK63: =BK11 -> 0.4 | BL63: =BL11 -> 0.15 | BM63: =BM11 -> 35 | BN63: =BM63 -> 35 | BO63: =22000*((BM11+8)/10)^0.3 -> 34077.1462 | BP63: =BP11 -> 0.0001570796327 | BQ63: =BQ11 -> 0.036 | BR63: =BR11 -> 200000 | BS63: =P18 -> 500 | BT63: =BT11 -> 0.0002261946711 | BU63: =BU11 -> 0.037 | BV63: =BV11 -> 200000 | BW63: =P18 -> 500 | BX63: =BX11 -> 0 | BY63: =BY11 -> 0 | BZ63: =BZ11 -> 200000 | CA63: =P18 -> 500 | CB63: =CB11 -> 0 | CC63: =1+P26 -> 3.288953358 | CD63: =CD11 -> 0 | CE63: =CE11 -> 0.0035 | CF63: =0.7*($M$21+8)^(0.31)/1000 -> 0.002246328469 | CG63: =1.05*BO63*CF63/BN63 -> 2.29645391 | CH63: =CH11 -> 1 | CI63: 0 | CK63: =1000*CJ80/(CC63*BK79/BJ79) -> 3756.954447
BJ64: hc | BK64: e0 | BN64: N' | BO64: tN' | BP64: t' | BQ64: Nc | BR64: sac | BS64: Nac | BT64: sat | BU64: Nat | BV64: sat | BW64: Nat | BX64: Mtot | BY64: N | BZ64: N | CA64: A | CB64: B1 | CC64: B2 | CD64: B2' | CE64: B3 | CF64: C1 | CG64: C2 | CI64: e0
BJ66: =0.5*(-(CB66+CC66+CD66+CE66)+SQRT(MAX((CB66+CC66+CD66+CE66)^2+4*CA66*(CF66+CG66+CH66),0)))/CA66 -> 0.1088576594 | BK66: =MIN(BZ66/(BK63*BL63*BO63)+0.1*CF63,CK80) -> 0.0002087337176 | BN66: =0.5*BK66*$BO$63 -> 3.556524706 | BO66: =0.5*2*BK66*$BO$63/3 -> 2.371016471 | BP66: =BO66/BN66 -> 0.6666666667 | BQ66: =BN66*BJ66*BL$63 -> 0.05807324326 | BR66: =MAX(MIN(BS$63,CC$63*BR$63*BK66*(BJ66-BQ$63)/BJ66),-BS$63) -> 91.8959859 | BS66: =BR66*BP$63 -> 0.01443498771 | BT66: =MIN(BW$63,CC$63*BV$63*BK66*(BK$63-BJ66-BU$63)/BJ66) -> 320.5518973 | BU66: =BT66*BT$63 -> 0.07250713097 | BV66: =MIN($CA$63,CC$63*$BZ$63*BK66*(BK$63-BJ66-$BY$63)/BJ66) -> 367.2203122 | BW66: =BV66*$BX$63 -> 0 | BX66: =(0.5*BK$63-BJ66+BP66*BJ66)*BQ66+(0.5*BK$63-BQ$63)*BS66+(0.5*BK$63-BU$63)*BU66+(0.5*BK$63-BY$63)*BW66 -> 0.02369340987 | BY66: =BQ66+BS66-BU66-BW66 -> 1.1e-06 | BZ66: =$CI$63+0.000001 -> 1e-06 | CA66: =BN66*BL$63 -> 0.5334787059 | CB66: =IF(BR65<BS$63,CC$63*BK66*BP$63*BR$63,BP$63*BS$63) -> 0.02156751931 | CC66: =IF(BT65<BW$63,CC$63*BK66*BT$63*BV$63,-BT$63*BW$63) -> 0.0310572278 | CD66: =IF(BV65<CA$63,CC$63*BK66*$BX$63*$BZ$63,-$BX$63*CA$63) -> 0 | CE66: =-(BZ66+0.0000001) -> -1.1e-06 | CF66: =IF(BR65<BS$63,BQ$63*CC$63*BK66*BP$63*BR$63,0) -> 0.000776430695 | CG66: =IF(BT65<BW$63,(BK$63-BU$63)*CC$63*BK66*BT$63*BV$63,0) -> 0.01127377369 | CH66: =IF(BV65<CA$63,(BK$63-$BY$63)*CC$63*BK66*$BX$63*$BZ$63,0) -> 0
BJ67: 0.1088575411 | BK67: =MIN(BZ66/(BK63*BL63*BO63)+0.12*CF63,1.2*CK80) -> 0.0002504804611 | BN67: =0.5*BK67*$BO$63 -> 4.267829647 | BO67: =0.5*2*BK67*$BO$63/3 -> 2.845219765 | BP67: =BO67/BN67 -> 0.6666666667 | BQ67: 0.06968781621 | BR67: 110.2751239 | BS67: 0.01732197595 | BT67: 384.6628736 | BU67: 0.08700869216 | BV67: 440.6650323 | BW67: 0 | BX67: 0.02843210268 | BY67: =BQ67+BS67-BU67-BW67 -> 1.1e-06 | BZ67: =$CI$63+0.000001 -> 1e-06 | CA67: 0.6401744471 | CB67: 0.02588102317 | CC67: 0.03726867336 | CD67: 0 | CE67: =-(BZ67+0.0000001) -> -1.1e-06 | CF67: 0.000931716834 | CG67: 0.01352852843 | CH67: 0 | CI67: =BK67 -> 0.0002504804611
BJ68: 0.1088575407 | BK68: =IF(BX67<>BX66,BK67+(BK67-BK66)*($CJ$80-BX67)/(BX67-BX66),BK67) -> 0.000250657493 | BN68: 4.270846017 | BO68: 2.847230678 | BP68: 0.6666666667 | BQ68: 0.06973706913 | BR68: 110.3530627 | BS68: 0.01733421856 | BT68: 384.9347435 | BU68: 0.08707018768 | BV68: 440.976483 | BW68: 0 | BX68: 0.02845219765 | BY68: 1.1e-06 | BZ68: 1e-06 | CA68: 0.6406269025 | CB68: 0.02589931507 | CC68: 0.0372950137 | CD68: 0 | CE68: -1.1e-06 | CF68: 0.0009323753426 | CG68: 0.01353808997 | CH68: 0 | CI68: 0.000250657493
BJ69: 0.1088575407 | BK69: =IF(BX68<>BX67,BK68+(BK68-BK67)*($CJ$80-BX68)/(BX68-BX67),BK68) -> 0.000250657493 | BN69: 4.270846017 | BO69: 2.847230678 | BP69: 0.6666666667 | BQ69: 0.06973706913 | BR69: 110.3530627 | BS69: 0.01733421856 | BT69: 384.9347435 | BU69: 0.08707018768 | BV69: 440.976483 | BW69: 0 | BX69: 0.02845219765 | BY69: 1.1e-06 | BZ69: 1e-06 | CA69: 0.6406269025 | CB69: 0.02589931507 | CC69: 0.0372950137 | CD69: 0 | CE69: -1.1e-06 | CF69: 0.0009323753426 | CG69: 0.01353808997 | CH69: 0 | CI69: 0.000250657493
BJ70: 0.1088575407 | BK70: 0.000250657493 | BN70: 4.270846017 | BO70: 2.847230678 | BP70: 0.6666666667 | BQ70: 0.06973706913 | BR70: 110.3530627 | BS70: 0.01733421856 | BT70: 384.9347435 | BU70: 0.08707018768 | BV70: 440.976483 | BW70: 0 | BX70: 0.02845219765 | BY70: 1.1e-06 | BZ70: 1e-06 | CA70: 0.6406269025 | CB70: 0.02589931507 | CC70: 0.0372950137 | CD70: 0 | CE70: -1.1e-06 | CF70: 0.0009323753426 | CG70: 0.01353808997 | CH70: 0 | CI70: 0.000250657493
BJ71: 0.1088575407 | BK71: 0.000250657493 | BN71: 4.270846017 | BO71: 2.847230678 | BP71: 0.6666666667 | BQ71: 0.06973706913 | BR71: 110.3530627 | BS71: 0.01733421856 | BT71: 384.9347435 | BU71: 0.08707018768 | BV71: 440.976483 | BW71: 0 | BX71: 0.02845219765 | BY71: 1.1e-06 | BZ71: 1e-06 | CA71: 0.6406269025 | CB71: 0.02589931507 | CC71: 0.0372950137 | CD71: 0 | CE71: -1.1e-06 | CF71: 0.0009323753426 | CG71: 0.01353808997 | CH71: 0 | CI71: 0.000250657493
BJ72: 0.1088575407 | BK72: 0.000250657493 | BN72: 4.270846017 | BO72: 2.847230678 | BP72: 0.6666666667 | BQ72: 0.06973706913 | BR72: 110.3530627 | BS72: 0.01733421856 | BT72: 384.9347435 | BU72: 0.08707018768 | BV72: 440.976483 | BW72: 0 | BX72: 0.02845219765 | BY72: 1.1e-06 | BZ72: 1e-06 | CA72: 0.6406269025 | CB72: 0.02589931507 | CC72: 0.0372950137 | CD72: 0 | CE72: -1.1e-06 | CF72: 0.0009323753426 | CG72: 0.01353808997 | CH72: 0 | CI72: 0.000250657493
BJ73: 0.1088575407 | BK73: 0.000250657493 | BN73: 4.270846017 | BO73: 2.847230678 | BP73: 0.6666666667 | BQ73: 0.06973706913 | BR73: 110.3530627 | BS73: 0.01733421856 | BT73: 384.9347435 | BU73: 0.08707018768 | BV73: 440.976483 | BW73: 0 | BX73: 0.02845219765 | BY73: 1.1e-06 | BZ73: 1e-06 | CA73: 0.6406269025 | CB73: 0.02589931507 | CC73: 0.0372950137 | CD73: 0 | CE73: -1.1e-06 | CF73: 0.0009323753426 | CG73: 0.01353808997 | CH73: 0 | CI73: 0.000250657493
BJ74: 0.1088575407 | BK74: 0.000250657493 | BN74: 4.270846017 | BO74: 2.847230678 | BP74: 0.6666666667 | BQ74: 0.06973706913 | BR74: 110.3530627 | BS74: 0.01733421856 | BT74: 384.9347435 | BU74: 0.08707018768 | BV74: 440.976483 | BW74: 0 | BX74: 0.02845219765 | BY74: 1.1e-06 | BZ74: 1e-06 | CA74: 0.6406269025 | CB74: 0.02589931507 | CC74: 0.0372950137 | CD74: 0 | CE74: -1.1e-06 | CF74: 0.0009323753426 | CG74: 0.01353808997 | CH74: 0 | CI74: 0.000250657493
BJ75: 0.1088575407 | BK75: 0.000250657493 | BN75: 4.270846017 | BO75: 2.847230678 | BP75: 0.6666666667 | BQ75: 0.06973706913 | BR75: 110.3530627 | BS75: 0.01733421856 | BT75: 384.9347435 | BU75: 0.08707018768 | BV75: 440.976483 | BW75: 0 | BX75: 0.02845219765 | BY75: 1.1e-06 | BZ75: 1e-06 | CA75: 0.6406269025 | CB75: 0.02589931507 | CC75: 0.0372950137 | CD75: 0 | CE75: -1.1e-06 | CF75: 0.0009323753426 | CG75: 0.01353808997 | CH75: 0 | CI75: 0.000250657493
BJ76: 0.1088575407 | BK76: 0.000250657493 | BN76: 4.270846017 | BO76: 2.847230678 | BP76: 0.6666666667 | BQ76: 0.06973706913 | BR76: 110.3530627 | BS76: 0.01733421856 | BT76: 384.9347435 | BU76: 0.08707018768 | BV76: 440.976483 | BW76: 0 | BX76: 0.02845219765 | BY76: 1.1e-06 | BZ76: 1e-06 | CA76: 0.6406269025 | CB76: 0.02589931507 | CC76: 0.0372950137 | CD76: 0 | CE76: -1.1e-06 | CF76: 0.0009323753426 | CG76: 0.01353808997 | CH76: 0 | CI76: 0.000250657493
BJ77: =BJ76 -> 0.1088575407 | BK77: =BK76 -> 0.000250657493 | BR77: =BR76 -> 110.3530627 | BS77: 0.01733421856 | BT77: 384.9347435 | BU77: 0.08707018768 | BV77: 440.976483 | BW77: 0 | BX77: 0.02845219765 | CI77: =CI76 -> 0.000250657493
BJ78: 0.1088575407 | BK78: =IF(BX77<>BX76,BK77+(BK77-BK76)*($CJ$80-BX77)/(BX77-BX76),BK77) -> 0.000250657493 | BN78: =0.5*BK78*$BO$63 -> 4.270846017 | BO78: =0.5*2*BK78*$BO$63/3 -> 2.847230678 | BP78: =BO78/BN78 -> 0.6666666667 | BQ78: =BN78*BJ78*BL$63 -> 0.06973706913 | BR78: =MAX(MIN(BS$63,CC$63*BR$63*BK78*(BJ78-BQ$63)/BJ78),-BS$63) -> 110.3530627 | BS78: =BR78*BP$63 -> 0.01733421856 | BT78: =MIN(BW$63,CC$63*BV$63*BK78*(BK$63-BJ78-BU$63)/BJ78) -> 384.9347435 | BU78: =BT78*BT$63 -> 0.08707018768 | BV78: =MIN($CA$63,CC$63*$BZ$63*BK78*(BK$63-BJ78-$BY$63)/BJ78) -> 440.976483 | BW78: =BV78*$BX$63 -> 0 | BX78: =(0.5*BK$63-BJ78+BP78*BJ78)*BQ78+(0.5*BK$63-BQ$63)*BS78+(0.5*BK$63-BU$63)*BU78+(0.5*BK$63-BY$63)*BW78 -> 0.02845219765 | BY78: =BQ78+BS78-BU78-BW78 -> 1.1e-06 | BZ78: =$CI$63+0.000001 -> 1e-06 | CA78: =BN78*BL$63 -> 0.6406269025 | CB78: =IF(BR77<BS$63,CC$63*BK78*BP$63*BR$63,BP$63*BS$63) -> 0.02589931507 | CC78: =IF(BT77<BW$63,CC$63*BK78*BT$63*BV$63,-BT$63*BW$63) -> 0.0372950137 | CD78: =IF(BV77<CA$63,CC$63*BK78*$BX$63*$BZ$63,-$BX$63*CA$63) -> 0 | CE78: =-(BZ78+0.0000001) -> -1.1e-06 | CF78: =IF(BR77<BS$63,BQ$63*CC$63*BK78*BP$63*BR$63,0) -> 0.0009323753426 | CG78: =IF(BT77<BW$63,(BK$63-BU$63)*CC$63*BK78*BT$63*BV$63,0) -> 0.01353808997 | CH78: =IF(BV77<CA$63,(BK$63-$BY$63)*CC$63*BK78*$BX$63*$BZ$63,0) -> 0 | CI78: =CI77 -> 0.000250657493
BJ79: 0.1088575407 | BK79: =IF(BX78<>BX77,BK78+(BK78-BK77)*($CJ$80-BX78)/(BX78-BX77),BK78) -> 0.000250657493 | BN79: =0.5*BK79*$BO$63 -> 4.270846017 | BO79: =0.5*2*BK79*$BO$63/3 -> 2.847230678 | BP79: =BO79/BN79 -> 0.6666666667 | BQ79: =BN79*BJ79*BL$63 -> 0.06973706913 | BR79: =MAX(MIN(BS$63,CC$63*BR$63*BK79*(BJ79-BQ$63)/BJ79),-BS$63) -> 110.3530627 | BS79: =BR79*BP$63 -> 0.01733421856 | BT79: =MIN(BW$63,CC$63*BV$63*BK79*(BK$63-BJ79-BU$63)/BJ79) -> 384.9347435 | BU79: =BT79*BT$63 -> 0.08707018768 | BV79: =MIN($CA$63,CC$63*$BZ$63*BK79*(BK$63-BJ79-$BY$63)/BJ79) -> 440.976483 | BW79: =BV79*$BX$63 -> 0 | BX79: =(0.5*BK$63-BJ79+BP79*BJ79)*BQ79+(0.5*BK$63-BQ$63)*BS79+(0.5*BK$63-BU$63)*BU79+(0.5*BK$63-BY$63)*BW79 -> 0.02845219765 | BY79: =BQ79+BS79-BU79-BW79 -> 1.1e-06 | BZ79: =$CI$63+0.000001 -> 1e-06 | CA79: =BN79*BL$63 -> 0.6406269025 | CB79: =IF(BR78<BS$63,CC$63*BK79*BP$63*BR$63,BP$63*BS$63) -> 0.02589931507 | CC79: =IF(BT78<BW$63,CC$63*BK79*BT$63*BV$63,-BT$63*BW$63) -> 0.0372950137 | CD79: =IF(BV78<CA$63,CC$63*BK79*$BX$63*$BZ$63,-$BX$63*CA$63) -> 0 | CE79: =-(BZ79+0.0000001) -> -1.1e-06 | CF79: =IF(BR78<BS$63,BQ$63*CC$63*BK79*BP$63*BR$63,0) -> 0.0009323753426 | CG79: =IF(BT78<BW$63,(BK$63-BU$63)*CC$63*BK79*BT$63*BV$63,0) -> 0.01353808997 | CH79: =IF(BV78<CA$63,(BK$63-$BY$63)*CC$63*BK79*$BX$63*$BZ$63,0) -> 0 | CI79: =CI78 -> 0.000250657493
CI80: korr-M_L = | CJ80: =MAX(AU21/1000,0.05*(BT63*BS63+BX63*BW63)*BK63) -> 0.02845219765 | CK80: =CJ80/((BL63*BK63^2/6)*BO63) -> 0.0002087337176
BJ83: KORTTIDSLAST
BJ84: L | BK84: h | BL84: b | BM84: fck | BN84: fcd | BO84: Ecd | BP84: Ac | BQ84: ac | BR84: Esc | BS84: fyd_c | BT84: At | BU84: at | BV84: Est | BW84: fyd_t | BX84: At | BY84: at | BZ84: Est | CA84: fyd_t | CB84: Modenhed | CC84: 1+f | CD84: uterm | CE84: emax | CF84: e1 | CG84: k | CH84: Tilstand: | CI84: Nf | CK84: EI_k
BJ85: (m) | BK85: (m) | BL85: (m) | BM85: (Mpa) | BN85: (Mpa) | BO85: (Mpa) | BP85: (m2) | BQ85: (m) | BR85: (Mpa) | BS85: (Mpa) | BT85: (m2) | BU85: (m) | BV85: (Mpa) | BW85: (Mpa) | BX85: (m2) | BY85: (m) | BZ85: (Mpa) | CA85: (Mpa) | CB85: (døgn) | CD85: (m) | CK85: (kNm2)
BJ86: =BJ63 -> 1.7 | BK86: =BK63 -> 0.4 | BL86: =BL63 -> 0.15 | BM86: =BM63 -> 35 | BN86: =BN63 -> 35 | BO86: =22000*((BM11+8)/10)^0.3 -> 34077.1462 | BP86: =BP63 -> 0.0001570796327 | BQ86: =BQ63 -> 0.036 | BR86: 200000 | BS86: 500 | BT86: 0.0002261946711 | BU86: 0.037 | BV86: 200000 | BW86: 500 | BX86: 0 | BY86: 0 | BZ86: 200000 | CA86: 500 | CB86: =CB63 -> 0 | CC86: 1 | CD86: =CD63 -> 0 | CE86: 0.0035 | CF86: =0.7*($M$21+8)^(0.31)/1000 -> 0.002246328469 | CG86: =1.05*BO86*CF86/BN86 -> 2.29645391 | CH86: 1 | CI86: 0 | CK86: =1000*CJ103/(CC86*BK102/BJ102) -> 4504.48221
BJ87: hc | BK87: e0 | BL87: a' | BM87: b' | BN87: N' | BO87: tN' | BP87: t' | BQ87: Nc | BR87: sac | BS87: Nac | BT87: sat | BU87: Nat | BV87: sat | BW87: Nat | BX87: Mtot | BY87: N | BZ87: N | CA87: A | CB87: B1 | CC87: B2 | CD87: B2' | CE87: B3 | CF87: C1 | CG87: C2 | CI87: e0
BJ89: =0.5*(-(CB89+CC89+CD89+CE89)+SQRT(MAX((CB89+CC89+CD89+CE89)^2+4*CA89*(CF89+CG89+CH89),0)))/CA89 -> 0.06923261747 | BK89: =MIN(BZ89/(BK86*BL86*BO86)+0.1*CF86,CK103) -> 1.659430852e-05 | BN89: =0.5*BK89*$BO$86 -> 0.2827433388 | BO89: =0.5*2*BK89*$BO$86/3 -> 0.1884955592 | BP89: =BO89/BN89 -> 0.6666666667 | BQ89: =BN89*BJ89*BL$86 -> 0.002936259213 | BR89: =MAX(MIN(BS$86,CC$86*BR$86*BK89*(BJ89-BQ$86)/BJ89),-BS$86) -> 1.593099691 | BS89: =BR89*BP$86 -> 0.0002502435142 | BT89: =MIN(BW$86,CC$86*BV$86*BK89*(BK$86-BJ89-BU$86)/BJ89) -> 14.08257194 | BU89: =BT89*BT$86 -> 0.003185402727 | BV89: =MIN($CA$86,CC$86*$BZ$86*BK89*(BK$86-BJ89-$BY$86)/BJ89) -> 15.85627179 | BW89: =BV89*$BX$86 -> 0 | BX89: =(0.5*BK$86-BJ89+BP89*BJ89)*BQ89+(0.5*BK$86-BQ$86)*BS89+(0.5*BK$86-BU$86)*BU89+(0.5*BK$86-BY$86)*BW89 -> 0.001079750786 | BY89: =BQ89+BS89-BU89-BW89 -> 1.1e-06 | BZ89: =$CI$86+0.000001 -> 1e-06 | CA89: =BN89*BL$86 -> 0.04241150082 | CB89: =IF(BR88<BS$86,CC$86*BK89*BP$86*BR$86,BP$86*BS$86) -> 0.0005213255775 | CC89: =IF(BT88<BW$86,CC$86*BK89*BT$86*BV$86,-BT$86*BW$86) -> 0.0007507088316 | CD89: =IF(BV88<CA$86,CC$86*BK89*$BX$86*$BZ$86,-$BX$86*CA$86) -> 0 | CE89: =-(BZ89+0.0000001) -> -1.1e-06 | CF89: =IF(BR88<BS$86,BQ$86*CC$86*BK89*BP$86*BR$86,0) -> 1.876772079e-05 | CG89: =IF(BT88<BW$86,(BK$86-BU$86)*CC$86*BK89*BT$86*BV$86,0) -> 0.0002725073059 | CH89: =IF(BV88<CA$86,(BK$86-$BY$86)*CC$86*BK89*$BX$86*$BZ$86,0) -> 0
BJ90: 0.06923084068 | BK90: =MIN(BZ89/(BK86*BL86*BO86)+0.12*CF86,1.2*CK103) -> 1.991317023e-05 | BN90: =0.5*BK90*$BO$86 -> 0.3392920066 | BO90: =0.5*2*BK90*$BO$86/3 -> 0.2261946711 | BP90: =BO90/BN90 -> 0.6666666667 | BQ90: 0.003523420628 | BR90: 1.911666479 | BS90: 0.0003002838684 | BT90: 16.89962225 | BU90: 0.003822604496 | BV90: 19.02811669 | BW90: 0 | BX90: 0.001295705422 | BY90: =BQ90+BS90-BU90-BW90 -> 1.1e-06 | BZ90: =$CI$86+0.000001 -> 1e-06 | CA90: 0.05089380099 | CB90: 0.000625590693 | CC90: 0.0009008505979 | CD90: 0 | CE90: =-(BZ90+0.0000001) -> -1.1e-06 | CF90: 2.252126495e-05 | CG90: 0.000327008767 | CH90: 0 | CI90: =BK90 -> 1.991317023e-05
BJ91: 0.0692270459 | BK91: =IF(BX90<>BX89,BK90+(BK90-BK89)*($CJ$103-BX90)/(BX90-BX89),BK90) -> 3.476268342e-05 | BN91: =0.5*BK91*$BO$86 -> 0.5923065226 | BO91: 0.3948710151 | BP91: =BO91/BN91 -> 0.6666666667 | BQ91: =BN91*BJ91*BL$86 -> 0.006150544624 | BR91: =MAX(MIN(BS$86,CC$86*BR$86*BK91*(BJ91-BQ$86)/BJ91),-BS$86) -> 3.337023161 | BS91: =BR91*BP$86 -> 0.0005241783724 | BT91: =MIN(BW$86,CC$86*BV$86*BK91*(BK$86-BJ91-BU$86)/BJ91) -> 29.50389134 | BU91: =BT91*BT$86 -> 0.006673622997 | BV91: =MIN($CA$86,CC$86*$BZ$86*BK91*(BK$86-BJ91-$BY$86)/BJ91) -> 33.21983579 | BW91: =BV91*$BX$86 -> 0 | BX91: =(0.5*BK$86-BJ91+BP91*BJ91)*BQ91+(0.5*BK$86-BQ$86)*BS91+(0.5*BK$86-BU$86)*BU91+(0.5*BK$86-BY$86)*BW91 -> 0.002261946715 | BY91: =BQ91+BS91-BU91-BW91 -> 1.1e-06 | BZ91: 1e-06 | CA91: =BN91*BL$86 -> 0.08884597839 | CB91: =IF(BR90<BS$86,CC$86*BK91*BP$86*BR$86,BP$86*BS$86) -> 0.001092101909 | CC91: =IF(BT90<BW$86,CC$86*BK91*BT$86*BV$86,-BT$86*BW$86) -> 0.001572626748 | CD91: =IF(BV90<CA$86,CC$86*BK91*$BX$86*$BZ$86,-$BX$86*CA$86) -> 0 | CE91: -1.1e-06 | CF91: =IF(BR90<BS$86,BQ$86*CC$86*BK91*BP$86*BR$86,0) -> 3.931566871e-05 | CG91: =IF(BT90<BW$86,(BK$86-BU$86)*CC$86*BK91*BT$86*BV$86,0) -> 0.0005708635096 | CH91: =IF(BV90<CA$86,(BK$86-$BY$86)*CC$86*BK91*$BX$86*$BZ$86,0) -> 0 | CI91: 3.476268342e-05
BJ92: 0.0692270459 | BK92: =IF(BX91<>BX90,BK91+(BK91-BK90)*($CJ$103-BX91)/(BX91-BX90),BK91) -> 3.476268336e-05 | BN92: 0.5923065215 | BO92: 0.3948710143 | BP92: =BO92/BN92 -> 0.6666666667 | BQ92: 0.006150544613 | BR92: 3.337023155 | BS92: 0.0005241783714 | BT92: 29.50389129 | BU92: 0.006673622985 | BV92: 33.21983573 | BW92: 0 | BX92: 0.002261946711 | BY92: =BQ92+BS92-BU92-BW92 -> 1.1e-06 | BZ92: 1e-06 | CA92: 0.08884597823 | CB92: 0.001092101907 | CC92: 0.001572626745 | CD92: 0 | CE92: -1.1e-06 | CF92: 3.931566864e-05 | CG92: 0.0005708635086 | CH92: 0 | CI92: 3.476268336e-05
BJ93: 0.0692270459 | BK93: 3.476268336e-05 | BN93: 0.5923065215 | BO93: 0.3948710143 | BP93: 0.6666666667 | BQ93: 0.006150544613 | BR93: 3.337023155 | BS93: 0.0005241783714 | BT93: 29.50389129 | BU93: 0.006673622985 | BV93: 33.21983573 | BW93: 0 | BX93: 0.002261946711 | BY93: 1.1e-06 | BZ93: 1e-06 | CA93: 0.08884597823 | CB93: 0.001092101907 | CC93: 0.001572626745 | CD93: 0 | CE93: -1.1e-06 | CF93: 3.931566864e-05 | CG93: 0.0005708635086 | CH93: 0 | CI93: 3.476268336e-05
BJ94: 0.0692270459 | BK94: 3.476268336e-05 | BN94: 0.5923065215 | BO94: 0.3948710143 | BP94: 0.6666666667 | BQ94: 0.006150544613 | BR94: 3.337023155 | BS94: 0.0005241783714 | BT94: 29.50389129 | BU94: 0.006673622985 | BV94: 33.21983573 | BW94: 0 | BX94: 0.002261946711 | BY94: 1.1e-06 | BZ94: 1e-06 | CA94: 0.08884597823 | CB94: 0.001092101907 | CC94: 0.001572626745 | CD94: 0 | CE94: -1.1e-06 | CF94: 3.931566864e-05 | CG94: 0.0005708635086 | CH94: 0 | CI94: 3.476268336e-05
BJ95: 0.0692270459 | BK95: 3.476268336e-05 | BN95: 0.5923065215 | BO95: 0.3948710143 | BP95: 0.6666666667 | BQ95: 0.006150544613 | BR95: 3.337023155 | BS95: 0.0005241783714 | BT95: 29.50389129 | BU95: 0.006673622985 | BV95: 33.21983573 | BW95: 0 | BX95: 0.002261946711 | BY95: 1.1e-06 | BZ95: 1e-06 | CA95: 0.08884597823 | CB95: 0.001092101907 | CC95: 0.001572626745 | CD95: 0 | CE95: -1.1e-06 | CF95: 3.931566864e-05 | CG95: 0.0005708635086 | CH95: 0 | CI95: 3.476268336e-05
BJ96: 0.0692270459 | BK96: 3.476268336e-05 | BN96: =0.5*BK96*$BO$86 -> 0.5923065215 | BO96: 0.3948710143 | BP96: 0.6666666667 | BQ96: 0.006150544613 | BR96: 3.337023155 | BS96: 0.0005241783714 | BT96: 29.50389129 | BU96: 0.006673622985 | BV96: 33.21983573 | BW96: 0 | BX96: 0.002261946711 | BY96: 1.1e-06 | BZ96: 1e-06 | CA96: 0.08884597823 | CB96: 0.001092101907 | CC96: 0.001572626745 | CD96: 0 | CE96: -1.1e-06 | CF96: 3.931566864e-05 | CG96: 0.0005708635086 | CH96: 0 | CI96: 3.476268336e-05
BJ97: 0.0692270459 | BK97: 3.476268336e-05 | BN97: 0.5923065215 | BO97: 0.3948710143 | BP97: 0.6666666667 | BQ97: 0.006150544613 | BR97: 3.337023155 | BS97: 0.0005241783714 | BT97: 29.50389129 | BU97: 0.006673622985 | BV97: 33.21983573 | BW97: 0 | BX97: 0.002261946711 | BY97: 1.1e-06 | BZ97: 1e-06 | CA97: 0.08884597823 | CB97: 0.001092101907 | CC97: 0.001572626745 | CD97: 0 | CE97: -1.1e-06 | CF97: 3.931566864e-05 | CG97: 0.0005708635086 | CH97: 0 | CI97: 3.476268336e-05
BJ98: 0.0692270459 | BK98: 3.476268336e-05 | BN98: 0.5923065215 | BO98: 0.3948710143 | BP98: 0.6666666667 | BQ98: 0.006150544613 | BR98: 3.337023155 | BS98: 0.0005241783714 | BT98: 29.50389129 | BU98: 0.006673622985 | BV98: 33.21983573 | BW98: 0 | BX98: 0.002261946711 | BY98: 1.1e-06 | BZ98: 1e-06 | CA98: 0.08884597823 | CB98: 0.001092101907 | CC98: 0.001572626745 | CD98: 0 | CE98: -1.1e-06 | CF98: 3.931566864e-05 | CG98: 0.0005708635086 | CH98: 0 | CI98: 3.476268336e-05
BJ99: 0.0692270459 | BK99: 3.476268336e-05 | BN99: 0.5923065215 | BO99: 0.3948710143 | BP99: 0.6666666667 | BQ99: 0.006150544613 | BR99: 3.337023155 | BS99: 0.0005241783714 | BT99: 29.50389129 | BU99: 0.006673622985 | BV99: 33.21983573 | BW99: 0 | BX99: 0.002261946711 | BY99: 1.1e-06 | BZ99: 1e-06 | CA99: 0.08884597823 | CB99: 0.001092101907 | CC99: 0.001572626745 | CD99: 0 | CE99: -1.1e-06 | CF99: 3.931566864e-05 | CG99: 0.0005708635086 | CH99: 0 | CI99: 3.476268336e-05
BJ100: =BJ99 -> 0.0692270459 | BK100: =BK99 -> 3.476268336e-05 | BR100: =BR99 -> 3.337023155 | BS100: 0.0005241783714 | BT100: 29.50389129 | BU100: 0.006673622985 | BV100: 33.21983573 | BW100: 0 | BX100: 0.002261946711 | CI100: =CI99 -> 3.476268336e-05
BJ101: =0.5*(-(CB101+CC101+CD101+CE101)+SQRT(MAX((CB101+CC101+CD101+CE101)^2+4*CA101*(CF101+CG101+CH101),0)))/CA101 -> 0.0692270459 | BK101: =IF(BX100<>BX99,BK100+(BK100-BK99)*($CJ$103-BX100)/(BX100-BX99),BK100) -> 3.476268336e-05 | BN101: =0.5*BK101*$BO$86 -> 0.5923065215 | BO101: =0.5*2*BK101*$BO$86/3 -> 0.3948710143 | BP101: =BO101/BN101 -> 0.6666666667 | BQ101: =BN101*BJ101*BL$86 -> 0.006150544613 | BR101: =MAX(MIN(BS$86,CC$86*BR$86*BK101*(BJ101-BQ$86)/BJ101),-BS$86) -> 3.337023155 | BS101: =BR101*BP$86 -> 0.0005241783714 | BT101: =MIN(BW$86,CC$86*BV$86*BK101*(BK$86-BJ101-BU$86)/BJ101) -> 29.50389129 | BU101: =BT101*BT$86 -> 0.006673622985 | BV101: =MIN($CA$86,CC$86*$BZ$86*BK101*(BK$86-BJ101-$BY$86)/BJ101) -> 33.21983573 | BW101: =BV101*$BX$86 -> 0 | BX101: =(0.5*BK$86-BJ101+BP101*BJ101)*BQ101+(0.5*BK$86-BQ$86)*BS101+(0.5*BK$86-BU$86)*BU101+(0.5*BK$86-BY$86)*BW101 -> 0.002261946711 | BY101: =BQ101+BS101-BU101-BW101 -> 1.1e-06 | BZ101: =$CI$86+0.000001 -> 1e-06 | CA101: =BN101*BL$86 -> 0.08884597823 | CB101: =IF(BR100<BS$86,CC$86*BK101*BP$86*BR$86,BP$86*BS$86) -> 0.001092101907 | CC101: =IF(BT100<BW$86,CC$86*BK101*BT$86*BV$86,-BT$86*BW$86) -> 0.001572626745 | CD101: =IF(BV100<CA$86,CC$86*BK101*$BX$86*$BZ$86,-$BX$86*CA$86) -> 0 | CE101: =-(BZ101+0.0000001) -> -1.1e-06 | CF101: =IF(BR100<BS$86,BQ$86*CC$86*BK101*BP$86*BR$86,0) -> 3.931566864e-05 | CG101: =IF(BT100<BW$86,(BK$86-BU$86)*CC$86*BK101*BT$86*BV$86,0) -> 0.0005708635086 | CH101: =IF(BV100<CA$86,(BK$86-$BY$86)*CC$86*BK101*$BX$86*$BZ$86,0) -> 0 | CI101: =CI100 -> 3.476268336e-05
BJ102: =0.5*(-(CB102+CC102+CD102+CE102)+SQRT(MAX((CB102+CC102+CD102+CE102)^2+4*CA102*(CF102+CG102+CH102),0)))/CA102 -> 0.0692270459 | BK102: =IF(BX101<>BX100,BK101+(BK101-BK100)*($CJ$103-BX101)/(BX101-BX100),BK101) -> 3.476268336e-05 | BN102: =0.5*BK102*$BO$86 -> 0.5923065215 | BO102: =0.5*2*BK102*$BO$86/3 -> 0.3948710143 | BP102: =BO102/BN102 -> 0.6666666667 | BQ102: =BN102*BJ102*BL$86 -> 0.006150544613 | BR102: =MAX(MIN(BS$86,CC$86*BR$86*BK102*(BJ102-BQ$86)/BJ102),-BS$86) -> 3.337023155 | BS102: =BR102*BP$86 -> 0.0005241783714 | BT102: =MIN(BW$86,CC$86*BV$86*BK102*(BK$86-BJ102-BU$86)/BJ102) -> 29.50389129 | BU102: =BT102*BT$86 -> 0.006673622985 | BV102: =MIN($CA$86,CC$86*$BZ$86*BK102*(BK$86-BJ102-$BY$86)/BJ102) -> 33.21983573 | BW102: =BV102*$BX$86 -> 0 | BX102: =(0.5*BK$86-BJ102+BP102*BJ102)*BQ102+(0.5*BK$86-BQ$86)*BS102+(0.5*BK$86-BU$86)*BU102+(0.5*BK$86-BY$86)*BW102 -> 0.002261946711 | BY102: =BQ102+BS102-BU102-BW102 -> 1.1e-06 | BZ102: =$CI$86+0.000001 -> 1e-06 | CA102: =BN102*BL$86 -> 0.08884597823 | CB102: =IF(BR101<BS$86,CC$86*BK102*BP$86*BR$86,BP$86*BS$86) -> 0.001092101907 | CC102: =IF(BT101<BW$86,CC$86*BK102*BT$86*BV$86,-BT$86*BW$86) -> 0.001572626745 | CD102: =IF(BV101<CA$86,CC$86*BK102*$BX$86*$BZ$86,-$BX$86*CA$86) -> 0 | CE102: =-(BZ102+0.0000001) -> -1.1e-06 | CF102: =IF(BR101<BS$86,BQ$86*CC$86*BK102*BP$86*BR$86,0) -> 3.931566864e-05 | CG102: =IF(BT101<BW$86,(BK$86-BU$86)*CC$86*BK102*BT$86*BV$86,0) -> 0.0005708635086 | CH102: =IF(BV101<CA$86,(BK$86-$BY$86)*CC$86*BK102*$BX$86*$BZ$86,0) -> 0 | CI102: =CI101 -> 3.476268336e-05
CI103: korr-M_kort = | CJ103: =MAX((AU22-AU21)/1000,0.05*(BT86*BS86+BX86*BW86)*BK86) -> 0.002261946711 | CK103: =CJ103/((BL86*BK86^2/6)*BO86) -> 1.659430852e-05
BJ107: FORSKYDNING
BL109: V | BM109: v | BN109: f_cd | BO109: b | BP109: h | BQ109: h_int | BR109: c | BS109: b | BT109: cot0 | BU109: w | BV109: a | BW109: d | BX109: A | BY109: f_yd
BJ110: Betontrykbrud | BL110: =1000*(BM110*BN110*BT110)/((1+BT110^2)*(1/(BO110*BQ110)+BU110/((1.4*BS110)*(BO110-BS110*BO110)*(BP110-BS110*BO110)))) -> 317.072404 | BM110: =0.7-$M$21/200 -> 0.525 | BN110: =$M$22 -> 25 | BO110: =$P$9/1000 -> 0.15 | BP110: =$P$7/1000 -> 0.4 | BQ110: =$K$34/1000 -> 0.3489474076 | BR110: =$O$13/1000 -> 0.037 | BS110: =MIN(BP110/(2*(BO110+BP110)),0.5) -> 0.3636363636 | BT110: =$P$15 -> 1.5 | BU110: =$P$33/$P$9 -> 0
BJ111: Bøjler, type 1 | BL111: =MIN($BL$110,1000*BX111*BY111*BT111/(BV111*(1/BQ111+BU111*BO111/((BO111-BS111*BO111)*(BP111-BS111*BO111))))) -> 82.21879591 | BO111: =$P$9/1000 -> 0.15 | BP111: =$P$7/1000 -> 0.4 | BQ111: =$K$34/1000 -> 0.3489474076 | BR111: =$O$13/1000 -> 0.037 | BS111: =MIN(BP111/(2*(BO111+BP111)),0.5) -> 0.3636363636 | BT111: =$P$15 -> 1.5 | BU111: =$P$33/$P$9 -> 0 | BV111: =$O$15/1000 -> 0.15 | BW111: =N15 -> 6 | BX111: =2*PI()*(BW111/1000)^2/4 -> 5.654866776e-05 | BY111: =P22 -> 416.6666667
BJ112: Bøjler, type 2 | BL112: =MIN($BL$110,1000*BX112*BY112*BT112/(BV112*(1/BQ112+BU112*BO112/((BO112-BS112*BO112)*(BP112-BS112*BO112))))) -> 82.21879591 | BO112: =$P$9/1000 -> 0.15 | BP112: =$P$7/1000 -> 0.4 | BQ112: =$K$34/1000 -> 0.3489474076 | BR112: =$O$13/1000 -> 0.037 | BS112: 0.3636363636 | BT112: =$P$15 -> 1.5 | BU112: =$P$33/$P$9 -> 0 | BV112: =$O$16/1000 -> 0.15 | BW112: =N16 -> 6 | BX112: =2*PI()*(BW112/1000)^2/4 -> 5.654866776e-05 | BY112: =P22 -> 416.6666667 | CD112: Vederlagsforankring: | CF112: =0.5*BU110*BO110*$AU$24*BT110/(MIN(BP110,BO110)*(1-BS110))+0.5*$AU$24*BT110 -> 82.21014706 | CG112: KN
BB115: <
BJ117: ANVENDELSESSTADIE - HENSYN TIL KRYBNING, TENSION STIFFENING, SVIND MV:
BJ118: L | BK118: h | BL118: b | BM118: fck | BN118: fcd | BO118: Ecd = Ecm | BP118: Ac | BQ118: ac | BR118: Esc | BS118: fyd_c | BT118: At | BU118: at | BV118: Est | BW118: fyd_t | BX118: At | BY118: at | BZ118: Est | CA118: fyd_t | CB118: Modenhed | CC118: 1+f | CE118: RH | CF118: feff = fctm | CG118: EI_k
BJ119: (m) | BK119: (m) | BL119: (m) | BM119: (Mpa) | BN119: (Mpa) | BO119: (Mpa) | BP119: (m2) | BQ119: (m) | BR119: (Mpa) | BS119: (Mpa) | BT119: (m2) | BU119: (m) | BV119: (Mpa) | BW119: (Mpa) | BX119: (m2) | BY119: (m) | BZ119: (Mpa) | CA119: (Mpa) | CB119: (døgn) | CF119: (Mpa) | CG119: (kNm2)
BJ120: =BJ63 -> 1.7 | BK120: =BK63 -> 0.4 | BL120: =BL63 -> 0.15 | BM120: =BM63 -> 35 | BN120: =BN63 -> 35 | BO120: =22000*((BM120+8)/10)^0.3 -> 34077.1462 | BP120: =BP63 -> 0.0001570796327 | BQ120: =BQ63 -> 0.036 | BR120: 200000 | BS120: 500 | BT120: 0.0002261946711 | BU120: 0.037 | BV120: - | BW120: 500 | BX120: 0 | BY120: 0 | BZ120: - | CA120: 500 | CB120: 0 | CC120: 3.288953358 | CE120: =P24 -> 0.5 | CF120: =0.3*BM120^(2/3) -> 3.209962442 | CG120: 5565.999946
BJ121: Nedbøjninger | BL121: Urevnet | BM121: Revnet, korttid | BN121: Urevnet | BO121: Revnet, langtid | BQ121: Revnevidder | BS121: Korttid | BT121: Langtid | BV121: Udtørringssvind
BJ122: (1+ f) | BL122: 1 | BM122: 1 | BN122: =CC120 -> 3.288953358 | BO122: =CC120 -> 3.288953358 | BQ122: (1+ f) | BS122: 1 | BT122: =CC120 -> 3.288953358 | BW122: CEM-klasse: | BX122: N
BB123: < | BJ123: aeff | BK123: - | BL123: =BR120/BO120 -> 5.869036064 | BM123: =BR120/BO120 -> 5.869036064 | BN123: =BN122*BR120/BO120 -> 19.30298587 | BO123: =BO122*BR120/BO120 -> 19.30298587 | BQ123: aeff | BS123: =BR120/BO120 -> 5.869036064 | BT123: =BT122*BR120/BO120 -> 19.30298587 | BW123: fcmo | BX123: 10 | BY123: MPa
BJ124: hc | BK124: (m) | BL124: - | BM124: =BJ102 -> 0.0692270459 | BN124: - | BO124: =BJ79 -> 0.1088575407 | BQ124: kt | BS124: 0.6 | BT124: 0.4 | BW124: fcm | BX124: =BM120+8 -> 43 | BY124: MPa
BJ125: Atr | BK125: (m2) | BL125: =BK120*BL120+BL123*BP120+BL123*BT120+BL123*BX120 -> 0.06224945071 | BM125: =BM124*BL120+BM123*BP120+BM123*BT120+BM123*BX120 -> 0.0126335076 | BN125: =BK120*BL120+BN123*BP120+BN123*BT120+BN123*BX120 -> 0.06739833847 | BO125: =BO124*BL120+BO123*BP120+BO123*BT120+BO123*BX120 -> 0.02372696958 | BQ125: x1 | BS125: 0 | BT125: 0 | BW125: ads1 | BX125: 4
BJ126: Sy | BK126: (m3) | BL126: =BL123*(0.5*BK120-BQ120)*BP120-BL123*(0.5*BK120-BU120)*BT120-BL123*(0.5*BK120-BY120)*BX120 -> -6.519719438e-05 | BM126: =BM124*BL120*(0.5*BK120-0.5*BM124)+BM123*(0.5*BK120-BQ120)*BP120-BM123*(0.5*BK120-BU120)*BT120-BM123*(0.5*BK120-BY120)*BX120 -> 0.001652185391 | BN126: =BN123*(0.5*BK120-BQ120)*BP120-BN123*(0.5*BK120-BU120)*BT120-BN123*(0.5*BK120-BY120)*BX120 -> -0.0002144305314 | BO126: =BO124*BL120*(0.5*BK120-0.5*BO124)+BO123*(0.5*BK120-BQ120)*BP120-BO123*(0.5*BK120-BU120)*BT120-BO123*(0.5*BK120-BY120)*BX120 -> 0.002162548377 | BQ126: As | BS126: =BT120+BX120 -> 0.0002261946711 | BT126: =BT120+BX120 -> 0.0002261946711 | BW126: ads2 | BX126: 0.12
BJ127: Iy | BK127: (m4) | BL127: =BL120*BK120^3/12+BL123*(0.5*BK120-BQ120)^2*BP120+BL123*(0.5*BK120-BU120)^2*BT120+BL123*(0.5*BK120-BY120)^2*BX120 -> 0.0008600671192 | BM127: =BL120*BM124^3/12+BL120*BM124*(0.5*BK120-0.5*BM124)^2+BM123*(0.5*BK120-BQ120)^2*BP120+BM123*(0.5*BK120-BU120)^2*BT120+BM123*(0.5*BK120-BY120)^2*BX120 -> 0.0003482460071 | BN127: =BL120*BK120^3/12+BN123*(0.5*BK120-BQ120)^2*BP120+BN123*(0.5*BK120-BU120)^2*BT120+BN123*(0.5*BK120-BY120)^2*BX120 -> 0.0009975579535 | BO127: =BL120*BO124^3/12+BL120*BO124*(0.5*BK120-0.5*BO124)^2+BO123*(0.5*BK120-BQ120)^2*BP120+BO123*(0.5*BK120-BU120)^2*BT120+BO123*(0.5*BK120-BY120)^2*BX120 -> 0.0005597021705 | BQ127: d | BS127: =BK120-(BX120*BY120+BT120*BU120)/(BT120+BX120) -> 0.363 | BT127: =BK120-(BX120*BY120+BT120*BU120)/(BT120+BX120) -> 0.363 | BW127: RH0 | BX127: 1
BJ128: z | BK128: (m) | BL128: =BL126/BL125 -> -0.00104735373 | BM128: =BM126/BM125 -> 0.1307780423 | BN128: =BN126/BN125 -> -0.003181540321 | BO128: =BO126/BO125 -> 0.09114305011 | BQ128: hc,eff | BS128: =MIN(2.5*(BK120-BS127),(BK120-BM124)/3,BK120/2) -> 0.0925 | BT128: =MIN(2.5*(BK120-BT127),(BK120-BO124)/3,BK120/2) -> 0.0925 | BW128: RH | BX128: =CE120 -> 0.5
BJ129: Io | BK129: (m4) | BL129: =BL127-BL125*BL128^2 -> 0.0008599988347 | BM129: =BM127-BM125*BM128^2 -> 0.000132176436 | BN129: =BN127-BN125*BN128^2 -> 0.0009968757341 | BO129: =BO127-BO125*BO128^2 -> 0.0003626009154 | BQ129: Ac,eff | BS129: =BS128*BL120 -> 0.013875 | BT129: =BT128*BL120 -> 0.013875 | BW129: bRH | BX129: =1.55*(1-(BX128/BX127)^3) -> 1.35625
BJ130: aeff*Sa | BK130: (m3) | BL130: =-(BL123*(0.5*BK120-BQ120-BL128)*BP120-BL123*(0.5*BK120-BU120+BL128)*BT120-BL123*(0.5*BK120-BY120+BL128)*BX120) -> 6.284122379e-05 | BM130: =-(BM123*(0.5*BK120-BQ120-BM128)*BP120-BM123*(0.5*BK120-BU120+BM128)*BT120-BM123*(0.5*BK120-BY120+BM128)*BX120) -> 0.0003593759547 | BN130: =-(BN123*(0.5*BK120-BQ120-BN128)*BP120-BN123*(0.5*BK120-BU120+BN128)*BT120-BN123*(0.5*BK120-BY120+BN128)*BX120) -> 0.0001908924193 | BO130: =-(BO123*(0.5*BK120-BQ120-BO128)*BP120-BO123*(0.5*BK120-BU120+BO128)*BT120-BO123*(0.5*BK120-BY120+BO128)*BX120) -> 0.0008887376654 | BQ130: rp,eff | BS130: =BS126/BS129 -> 0.01630231863 | BT130: =BT126/BT129 -> 0.01630231863 | BW130: ecd,0 | BX130: =0.85*((220+110*BX125)*EXP(-BX126*BX124/BX123))*BX129/1000000 -> 0.000454157677
BJ131: Sa/Io | BK131: (m) | BL131: =MAX(BL130/BL129,0) -> 0.07307128946 | BM131: =MAX(BM130/BM129,0) -> 2.718910917 | BN131: =MAX(BN130/BN129,0) -> 0.1914906871 | BO131: =MAX(BO130/BO129,0) -> 2.451007782 | BQ131: esm-ecm | BS131: =MAX(BM133-BS124*CF120*(1+BS123*BS130)/BS130,0.6*BM133)/BR120 -> 0 | BT131: =MAX(BO133-BT124*CF120*(1+BT123*BT130)/BT130,0.6*BO133)/BR120 -> 0.00140695685 | BW131: b | BX131: 1
BJ132: Mcr | BK132: (MNm) | BL132: =CF120*BL129/(0.5*BK120+BL128) -> 0.01387548249 | BN132: =CF120*BN129/(0.5*BK120+BN128) -> 0.01625830052 | BQ132: seq | BS132: =((N12^2*P12+N13^2*P13)/(N12*P12+N13*P13))/1000 -> 0.012 | BT132: =((N12^2*P12+N13^2*P13)/(N12*P12+N13*P13))/1000 -> 0.012 | BW132: h0 | BX132: =2*BK120*BL120/(2*(BK120+BL120)) -> 0.1090909091 | BY132: m
BJ133: sat2 | BK133: (MPa) | BL133: - | BM133: =(AU22-AU21)/1000*BM123*(0.5*BK120+BM128-BU120)/BM129 -> 0 | BN133: - | BO133: =(AU21/1000)*BO123*(0.5*BK120+BO128-BU120)/BO129 -> 384.9369948 | BQ133: c | BS133: =BK120-BS127-0.5*BS132 -> 0.031 | BT133: =BK120-BT127-0.5*BT132 -> 0.031 | BW133: kn | BX133: =IF(BX132<0.1,1,IF(BX132<0.2,0.85+0.15*(0.2-BX132)/0.1,IF(BX132<0.3,0.75+0.1*(0.3-BX132)/0.1,IF(BX132<0.5,0.7+0.05*(0.5-BX132)/0.2,0.7)))) -> 0.9863636364
BJ134: sr2 | BK134: (MPa, spænding i armering svarende til korttids-revnemoment) | BO134: =BO123*BL132*(0.5*BK120+BO128-BU120)/BO129 -> 187.7249201 | BQ134: k1 | BS134: 0.8 | BT134: 0.8 | BW134: ecd | BX134: =BX130*BX131*BX133 -> 0.0004479646177
BJ135: EI | BK135: (MNm2) | BL135: =BL129*BO120 -> 29.30630602 | BM135: =BM129*BO120 -> 4.504195733 | BN135: =BN129*BO120/BN122 -> 10.32872055 | BO135: =BO129*BO120/BO122 -> 3.756941209 | BQ135: k2 | BS135: 0.5 | BT135: 0.5
BJ136: x | BK136: (faktor vedr. tension stiffening) | BM136: =MAX(1-1*(BO134/(BM133+BO133))^2,MAX(0,1-0.5*(BO134/BO133)^2),0) -> 0.8810855702 | BO136: =IF(BL132>CJ80,0,BM136) -> 0.8810855702 | BQ136: k3 | BS136: =3.4*(25/(1000*BS133))^(2/3) -> 2.945762937 | BT136: =BS136 -> 2.945762937 | BV136: Autogent svind
BJ137: u | BK137: (mm, elastisk u) | BL137: =BM137*BM135/BL135 -> 0 | BM137: =Kold2!D8-Kold!BO137 -> 0 | BN137: =BO137*BO135/BN135 -> 0.5903328926 | BO137: =Kold2!D7 -> 1.622964837 | BQ137: k4 | BS137: 0.425 | BT137: 0.425 | BW137: eca | BX137: =2.5*(BM120-10)/1000000 -> 6.25e-05
BJ138: uts | BK138: (mm, incl tension stiffening) | BM138: =BM136*BM137+(1-BM136)*BL137 -> 0 | BO138: =BO136*BO137+(1-BO136)*BN137 -> 1.500169998 | BQ138: s,rmaks | BS138: =MIN(1.3*(BK120-BM124),BS136*BS133+BS134*BS135*BS137*BS132/BS130) -> 0.216454225 | BT138: =MIN(1.3*(BK120-BO124),BT136*BT133+BT134*BT135*BT137*BT132/BT130) -> 0.216454225
BJ139: us | BK139: (mm, svindtillæg - langtid) | BN139: =1000*0.1*BX140*BN131*BJ120^2 -> 0.02824952469 | BO139: =1000*0.1*BX140*BO131*BJ120^2 -> 0.3615831449 | BQ139: wk | BS139: =1000*BS138*BS131 -> 0 | BT139: =1000*BT138*BT131 -> 0.3045417547 | BV139: Resulterende svind
BJ140: ucs | BK140: (mm, svindtillæg incl tension stiffening) | BO140: =BO136*BO139+(1-BO136)*BN139 -> 0.3219449675 | BW140: esc | BX140: =BX134+BX137 -> 0.0005104646177
BJ141: ures | BK141: (mm, resulterende udbøjning) | BM141: =BO141+BM138 -> 1.822114966 | BO141: =BO140+BO138 -> 1.822114966 | BQ141: wk, res | BS141: =BS139+BT139 -> 0.3045417547 | BT141: =BT139 -> 0.3045417547

Sheet Kold2
B3: Nedbøjninger | K3: p/P | L3: x1 | M3: x2 | N3: R1 | O3: R2 | P3: 0 | Q3: 1 | R3: 2 | S3: 3 | T3: 4 | U3: 5 | V3: 6 | W3: 7 | X3: 8 | Y3: 9 | Z3: 10 | AA3: 11 | AB3: 12 | AC3: 13 | AD3: 14 | AE3: 15 | AF3: 16 | AG3: 17 | AH3: 18 | AI3: 19 | AJ3: 20 | AK3: 21 | AL3: 22 | AM3: 23 | AN3: 24 | AO3: 25 | AP3: 26 | AQ3: 27 | AR3: 28 | AS3: 29 | AT3: 30 | AU3: 31 | AV3: 32 | AW3: 33 | AX3: 34 | AY3: 35 | AZ3: 36 | BA3: 37 | BB3: 38 | BC3: 39 | BD3: 40
B4: L | C4: (m) | D4: =IF(Makro!E20=1,0.00001,Kold!M8) -> 1.7 | P4: 0 | Q4: =Q3*($BD$4-$P$4)/40 -> 0.0425 | R4: =R3*($BD$4-$P$4)/40 -> 0.085 | S4: 0.1275 | T4: 0.17 | U4: 0.2125 | V4: 0.255 | W4: 0.2975 | X4: 0.34 | Y4: 0.3825 | Z4: 0.425 | AA4: 0.4675 | AB4: 0.51 | AC4: 0.5525 | AD4: 0.595 | AE4: 0.6375 | AF4: 0.68 | AG4: 0.7225 | AH4: 0.765 | AI4: 0.8075 | AJ4: 0.85 | AK4: 0.8925 | AL4: 0.935 | AM4: 0.9775 | AN4: 1.02 | AO4: 1.0625 | AP4: 1.105 | AQ4: 1.1475 | AR4: 1.19 | AS4: 1.2325 | AT4: 1.275 | AU4: 1.3175 | AV4: 1.36 | AW4: 1.4025 | AX4: 1.445 | AY4: 1.4875 | AZ4: 1.53 | BA4: 1.5725 | BB4: 1.615 | BC4: 1.6575 | BD4: =$D$4 -> 1.7 | BE4: =L18 -> 0.26 | BF4: =L22 -> 0 | BG4: =L26 -> 0
B5: EI_L | C5: (kNm2) | D5: =Kold!M31 -> 3756.954447
B6: EI_k | C6: (kNm2) | D6: =Kold!M32 -> 4504.48221 | I6: p1 | J6: L | K6: =D12 -> 1.4 | L6: =D16 -> 0 | M6: =D17 -> 1.7 | N6: =(M6-L6)*K6-O6 -> 1.19 | O6: =0.5*K6*(M6^2-L6^2)/$D$4 -> 1.19 | P6: =$N6*P$4-IF(P$4>$L6,0.5*($L6-P$4)^2*$K6)+IF(P$4>$M6,0.5*(P$4-$M6)^2*$K6) -> 0 | Q6: =$N6*Q$4-IF(Q$4>$L6,0.5*($L6-Q$4)^2*$K6)+IF(Q$4>$M6,0.5*(Q$4-$M6)^2*$K6) -> 0.049310625 | R6: 0.0960925 | S6: 0.140345625 | T6: 0.18207 | U6: 0.221265625 | V6: 0.2579325 | W6: 0.292070625 | X6: 0.32368 | Y6: 0.352760625 | Z6: 0.3793125 | AA6: 0.403335625 | AB6: 0.42483 | AC6: 0.443795625 | AD6: 0.4602325 | AE6: 0.474140625 | AF6: 0.48552 | AG6: 0.494370625 | AH6: =$N6*AH$4-IF(AH$4>$L6,0.5*($L6-AH$4)^2*$K6)+IF(AH$4>$M6,0.5*(AH$4-$M6)^2*$K6) -> 0.5006925 | AI6: 0.504485625 | AJ6: 0.50575 | AK6: 0.504485625 | AL6: 0.5006925 | AM6: 0.494370625 | AN6: 0.48552 | AO6: 0.474140625 | AP6: 0.4602325 | AQ6: 0.443795625 | AR6: 0.42483 | AS6: 0.403335625 | AT6: 0.3793125 | AU6: 0.352760625 | AV6: 0.32368 | AW6: 0.292070625 | AX6: 0.2579325 | AY6: 0.221265625 | AZ6: 0.18207 | BA6: 0.140345625 | BB6: 0.0960925 | BC6: 0.049310625 | BD6: 0 | BE6: 0.26208 | BF6: =$N6*BF$4-IF(BF$4>$L6,0.5*($L6-BF$4)^2*$K6)+IF(BF$4>$M6,0.5*(BF$4-$M6)^2*$K6) -> 0 | BG6: 0
B7: u_L | C7: (mm) | D7: =1000*MAX(P70:BD70) -> 1.622964837 | I7: p1 | J7: K | K7: =D13 -> 1.4 | L7: =D16 -> 0 | M7: =D17 -> 1.7 | N7: =(M7-L7)*K7-O7 -> 1.19 | O7: =0.5*K7*(M7^2-L7^2)/$D$4 -> 1.19 | P7: =$N7*P$4-IF(P$4>$L7,0.5*($L7-P$4)^2*$K7)+IF(P$4>$M7,0.5*(P$4-$M7)^2*$K7) -> 0 | Q7: 0.049310625 | R7: 0.0960925 | S7: 0.140345625 | T7: 0.18207 | U7: 0.221265625 | V7: 0.2579325 | W7: 0.292070625 | X7: 0.32368 | Y7: 0.352760625 | Z7: 0.3793125 | AA7: 0.403335625 | AB7: 0.42483 | AC7: 0.443795625 | AD7: 0.4602325 | AE7: 0.474140625 | AF7: 0.48552 | AG7: 0.494370625 | AH7: 0.5006925 | AI7: 0.504485625 | AJ7: 0.50575 | AK7: 0.504485625 | AL7: 0.5006925 | AM7: 0.494370625 | AN7: 0.48552 | AO7: 0.474140625 | AP7: 0.4602325 | AQ7: 0.443795625 | AR7: 0.42483 | AS7: 0.403335625 | AT7: 0.3793125 | AU7: 0.352760625 | AV7: 0.32368 | AW7: 0.292070625 | AX7: 0.2579325 | AY7: 0.221265625 | AZ7: 0.18207 | BA7: 0.140345625 | BB7: 0.0960925 | BC7: 0.049310625 | BD7: 0 | BE7: 0.26208 | BF7: 0 | BG7: 0
B8: u_k | C8: (mm) | D8: =1000*MAX(P74:BD74) -> 1.622964837 | I8: p1 | J8: d | K8: =D14 -> 1.4 | L8: =D16 -> 0 | M8: =D17 -> 1.7 | N8: =(M8-L8)*K8-O8 -> 1.19 | O8: =0.5*K8*(M8^2-L8^2)/$D$4 -> 1.19 | P8: =$N8*P$4-IF(P$4>$L8,0.5*($L8-P$4)^2*$K8)+IF(P$4>$M8,0.5*(P$4-$M8)^2*$K8) -> 0 | Q8: 0.049310625 | R8: 0.0960925 | S8: 0.140345625 | T8: 0.18207 | U8: 0.221265625 | V8: 0.2579325 | W8: 0.292070625 | X8: 0.32368 | Y8: 0.352760625 | Z8: 0.3793125 | AA8: 0.403335625 | AB8: 0.42483 | AC8: 0.443795625 | AD8: 0.4602325 | AE8: 0.474140625 | AF8: 0.48552 | AG8: 0.494370625 | AH8: 0.5006925 | AI8: 0.504485625 | AJ8: 0.50575 | AK8: 0.504485625 | AL8: 0.5006925 | AM8: 0.494370625 | AN8: 0.48552 | AO8: 0.474140625 | AP8: 0.4602325 | AQ8: 0.443795625 | AR8: 0.42483 | AS8: 0.403335625 | AT8: 0.3793125 | AU8: 0.352760625 | AV8: 0.32368 | AW8: 0.292070625 | AX8: 0.2579325 | AY8: 0.221265625 | AZ8: 0.18207 | BA8: 0.140345625 | BB8: 0.0960925 | BC8: 0.049310625 | BD8: 0 | BE8: 0.26208 | BF8: 0 | BG8: 0
I10: p2 | J10: L | K10: =E12 -> 0 | L10: =E16 -> 0 | M10: =E17 -> 0 | N10: =(M10-L10)*K10-O10 -> 0 | O10: =0.5*K10*(M10^2-L10^2)/$D$4 -> 0 | P10: =$N10*P$4-IF(P$4>$L10,0.5*($L10-P$4)^2*$K10)+IF(P$4>$M10,0.5*(P$4-$M10)^2*$K10)+IF(P$4>$D$4,(P$4-$D$4)*$O10) -> 0 | Q10: 0 | R10: 0 | S10: 0 | T10: 0 | U10: 0 | V10: 0 | W10: 0 | X10: 0 | Y10: 0 | Z10: 0 | AA10: 0 | AB10: 0 | AC10: 0 | AD10: 0 | AE10: 0 | AF10: 0 | AG10: 0 | AH10: 0 | AI10: 0 | AJ10: 0 | AK10: 0 | AL10: 0 | AM10: 0 | AN10: 0 | AO10: 0 | AP10: 0 | AQ10: 0 | AR10: 0 | AS10: 0 | AT10: 0 | AU10: 0 | AV10: 0 | AW10: 0 | AX10: 0 | AY10: 0 | AZ10: 0 | BA10: 0 | BB10: 0 | BC10: 0 | BD10: 0 | BE10: 0 | BF10: 0 | BG10: 0
B11: Jævnt fordelte laste | D11: p1 | E11: p2 | F11: p3 | I11: p2 | J11: K | K11: =E13 -> 0 | L11: =E16 -> 0 | M11: =E17 -> 0 | N11: =(M11-L11)*K11-O11 -> 0 | O11: =0.5*K11*(M11^2-L11^2)/$D$4 -> 0 | P11: =$N11*P$4-IF(P$4>$L11,0.5*($L11-P$4)^2*$K11)+IF(P$4>$M11,0.5*(P$4-$M11)^2*$K11)+IF(P$4>$D$4,(P$4-$D$4)*$O11) -> 0 | Q11: 0 | R11: 0 | S11: 0 | T11: 0 | U11: 0 | V11: 0 | W11: 0 | X11: 0 | Y11: 0 | Z11: 0 | AA11: 0 | AB11: 0 | AC11: 0 | AD11: 0 | AE11: 0 | AF11: 0 | AG11: 0 | AH11: 0 | AI11: 0 | AJ11: 0 | AK11: 0 | AL11: 0 | AM11: 0 | AN11: 0 | AO11: 0 | AP11: 0 | AQ11: 0 | AR11: 0 | AS11: 0 | AT11: 0 | AU11: 0 | AV11: 0 | AW11: 0 | AX11: 0 | AY11: 0 | AZ11: 0 | BA11: 0 | BB11: 0 | BC11: 0 | BD11: 0 | BE11: 0 | BF11: 0 | BG11: 0
B12: Langtidsværdi | C12: (kN/m) | D12: =Kold2!D87*D26 -> 1.4 | E12: =Kold2!E87*D26 -> 0 | F12: =Kold2!F87*D26 -> 0 | I12: p2 | J12: d | K12: =E14 -> 0 | L12: =E16 -> 0 | M12: =E17 -> 0 | N12: =(M12-L12)*K12-O12 -> 0 | O12: =0.5*K12*(M12^2-L12^2)/$D$4 -> 0 | P12: =$N12*P$4-IF(P$4>$L12,0.5*($L12-P$4)^2*$K12)+IF(P$4>$M12,0.5*(P$4-$M12)^2*$K12)+IF(P$4>$D$4,(P$4-$D$4)*$O12) -> 0 | Q12: 0 | R12: 0 | S12: 0 | T12: 0 | U12: 0 | V12: 0 | W12: 0 | X12: 0 | Y12: 0 | Z12: 0 | AA12: 0 | AB12: 0 | AC12: 0 | AD12: 0 | AE12: 0 | AF12: 0 | AG12: 0 | AH12: 0 | AI12: 0 | AJ12: 0 | AK12: 0 | AL12: 0 | AM12: 0 | AN12: 0 | AO12: 0 | AP12: 0 | AQ12: 0 | AR12: 0 | AS12: 0 | AT12: 0 | AU12: 0 | AV12: 0 | AW12: 0 | AX12: 0 | AY12: 0 | AZ12: 0 | BA12: 0 | BB12: 0 | BC12: 0 | BD12: 0 | BE12: 0 | BF12: 0 | BG12: 0
B13: Kar. værdi | C13: (kN/m) | D13: =Kold2!D88*D26 -> 1.4 | E13: =Kold2!E88*D26 -> 0 | F13: =Kold2!F88*D26 -> 0
B14: Regnm. værdi | C14: (kN/m) | D14: =Kold2!D89*D26 -> 1.4 | E14: =Kold2!E89*D26 -> 0 | F14: =Kold2!F89*D26 -> 0 | I14: p3 | J14: L | K14: =F12 -> 0 | L14: =F16 -> 0 | M14: =F17 -> 0 | N14: =(M14-L14)*K14-O14 -> 0 | O14: =0.5*K14*(M14^2-L14^2)/$D$4 -> 0 | P14: =$N14*P$4-IF(P$4>$L14,0.5*($L14-P$4)^2*$K14)+IF(P$4>$M14,0.5*(P$4-$M14)^2*$K14)+IF(P$4>$D$4,(P$4-$D$4)*$O14) -> 0 | Q14: 0 | R14: 0 | S14: 0 | T14: 0 | U14: 0 | V14: 0 | W14: 0 | X14: 0 | Y14: 0 | Z14: 0 | AA14: 0 | AB14: 0 | AC14: 0 | AD14: 0 | AE14: 0 | AF14: 0 | AG14: 0 | AH14: 0 | AI14: 0 | AJ14: 0 | AK14: 0 | AL14: 0 | AM14: 0 | AN14: 0 | AO14: 0 | AP14: 0 | AQ14: 0 | AR14: 0 | AS14: 0 | AT14: 0 | AU14: 0 | AV14: 0 | AW14: 0 | AX14: 0 | AY14: 0 | AZ14: 0 | BA14: 0 | BB14: 0 | BC14: 0 | BD14: 0 | BE14: 0 | BF14: 0 | BG14: 0
B15: exc | C15: (m) | D15: =Kold2!D90 -> 0 | E15: =Kold2!E90 -> 0 | F15: =Kold2!F90 -> 0 | I15: p3 | J15: K | K15: =F13 -> 0 | L15: =F16 -> 0 | M15: =F17 -> 0 | N15: =(M15-L15)*K15-O15 -> 0 | O15: =0.5*K15*(M15^2-L15^2)/$D$4 -> 0 | P15: =$N15*P$4-IF(P$4>$L15,0.5*($L15-P$4)^2*$K15)+IF(P$4>$M15,0.5*(P$4-$M15)^2*$K15)+IF(P$4>$D$4,(P$4-$D$4)*$O15) -> 0 | Q15: 0 | R15: 0 | S15: 0 | T15: 0 | U15: 0 | V15: 0 | W15: 0 | X15: 0 | Y15: 0 | Z15: 0 | AA15: 0 | AB15: 0 | AC15: 0 | AD15: 0 | AE15: 0 | AF15: 0 | AG15: 0 | AH15: 0 | AI15: 0 | AJ15: 0 | AK15: 0 | AL15: 0 | AM15: 0 | AN15: 0 | AO15: 0 | AP15: 0 | AQ15: 0 | AR15: 0 | AS15: 0 | AT15: 0 | AU15: 0 | AV15: 0 | AW15: 0 | AX15: 0 | AY15: 0 | AZ15: 0 | BA15: 0 | BB15: 0 | BC15: 0 | BD15: 0 | BE15: 0 | BF15: 0 | BG15: 0
B16: x1 | C16: (m) | D16: =Kold2!D91 -> 0 | E16: =Kold2!E91 -> 0 | F16: =Kold2!F91 -> 0 | I16: p3 | J16: d | K16: =F14 -> 0 | L16: =F16 -> 0 | M16: =F17 -> 0 | N16: =(M16-L16)*K16-O16 -> 0 | O16: =0.5*K16*(M16^2-L16^2)/$D$4 -> 0 | P16: =$N16*P$4-IF(P$4>$L16,0.5*($L16-P$4)^2*$K16)+IF(P$4>$M16,0.5*(P$4-$M16)^2*$K16)+IF(P$4>$D$4,(P$4-$D$4)*$O16) -> 0 | Q16: 0 | R16: 0 | S16: 0 | T16: 0 | U16: 0 | V16: 0 | W16: 0 | X16: 0 | Y16: 0 | Z16: 0 | AA16: 0 | AB16: 0 | AC16: 0 | AD16: 0 | AE16: 0 | AF16: 0 | AG16: 0 | AH16: 0 | AI16: 0 | AJ16: 0 | AK16: 0 | AL16: 0 | AM16: 0 | AN16: 0 | AO16: 0 | AP16: 0 | AQ16: 0 | AR16: 0 | AS16: 0 | AT16: 0 | AU16: 0 | AV16: 0 | AW16: 0 | AX16: 0 | AY16: 0 | AZ16: 0 | BA16: 0 | BB16: 0 | BC16: 0 | BD16: 0 | BE16: 0 | BF16: 0 | BG16: 0
B17: x2 | C17: (m) | D17: =Kold2!D92 -> 1.7 | E17: =Kold2!E92 -> 0 | F17: =Kold2!F92 -> 0
I18: P1 | J18: L | K18: =D20 -> 128 | L18: =D24 -> 0.26 | N18: =K18-O18 -> 108.4235294 | O18: =K18*L18/$D$4 -> 19.57647059 | P18: =$N18*P$4-IF(P$4>$L18,(P$4-$L18)*$K18) -> 0 | Q18: =$N18*Q$4-IF(Q$4>$L18,(Q$4-$L18)*$K18) -> 4.608 | R18: 9.216 | S18: 13.824 | T18: 18.432 | U18: 23.04 | V18: 27.648 | W18: 27.456 | X18: 26.624 | Y18: 25.792 | Z18: 24.96 | AA18: 24.128 | AB18: 23.296 | AC18: 22.464 | AD18: 21.632 | AE18: 20.8 | AF18: 19.968 | AG18: 19.136 | AH18: 18.304 | AI18: 17.472 | AJ18: 16.64 | AK18: 15.808 | AL18: 14.976 | AM18: 14.144 | AN18: 13.312 | AO18: 12.48 | AP18: 11.648 | AQ18: 10.816 | AR18: 9.984 | AS18: 9.152 | AT18: 8.32 | AU18: 7.488 | AV18: 6.656 | AW18: 5.824 | AX18: 4.992 | AY18: 4.16 | AZ18: 3.328 | BA18: 2.496 | BB18: 1.664 | BC18: 0.832 | BD18: 0 | BE18: =$N18*BE$4-IF(BE$4>$L18,(BE$4-$L18)*$K18) -> 28.19011765 | BF18: 0 | BG18: 0
B19: Punktlaste | D19: P1 | E19: P2 | F19: P3 | I19: P1 | J19: K | K19: =D21 -> 128 | L19: =D24 -> 0.26 | N19: =K19-O19 -> 108.4235294 | O19: =K19*L19/$D$4 -> 19.57647059 | P19: =$N19*P$4-IF(P$4>$L19,(P$4-$L19)*$K19) -> 0 | Q19: 4.608 | R19: 9.216 | S19: 13.824 | T19: 18.432 | U19: 23.04 | V19: 27.648 | W19: 27.456 | X19: 26.624 | Y19: 25.792 | Z19: 24.96 | AA19: 24.128 | AB19: 23.296 | AC19: 22.464 | AD19: 21.632 | AE19: 20.8 | AF19: 19.968 | AG19: 19.136 | AH19: 18.304 | AI19: 17.472 | AJ19: 16.64 | AK19: 15.808 | AL19: 14.976 | AM19: 14.144 | AN19: 13.312 | AO19: 12.48 | AP19: 11.648 | AQ19: 10.816 | AR19: 9.984 | AS19: 9.152 | AT19: 8.32 | AU19: 7.488 | AV19: 6.656 | AW19: 5.824 | AX19: 4.992 | AY19: 4.16 | AZ19: 3.328 | BA19: 2.496 | BB19: 1.664 | BC19: 0.832 | BD19: 0 | BE19: 28.19011765 | BF19: 0 | BG19: 0
B20: Langtidsværdi | C20: (kN) | D20: =Kold2!H87*D26 -> 128 | E20: =Kold2!I87*D26 -> 0 | F20: =Kold2!J87*D26 -> 0 | I20: P1 | J20: d | K20: =D22 -> 128 | L20: =D24 -> 0.26 | N20: =K20-O20 -> 108.4235294 | O20: =K20*L20/$D$4 -> 19.57647059 | P20: =$N20*P$4-IF(P$4>$L20,(P$4-$L20)*$K20) -> 0 | Q20: 4.608 | R20: 9.216 | S20: 13.824 | T20: 18.432 | U20: 23.04 | V20: 27.648 | W20: 27.456 | X20: 26.624 | Y20: 25.792 | Z20: 24.96 | AA20: 24.128 | AB20: 23.296 | AC20: 22.464 | AD20: 21.632 | AE20: 20.8 | AF20: 19.968 | AG20: 19.136 | AH20: 18.304 | AI20: 17.472 | AJ20: 16.64 | AK20: 15.808 | AL20: 14.976 | AM20: 14.144 | AN20: 13.312 | AO20: 12.48 | AP20: 11.648 | AQ20: 10.816 | AR20: 9.984 | AS20: 9.152 | AT20: 8.32 | AU20: 7.488 | AV20: 6.656 | AW20: 5.824 | AX20: 4.992 | AY20: 4.16 | AZ20: 3.328 | BA20: 2.496 | BB20: 1.664 | BC20: 0.832 | BD20: 0 | BE20: 28.19011765 | BF20: 0 | BG20: 0
B21: Kar. værdi | C21: (kN) | D21: =Kold2!H88*D26 -> 128 | E21: =Kold2!I88*D26 -> 0 | F21: =Kold2!J88*D26 -> 0
B22: Regnm. værdi | C22: (kN) | D22: =Kold2!H89*D26 -> 128 | E22: =Kold2!I89*D26 -> 0 | F22: =Kold2!J89*D26 -> 0 | I22: P2 | J22: L | K22: =E20 -> 0 | L22: =E24 -> 0 | N22: =K22-O22 -> 0 | O22: =K22*L22/$D$4 -> 0 | P22: =$N22*P$4-IF(P$4>$L22,(P$4-$L22)*$K22) -> 0 | Q22: 0 | R22: 0 | S22: 0 | T22: 0 | U22: 0 | V22: 0 | W22: 0 | X22: 0 | Y22: 0 | Z22: 0 | AA22: 0 | AB22: 0 | AC22: 0 | AD22: 0 | AE22: 0 | AF22: 0 | AG22: 0 | AH22: 0 | AI22: 0 | AJ22: 0 | AK22: 0 | AL22: 0 | AM22: 0 | AN22: 0 | AO22: 0 | AP22: 0 | AQ22: 0 | AR22: 0 | AS22: 0 | AT22: 0 | AU22: 0 | AV22: 0 | AW22: 0 | AX22: 0 | AY22: 0 | AZ22: 0 | BA22: 0 | BB22: 0 | BC22: 0 | BD22: 0 | BE22: 0 | BF22: 0 | BG22: 0
B23: exc | C23: (m) | D23: =Kold2!H90 -> 0 | E23: =Kold2!I90 -> 0 | F23: =Kold2!J90 -> 0 | I23: P2 | J23: K | K23: =E21 -> 0 | L23: =E24 -> 0 | N23: =K23-O23 -> 0 | O23: =K23*L23/$D$4 -> 0 | P23: =$N23*P$4-IF(P$4>$L23,(P$4-$L23)*$K23) -> 0 | Q23: 0 | R23: 0 | S23: 0 | T23: 0 | U23: 0 | V23: 0 | W23: 0 | X23: 0 | Y23: 0 | Z23: 0 | AA23: 0 | AB23: 0 | AC23: 0 | AD23: 0 | AE23: 0 | AF23: 0 | AG23: 0 | AH23: 0 | AI23: 0 | AJ23: 0 | AK23: 0 | AL23: 0 | AM23: 0 | AN23: 0 | AO23: 0 | AP23: 0 | AQ23: 0 | AR23: 0 | AS23: 0 | AT23: 0 | AU23: 0 | AV23: 0 | AW23: 0 | AX23: 0 | AY23: 0 | AZ23: 0 | BA23: 0 | BB23: 0 | BC23: 0 | BD23: 0 | BE23: 0 | BF23: 0 | BG23: 0
B24: x | C24: (m) | D24: =Kold2!H91 -> 0.26 | E24: =Kold2!I91 -> 0 | F24: =Kold2!J91 -> 0 | I24: P2 | J24: d | K24: =E22 -> 0 | L24: =E24 -> 0 | N24: =K24-O24 -> 0 | O24: =K24*L24/$D$4 -> 0 | P24: =$N24*P$4-IF(P$4>$L24,(P$4-$L24)*$K24) -> 0 | Q24: 0 | R24: 0 | S24: 0 | T24: 0 | U24: 0 | V24: 0 | W24: 0 | X24: 0 | Y24: 0 | Z24: 0 | AA24: 0 | AB24: 0 | AC24: 0 | AD24: 0 | AE24: 0 | AF24: 0 | AG24: 0 | AH24: 0 | AI24: 0 | AJ24: 0 | AK24: 0 | AL24: 0 | AM24: 0 | AN24: 0 | AO24: 0 | AP24: 0 | AQ24: 0 | AR24: 0 | AS24: 0 | AT24: 0 | AU24: 0 | AV24: 0 | AW24: 0 | AX24: 0 | AY24: 0 | AZ24: 0 | BA24: 0 | BB24: 0 | BC24: 0 | BD24: 0 | BE24: 0 | BF24: 0 | BG24: 0
B26: Inddatatest | C26: =MAX(Kold!BE17:BE46) -> 0 | D26: =IF(C26=1,0,1) -> 1 | I26: P3 | J26: L | K26: =F20 -> 0 | L26: =F24 -> 0 | N26: =K26-O26 -> 0 | O26: =K26*L26/$D$4 -> 0 | P26: =$N26*P$4-IF(P$4>$L26,(P$4-$L26)*$K26) -> 0 | Q26: 0 | R26: 0 | S26: 0 | T26: 0 | U26: 0 | V26: 0 | W26: 0 | X26: 0 | Y26: 0 | Z26: 0 | AA26: 0 | AB26: 0 | AC26: 0 | AD26: 0 | AE26: 0 | AF26: =$N26*AF$4-IF(AF$4>$L26,(AF$4-$L26)*$K26) -> 0 | AG26: 0 | AH26: 0 | AI26: 0 | AJ26: 0 | AK26: 0 | AL26: 0 | AM26: 0 | AN26: 0 | AO26: 0 | AP26: 0 | AQ26: 0 | AR26: 0 | AS26: 0 | AT26: 0 | AU26: 0 | AV26: 0 | AW26: 0 | AX26: 0 | AY26: 0 | AZ26: 0 | BA26: 0 | BB26: 0 | BC26: 0 | BD26: 0 | BE26: 0 | BF26: 0 | BG26: 0
I27: P3 | J27: K | K27: =F21 -> 0 | L27: =F24 -> 0 | N27: =K27-O27 -> 0 | O27: =K27*L27/$D$4 -> 0 | P27: =$N27*P$4-IF(P$4>$L27,(P$4-$L27)*$K27) -> 0 | Q27: =$N27*Q$4-IF(Q$4>$L27,(Q$4-$L27)*$K27) -> 0 | R27: 0 | S27: 0 | T27: 0 | U27: 0 | V27: 0 | W27: 0 | X27: 0 | Y27: 0 | Z27: 0 | AA27: 0 | AB27: 0 | AC27: 0 | AD27: 0 | AE27: 0 | AF27: 0 | AG27: 0 | AH27: 0 | AI27: 0 | AJ27: 0 | AK27: 0 | AL27: 0 | AM27: 0 | AN27: 0 | AO27: 0 | AP27: 0 | AQ27: 0 | AR27: 0 | AS27: 0 | AT27: 0 | AU27: 0 | AV27: 0 | AW27: 0 | AX27: 0 | AY27: 0 | AZ27: 0 | BA27: 0 | BB27: 0 | BC27: 0 | BD27: 0 | BE27: 0 | BF27: =$N27*BF$4-IF(BF$4>$L27,(BF$4-$L27)*$K27) -> 0 | BG27: =$N27*BG$4-IF(BG$4>$L27,(BG$4-$L27)*$K27) -> 0
I28: P3 | J28: d | K28: =F22 -> 0 | L28: =F24 -> 0 | N28: =K28-O28 -> 0 | O28: =K28*L28/$D$4 -> 0 | P28: =$N28*P$4-IF(P$4>$L28,(P$4-$L28)*$K28) -> 0 | Q28: 0 | R28: 0 | S28: 0 | T28: 0 | U28: 0 | V28: 0 | W28: 0 | X28: 0 | Y28: 0 | Z28: 0 | AA28: 0 | AB28: 0 | AC28: 0 | AD28: 0 | AE28: 0 | AF28: 0 | AG28: 0 | AH28: 0 | AI28: 0 | AJ28: 0 | AK28: 0 | AL28: 0 | AM28: 0 | AN28: 0 | AO28: 0 | AP28: 0 | AQ28: 0 | AR28: 0 | AS28: 0 | AT28: 0 | AU28: 0 | AV28: 0 | AW28: 0 | AX28: 0 | AY28: 0 | AZ28: 0 | BA28: 0 | BB28: 0 | BC28: 0 | BD28: 0 | BE28: =$N28*BE$4-IF(BE$4>$L28,(BE$4-$L28)*$K28) -> 0 | BF28: =$N28*BF$4-IF(BF$4>$L28,(BF$4-$L28)*$K28) -> 0 | BG28: =$N28*BG$4-IF(BG$4>$L28,(BG$4-$L28)*$K28) -> 0
I30: MOMENTER | O30: punkt | P30: =P3 -> 0 | Q30: =Q3 -> 1 | R30: 2 | S30: 3 | T30: 4 | U30: 5 | V30: 6 | W30: 7 | X30: 8 | Y30: 9 | Z30: 10 | AA30: 11 | AB30: 12 | AC30: 13 | AD30: 14 | AE30: 15 | AF30: 16 | AG30: 17 | AH30: 18 | AI30: 19 | AJ30: 20 | AK30: 21 | AL30: 22 | AM30: 23 | AN30: 24 | AO30: 25 | AP30: 26 | AQ30: 27 | AR30: 28 | AS30: 29 | AT30: 30 | AU30: 31 | AV30: 32 | AW30: 33 | AX30: 34 | AY30: 35 | AZ30: 36 | BA30: 37 | BB30: 38 | BC30: 39 | BD30: 40 | BE30: =BE4*40/$D$4 -> 6.117647059 | BF30: =BF4*40/$D$4 -> 0 | BG30: =BG4*40/$D$4 -> 0
O31: : | P31: =P6+P10+P14+P18+P22+P26 -> 0 | Q31: =Q6+Q10+Q14+Q18+Q22+Q26 -> 4.657310625 | R31: 9.3120925 | S31: 13.96434562 | T31: 18.61407 | U31: 23.26126563 | V31: 27.9059325 | W31: 27.74807063 | X31: 26.94768 | Y31: 26.14476062 | Z31: 25.3393125 | AA31: 24.53133563 | AB31: 23.72083 | AC31: 22.90779562 | AD31: 22.0922325 | AE31: 21.27414062 | AF31: =AF6+AF10+AF14+AF18+AF22+AF26 -> 20.45352 | AG31: 19.63037062 | AH31: 18.8046925 | AI31: 17.97648563 | AJ31: 17.14575 | AK31: 16.31248563 | AL31: 15.4766925 | AM31: 14.63837063 | AN31: 13.79752 | AO31: 12.95414063 | AP31: 12.1082325 | AQ31: 11.25979563 | AR31: 10.40883 | AS31: 9.555335625 | AT31: 8.6993125 | AU31: 7.840760625 | AV31: 6.97968 | AW31: 6.116070625 | AX31: 5.2499325 | AY31: 4.381265625 | AZ31: 3.51007 | BA31: 2.636345625 | BB31: 1.7600925 | BC31: 0.881310625 | BD31: 0 | BE31: =BE6+BE10+BE14+BE18+BE22+BE26 -> 28.45219765 | BF31: 0 | BG31: 0
O32: : | P32: =P7+P11+P15+P19+P23+P27 -> 0 | Q32: 4.657310625 | R32: 9.3120925 | S32: 13.96434562 | T32: 18.61407 | U32: 23.26126563 | V32: 27.9059325 | W32: 27.74807063 | X32: 26.94768 | Y32: 26.14476062 | Z32: 25.3393125 | AA32: 24.53133563 | AB32: 23.72083 | AC32: 22.90779562 | AD32: 22.0922325 | AE32: 21.27414062 | AF32: =AF7+AF11+AF15+AF19+AF23+AF27 -> 20.45352 | AG32: 19.63037062 | AH32: 18.8046925 | AI32: 17.97648563 | AJ32: 17.14575 | AK32: 16.31248563 | AL32: 15.4766925 | AM32: 14.63837063 | AN32: 13.79752 | AO32: 12.95414063 | AP32: 12.1082325 | AQ32: 11.25979563 | AR32: 10.40883 | AS32: 9.555335625 | AT32: 8.6993125 | AU32: 7.840760625 | AV32: 6.97968 | AW32: 6.116070625 | AX32: 5.2499325 | AY32: 4.381265625 | AZ32: 3.51007 | BA32: 2.636345625 | BB32: 1.7600925 | BC32: 0.881310625 | BD32: 0 | BE32: 28.45219765 | BF32: 0 | BG32: 0
O33: : | P33: =P8+P12+P16+P20+P24+P28 -> 0 | Q33: 4.657310625 | R33: 9.3120925 | S33: 13.96434562 | T33: 18.61407 | U33: 23.26126563 | V33: 27.9059325 | W33: 27.74807063 | X33: 26.94768 | Y33: 26.14476062 | Z33: 25.3393125 | AA33: 24.53133563 | AB33: 23.72083 | AC33: 22.90779562 | AD33: 22.0922325 | AE33: 21.27414062 | AF33: =AF8+AF12+AF16+AF20+AF24+AF28 -> 20.45352 | AG33: 19.63037062 | AH33: 18.8046925 | AI33: 17.97648563 | AJ33: 17.14575 | AK33: 16.31248563 | AL33: 15.4766925 | AM33: 14.63837063 | AN33: 13.79752 | AO33: 12.95414063 | AP33: 12.1082325 | AQ33: 11.25979563 | AR33: 10.40883 | AS33: 9.555335625 | AT33: 8.6993125 | AU33: 7.840760625 | AV33: 6.97968 | AW33: 6.116070625 | AX33: 5.2499325 | AY33: 4.381265625 | AZ33: 3.51007 | BA33: 2.636345625 | BB33: 1.7600925 | BC33: 0.881310625 | BD33: 0 | BE33: 28.45219765 | BF33: 0 | BG33: 0
K35: p/P | L35: x1 | M35: x2 | P35: 0 | Q35: 1 | R35: 2 | S35: 3 | T35: 4 | U35: 5 | V35: 6 | W35: 7 | X35: 8 | Y35: 9 | Z35: 10 | AA35: 11 | AB35: 12 | AC35: 13 | AD35: 14 | AE35: 15 | AF35: 16 | AG35: 17 | AH35: 18 | AI35: 19 | AJ35: 20 | AK35: 21 | AL35: 22 | AM35: 23 | AN35: 24 | AO35: 25 | AP35: 26 | AQ35: 27 | AR35: 28 | AS35: 29 | AT35: 30 | AU35: 31 | AV35: 32 | AW35: 33 | AX35: 34 | AY35: 35 | AZ35: 36 | BA35: 37 | BB35: 38 | BC35: 39 | BD35: 40 | BJ35: hi cot 0 | BK35: L-hi cot 0 | BM35: ½hi cot 0 | BN35: L-½hi cot 0
P36: 0 | Q36: =Q35*($BD$4-$P$4)/40 -> 0.0425 | R36: 0.085 | S36: 0.1275 | T36: 0.17 | U36: 0.2125 | V36: 0.255 | W36: 0.2975 | X36: 0.34 | Y36: 0.3825 | Z36: 0.425 | AA36: 0.4675 | AB36: 0.51 | AC36: 0.5525 | AD36: 0.595 | AE36: 0.6375 | AF36: 0.68 | AG36: 0.7225 | AH36: 0.765 | AI36: 0.8075 | AJ36: 0.85 | AK36: 0.8925 | AL36: 0.935 | AM36: 0.9775 | AN36: 1.02 | AO36: 1.0625 | AP36: 1.105 | AQ36: 1.1475 | AR36: 1.19 | AS36: 1.2325 | AT36: 1.275 | AU36: 1.3175 | AV36: 1.36 | AW36: 1.4025 | AX36: 1.445 | AY36: 1.4875 | AZ36: 1.53 | BA36: 1.5725 | BB36: 1.615 | BC36: 1.6575 | BD36: =$D$4 -> 1.7 | BE36: 0 | BF36: =Kold!K34*Kold!P15/1000 -> 0.5234211114 | BG36: =BH36-Kold!K34*Kold!P15/1000 -> 1.176578889 | BH36: =Kold!M8 -> 1.7 | BJ36: =BF36 -> 0.5234211114 | BK36: =BG36 -> 1.176578889 | BM36: =0.5*BJ36 -> 0.2617105557 | BN36: =BH36-BM36 -> 1.438289444
B37: Excentriciteter | I37: Venstresidig forskydning
B38: exc. p_1 | C38: (mm) | D38: =D15 -> 0 | I38: =I8 -> p1 | J38: =J8 -> d | K38: =K8 -> 1.4 | L38: =L8 -> 0 | M38: =M8 -> 1.7 | P38: =IF(P$36<=$L38,$K38*($M38-$L38)*($D$4-0.5*($L38+$M38))/$D$4,IF(P$36<=$M38,$K38*($M38-P$36)*($D$4-0.5*(P$36+$M38))/$D$4,0)) -> 1.19 | Q38: =IF(Q$36<=$L38,$K38*($M38-$L38)*($D$4-0.5*($L38+$M38))/$D$4,IF(Q$36<=$M38,$K38*($M38-Q$36)*($D$4-0.5*(Q$36+$M38))/$D$4,0)) -> 1.13124375 | R38: 1.073975 | S38: 1.01819375 | T38: 0.9639 | U38: 0.91109375 | V38: 0.859775 | W38: 0.80994375 | X38: 0.7616 | Y38: 0.71474375 | Z38: 0.669375 | AA38: 0.62549375 | AB38: 0.5831 | AC38: 0.54219375 | AD38: 0.502775 | AE38: 0.46484375 | AF38: 0.4284 | AG38: =IF(AG$36<=$L38,$K38*($M38-$L38)*($D$4-0.5*($L38+$M38))/$D$4,IF(AG$36<=$M38,$K38*($M38-AG$36)*($D$4-0.5*(AG$36+$M38))/$D$4,0)) -> 0.39344375 | AH38: 0.359975 | AI38: 0.32799375 | AJ38: 0.2975 | AK38: 0.26849375 | AL38: 0.240975 | AM38: 0.21494375 | AN38: 0.1904 | AO38: 0.16734375 | AP38: 0.145775 | AQ38: 0.12569375 | AR38: 0.1071 | AS38: 0.08999375 | AT38: 0.074375 | AU38: 0.06024375 | AV38: 0.0476 | AW38: =IF(AW$36<=$L38,$K38*($M38-$L38)*($D$4-0.5*($L38+$M38))/$D$4,IF(AW$36<=$M38,$K38*($M38-AW$36)*($D$4-0.5*(AW$36+$M38))/$D$4,0)) -> 0.03644375 | AX38: 0.026775 | AY38: 0.01859375 | AZ38: 0.0119 | BA38: 0.00669375 | BB38: 0.002975 | BC38: 0.00074375 | BD38: 0 | BJ38: =IF(BJ$36<=$L38,$K38*($M38-$L38)*($D$4-0.5*($L38+$M38))/$D$4,IF(BJ$36<=$M38,$K38*($M38-BJ$36)*($D$4-0.5*(BJ$36+$M38))/$D$4,0)) -> 0.5700214805 | BK38: 0.1128110364 | BM38: =IF(BM$36<=$L38,$K38*($M38-$L38)*($D$4-0.5*($L38+$M38))/$D$4,IF(BM$36<=$M38,$K38*($M38-BM$36)*($D$4-0.5*(BM$36+$M38))/$D$4,0)) -> 0.8518079811 | BN38: 0.0282027591
B39: exc. p_2 | C39: (mm) | D39: =E15 -> 0 | I39: =I12 -> p2 | J39: =J12 -> d | K39: =K12 -> 0 | L39: =L12 -> 0 | M39: =M12 -> 0 | P39: =IF(P$36<=$L39,$K39*($M39-$L39)*($D$4-0.5*($L39+$M39))/$D$4,IF(P$36<=$M39,$K39*($M39-P$36)*($D$4-0.5*(P$36+$M39))/$D$4,0)) -> 0 | Q39: 0 | R39: 0 | S39: 0 | T39: 0 | U39: 0 | V39: 0 | W39: 0 | X39: 0 | Y39: 0 | Z39: 0 | AA39: 0 | AB39: 0 | AC39: 0 | AD39: 0 | AE39: 0 | AF39: 0 | AG39: 0 | AH39: 0 | AI39: 0 | AJ39: 0 | AK39: 0 | AL39: 0 | AM39: 0 | AN39: 0 | AO39: 0 | AP39: 0 | AQ39: 0 | AR39: 0 | AS39: 0 | AT39: 0 | AU39: 0 | AV39: 0 | AW39: 0 | AX39: 0 | AY39: 0 | AZ39: 0 | BA39: 0 | BB39: 0 | BC39: 0 | BD39: 0 | BJ39: 0 | BK39: 0 | BM39: 0 | BN39: 0
B40: exc. p_3 | C40: (mm) | D40: =F15 -> 0 | I40: =I16 -> p3 | J40: =J16 -> d | K40: =K16 -> 0 | L40: =L16 -> 0 | M40: =M16 -> 0 | P40: =IF(P$36<=$L40,$K40*($M40-$L40)*($D$4-0.5*($L40+$M40))/$D$4,IF(P$36<=$M40,$K40*($M40-P$36)*($D$4-0.5*(P$36+$M40))/$D$4,0)) -> 0 | Q40: 0 | R40: 0 | S40: 0 | T40: 0 | U40: 0 | V40: 0 | W40: 0 | X40: 0 | Y40: 0 | Z40: 0 | AA40: 0 | AB40: 0 | AC40: 0 | AD40: 0 | AE40: 0 | AF40: 0 | AG40: 0 | AH40: 0 | AI40: 0 | AJ40: 0 | AK40: 0 | AL40: 0 | AM40: 0 | AN40: 0 | AO40: 0 | AP40: 0 | AQ40: 0 | AR40: 0 | AS40: 0 | AT40: 0 | AU40: 0 | AV40: 0 | AW40: 0 | AX40: 0 | AY40: 0 | AZ40: 0 | BA40: 0 | BB40: 0 | BC40: 0 | BD40: 0 | BJ40: 0 | BK40: 0 | BM40: 0 | BN40: 0
B41: exc. P_1 | C41: (mm) | D41: =D23 -> 0 | I41: =I20 -> P1 | J41: =J20 -> d | K41: =K20 -> 128 | L41: =L20 -> 0.26 | M41: =M20 -> 0 | P41: =IF(P$36<=$L41,$K41*($D$4-$L41)/$D$4,0) -> 108.4235294 | Q41: =IF(Q$36<=$L41,$K41*($D$4-$L41)/$D$4,0) -> 108.4235294 | R41: 108.4235294 | S41: 108.4235294 | T41: 108.4235294 | U41: 108.4235294 | V41: 108.4235294 | W41: 0 | X41: 0 | Y41: 0 | Z41: 0 | AA41: 0 | AB41: 0 | AC41: 0 | AD41: 0 | AE41: 0 | AF41: 0 | AG41: =IF(AG$36<=$L41,$K41*($D$4-$L41)/$D$4,0) -> 0 | AH41: 0 | AI41: 0 | AJ41: 0 | AK41: 0 | AL41: 0 | AM41: 0 | AN41: 0 | AO41: 0 | AP41: 0 | AQ41: 0 | AR41: 0 | AS41: 0 | AT41: 0 | AU41: 0 | AV41: 0 | AW41: =IF(AW$36<=$L41,$K41*($D$4-$L41)/$D$4,0) -> 0 | AX41: 0 | AY41: 0 | AZ41: 0 | BA41: 0 | BB41: 0 | BC41: 0 | BD41: 0 | BJ41: =IF(BJ$36<=$L41,$K41*($D$4-$L41)/$D$4,0) -> 0 | BK41: 0 | BM41: =IF(BM$36<=$L41,$K41*($D$4-$L41)/$D$4,0) -> 0 | BN41: 0
B42: exc. P_2 | C42: (mm) | D42: =E23 -> 0 | I42: =I24 -> P2 | J42: =J24 -> d | K42: =K24 -> 0 | L42: =L24 -> 0 | M42: =M24 -> 0 | P42: =IF(P$36<=$L42,$K42*($D$4-$L42)/$D$4,0) -> 0 | Q42: 0 | R42: 0 | S42: 0 | T42: 0 | U42: 0 | V42: 0 | W42: 0 | X42: 0 | Y42: 0 | Z42: 0 | AA42: 0 | AB42: 0 | AC42: 0 | AD42: 0 | AE42: 0 | AF42: 0 | AG42: 0 | AH42: 0 | AI42: 0 | AJ42: 0 | AK42: 0 | AL42: 0 | AM42: 0 | AN42: 0 | AO42: 0 | AP42: 0 | AQ42: 0 | AR42: 0 | AS42: 0 | AT42: 0 | AU42: 0 | AV42: 0 | AW42: 0 | AX42: 0 | AY42: 0 | AZ42: 0 | BA42: 0 | BB42: 0 | BC42: 0 | BD42: 0 | BJ42: 0 | BK42: 0 | BM42: 0 | BN42: 0
B43: exc. P_3 | C43: (mm) | D43: =F23 -> 0 | I43: =I28 -> P3 | J43: =J28 -> d | K43: =K28 -> 0 | L43: =L28 -> 0 | M43: =M28 -> 0 | P43: =IF(P$36<=$L43,$K43*($D$4-$L43)/$D$4,0) -> 0 | Q43: 0 | R43: 0 | S43: 0 | T43: 0 | U43: 0 | V43: 0 | W43: 0 | X43: 0 | Y43: 0 | Z43: 0 | AA43: 0 | AB43: 0 | AC43: 0 | AD43: 0 | AE43: 0 | AF43: 0 | AG43: 0 | AH43: 0 | AI43: 0 | AJ43: 0 | AK43: 0 | AL43: 0 | AM43: 0 | AN43: 0 | AO43: 0 | AP43: 0 | AQ43: 0 | AR43: 0 | AS43: 0 | AT43: 0 | AU43: 0 | AV43: 0 | AW43: 0 | AX43: 0 | AY43: 0 | AZ43: 0 | BA43: 0 | BB43: 0 | BC43: 0 | BD43: 0 | BJ43: 0 | BK43: 0 | BM43: 0 | BN43: 0
I44: Højresidig forskydning
I45: =I38 -> p1 | J45: d | K45: 1.4 | L45: 0 | M45: 1.7 | P45: =IF(P$36<$L45,0,IF(P$36<$M45,$K45*(P$36-$L45)*0.5*($L45+P$36)/$D$4,$K45*($M45-$L45)*0.5*($L45+$M45)/$D$4)) -> 0 | Q45: =IF(Q$36<$L45,0,IF(Q$36<$M45,$K45*(Q$36-$L45)*0.5*($L45+Q$36)/$D$4,$K45*($M45-$L45)*0.5*($L45+$M45)/$D$4)) -> 0.00074375 | R45: 0.002975 | S45: 0.00669375 | T45: 0.0119 | U45: 0.01859375 | V45: 0.026775 | W45: 0.03644375 | X45: 0.0476 | Y45: 0.06024375 | Z45: 0.074375 | AA45: 0.08999375 | AB45: 0.1071 | AC45: 0.12569375 | AD45: 0.145775 | AE45: 0.16734375 | AF45: 0.1904 | AG45: =IF(AG$36<$L45,0,IF(AG$36<$M45,$K45*(AG$36-$L45)*0.5*($L45+AG$36)/$D$4,$K45*($M45-$L45)*0.5*($L45+$M45)/$D$4)) -> 0.21494375 | AH45: 0.240975 | AI45: 0.26849375 | AJ45: 0.2975 | AK45: 0.32799375 | AL45: 0.359975 | AM45: 0.39344375 | AN45: 0.4284 | AO45: 0.46484375 | AP45: 0.502775 | AQ45: 0.54219375 | AR45: 0.5831 | AS45: 0.62549375 | AT45: 0.669375 | AU45: 0.71474375 | AV45: 0.7616 | AW45: =IF(AW$36<$L45,0,IF(AW$36<$M45,$K45*(AW$36-$L45)*0.5*($L45+AW$36)/$D$4,$K45*($M45-$L45)*0.5*($L45+$M45)/$D$4)) -> 0.80994375 | AX45: 0.859775 | AY45: 0.91109375 | AZ45: 0.9639 | BA45: 1.01819375 | BB45: 1.073975 | BC45: 1.13124375 | BD45: 1.19 | BJ45: =IF(BJ$36<$L45,0,IF(BJ$36<$M45,$K45*(BJ$36-$L45)*0.5*($L45+BJ$36)/$D$4,$K45*($M45-$L45)*0.5*($L45+$M45)/$D$4)) -> 0.1128110364 | BK45: 0.5700214805 | BM45: =IF(BM$36<$L45,0,IF(BM$36<$M45,$K45*(BM$36-$L45)*0.5*($L45+BM$36)/$D$4,$K45*($M45-$L45)*0.5*($L45+$M45)/$D$4)) -> 0.0282027591 | BN45: 0.8518079811
I46: p2 | J46: d | K46: 0 | L46: 0 | M46: 0 | P46: =IF(P$36<$L46,0,IF(P$36<$M46,$K46*(P$36-$L46)*0.5*($L46+P$36)/$D$4,$K46*($M46-$L46)*0.5*($L46+$M46)/$D$4)) -> 0 | Q46: 0 | R46: 0 | S46: 0 | T46: 0 | U46: 0 | V46: 0 | W46: 0 | X46: 0 | Y46: 0 | Z46: 0 | AA46: 0 | AB46: 0 | AC46: 0 | AD46: 0 | AE46: 0 | AF46: 0 | AG46: 0 | AH46: 0 | AI46: 0 | AJ46: 0 | AK46: 0 | AL46: 0 | AM46: 0 | AN46: 0 | AO46: 0 | AP46: 0 | AQ46: 0 | AR46: 0 | AS46: 0 | AT46: 0 | AU46: 0 | AV46: 0 | AW46: 0 | AX46: 0 | AY46: 0 | AZ46: 0 | BA46: 0 | BB46: 0 | BC46: 0 | BD46: 0 | BJ46: 0 | BK46: 0 | BM46: 0 | BN46: 0
I47: p3 | J47: d | K47: 0 | L47: 0 | M47: 0 | P47: =IF(P$36<$L47,0,IF(P$36<$M47,$K47*(P$36-$L47)*0.5*($L47+P$36)/$D$4,$K47*($M47-$L47)*0.5*($L47+$M47)/$D$4)) -> 0 | Q47: 0 | R47: 0 | S47: 0 | T47: 0 | U47: 0 | V47: 0 | W47: 0 | X47: 0 | Y47: 0 | Z47: 0 | AA47: 0 | AB47: 0 | AC47: 0 | AD47: 0 | AE47: 0 | AF47: 0 | AG47: 0 | AH47: 0 | AI47: 0 | AJ47: 0 | AK47: 0 | AL47: 0 | AM47: 0 | AN47: 0 | AO47: 0 | AP47: 0 | AQ47: 0 | AR47: 0 | AS47: 0 | AT47: 0 | AU47: 0 | AV47: 0 | AW47: 0 | AX47: 0 | AY47: 0 | AZ47: 0 | BA47: 0 | BB47: 0 | BC47: 0 | BD47: 0 | BJ47: 0 | BK47: 0 | BM47: 0 | BN47: 0
I48: P1 | J48: d | K48: 128 | L48: 0.26 | M48: 0 | P48: =IF(P$36<$L48,0,$K48*$L48/$D$4) -> 0 | Q48: =IF(Q$36<$L48,0,$K48*$L48/$D$4) -> 0 | R48: 0 | S48: 0 | T48: 0 | U48: 0 | V48: 0 | W48: 19.57647059 | X48: 19.57647059 | Y48: 19.57647059 | Z48: 19.57647059 | AA48: 19.57647059 | AB48: 19.57647059 | AC48: 19.57647059 | AD48: 19.57647059 | AE48: 19.57647059 | AF48: 19.57647059 | AG48: =IF(AG$36<$L48,0,$K48*$L48/$D$4) -> 19.57647059 | AH48: 19.57647059 | AI48: 19.57647059 | AJ48: 19.57647059 | AK48: 19.57647059 | AL48: 19.57647059 | AM48: 19.57647059 | AN48: 19.57647059 | AO48: 19.57647059 | AP48: 19.57647059 | AQ48: 19.57647059 | AR48: 19.57647059 | AS48: 19.57647059 | AT48: 19.57647059 | AU48: 19.57647059 | AV48: 19.57647059 | AW48: =IF(AW$36<$L48,0,$K48*$L48/$D$4) -> 19.57647059 | AX48: 19.57647059 | AY48: 19.57647059 | AZ48: 19.57647059 | BA48: 19.57647059 | BB48: 19.57647059 | BC48: 19.57647059 | BD48: 19.57647059 | BJ48: =IF(BJ$36<$L48,0,$K48*$L48/$D$4) -> 19.57647059 | BK48: 19.57647059 | BM48: =IF(BM$36<$L48,0,$K48*$L48/$D$4) -> 19.57647059 | BN48: 19.57647059
I49: =I42 -> P2 | J49: d | K49: 0 | L49: 0 | M49: 0 | P49: =IF(P$36<$L49,0,$K49*$L49/$D$4) -> 0 | Q49: 0 | R49: 0 | S49: 0 | T49: 0 | U49: 0 | V49: 0 | W49: 0 | X49: 0 | Y49: 0 | Z49: 0 | AA49: 0 | AB49: 0 | AC49: 0 | AD49: 0 | AE49: 0 | AF49: 0 | AG49: 0 | AH49: 0 | AI49: 0 | AJ49: 0 | AK49: 0 | AL49: 0 | AM49: 0 | AN49: 0 | AO49: 0 | AP49: 0 | AQ49: 0 | AR49: 0 | AS49: 0 | AT49: 0 | AU49: 0 | AV49: 0 | AW49: 0 | AX49: 0 | AY49: 0 | AZ49: 0 | BA49: 0 | BB49: 0 | BC49: 0 | BD49: 0 | BJ49: 0 | BK49: 0 | BM49: 0 | BN49: 0
I50: P3 | J50: d | K50: 0 | L50: 0 | M50: 0 | P50: =IF(P$36<$L50,0,$K50*$L50/$D$4) -> 0 | Q50: 0 | R50: 0 | S50: 0 | T50: 0 | U50: 0 | V50: 0 | W50: 0 | X50: 0 | Y50: 0 | Z50: 0 | AA50: 0 | AB50: 0 | AC50: 0 | AD50: 0 | AE50: 0 | AF50: 0 | AG50: 0 | AH50: 0 | AI50: 0 | AJ50: 0 | AK50: 0 | AL50: 0 | AM50: 0 | AN50: 0 | AO50: 0 | AP50: 0 | AQ50: 0 | AR50: 0 | AS50: 0 | AT50: 0 | AU50: 0 | AV50: 0 | AW50: 0 | AX50: 0 | AY50: 0 | AZ50: 0 | BA50: 0 | BB50: 0 | BC50: 0 | BD50: 0 | BJ50: 0 | BK50: 0 | BM50: 0 | BN50: 0
I52: V_d - venstre | P52: =SUM(P38:P43) -> 109.6135294 | Q52: =SUM(Q38:Q43) -> 109.5547732 | R52: 109.4975044 | S52: 109.4417232 | T52: 109.3874294 | U52: 109.3346232 | V52: 109.2833044 | W52: 0.80994375 | X52: 0.7616 | Y52: 0.71474375 | Z52: 0.669375 | AA52: 0.62549375 | AB52: 0.5831 | AC52: 0.54219375 | AD52: 0.502775 | AE52: 0.46484375 | AF52: 0.4284 | AG52: 0.39344375 | AH52: 0.359975 | AI52: 0.32799375 | AJ52: 0.2975 | AK52: 0.26849375 | AL52: 0.240975 | AM52: 0.21494375 | AN52: 0.1904 | AO52: 0.16734375 | AP52: 0.145775 | AQ52: 0.12569375 | AR52: 0.1071 | AS52: 0.08999375 | AT52: 0.074375 | AU52: 0.06024375 | AV52: 0.0476 | AW52: 0.03644375 | AX52: 0.026775 | AY52: 0.01859375 | AZ52: 0.0119 | BA52: 0.00669375 | BB52: 0.002975 | BC52: 0.00074375 | BD52: 0 | BJ52: =SUM(BJ38:BJ43) -> 0.5700214805 | BK52: =SUM(BK38:BK43) -> 0.1128110364 | BM52: =SUM(BM38:BM43) -> 0.8518079811 | BN52: =SUM(BN38:BN43) -> 0.0282027591
I53: V_d - højre | P53: =SUM(P45:P50) -> 0 | Q53: =SUM(Q45:Q50) -> 0.00074375 | R53: 0.002975 | S53: 0.00669375 | T53: 0.0119 | U53: 0.01859375 | V53: 0.026775 | W53: 19.61291434 | X53: 19.62407059 | Y53: 19.63671434 | Z53: 19.65084559 | AA53: 19.66646434 | AB53: 19.68357059 | AC53: 19.70216434 | AD53: 19.72224559 | AE53: 19.74381434 | AF53: 19.76687059 | AG53: 19.79141434 | AH53: 19.81744559 | AI53: 19.84496434 | AJ53: 19.87397059 | AK53: 19.90446434 | AL53: 19.93644559 | AM53: 19.96991434 | AN53: 20.00487059 | AO53: 20.04131434 | AP53: 20.07924559 | AQ53: 20.11866434 | AR53: 20.15957059 | AS53: 20.20196434 | AT53: 20.24584559 | AU53: 20.29121434 | AV53: 20.33807059 | AW53: 20.38641434 | AX53: 20.43624559 | AY53: 20.48756434 | AZ53: 20.54037059 | BA53: 20.59466434 | BB53: 20.65044559 | BC53: 20.70771434 | BD53: 20.76647059 | BJ53: =SUM(BJ45:BJ50) -> 19.68928162 | BK53: =SUM(BK45:BK50) -> 20.14649207 | BM53: =SUM(BM45:BM50) -> 19.60467335 | BN53: =SUM(BN45:BN50) -> 20.42827857
I55: FORSKYDNING | P55: =P35 -> 0 | Q55: =Q35 -> 1 | R55: 2 | S55: 3 | T55: 4 | U55: 5 | V55: 6 | W55: 7 | X55: 8 | Y55: 9 | Z55: 10 | AA55: 11 | AB55: 12 | AC55: 13 | AD55: 14 | AE55: 15 | AF55: 16 | AG55: 17 | AH55: 18 | AI55: 19 | AJ55: 20 | AK55: 21 | AL55: 22 | AM55: 23 | AN55: 24 | AO55: 25 | AP55: 26 | AQ55: 27 | AR55: 28 | AS55: 29 | AT55: 30 | AU55: 31 | AV55: 32 | AW55: 33 | AX55: 34 | AY55: 35 | AZ55: 36 | BA55: 37 | BB55: 38 | BC55: 39 | BD55: 40 | BE55: =BF55 -> 12.31579086 | BF55: =40*BF36/Kold!$M$8 -> 12.31579086 | BG55: =40*BG36/Kold!$M$8 -> 27.68420914 | BH55: =BG55 -> 27.68420914
K56: fyd | L56: d | M56: a | N56: hicot | O56: : | P56: =MAX(P53,P52) -> 109.6135294 | Q56: =MAX(Q53,Q52) -> 109.5547732 | R56: 109.4975044 | S56: 109.4417232 | T56: 109.3874294 | U56: 109.3346232 | V56: 109.2833044 | W56: 19.61291434 | X56: 19.62407059 | Y56: 19.63671434 | Z56: 19.65084559 | AA56: 19.66646434 | AB56: 19.68357059 | AC56: 19.70216434 | AD56: 19.72224559 | AE56: 19.74381434 | AF56: 19.76687059 | AG56: 19.79141434 | AH56: 19.81744559 | AI56: 19.84496434 | AJ56: 19.87397059 | AK56: 19.90446434 | AL56: 19.93644559 | AM56: 19.96991434 | AN56: 20.00487059 | AO56: 20.04131434 | AP56: 20.07924559 | AQ56: 20.11866434 | AR56: 20.15957059 | AS56: 20.20196434 | AT56: 20.24584559 | AU56: 20.29121434 | AV56: 20.33807059 | AW56: 20.38641434 | AX56: 20.43624559 | AY56: 20.48756434 | AZ56: 20.54037059 | BA56: 20.59466434 | BB56: 20.65044559 | BC56: 20.70771434 | BD56: 20.76647059
K57: =550/1.3 -> 423.0769231 | L57: 12 | M57: 150 | N57: 900 | O57: : | P57: =Kold!$P$31 -> 82.21879591 | Q57: =Kold!$P$31 -> 82.21879591 | R57: =Kold!$P$31 -> 82.21879591 | S57: =Kold!$P$31 -> 82.21879591 | T57: =Kold!$P$31 -> 82.21879591 | U57: =Kold!$P$31 -> 82.21879591 | V57: =Kold!$P$31 -> 82.21879591 | W57: =Kold!$P$31 -> 82.21879591 | X57: =Kold!$P$31 -> 82.21879591 | Y57: =Kold!$P$31 -> 82.21879591 | Z57: =Kold!$P$31 -> 82.21879591 | AA57: =Kold!$P$31 -> 82.21879591 | AB57: =Kold!$P$31 -> 82.21879591 | AC57: =Kold!$P$31 -> 82.21879591 | AD57: =Kold!$P$31 -> 82.21879591 | AE57: =Kold!$P$31 -> 82.21879591 | AF57: =Kold!$P$31 -> 82.21879591 | AG57: =Kold!$P$31 -> 82.21879591 | AH57: =Kold!$P$31 -> 82.21879591 | AI57: =Kold!$P$31 -> 82.21879591 | AJ57: =Kold!$P$31 -> 82.21879591 | AK57: =Kold!$P$31 -> 82.21879591 | AL57: =Kold!$P$31 -> 82.21879591 | AM57: =Kold!$P$31 -> 82.21879591 | AN57: =Kold!$P$31 -> 82.21879591 | AO57: =Kold!$P$31 -> 82.21879591 | AP57: =Kold!$P$31 -> 82.21879591 | AQ57: =Kold!$P$31 -> 82.21879591 | AR57: =Kold!$P$31 -> 82.21879591 | AS57: =Kold!$P$31 -> 82.21879591 | AT57: =Kold!$P$31 -> 82.21879591 | AU57: =Kold!$P$31 -> 82.21879591 | AV57: =Kold!$P$31 -> 82.21879591 | AW57: =Kold!$P$31 -> 82.21879591 | AX57: =Kold!$P$31 -> 82.21879591 | AY57: =Kold!$P$31 -> 82.21879591 | AZ57: =Kold!$P$31 -> 82.21879591 | BA57: =Kold!$P$31 -> 82.21879591 | BB57: =Kold!$P$31 -> 82.21879591 | BC57: =Kold!$P$31 -> 82.21879591 | BD57: =Kold!$P$31 -> 82.21879591
K58: =550/1.3 -> 423.0769231 | L58: 12 | M58: 100 | N58: 900 | O58: : | P58: =Kold!$P$32 -> 82.21879591 | Q58: =Kold!$P$32 -> 82.21879591 | R58: =Kold!$P$32 -> 82.21879591 | S58: =Kold!$P$32 -> 82.21879591 | T58: =Kold!$P$32 -> 82.21879591 | U58: =Kold!$P$32 -> 82.21879591 | V58: =Kold!$P$32 -> 82.21879591 | W58: =Kold!$P$32 -> 82.21879591 | X58: =Kold!$P$32 -> 82.21879591 | Y58: =Kold!$P$32 -> 82.21879591 | Z58: =Kold!$P$32 -> 82.21879591 | AA58: =Kold!$P$32 -> 82.21879591 | AB58: =Kold!$P$32 -> 82.21879591 | AC58: =Kold!$P$32 -> 82.21879591 | AD58: =Kold!$P$32 -> 82.21879591 | AE58: =Kold!$P$32 -> 82.21879591 | AF58: =Kold!$P$32 -> 82.21879591 | AG58: =Kold!$P$32 -> 82.21879591 | AH58: =Kold!$P$32 -> 82.21879591 | AI58: =Kold!$P$32 -> 82.21879591 | AJ58: =Kold!$P$32 -> 82.21879591 | AK58: =Kold!$P$32 -> 82.21879591 | AL58: =Kold!$P$32 -> 82.21879591 | AM58: =Kold!$P$32 -> 82.21879591 | AN58: =Kold!$P$32 -> 82.21879591 | AO58: =Kold!$P$32 -> 82.21879591 | AP58: =Kold!$P$32 -> 82.21879591 | AQ58: =Kold!$P$32 -> 82.21879591 | AR58: =Kold!$P$32 -> 82.21879591 | AS58: =Kold!$P$32 -> 82.21879591 | AT58: =Kold!$P$32 -> 82.21879591 | AU58: =Kold!$P$32 -> 82.21879591 | AV58: =Kold!$P$32 -> 82.21879591 | AW58: =Kold!$P$32 -> 82.21879591 | AX58: =Kold!$P$32 -> 82.21879591 | AY58: =Kold!$P$32 -> 82.21879591 | AZ58: =Kold!$P$32 -> 82.21879591 | BA58: =Kold!$P$32 -> 82.21879591 | BB58: =Kold!$P$32 -> 82.21879591 | BC58: =Kold!$P$32 -> 82.21879591 | BD58: =Kold!$P$32 -> 82.21879591
K59: =550/1.3 -> 423.0769231 | L59: 12 | M59: 65 | N59: 900 | O59: : | BE59: =1.1*MAX(P56:BD56) -> 120.5748824 | BF59: 0 | BG59: 0 | BH59: =1.1*MAX(P56:BD56) -> 120.5748824
T60: 0 | X60: 0 | AB60: 0 | AF60: 0 | AJ60: 0 | AN60: 0 | AR60: 0 | AV60: 0 | AZ60: 0
I61: EXCENTRICITET | P61: =IF(P52>=P53,IF(P52=0,0,SUMPRODUCT($D$38:$D$43,P38:P43)/P52),IF(P53=0,0,SUMPRODUCT($D$38:$D$43,P45:P50)/P53)) -> 0 | Q61: =IF(Q52>=Q53,IF(Q52=0,0,SUMPRODUCT($D$38:$D$43,Q38:Q43)/Q52),IF(Q53=0,0,SUMPRODUCT($D$38:$D$43,Q45:Q50)/Q53)) -> 0 | R61: 0 | S61: 0 | T61: 0 | U61: 0 | V61: 0 | W61: 0 | X61: 0 | Y61: 0 | Z61: 0 | AA61: 0 | AB61: 0 | AC61: 0 | AD61: 0 | AE61: 0 | AF61: 0 | AG61: 0 | AH61: 0 | AI61: 0 | AJ61: 0 | AK61: 0 | AL61: 0 | AM61: 0 | AN61: 0 | AO61: 0 | AP61: 0 | AQ61: 0 | AR61: 0 | AS61: 0 | AT61: 0 | AU61: 0 | AV61: 0 | AW61: 0 | AX61: 0 | AY61: 0 | AZ61: 0 | BA61: 0 | BB61: 0 | BC61: 0 | BD61: 0
P65: 0 | Q65: 1 | R65: 2 | S65: 3 | T65: 4 | U65: 5 | V65: 6 | W65: 7 | X65: 8 | Y65: 9 | Z65: 10 | AA65: 11 | AB65: 12 | AC65: 13 | AD65: 14 | AE65: 15 | AF65: 16 | AG65: 17 | AH65: 18 | AI65: 19 | AJ65: 20 | AK65: 21 | AL65: 22 | AM65: 23 | AN65: 24 | AO65: 25 | AP65: 26 | AQ65: 27 | AR65: 28 | AS65: 29 | AT65: 30 | AU65: 31 | AV65: 32 | AW65: 33 | AX65: 34 | AY65: 35 | AZ65: 36 | BA65: 37 | BB65: 38 | BC65: 39 | BD65: 40
I66: UDBØJNINGER | P66: 0 | Q66: =Q65*($BD$4-$P$4)/40 -> 0.0425 | R66: 0.085 | S66: 0.1275 | T66: 0.17 | U66: 0.2125 | V66: 0.255 | W66: 0.2975 | X66: 0.34 | Y66: 0.3825 | Z66: 0.425 | AA66: 0.4675 | AB66: 0.51 | AC66: 0.5525 | AD66: 0.595 | AE66: 0.6375 | AF66: 0.68 | AG66: 0.7225 | AH66: 0.765 | AI66: 0.8075 | AJ66: 0.85 | AK66: 0.8925 | AL66: 0.935 | AM66: 0.9775 | AN66: 1.02 | AO66: 1.0625 | AP66: 1.105 | AQ66: 1.1475 | AR66: 1.19 | AS66: 1.2325 | AT66: 1.275 | AU66: 1.3175 | AV66: 1.36 | AW66: 1.4025 | AX66: 1.445 | AY66: 1.4875 | AZ66: 1.53 | BA66: 1.5725 | BB66: 1.615 | BC66: 1.6575 | BD66: =$D$4 -> 1.7
J68: L | O68: a1 | P68: 0 | Q68: =P68+(0.5*(Q31+P31)/$D$5)*(Q66-P66) -> 2.634257407e-05 | R68: =Q68+(0.5*(R31+Q31)/$D$5)*(R66-Q66) -> 0.0001053559932 | S68: 0.0002370116513 | T68: 0.0004212809422 | U68: 0.0006581352599 | V68: 0.0009475459982 | W68: 0.0012623349 | X68: 0.001571703757 | Y68: 0.001872004008 | Z68: 0.002163207047 | AA68: 0.002445284269 | AB68: 0.002718207067 | AC68: 0.002981946835 | AD68: 0.003236474967 | AE68: 0.003481762857 | AF68: 0.003717781899 | AG68: 0.003944503486 | AH68: 0.004161899013 | AI68: 0.004369939873 | AJ68: 0.004568597461 | AK68: 0.004757843169 | AL68: 0.004937648393 | AM68: 0.005107984526 | AN68: 0.005268822962 | AO68: 0.005420135094 | AP68: 0.005561892317 | AQ68: 0.005694066024 | AR68: 0.00581662761 | AS68: 0.005929548468 | AT68: 0.006032799992 | AU68: 0.006126353576 | AV68: 0.006210180614 | AW68: 0.0062842525 | AX68: 0.006348540627 | AY68: 0.00640301639 | AZ68: 0.006447651183 | BA68: 0.006482416399 | BB68: 0.006507283432 | BC68: 0.006522223676 | BD68: =BC68+(0.5*(BD31+BC31)/$D$5)*(BD66-BC66) -> 0.006527208525
O69: u1 | P69: 0 | Q69: =P69+P68*(Q66-P66)+0.5*(0.5*(Q31+P31)/$D$5)*(Q66-P66)^2 -> 5.597796989e-07 | R69: 3.358374253e-06 | S69: 1.06336867e-05 | T69: 2.462240431e-05 | U69: 4.755999861e-05 | V69: 8.168072534e-05 | W69: 0.0001286406944 | X69: 0.0001888640159 | Y69: 0.0002620428059 | Z69: 0.0003477910408 | AA69: 0.0004457214813 | AB69: 0.0005554456722 | AC69: 0.0006765739426 | AD69: 0.0008087154059 | AE69: 0.0009514779597 | AF69: 0.001104468286 | AG69: 0.00126729185 | AH69: 0.001439552903 | AI69: 0.00162085448 | AJ69: 0.001810798398 | AK69: 0.002008985261 | AL69: 0.002215014457 | AM69: 0.002428484157 | AN69: 0.002648991316 | AO69: 0.002876131674 | AP69: 0.003109499757 | AQ69: 0.003348688872 | AR69: 0.003593291111 | AS69: 0.003842897353 | AT69: 0.004097097258 | AU69: 0.004355479271 | AV69: 0.004617630623 | AW69: 0.004883137326 | AX69: 0.00515158418 | AY69: 0.005422554767 | AZ69: 0.005695631453 | BA69: 0.005970395389 | BB69: 0.00624642651 | BC69: 0.006523303536 | BD69: 0.006800603971
O70: u2 | P70: 0 | Q70: =-(Q69-Q65*$BD$69/40) -> 0.0001694553196 | R70: =-(R69-R65*$BD$69/40) -> 0.0003366718243 | S70: 0.0004994116111 | T70: 0.0006554379927 | U70: 0.0008025154977 | V70: 0.0009384098702 | W70: 0.001061465 | X70: 0.001171256778 | Y70: 0.001268093087 | Z70: 0.001352359952 | AA70: 0.001424444611 | AB70: 0.001484735519 | AC70: 0.001533622348 | AD70: 0.001571495984 | AE70: 0.001598748529 | AF70: 0.001615773303 | AG70: 0.001622964837 | AH70: 0.001620718884 | AI70: 0.001609432406 | AJ70: 0.001589503587 | AK70: 0.001561331823 | AL70: 0.001525317727 | AM70: 0.001481863127 | AN70: 0.001431371067 | AO70: 0.001374245807 | AP70: 0.001310892824 | AQ70: 0.001241718809 | AR70: 0.001167131668 | AS70: 0.001087540526 | AT70: 0.00100335572 | AU70: 0.0009149888061 | AV70: 0.0008228525539 | AW70: 0.0007273609495 | AX70: 0.0006289291948 | AY70: 0.0005279737074 | AZ70: 0.0004249121207 | BA70: 0.0003201632839 | BB70: 0.0002141472618 | BC70: 0.000107285335 | BD70: 0
J72: K | O72: a1 | P72: 0 | Q72: =P72+(0.5*(Q32-Q31+P32-P31)/$D$6)*(Q66-P66) -> 0 | R72: 0 | S72: 0 | T72: 0 | U72: 0 | V72: 0 | W72: 0 | X72: 0 | Y72: 0 | Z72: 0 | AA72: 0 | AB72: 0 | AC72: 0 | AD72: 0 | AE72: 0 | AF72: 0 | AG72: 0 | AH72: 0 | AI72: 0 | AJ72: 0 | AK72: 0 | AL72: 0 | AM72: 0 | AN72: 0 | AO72: 0 | AP72: 0 | AQ72: 0 | AR72: 0 | AS72: 0 | AT72: 0 | AU72: 0 | AV72: 0 | AW72: 0 | AX72: 0 | AY72: 0 | AZ72: 0 | BA72: 0 | BB72: 0 | BC72: 0 | BD72: 0
O73: u1 | P73: 0 | Q73: =P73+P72*(Q66-P66)+0.5*(0.5*(Q32-Q31+P32-P31)/$D$6)*(Q66-P66)^2 -> 0 | R73: 0 | S73: 0 | T73: 0 | U73: 0 | V73: 0 | W73: 0 | X73: 0 | Y73: 0 | Z73: 0 | AA73: 0 | AB73: 0 | AC73: 0 | AD73: 0 | AE73: 0 | AF73: 0 | AG73: 0 | AH73: 0 | AI73: 0 | AJ73: 0 | AK73: 0 | AL73: 0 | AM73: 0 | AN73: 0 | AO73: 0 | AP73: 0 | AQ73: 0 | AR73: 0 | AS73: 0 | AT73: 0 | AU73: 0 | AV73: 0 | AW73: 0 | AX73: 0 | AY73: 0 | AZ73: 0 | BA73: 0 | BB73: 0 | BC73: 0 | BD73: 0
O74: u2 | P74: 0 | Q74: =-(Q73-Q65*$BD$73/40)+Q70 -> 0.0001694553196 | R74: =-(R73-R65*$BD$73/40)+R70 -> 0.0003366718243 | S74: 0.0004994116111 | T74: 0.0006554379927 | U74: 0.0008025154977 | V74: 0.0009384098702 | W74: 0.001061465 | X74: 0.001171256778 | Y74: 0.001268093087 | Z74: 0.001352359952 | AA74: 0.001424444611 | AB74: 0.001484735519 | AC74: 0.001533622348 | AD74: 0.001571495984 | AE74: 0.001598748529 | AF74: 0.001615773303 | AG74: 0.001622964837 | AH74: 0.001620718884 | AI74: 0.001609432406 | AJ74: 0.001589503587 | AK74: 0.001561331823 | AL74: 0.001525317727 | AM74: 0.001481863127 | AN74: 0.001431371067 | AO74: 0.001374245807 | AP74: 0.001310892824 | AQ74: 0.001241718809 | AR74: 0.001167131668 | AS74: 0.001087540526 | AT74: 0.00100335572 | AU74: 0.0009149888061 | AV74: 0.0008228525539 | AW74: 0.0007273609495 | AX74: 0.0006289291948 | AY74: 0.0005279737074 | AZ74: 0.0004249121207 | BA74: 0.0003201632839 | BB74: 0.0002141472618 | BC74: 0.000107285335 | BD74: 0
C78: ϒg | D78: =Kold!H22 -> 1 | I78: Bøjlekapacitet
C79: ϒq | D79: =Kold!I22 -> 0 | K79: =2*MAX(Kold!P31,Kold!P32)*Kold2!D4/(Kold2!D4-Kold!P15*Kold!K34/1000)^2 -> 201.9332924 | L79: 0 | M79: =Kold!M8 -> 1.7 | P79: =IF(P$36<=$L79,$K79*($M79-$L79)*($D$4-0.5*($L79+$M79))/$D$4,IF(P$36<=$M79,$K79*($M79-P$36)*($D$4-0.5*(P$36+$M79))/$D$4,0)) -> 171.6432985 | Q79: =IF(Q$36<=$L79,$K79*($M79-$L79)*($D$4-0.5*($L79+$M79))/$D$4,IF(Q$36<=$M79,$K79*($M79-Q$36)*($D$4-0.5*(Q$36+$M79))/$D$4,0)) -> 163.1684107 | R79: =IF(R$36<=$L79,$K79*($M79-$L79)*($D$4-0.5*($L79+$M79))/$D$4,IF(R$36<=$M79,$K79*($M79-R$36)*($D$4-0.5*(R$36+$M79))/$D$4,0)) -> 154.9080769 | S79: 146.8622973 | T79: 139.0310718 | U79: 131.4144004 | V79: 124.0122832 | W79: 116.8247201 | X79: 109.8517111 | Y79: 103.0932562 | Z79: 96.54935542 | AA79: 90.22000878 | AB79: 84.10521627 | AC79: 78.20497789 | AD79: 72.51929362 | AE79: 67.04816348 | AF79: 61.79158747 | AG79: 56.74956557 | AH79: 51.9220978 | AI79: 47.30918415 | AJ79: 42.91082463 | AK79: 38.72701923 | AL79: 34.75776795 | AM79: 31.00307079 | AN79: 27.46292776 | AO79: 24.13733885 | AP79: 21.02630407 | AQ79: 18.12982341 | AR79: 15.44789687 | AS79: 12.98052445 | AT79: 10.72770616 | AU79: 8.689441987 | AV79: 6.865731941 | AW79: 5.256576017 | AX79: 3.861974217 | AY79: 2.681926539 | AZ79: 1.716432985 | BA79: 0.9654935542 | BB79: 0.4291082463 | BC79: 0.1072770616 | BD79: 0
C80: ψ1 | D80: =Kold!J22 -> 0 | K80: =2*MAX(Kold!P31,Kold!P32)*Kold2!D4/(Kold2!D4-Kold!P15*Kold!K34/1000)^2 -> 201.9332924 | L80: 0 | M80: =Kold!M8 -> 1.7 | P80: =IF(P$36<$L80,0,IF(P$36<$M80,$K80*(P$36-$L80)*0.5*($L80+P$36)/$D$4,$K80*($M80-$L80)*0.5*($L80+$M80)/$D$4)) -> 0 | Q80: =IF(Q$36<$L80,0,IF(Q$36<$M80,$K80*(Q$36-$L80)*0.5*($L80+Q$36)/$D$4,$K80*($M80-$L80)*0.5*($L80+$M80)/$D$4)) -> 0.1072770616 | R80: =IF(R$36<$L80,0,IF(R$36<$M80,$K80*(R$36-$L80)*0.5*($L80+R$36)/$D$4,$K80*($M80-$L80)*0.5*($L80+$M80)/$D$4)) -> 0.4291082463 | S80: 0.9654935542 | T80: 1.716432985 | U80: 2.681926539 | V80: 3.861974217 | W80: 5.256576017 | X80: 6.865731941 | Y80: 8.689441987 | Z80: 10.72770616 | AA80: 12.98052445 | AB80: 15.44789687 | AC80: 18.12982341 | AD80: 21.02630407 | AE80: 24.13733885 | AF80: 27.46292776 | AG80: 31.00307079 | AH80: 34.75776795 | AI80: 38.72701923 | AJ80: 42.91082463 | AK80: 47.30918415 | AL80: 51.9220978 | AM80: 56.74956557 | AN80: 61.79158747 | AO80: 67.04816348 | AP80: 72.51929362 | AQ80: 78.20497789 | AR80: 84.10521627 | AS80: 90.22000878 | AT80: 96.54935542 | AU80: 103.0932562 | AV80: 109.8517111 | AW80: 116.8247201 | AX80: 124.0122832 | AY80: 131.4144004 | AZ80: 139.0310718 | BA80: 146.8622973 | BB80: 154.9080769 | BC80: 163.1684107 | BD80: 171.6432985
C81: ψ2 | D81: =Kold!K22 -> 0 | I81: =MAX(Q81:BC81) -> 0 | Q81: =IF(Q56>MAX(Q79:Q80,Kold!$P$32,Kold!$P$31),1,0) -> 0 | R81: =IF(R56>MAX(R79:R80,Kold!$P$32,Kold!$P$31),1,0) -> 0 | S81: =IF(S56>MAX(S79:S80,Kold!$P$32,Kold!$P$31),1,0) -> 0 | T81: =IF(T56>MAX(T79:T80,Kold!$P$32,Kold!$P$31),1,0) -> 0 | U81: =IF(U56>MAX(U79:U80,Kold!$P$32,Kold!$P$31),1,0) -> 0 | V81: =IF(V56>MAX(V79:V80,Kold!$P$32,Kold!$P$31),1,0) -> 0 | W81: =IF(W56>MAX(W79:W80,Kold!$P$32,Kold!$P$31),1,0) -> 0 | X81: =IF(X56>MAX(X79:X80,Kold!$P$32,Kold!$P$31),1,0) -> 0 | Y81: =IF(Y56>MAX(Y79:Y80,Kold!$P$32,Kold!$P$31),1,0) -> 0 | Z81: =IF(Z56>MAX(Z79:Z80,Kold!$P$32,Kold!$P$31),1,0) -> 0 | AA81: =IF(AA56>MAX(AA79:AA80,Kold!$P$32,Kold!$P$31),1,0) -> 0 | AB81: =IF(AB56>MAX(AB79:AB80,Kold!$P$32,Kold!$P$31),1,0) -> 0 | AC81: =IF(AC56>MAX(AC79:AC80,Kold!$P$32,Kold!$P$31),1,0) -> 0 | AD81: =IF(AD56>MAX(AD79:AD80,Kold!$P$32,Kold!$P$31),1,0) -> 0 | AE81: =IF(AE56>MAX(AE79:AE80,Kold!$P$32,Kold!$P$31),1,0) -> 0 | AF81: =IF(AF56>MAX(AF79:AF80,Kold!$P$32,Kold!$P$31),1,0) -> 0 | AG81: =IF(AG56>MAX(AG79:AG80,Kold!$P$32,Kold!$P$31),1,0) -> 0 | AH81: =IF(AH56>MAX(AH79:AH80,Kold!$P$32,Kold!$P$31),1,0) -> 0 | AI81: =IF(AI56>MAX(AI79:AI80,Kold!$P$32,Kold!$P$31),1,0) -> 0 | AJ81: =IF(AJ56>MAX(AJ79:AJ80,Kold!$P$32,Kold!$P$31),1,0) -> 0 | AK81: =IF(AK56>MAX(AK79:AK80,Kold!$P$32,Kold!$P$31),1,0) -> 0 | AL81: =IF(AL56>MAX(AL79:AL80,Kold!$P$32,Kold!$P$31),1,0) -> 0 | AM81: =IF(AM56>MAX(AM79:AM80,Kold!$P$32,Kold!$P$31),1,0) -> 0 | AN81: =IF(AN56>MAX(AN79:AN80,Kold!$P$32,Kold!$P$31),1,0) -> 0 | AO81: =IF(AO56>MAX(AO79:AO80,Kold!$P$32,Kold!$P$31),1,0) -> 0 | AP81: =IF(AP56>MAX(AP79:AP80,Kold!$P$32,Kold!$P$31),1,0) -> 0 | AQ81: =IF(AQ56>MAX(AQ79:AQ80,Kold!$P$32,Kold!$P$31),1,0) -> 0 | AR81: =IF(AR56>MAX(AR79:AR80,Kold!$P$32,Kold!$P$31),1,0) -> 0 | AS81: =IF(AS56>MAX(AS79:AS80,Kold!$P$32,Kold!$P$31),1,0) -> 0 | AT81: =IF(AT56>MAX(AT79:AT80,Kold!$P$32,Kold!$P$31),1,0) -> 0 | AU81: =IF(AU56>MAX(AU79:AU80,Kold!$P$32,Kold!$P$31),1,0) -> 0 | AV81: =IF(AV56>MAX(AV79:AV80,Kold!$P$32,Kold!$P$31),1,0) -> 0 | AW81: =IF(AW56>MAX(AW79:AW80,Kold!$P$32,Kold!$P$31),1,0) -> 0 | AX81: =IF(AX56>MAX(AX79:AX80,Kold!$P$32,Kold!$P$31),1,0) -> 0 | AY81: =IF(AY56>MAX(AY79:AY80,Kold!$P$32,Kold!$P$31),1,0) -> 0 | AZ81: =IF(AZ56>MAX(AZ79:AZ80,Kold!$P$32,Kold!$P$31),1,0) -> 0 | BA81: =IF(BA56>MAX(BA79:BA80,Kold!$P$32,Kold!$P$31),1,0) -> 0 | BB81: =IF(BB56>MAX(BB79:BB80,Kold!$P$32,Kold!$P$31),1,0) -> 0 | BC81: =IF(BC56>MAX(BC79:BC80,Kold!$P$32,Kold!$P$31),1,0) -> 0
C85: Jævnt fordelte laste | G85: Punktlaste
D86: p1 | E86: p2 | F86: p3 | H86: P1 | I86: P2 | J86: P3
B87: Langtidsværdi | C87: (kN/m) | D87: =B95+C95*J95 -> 1.4 | E87: =B96+C96*J96 -> 0 | F87: =B97+C97*J97 -> 0 | G87: (kN) | H87: =B99+C99*J99 -> 128 | I87: =B100+C100*J100 -> 0 | J87: =B101+C101*J101 -> 0
B88: Kar. værdi | C88: (kN/m) | D88: =B95+C95 -> 1.4 | E88: =B96+C96 -> 0 | F88: =B97+C97 -> 0 | G88: (kN) | H88: =B99+C99 -> 128 | I88: =B100+C100 -> 0 | J88: =B101+C101 -> 0
B89: Regnm. værdi | C89: (kN/m) | D89: =G95*B95+C95*H95 -> 1.4 | E89: =G96*B96+C96*H96 -> 0 | F89: =G97*B97+C97*H97 -> 0 | G89: (kN) | H89: =G99*B99+C99*H99 -> 128 | I89: =G100*B100+C100*H100 -> 0 | J89: =G101*B101+C101*H101 -> 0
B90: Excentricitet, exc. | C90: (mm) | D90: =Kold!E22 -> 0 | E90: =Kold!E23 -> 0 | F90: =Kold!E24 -> 0 | G90: (mm) | H90: =Kold!E26 -> 0 | I90: =Kold!E27 -> 0 | J90: =Kold!E28 -> 0
B91: x1 | C91: (m) | D91: =Kold!F22 -> 0 | E91: =Kold!F23 -> 0 | F91: =Kold!F24 -> 0 | G91: (m) | H91: =Kold!F26 -> 0.26 | I91: =Kold!F27 -> 0 | J91: =Kold!F28 -> 0
B92: x2 | C92: (m) | D92: =Kold!G22 -> 1.7 | E92: =Kold!G23 -> 0 | F92: =Kold!G24 -> 0
A94: =Kold!B21 -> Lastparametre: | B94: =Kold!C21 -> gk [kN/m] | C94: =Kold!D21 -> qk [kN/m] | D94: =Kold!E21 -> e [mm] | E94: =Kold!F21 -> x1 [m] | F94: =Kold!G21 -> x2 [m] | G94: =Kold!H21 -> ϒg | H94: =Kold!I21 -> ϒq | I94: =Kold!J21 -> ψ1 | J94: =Kold!K21 -> ψ2
A95: =Kold!B22 -> p1 | B95: =Kold!C22 -> 1.4 | C95: =Kold!D22 -> 0 | D95: =Kold!E22 -> 0 | E95: =Kold!F22 -> 0 | F95: =Kold!G22 -> 1.7 | G95: =Kold!H22 -> 1 | H95: =Kold!I22 -> 0 | I95: =Kold!J22 -> 0 | J95: =Kold!K22 -> 0
A96: =Kold!B23 -> p2 | B96: =Kold!C23 -> 0 | C96: =Kold!D23 -> 0 | D96: =Kold!E23 -> 0 | E96: =Kold!F23 -> 0 | F96: =Kold!G23 -> 0 | G96: =Kold!H23 -> 1 | H96: =Kold!I23 -> 1.5 | I96: =Kold!J23 -> 0.6 | J96: =Kold!K23 -> 0.5
A97: =Kold!B24 -> p3 | B97: =Kold!C24 -> 0 | C97: =Kold!D24 -> 0 | D97: =Kold!E24 -> 0 | E97: =Kold!F24 -> 0 | F97: =Kold!G24 -> 0 | G97: =Kold!H24 -> 1 | H97: =Kold!I24 -> 1.5 | I97: =Kold!J24 -> 0.6 | J97: =Kold!K24 -> 0.5
A98: =Kold!B25 -> 0 | B98: =Kold!C25 -> Gk [kN] | C98: =Kold!D25 -> Qk [kN] | D98: =Kold!E25 -> e [mm] | E98: =Kold!F25 -> x1 [m] | F98: =Kold!G25 -> 0
A99: =Kold!B26 -> P1 | B99: =Kold!C26 -> 128 | C99: =Kold!D26 -> 0 | D99: =Kold!E26 -> 0 | E99: =Kold!F26 -> 0.26 | F99: =Kold!G26 -> 0 | G99: =Kold!H26 -> 1 | H99: =Kold!I26 -> 1.5 | I99: =Kold!J26 -> 0.6 | J99: =Kold!K26 -> 0.5
A100: =Kold!B27 -> P2 | B100: =Kold!C27 -> 0 | C100: =Kold!D27 -> 0 | D100: =Kold!E27 -> 0 | E100: =Kold!F27 -> 0 | F100: =Kold!G27 -> 0 | G100: =Kold!H27 -> 1 | H100: =Kold!I27 -> 1.5 | I100: =Kold!J27 -> 0.6 | J100: =Kold!K27 -> 0.5
A101: =Kold!B28 -> P3 | B101: =Kold!C28 -> 0 | C101: =Kold!D28 -> 0 | D101: =Kold!E28 -> 0 | E101: =Kold!F28 -> 0 | F101: =Kold!G28 -> 0 | G101: =Kold!H28 -> 1 | H101: =Kold!I28 -> 1.5 | I101: =Kold!J28 -> 0.6 | J101: =Kold!K28 -> 0.5

Sheet Brand
B2: Bruger: | C2: =Kold!D2 -> 0 | K2: =Kold!L2 -> Bjælkeberegning | M2: =Kold!N2 -> Betonelement-Foreningen maj 2021
B3: Sagsnavn: | C3: =Kold!D3 -> 0 | H3: Sag nr.: | I3: =Kold!J3 -> 0 | K3: =BD15 -> M_d > M_ud ! | AS3: 2
B4: Bygningsdel: | C4: =Kold!D4 -> 0 | H4: Dato: | I4: =Kold!J4 -> 00:00:00 | AS4: Tilslag: Kvartsholdigt
B5: Emne: | C5: Brandlastkombinationer | H5: Init: | I5: =Kold!J5 -> 0 | AS5: Tilslag: Søsand / granit
K7: Spændvidde | M7: Tværsnit | N7: h | O7: =Kold!P7 -> 400
K8: L | L8: =Kold!M8 -> 1.7 | N8: b | O8: =Kold!P8 -> 150 | BH8: BRUDLAST, MOMENTKAPACITET
K9: Længdearmering c' = | M9: =Kold!N9 -> 37 | N9: beff | O9: =Kold!P9 -> 150 | AR9: A_1 | AS9: =O11*0.25*PI()*M11^2 -> 157.0796327 | AT9: mm2 | AW9: a | AX9: y | AY9: EI | AZ9: s_b | BA9: s_o | BB9: s_2 | BC9: s_3 | BD9: s_m | BE9: w | BH9: L | BI9: h | BJ9: b | BK9: fck | BL9: fcd | BM9: Ecd | BN9: Ac | BO9: ac | BP9: Esc | BQ9: fyd_c | BR9: At | BS9: at | BT9: Est | BU9: fyd_t | BV9: At | BW9: at | BX9: Est | BY9: fyd_t | BZ9: Modenhed | CA9: 1+f | CB9: uterm | CC9: emax | CD9: e1 | CE9: k | CF9: Tilstand: | CG9: Nf | HA9: =Makro!A20 -> 1000000 | HD9: Bruger skal registreres | HE9: 1
M10: d (mm) | N10: c (mm) | O10: antal | AR10: A_2 | AS10: =O12*0.25*PI()*M12^2 -> 0 | AT10: mm2 | AV10: Langtid | AW10: "-" | AX10: "-" | AY10: "-" | AZ10: "-" | BA10: "-" | BB10: "-" | BC10: "-" | BD10: "-" | BE10: "-" | BH10: (m) | BI10: (m) | BJ10: (m) | BK10: (Mpa) | BL10: (Mpa) | BM10: (Mpa) | BN10: (m2) | BO10: (m) | BP10: (Mpa) | BQ10: (Mpa) | BR10: (m2) | BS10: (m) | BT10: (Mpa) | BU10: (Mpa) | BV10: (m2) | BW10: (m) | BX10: (Mpa) | BY10: (Mpa) | BZ10: (døgn) | CB10: (m)
K11: Tryklag t | M11: =Kold!N11 -> 10 | N11: =Kold!O11 -> 36 | O11: =Kold!P11 -> 2 | AR11: A_3 | AS11: =O13*0.25*PI()*M13^2 -> 226.1946711 | AT11: mm2 | AV11: Korttid | AW11: "-" | AX11: "-" | AY11: "-" | AZ11: "-" | BA11: "-" | BB11: "-" | BC11: "-" | BD11: "-" | BE11: "-" | BH11: =L8 -> 1.7 | BI11: =AT32/1000 -> 0.382382132 | BJ11: =AT33/1000 -> 0.1147642641 | BK11: =L21 -> 35 | BL11: =AT28 -> 35 | BM11: =22000*((BK11+8)/10)^0.3/L18 -> 34077.1462 | BN11: =AS9/1000000 -> 0.0001570796327 | BO11: =AT34/1000 -> 0.036 | BP11: =AT24*200000 -> 198872.0546 | BQ11: =AS24*O18/L19 -> 455.900682 | BR11: =AS11/1000000 -> 0.0002261946711 | BS11: =AT36/1000 -> 0.01938213204 | BT11: =AT26*200000 -> 180365.89 | BU11: =AS26*O18/L19 -> 350.6493337 | BV11: =AS10/1000000 -> 0 | BW11: =AT35/1000 -> -0.01761786796 | BX11: =AT25*200000 -> 200000 | BY11: =AS25*O19 -> 500 | CA11: 1 | CB11: 0 | CC11: =IF(CF11=1,Kold!CE11,MIN(2*CD11,Firsidig!$G$21)) -> 0.00780678634 | CD11: =IF(CF11=1,Kold!CF11,Firsidig!$F$21) -> 0.00390339317 | CE11: =Kold!CG11 -> 2.29645391 | CF11: =IF(AND(L23>0.1,MAX(AT38:AT40)>0),-1,1) -> -1 | CG11: 0
K12: Træklag 1 | M12: =Kold!N12 -> 0 | N12: =Kold!O12 -> 0 | O12: =Kold!P12 -> 0 | AR12: E_sk | AS12: 200000 | AT12: Mpa | AV12: Kar. last | AZ12: "-" | BA12: "-" | BB12: "-" | BC12: "-" | BD12: "-" | BE12: "-" | BH12: hc | BI12: e0 | BJ12: a' | BK12: b' | BL12: N' | BM12: tN' | BN12: t' | BO12: Nc | BP12: sac | BQ12: Nac | BR12: sat | BS12: Nat | BT12: sat | BU12: Nat | BV12: Mtot | BW12: N | BX12: N | BY12: A | BZ12: B1 | CA12: B2 | CB12: B2' | CC12: B3 | CD12: C1 | CE12: C2 | CF12: C2'
K13: Træklag 2 | M13: =Kold!N13 -> 12 | N13: =Kold!O13 -> 37 | O13: =Kold!P13 -> 2 | AR13: E_sd | AS13: =AS12/L19 -> 200000 | AT13: MPa
K14: Bøjler | M14: d (mm) | N14: a (mm) | O14: cotq | AR14: c_w | AS14: =(AS11*AT36+AS10*AT35)/(AS10+AS11) -> 19.38213204 | BH14: =0.5*(-(BZ14+CA14+CB14+CC14)+SQRT(MAX((BZ14+CA14+CB14+CC14)^2+4*BY14*(CD14+CE14+CF14),0)))/BY14 -> 0.1046608114 | BI14: =0.025*$CC$11 -> 0.0001951696585 | BJ14: =IF($CF$11=1,BI14/($CE$11*$CD$11),2^(1/3)*$CD$11/BI14) -> 25.198421 | BK14: =IF($CF$11=1,-($CE$11-2)*BI14/$CD$11,3*($CD$11/BI14)^2) -> 1200 | BL14: =IF(CF$11=1,0.5*(CE$11*BI14*BL$11/CD$11)*(1-CG13^2+(BJ14-BK14)*(BK14^2*(1-CG13^2)+2*BK14*(1-CG13)+2*LN((1-BK14)/(1-BK14*CG13)))/(BK14^3)),BL$11*BK14*(LN((1-BJ14+BJ14^2)/(1+BJ14)^2)/(6*BJ14)+ATAN((2-BJ14)/(BJ14*3^0.5))/(BJ14*3^0.5)-LN((CG13^2-BJ14*CG13+BJ14^2)/(CG13+BJ14)^2)/(6*BJ14)-ATAN((2*CG13-BJ14)/(BJ14*3^0.5))/(BJ14*3^0.5))) -> 1.312467189 | BM14: =IF(CF$11=1,(CE$11*BI14*BL$11/CD$11)*(1-CG13^3-(BJ14-BK14)*(-2*BK14^3*(1-CG13^3)-3*BK14^2*(1-CG13^2)-6*BK14*(1-CG13)-6*LN((1-BK14)/(1-BK14*CG13)))/(2*BK14^4))/3,BL$11*BK14*(LN((1+BJ14^3)/(BJ14^3+CG13^3)))/3) -> 0.8749726574 | BN14: =BM14/BL14 -> 0.6666625001 | BO14: =BL14*BH14*BJ$11 -> 0.01576446471 | BP14: =MAX(MIN(BQ$11,CA$11*BP$11*BI14*(BH14-BO$11)/BH14),-BQ$11) -> 25.46307779 | BQ14: =BP14*BN$11 -> 0.003999730906 | BR14: =MIN(BU$11,CA$11*BT$11*BI14*(BI$11-BH14-BS$11)/BH14) -> 86.89062178 | BS14: =BR14*BR$11 -> 0.01965419561 | BT14: =MIN($BY$11,CA$11*$BX$11*BI14*(BI$11-BH14-$BW$11)/BH14) -> 110.1486751 | BU14: =BT14*$BV$11 -> 0 | BV14: =(0.5*BI$11-BH14+BN14*BH14)*BO14+(0.5*BI$11-BO$11)*BQ14+(0.5*BI$11-BS$11)*BS14+(0.5*BI$11-BW$11)*BU14 -> 0.006461532948 | BW14: =BO14+BQ14-BS14-BU14 -> 0.00011 | BX14: =$CG$11+0.00001 -> 1e-05 | BY14: =BL14*BJ$11 -> 0.150624331 | BZ14: =IF(BP13<BQ$11,CA$11*BI14*BN$11*BP$11,BN$11*BQ$11) -> 0.006096856029 | CA14: =IF(BR13<BU$11,CA$11*BI14*BR$11*BT$11,-BR$11*BU$11) -> 0.007962493309 | CB14: =IF(BT13<BY$11,CA$11*BI14*$BV$11*$BX$11,-$BV$11*BY$11) -> 0 | CC14: =-(BX14+0.0001) -> -0.00011 | CD14: =IF(BP13<BQ$11,BO$11*CA$11*BI14*BN$11*BP$11,0) -> 0.000219486817 | CE14: =IF(BR13<BU$11,(BI$11-BS$11)*CA$11*BI14*BR$11*BT$11,0) -> 0.002890385071 | CF14: =IF(BT13<BY$11,(BI$11-$BW$11)*CA$11*BI14*$BV$11*$BX$11,0) -> 0 | CG14: =IF(BV14>BV13,BI14,CG13) -> 0.0001951696585 | CH14: =IF(BV14>BV13,BP14,CH13) -> 25.46307779 | CI14: =IF(BV14>BV13,BR14,CI13) -> 86.89062178 | CJ14: =IF(BV14>BV13,BT14,CJ13) -> 110.1486751
K15: Type 1 | M15: =Kold!N15 -> 6 | N15: =Kold!O15 -> 150 | O15: 2.5 | AR15: a_w | AS15: =AS14*2*AT33/(O12*M12+O13*M13) -> 185.3646766 | AV15: Fejltabel | BC15: Fejl | BD15: =BD16&BD17&BD18&BD19&BD20&BD21&BD22&BD23&BD24&BD25&BD26&BD27&BD28&BD29&BD30&BD31&BD32&BD33&BD34&BD35&BD36&BD37&BD38&BD39&BD40&BD41&BD42&BD43&BD44&BD45 -> M_d > M_ud ! | BE15: NB'er | BH15: =0.5*(-(BZ15+CA15+CB15+CC15)+SQRT(MAX((BZ15+CA15+CB15+CC15)^2+4*BY15*(CD15+CE15+CF15),0)))/BY15 -> 0.104540669 | BI15: =0.025*$CC$11+BI14 -> 0.000390339317 | BJ15: 12.5992105 | BK15: 300 | BL15: 2.624475064 | BM15: 1.749562646 | BN15: =BM15/BL15 -> 0.6666333659 | BO15: 0.03148722605 | BP15: 50.89546921 | BQ15: 0.007994641609 | BR15: 174.061871 | BS15: 0.03937186766 | BT15: 220.6402437 | BU15: =BT15*$BV$11 -> 0 | BV15: 0.01292787037 | BW15: =BO15+BQ15-BS15-BU15 -> 0.00011 | BX15: 1e-05 | BY15: 0.3011959493 | BZ15: =IF(2*BP14-BP13<BQ$11,CA$11*BI15*BN$11*BP$11,BN$11*BQ$11) -> 0.01219371206 | CA15: =IF(2*BR14-BR13<BU$11,CA$11*BI15*BR$11*BT$11,-BR$11*BU$11) -> 0.01592498662 | CB15: =IF(2*BT14-BT13<BY$11,CA$11*BI15*$BV$11*$BX$11,-$BV$11*BY$11) -> 0 | CC15: =-(BX15+0.0001) -> -0.00011 | CD15: =IF(2*BP14-BP13<BQ$11,BO$11*CA$11*BI15*BN$11*BP$11,0) -> 0.0004389736341 | CE15: =IF(2*BR14-BR13<BU$11,(BI$11-BS$11)*CA$11*BI15*BR$11*BT$11,0) -> 0.005780770142 | CF15: =IF(2*BT14-BT13<BY$11,(BI$11-$BW$11)*CA$11*BI15*$BV$11*$BX$11,0) -> 0 | CG15: 0.000390339317 | CH15: 50.89546921 | CI15: 174.061871 | CJ15: =IF(BV15>BV14,BT15,CJ14) -> 220.6402437
K16: Type 2 | M16: =Kold!N16 -> 6 | N16: =Kold!O16 -> 150 | O16: =O15 -> 2.5 | AR16: h_int | AS16: =O7-BH56*(1-BN56)*1000-(AS10*N12+AS11*N13)/(AS10+AS11) -> 349.922706 | AT16: mm | AV16: Negative inddata accepteres ikke; | BC16: =IF(MIN(O15,L18,L19,L23)<0,1,0) -> 0 | BD16: =IF(BC16=1,AV16,"") ->  | BH16: 0.1045157076 | BI16: 0.0005855089755 | BJ16: 8.399473666 | BK16: 133.3333333 | BL16: 3.934844387 | BM16: 2.622787645 | BN16: =BM16/BL16 -> 0.6665543504 | BO16: 0.04719715312 | BP16: 76.33362721 | BQ16: 0.01199045812 | BR16: 261.1803849 | BS16: 0.05907761125 | BT16: 331.0673758 | BU16: 0 | BV16: 0.01938971208 | BW16: 0.00011 | BX16: 1e-05 | BY16: 0.4515795203 | BZ16: =IF(2*BP15-BP14<BQ$11,CA$11*BI16*BN$11*BP$11,BN$11*BQ$11) -> 0.01829056809 | CA16: =IF(2*BR15-BR14<BU$11,CA$11*BI16*BR$11*BT$11,-BR$11*BU$11) -> 0.02388747993 | CB16: =IF(2*BT15-BT14<BY$11,CA$11*BI16*$BV$11*$BX$11,-$BV$11*BY$11) -> 0 | CC16: =-(BX16+0.0001) -> -0.00011 | CD16: =IF(2*BP15-BP14<BQ$11,BO$11*CA$11*BI16*BN$11*BP$11,0) -> 0.0006584604511 | CE16: =IF(2*BR15-BR14<BU$11,(BI$11-BS$11)*CA$11*BI16*BR$11*BT$11,0) -> 0.008671155214 | CF16: =IF(2*BT15-BT14<BY$11,(BI$11-$BW$11)*CA$11*BI16*$BV$11*$BX$11,0) -> 0 | CG16: 0.0005855089755 | CH16: 76.33362721 | CI16: 261.1803849 | CJ16: 331.0673758
K17: Partialkoefficienter | M17: Længdearmering | AR17: Min arm | AS17: =CEILING(AT33*AT32*0.45*SQRT(L21/10)/O18,1) -> 74 | AT17: mm2 | BH17: 0.1045279982 | BI17: 0.000780678634 | BJ17: 6.299605249 | BK17: 75 | BL17: 5.241619139 | BM17: 3.49301861 | BN17: 0.6664006898 | BO17: 0.0628788762 | BP17: 101.7844575 | BQ17: 0.0159882652 | BR17: 348.1830099 | BS17: 0.0787571414 | BT17: 441.3529056 | BU17: 0 | BV17: 0.02584167995 | BW17: 0.00011 | BX17: 1e-05 | BY17: 0.6015505631 | BZ17: 0.02438742412 | CA17: 0.03184997324 | CB17: 0 | CC17: -0.00011 | CD17: 0.0008779472682 | CE17: 0.01156154028 | CF17: 0 | CG17: 0.000780678634 | CH17: 101.7844575 | CI17: 348.1830099 | CJ17: 441.3529056
K18: gc | L18: 1 | N18: fyk | O18: =Kold!P18 -> 500 | AR18: Akt. arm | AS18: =CEILING((M12^2*O12+M13^2*O13)*PI()/4,1) -> 227 | AT18: mm2 | BH18: 0.08283151081 | BI18: 0.0009758482925 | BJ18: 5.0396842 | BK18: 48 | BL18: 6.542087758 | BM18: 4.357998645 | BN18: 0.6661479953 | BO18: 0.0621897233 | BP18: 109.7232475 | BQ18: 0.01723528741 | BR18: 350.6493337 | BS18: 0.0793150107 | BT18: 500 | BU18: 0 | BV18: 0.02647214816 | BW18: 0.00011 | BX18: 1e-05 | BY18: 0.7507978871 | BZ18: 0.03048428015 | CA18: -0.0793150107 | CB18: 0 | CC18: -0.00011 | CD18: 0.001097434085 | CE18: 0 | CF18: 0 | CG18: 0.0009758482925 | CH18: 109.7232475 | CI18: 350.6493337 | CJ18: 500
B19: =IF(AS21>L30," "&TEXT(AS21,"0,0")&" kNm > "," "&TEXT(AS21,"0,0")&" kNm < ") -> 28,5 kNm > | C19: =IF(AS21>L30,"!"," ") -> ! | K19: gs | L19: 1 | N19: fyd | O19: =O18/L19 -> 500 | BH19: 0.06891805389 | BI19: 0.001171017951 | BJ19: 4.199736833 | BK19: 33.33333333 | BL19: 7.83282282 | BM19: 5.214878238 | BN19: 0.6657725265 | BO19: 0.06195237844 | BP19: 111.2342317 | BQ19: 0.01747263226 | BR19: 350.6493337 | BS19: 0.0793150107 | BT19: 500 | BU19: 0 | BV19: 0.02675633503 | BW19: 0.00011 | BX19: 1e-05 | BY19: 0.8989281465 | BZ19: 0.03658113617 | CA19: -0.0793150107 | CB19: 0 | CC19: -0.00011 | CD19: 0.001316920902 | CE19: 0 | CF19: 0 | CG19: 0.001171017951 | CH19: 111.2342317 | CI19: 350.6493337 | CJ19: 500
K20: Beton | M20: Bøjlearmering | AR20: M_k | AS20: =MAX(Brand2!P31:BG31) -> 28.45219765 | AT20: kNm | AV20: x_2 skal være større end x_1; | BC20: =IF(OR(Brand2!D91>Brand2!D92,Brand2!E91>Brand2!E92,Brand2!F91>Brand2!F92),1,0) -> 0 | BD20: =IF(BC20=1,AV20,"") ->  | BH20: 0.05974589374 | BI20: 0.00136618761 | BJ20: 3.599774428 | BK20: 24.48979592 | BL20: 9.109743971 | BM20: 6.060271096 | BN20: 0.665251528 | BO20: 0.06246272251 | BP20: 107.9852805 | BQ20: 0.01696228819 | BR20: 350.6493337 | BS20: 0.0793150107 | BT20: 500 | BU20: 0 | BV20: 0.02695249266 | BW20: 0.00011 | BX20: 1e-05 | BY20: 1.045473063 | BZ20: 0.0426779922 | CA20: -0.0793150107 | CB20: 0 | CC20: -0.00011 | CD20: 0.001536407719 | CE20: 0 | CF20: 0 | CG20: 0.00136618761 | CH20: 107.9852805 | CI20: 350.6493337 | CJ20: 500
B21: Lastparametre: | C21: g [kN/m] | D21: q [kN/m] | E21: e [mm] | F21: x1 [m] | G21: x2 [m] | H21: ϒg | I21: ϒq | J21: ψ1 | K21: fck | L21: =Kold!M21 -> 35 | N21: fyk | O21: =Kold!P21 -> 500 | AR21: M_d | AS21: =MAX(Brand2!P32:BG32) -> 28.45219765 | AT21: kNm | AV21: x_2 skal være mindre end L; | BC21: =IF(OR(Brand2!D92>L8,Brand2!E92>L8,Brand2!F92>L8),1,0) -> 0 | BD21: =IF(BC21=1,AV21,"") ->  | BH21: 0.05339525907 | BI21: 0.001561357268 | BJ21: 3.149802625 | BK21: 18.75 | BL21: 10.36820738 | BM21: 6.890333401 | BN21: 0.6645636175 | BO21: 0.06353500219 | BP21: 101.158936 | BQ21: 0.01589000851 | BR21: 350.6493337 | BS21: 0.0793150107 | BT21: 500 | BU21: 0 | BV21: 0.02710238244 | BW21: 0.00011 | BX21: 1e-05 | BY21: 1.189899689 | BZ21: 0.04877484823 | CA21: -0.0793150107 | CB21: 0 | CC21: -0.00011 | CD21: 0.001755894536 | CE21: 0 | CF21: 0 | CG21: 0.001561357268 | CH21: 101.158936 | CI21: 350.6493337 | CJ21: 500
B22: p1 | C22: =Kold!C22 -> 1.4 | D22: =Kold!D22 -> 0 | E22: =Kold!E22 -> 0 | F22: =Kold!F22 -> 0 | G22: =Kold!G22 -> 1.7 | H22: =Kold!H22 -> 1 | I22: =Kold!I22 -> 0 | J22: =Kold!J22 -> 0 | K22: fcd | L22: =L21/L18 -> 35 | N22: fyd | O22: =O21/L19 -> 500 | AR22: maks V_d | AS22: =MAX(Brand2!P55:BD55) -> 109.6135294 | AT22: kN | AV22: x_1 skal være mindre end L; | BC22: =IF(OR(Brand2!H91>L8,Brand2!I91>L8,Brand2!J91>L8),1,0) -> 0 | BD22: =IF(BC22=1,AV22,"") ->  | BH22: 0.04882276495 | BI22: 0.001756526927 | BJ22: 2.799824555 | BK22: 14.81481481 | BL22: 11.60312277 | BM22: 7.700867298 | BN22: 0.6636892024 | BO22: 0.06501355803 | BP22: 91.74615719 | BQ22: 0.01441145267 | BR22: 350.6493337 | BS22: 0.0793150107 | BT22: 500 | BU22: 0 | BV22: 0.02722606949 | BW22: 0.00011 | BX22: 1e-05 | BY22: 1.331623846 | BZ22: 0.05487170426 | CA22: -0.0793150107 | CB22: 0 | CC22: -0.00011 | CD22: 0.001975381353 | CE22: 0 | CF22: 0 | CG22: 0.001756526927 | CH22: 91.74615719 | CI22: 350.6493337 | CJ22: 500
B23: p2 | C23: =Kold!C23 -> 0 | D23: =Kold!D23 -> 0 | E23: =Kold!E23 -> 0 | F23: =Kold!F23 -> 0 | G23: =Kold!G23 -> 0 | H23: =Kold!H23 -> 1 | I23: =Kold!I23 -> 1.5 | J23: =Kold!J23 -> 0.6 | K23: Brand, tid: | L23: 60 | M23: Stålreduktioner | AR23: Længdearmering | AS23: zs,0.2 | AT23: Espk / Esk | BH23: 0.0454246061 | BI23: 0.001951696585 | BJ23: 2.5198421 | BK23: 12 | BL23: 12.80909649 | BM23: 8.487447007 | BN23: 0.6626109041 | BO23: 0.06677537618 | BP23: 80.53007448 | BQ23: 0.01264963452 | BR23: 350.6493337 | BS23: 0.0793150107 | BT23: 500 | BU23: 0 | BV23: 0.02733360922 | BW23: 0.00011 | BX23: 1e-05 | BY23: 1.470026532 | BZ23: 0.06096856029 | CA23: -0.0793150107 | CB23: 0 | CC23: -0.00011 | CD23: 0.00219486817 | CE23: 0 | CF23: 0 | CG23: 0.001951696585 | CH23: 80.53007448 | CI23: 350.6493337 | CJ23: 500
B24: p3 | C24: =Kold!C24 -> 0 | D24: =Kold!D24 -> 0 | E24: =Kold!E24 -> 0 | F24: =Kold!F24 -> 0 | G24: =Kold!G24 -> 0 | H24: =Kold!H24 -> 1 | I24: =Kold!I24 -> 1.5 | J24: =Kold!J24 -> 0.6 | K24: Bund: | L24: =IF(Makro!A1=1,"NEJ","JA") -> JA | N24: fsy,q / fyk | O24: Es,q / Es | AR24: Tryklag | AS24: =Firsidig!E47 -> 0.911801364 | AT24: =Firsidig!E46 -> 0.9943602728 | AV24: Grænse forskydningstrykbrud (V_ud_0) overskredet; | BC24: 0 | BD24: =IF(BE24=1,AV24,"") ->  | BE24: =IF(AS22>O30,1,0) -> 0 | BH24: 0.04283365525 | BI24: 0.002146866244 | BJ24: 2.290765545 | BK24: 9.917355372 | BL24: 13.98059596 | BM24: 9.245563277 | BN24: 0.6613139599 | BO24: 0.06872543506 | BP24: 68.1156141 | BQ24: 0.01069957564 | BR24: 350.6493337 | BS24: 0.0793150107 | BT24: 500 | BU24: 0 | BV24: 0.02743018422 | BW24: 0.00011 | BX24: 1e-05 | BY24: 1.604472807 | BZ24: 0.06706541632 | CA24: -0.0793150107 | CB24: 0 | CC24: -0.00011 | CD24: 0.002414354988 | CE24: 0 | CF24: 0 | CG24: 0.002146866244 | CH24: 68.1156141 | CI24: 350.6493337 | CJ24: 500
C25: G [kN] | D25: Q [kN] | E25: e [mm] | F25: x1 [m] | K25: Sider: | L25: =IF(Makro!A2=1,"NEJ","JA") -> JA | M25: Tryklag t: | N25: =AS24 -> 0.911801364 | O25: 0.9943602728 | AR25: Træklag 1 | AS25: =Firsidig!E35 -> 1 | AT25: =Firsidig!E34 -> 1 | BH25: 0.04081716814 | BI25: 0.002342035902 | BJ25: 2.099868416 | BK25: 8.333333333 | BL25: 15.11212822 | BM25: 9.970779317 | BN25: 0.6597865748 | BO25: 0.07079053203 | BP25: 54.96879845 | BQ25: 0.00863447867 | BR25: 350.6493337 | BS25: 0.0793150107 | BT25: 500 | BU25: 0 | BV25: 0.02751850251 | BW25: 0.00011 | BX25: 1e-05 | BY25: 1.734332274 | BZ25: 0.07316227235 | CA25: -0.0793150107 | CB25: 0 | CC25: -0.00011 | CD25: 0.002633841805 | CE25: 0 | CF25: 0 | CG25: 0.002342035902 | CH25: 54.96879845 | CI25: 350.6493337 | CJ25: 500
B26: P1 | C26: =Kold!C26 -> 128 | D26: =Kold!D26 -> 0 | E26: =Kold!E26 -> 0 | F26: =Kold!F26 -> 0.26 | G26: =Kold!G26 -> 0 | H26: =Kold!H26 -> 1 | I26: =Kold!I26 -> 1.5 | J26: =Kold!J26 -> 0.6 | K26: Betonreduktioner | M26: Træklag 1: | N26: 1 | O26: 1 | AR26: Træklag 2 | AS26: =Firsidig!E41 -> 0.7012986675 | AT26: =Firsidig!E40 -> 0.9018294499 | AV26: Partialkoefficienter skal være større end 1; | BC26: =IF(MIN(L18:L19)<1,1,0) -> 0 | BD26: =IF(BC26=1,AV26,"") ->  | BH26: 0.03922209397 | BI26: 0.002537205561 | BJ26: 1.938340077 | BK26: 7.100591716 | BL26: 16.19842279 | BM26: 10.65888934 | BN26: 0.6580201962 | BO26: 0.07291387544 | BP26: 41.45117452 | BQ26: 0.006511135267 | BR26: 350.6493337 | BS26: 0.0793150107 | BT26: 500 | BU26: 0 | BV26: 0.02759997326 | BW26: 0.00011 | BX26: 1e-05 | BY26: 1.85900007 | BZ26: 0.07925912838 | CA26: -0.0793150107 | CB26: 0 | CC26: -0.00011 | CD26: 0.002853328622 | CE26: 0 | CF26: 0 | CG26: 0.002537205561 | CH26: 41.45117452 | CI26: 350.6493337 | CJ26: 500
B27: P2 | C27: =Kold!C27 -> 0 | D27: =Kold!D27 -> 0 | E27: =Kold!E27 -> 0 | F27: =Kold!F27 -> 0 | G27: =Kold!G27 -> 0 | H27: =Kold!H27 -> 1 | I27: =Kold!I27 -> 1.5 | J27: =Kold!J27 -> 0.6 | K27: Randzone: | L27: =Firsidig!E23*1000 -> 17.61786796 | M27: Træklag 2: | N27: 0.7012986675 | O27: 0.9018294499 | AR27: Bøjler | AS27: zs,0.2 | AT27: =Firsidig!E49 -> 0.7595750622 | AV27: M_d > M_ud ! | BD27: =IF(BE27=1,AV27,"") -> M_d > M_ud ! | BE27: =IF(AS21>L30,1,0) -> 1 | BH27: 0.03794444936 | BI27: 0.002732375219 | BJ27: 1.799887214 | BK27: 6.12244898 | BL27: 17.23460783 | BM27: 11.30606973 | BN27: 0.6560096891 | BO27: 0.07505097465 | BP27: 27.84597836 | BQ27: 0.004374036053 | BR27: 350.6493337 | BS27: 0.0793150107 | BT27: 500 | BU27: 0 | BV27: 0.02767531004 | BW27: 0.00011 | BX27: 1e-05 | BY27: 1.977917084 | BZ27: 0.08535598441 | CA27: -0.0793150107 | CB27: 0 | CC27: -0.00011 | CD27: 0.003072815439 | CE27: 0 | CF27: 0 | CG27: 0.002732375219 | CH27: 27.84597836 | CI27: 350.6493337 | CJ27: 500
B28: P3 | C28: =Kold!C28 -> 0 | D28: =Kold!D28 -> 0 | E28: =Kold!E28 -> 0 | F28: =Kold!F28 -> 0 | G28: =Kold!G28 -> 0 | H28: =Kold!H28 -> 1 | I28: =Kold!I28 -> 1.5 | J28: =Kold!J28 -> 0.6 | K28: kc,M | L28: =Firsidig!E21 -> 1 | M28: Bøjlearmering: | N28: =AT27 -> 0.7595750622 | AR28: Beton | AS28: Red f_cd | AT28: =AT29*L21/L18 -> 35 | BH28: 0.03691148051 | BI28: 0.002927544878 | BJ28: 1.679894733 | BK28: 5.333333333 | BL28: 18.21636854 | BM28: 11.90901281 | BN28: 0.6537533968 | BO28: 0.07716670298 | BP28: 14.37683348 | BQ28: 0.002258307723 | BR28: 350.6493337 | BS28: 0.0793150107 | BT28: 500 | BU28: 0 | BV28: 0.02774485373 | BW28: 0.00011 | BX28: 1e-05 | BY28: 2.090588129 | BZ28: 0.09145284044 | CA28: -0.0793150107 | CB28: 0 | CC28: -0.00011 | CD28: 0.003292302256 | CE28: 0 | CF28: 0 | CG28: 0.002927544878 | CH28: 14.37683348 | CI28: 350.6493337 | CJ28: 500
C29: Jævnt fordelte laste [kN/m] | F29: Punktlaste [kN] | I29: Kontrolparametre | K29: Momentkapacitet | M29: Forskydningskapacitet | AS29: zc,M = | AT29: =L28 -> 1 | BH29: 0.03607090838 | BI29: 0.003122714536 | BJ29: 1.574901312 | BK29: 4.6875 | BL29: 19.14007778 | BM29: 12.46503462 | BN29: 0.6512530808 | BO29: 0.079233247 | BP29: 1.220805684 | BQ29: 0.0001917637084 | BR29: 350.6493337 | BS29: 0.0793150107 | BT29: 500 | BU29: 0 | BV29: 0.02780875242 | BW29: 0.00011 | BX29: 1e-05 | BY29: 2.196596941 | BZ29: 0.09754969647 | CA29: -0.0793150107 | CB29: 0 | CC29: -0.00011 | CD29: 0.003511789073 | CE29: 0 | CF29: 0 | CG29: 0.003122714536 | CH29: 1.220805684 | CI29: 350.6493337 | CJ29: 500
C30: p1 | D30: p2 | E30: p3 | F30: P1 | G30: P2 | H30: P3 | I30: M (kNm) | J30: =L30 -> 28.16564772 | K30: MRd | L30: =BV56*1000 -> 28.16564772 | M30: v/ trykbrud i krop: | N30: VRd,0 | O30: =BJ64 -> 254.4533366 | BH30: 0.03538424192 | BI30: 0.003317884195 | BJ30: 1.482260059 | BK30: 4.152249135 | BL30: 20.00289169 | BM30: 12.97215021 | BN30: 0.6485137454 | BO30: 0.0812286724 | BP30: -11.48246696 | BQ30: -0.001803661692 | BR30: 350.6493337 | BS30: 0.0793150107 | BT30: 500 | BU30: 0 | BV30: 0.02786706466 | BW30: 0.00011 | BX30: 1e-05 | BY30: 2.295617144 | BZ30: 0.1036465525 | CA30: -0.0793150107 | CB30: 0 | CC30: -0.00011 | CD30: 0.00373127589 | CE30: 0 | CF30: 0 | CG30: 0.003317884195 | CH30: -11.48246696 | CI30: 350.6493337 | CJ30: 500
B31: Regnm. værdi | C31: =Brand2!D89 -> 1.4 | D31: =Brand2!E89 -> 0 | E31: =Brand2!F89 -> 0 | F31: =Brand2!H89 -> 128 | G31: =Brand2!I89 -> 0 | H31: =Brand2!J89 -> 0 | I31: x (mm) | J31: =BH56*1000 -> 32.82565353 | K31: =INDEX(AS4:AS5,Makro!A3,1) -> Tilslag: Søsand / granit | M31: v/ type 1 bøjler: | N31: VRd,1 | O31: =BJ65 -> 125.2517936 | Q31: NB: Resultaterne skal altid kontrolleres af ansvarlig statiker | BH31: 0.03482250426 | BI31: 0.003513053853 | BJ31: 1.399912278 | BK31: 3.703703704 | BL31: 20.80280591 | BM31: 13.42911318 | BN31: 0.6455433578 | BO31: 0.08313589822 | BP31: -23.62424368 | BQ31: -0.003710887519 | BR31: 350.6493337 | BS31: 0.0793150107 | BT31: 500 | BU31: 0 | BV31: 0.02791981981 | BW31: 0.00011 | BX31: 1e-05 | BY31: 2.387418711 | BZ31: 0.1097434085 | CA31: -0.0793150107 | CB31: 0 | CC31: -0.00011 | CD31: 0.003950762707 | CE31: 0 | CF31: 0 | CG31: 0.003513053853 | CH31: -23.62424368 | CI31: 350.6493337 | CJ31: 500
I32: e0 (o/oo) | J32: =BI56*1000 -> 5.659920097 | K32: =INDEX(AR33:AR35,Makro!A4,1) -> Stål: Bratkølet | M32: v/ type 2 bøjler: | N32: VRd,2 | O32: =BJ66 -> 125.2517936 | AR32: 2 | AS32: h_red | AT32: =O7-L27*AT39 -> 382.382132 | BH32: 0.03436343281 | BI32: 0.003708223512 | BJ32: 1.326232684 | BK32: 3.324099723 | BL32: 21.53867186 | BM32: 13.83541941 | BN32: 0.6423524861 | BO32: 0.08494193264 | BP32: -35.12181586 | BQ32: -0.005516921934 | BR32: 350.6493337 | BS32: 0.0793150107 | BT32: 500 | BU32: 0 | BV32: 0.02796705305 | BW32: 0.00011 | BX32: 1e-05 | BY32: 2.471869825 | BZ32: 0.1158402646 | CA32: -0.0793150107 | CB32: 0 | CC32: -0.00011 | CD32: 0.004170249524 | CE32: 0 | CF32: 0 | CG32: 0.003708223512 | CH32: -35.12181586 | CI32: 350.6493337 | CJ32: 500
I33: sst (MPa) | J33: =IF(AND(AS11=0,AS10=0),0,BR56) -> 350.6493337 | K33: Forskydningskraftens største excentricitet, exc.: | O33: =MAX(Brand2!P60:BD60) -> 0 | Q33: Vejledning | T33: Betonelementbyggeriers statik | AR33: Stål: Varmvalset | AS33: b_red | AT33: =O8-2*L27*AT40 -> 114.7642641 | AV33: Forskydningsarmering bør vurderes nærmere ! | BD33: =IF(BE33=1,AV33,"") ->  | BE33: =IF(Brand2!I68=1,1,0) -> 0 | BH33: 0.03398960379 | BI33: 0.00390339317 | BJ33: 1.25992105 | BK33: 3 | BL33: 22.21017568 | BM33: 14.19127789 | BN33: 0.6389538784 | BO33: 0.08663727262 | BP33: -45.91468537 | BQ33: -0.007212261913 | BR33: 350.6493337 | BS33: 0.0793150107 | BT33: 500 | BU33: 0 | BV33: 0.02800882478 | BW33: 0.00011 | BX33: 1e-05 | BY33: 2.548934467 | BZ33: 0.1219371206 | CA33: -0.0793150107 | CB33: 0 | CC33: -0.00011 | CD33: 0.004389736341 | CE33: 0 | CF33: 0 | CG33: 0.00390339317 | CH33: -45.91468537 | CI33: 350.6493337 | CJ33: 500
I34: z (mm) | J34: =AS16 -> 349.922706 | K34: Forankringskrav til hovedarmering over lejer, Na : | O34: =CD66 -> 137.0169118 | T34: Polyteknisk Forlag 2011, eller www.bef.dk | AR34: Stål: Bratkølet | AS34: a_t_red | AT34: =N11 -> 36 | BH34: 0.03368715017 | BI34: 0.004098562829 | BJ34: 1.199924809 | BK34: 2.721088435 | BL34: 22.81778522 | BM34: 14.4975539 | BN34: 0.6353620107 | BO34: 0.08821540585 | BP34: -55.96139358 | BQ34: -0.008790395148 | BR34: 350.6493337 | BS34: 0.0793150107 | BT34: 500 | BU34: 0 | BV34: 0.02804523007 | BW34: 0.00011 | BX34: 1e-05 | BY34: 2.618666329 | BZ34: 0.1280339766 | CA34: -0.0793150107 | CB34: 0 | CC34: -0.00011 | CD34: 0.004609223158 | CE34: 0 | CF34: 0 | CG34: 0.004098562829 | CH34: -55.96139358 | CI34: 350.6493337 | CJ34: 500
B35: Note: | AR35: Stål: Kolddeformeret | AS35: a_1_red | AT35: =N12-L27*AT39 -> -17.61786796 | BD35: =IF(BC35=1,AV35,"") ->  | BH35: 0.03344486892 | BI35: 0.004293732487 | BJ35: 1.145382773 | BK35: 2.479338843 | BL35: 23.36267207 | BM35: 14.75569145 | BN35: 0.6315926279 | BO35: 0.08967237809 | BP35: -65.23676691 | BQ35: -0.01024736738 | BR35: 350.6493337 | BS35: 0.0793150107 | BT35: 500 | BU35: 0 | BV35: 0.0280764016 | BW35: 0.00011 | BX35: 1e-05 | BY35: 2.681199866 | BZ35: 0.1341308326 | CA35: -0.0793150107 | CB35: 0 | CC35: -0.00011 | CD35: 0.004828709975 | CE35: 0 | CF35: 0 | CG35: 0.004293732487 | CH35: -65.23676691 | CI35: 350.6493337 | CJ35: 500
AR36: =IF(Makro!A4=1,"Q",IF(Makro!A4=2,"AC","C")) -> AC | AS36: a_2_red | AT36: =N13-L27*AT39 -> 19.38213204 | BH36: 0.03325358846 | BI36: 0.004488902146 | BJ36: 1.095583522 | BK36: 2.268431002 | BL36: 23.84661655 | BM36: 14.96762224 | BN36: 0.6276623021 | BO36: 0.09100640569 | BP36: -73.72945037 | BQ36: -0.01158139498 | BR36: 350.6493337 | BS36: 0.0793150107 | BT36: 500 | BU36: 0 | BV36: 0.02810250843 | BW36: 0.00011 | BX36: 1e-05 | BY36: 2.736739399 | BZ36: 0.1402276887 | CA36: -0.0793150107 | CB36: 0 | CC36: -0.00011 | CD36: 0.005048196792 | CE36: 0 | CF36: 0 | CG36: 0.004488902146 | CH36: -73.72945037 | CI36: 350.6493337 | CJ36: 500
BH37: 0.03310571281 | BI37: 0.004684071804 | BJ37: 1.049934208 | BK37: 2.083333333 | BL37: 24.27190344 | BM37: 15.13566829 | BN37: 0.6235880232 | BO37: 0.09221752352 | BP37: -81.43966594 | BQ37: -0.01279251281 | BR37: 350.6493337 | BS37: 0.0793150107 | BT37: 500 | BU37: 0 | BV37: 0.02812375213 | BW37: 0.00011 | BX37: 1e-05 | BY37: 2.785547136 | BZ37: 0.1463245447 | CA37: -0.0793150107 | CB37: 0 | CC37: -0.00011 | CD37: 0.005267683609 | CE37: 0 | CF37: 0 | CG37: 0.004684071804 | CH37: -81.43966594 | CI37: 350.6493337 | CJ37: 500
AR38: Brand, trykside | AS38: 1 | AT38: =AS38-1 -> 0 | BH38: 0.03299488788 | BI38: 0.004879241463 | BJ38: 1.00793684 | BK38: 1.92 | BL38: 24.64121529 | BM38: 15.26244439 | BN38: 0.6193868366 | BO38: 0.09330726424 | BP38: -88.37717087 | BQ38: -0.01388225354 | BR38: 350.6493337 | BS38: 0.0793150107 | BT38: 500 | BU38: 0 | BV38: 0.02814036147 | BW38: 0.00011 | BX38: 1e-05 | BY38: 2.827930938 | BZ38: 0.1524214007 | CA38: -0.0793150107 | CB38: 0 | CC38: -0.00011 | CD38: 0.005487170426 | CE38: 0 | CF38: 0 | CG38: 0.004879241463 | CH38: -88.37717087 | CI38: 350.6493337 | CJ38: 500
AR39: Brand, trækside | AS39: 2 | AT39: =Makro!A1-1 -> 1 | BH39: 0.03291575309 | BI39: 0.005074411121 | BJ39: 0.9691700384 | BK39: 1.775147929 | BL39: 24.957529 | BM39: 15.35076548 | BN39: 0.6150755343 | BO39: 0.09427836807 | BP39: -94.55940984 | BQ39: -0.01485335736 | BR39: 350.6493337 | BS39: 0.0793150107 | BT39: 500 | BU39: 0 | BV39: 0.02815258643 | BW39: 0.00011 | BX39: 1e-05 | BY39: 2.864232448 | BZ39: 0.1585182568 | CA39: -0.0793150107 | CB39: 0 | CC39: -0.00011 | CD39: 0.005706657243 | CE39: 0 | CF39: 0 | CG39: 0.005074411121 | CH39: -94.55940984 | CI39: 350.6493337 | CJ39: 500
AR40: Brand, sider | AS40: 2 | AT40: =Makro!A2-1 -> 1 | BH40: 0.03286375366 | BI40: 0.00526958078 | BJ40: 0.9332748518 | BK40: 1.646090535 | BL40: 25.22402003 | BM40: 15.40356245 | BN40: 0.610670402 | BO40: 0.09513452307 | BP40: -100.0098618 | BQ40: -0.01570951236 | BR40: 350.6493337 | BS40: 0.0793150107 | BT40: 500 | BU40: 0 | BV40: 0.02816069211 | BW40: 0.00011 | BX40: 1e-05 | BY40: 2.894816096 | BZ40: 0.1646151128 | CA40: -0.0793150107 | CB40: 0 | CC40: -0.00011 | CD40: 0.00592614406 | CE40: 0 | CF40: 0 | CG40: 0.00526958078 | CH40: -100.0098618 | CI40: 350.6493337 | CJ40: 500
BH41: 0.03283499645 | BI41: 0.005464750438 | BJ41: 0.8999436071 | BK41: 1.530612245 | BL41: 25.4439769 | BM41: 15.42380858 | BN41: 0.6061870217 | BO41: 0.09588013622 | BP41: -104.7565826 | BQ41: -0.01645512552 | BR41: 350.6493337 | BS41: 0.0793150107 | BT41: 500 | BU41: 0 | BV41: 0.02816495298 | BW41: 0.00011 | BX41: 1e-05 | BY41: 2.920059284 | BZ41: 0.1707119688 | CA41: -0.0793150107 | CB41: 0 | CC41: -0.00011 | CD41: 0.006145630877 | CE41: 0 | CF41: 0 | CG41: 0.005464750438 | CH41: -104.7565826 | CI41: 350.6493337 | CJ41: 500
AT42: NEJ | BH42: 0.03282613752 | BI42: 0.005659920097 | BJ42: 0.8689110689 | BK42: 1.426872771 | BL42: 25.6207276 | BM42: 15.41445778 | BN42: 0.601640126 | BO42: 0.09652013481 | BP42: -108.8309401 | BQ42: -0.0170951241 | BR42: 350.6493337 | BS42: 0.0793150107 | BT42: 500 | BU42: 0 | BV42: 0.02816564763 | BW42: 0.00011 | BX42: 1e-05 | BY42: 2.940343948 | BZ42: 0.1768088248 | CA42: -0.0793150107 | CB42: 0 | CC42: -0.00011 | CD42: 0.006365117694 | CE42: 0 | CF42: 0 | CG42: 0.005659920097 | CH42: -108.8309401 | CI42: 350.6493337 | CJ42: 500
AT43: JA | BH43: 0.03283429328 | BI43: 0.005855089755 | BJ43: 0.8399473666 | BK43: 1.333333333 | BL43: 25.75757834 | BM43: 15.37839469 | BN43: 0.5970434989 | BO43: 0.09705979695 | BP43: -112.2665361 | BQ43: -0.01763478625 | BR43: 350.6493337 | BS43: 0.0793150107 | BT43: 500 | BU43: 0 | BV43: 0.02816305423 | BW43: 0.00011 | BX43: 1e-05 | BY43: 2.956049522 | BZ43: 0.1829056809 | CA43: -0.0793150107 | CB43: 0 | CC43: -0.00011 | CD43: 0.006584604511 | CE43: 0 | CF43: 0 | CG43: 0.005659920097 | CH43: -108.8309401 | CI43: 350.6493337 | CJ43: 500
BH44: 0.03285693185 | BI44: 0.006050259414 | BJ44: 0.8128522903 | BK44: 1.248699272 | BL44: 25.8578558 | BM44: 15.31839654 | BN44: 0.5924078416 | BO44: 0.09750484411 | BP44: -115.0997942 | BQ44: -0.0180798334 | BR44: 350.6493337 | BS44: 0.0793150107 | BT44: 500 | BU44: 0 | BV44: 0.02815744682 | BW44: 0.00011 | BX44: 1e-05 | BY44: 2.967557791 | BZ44: 0.1890025369 | CA44: -0.0793150107 | CB44: 0 | CC44: -0.00011 | CD44: 0.006804091329 | CE44: 0 | CF44: 0 | CG44: 0.005659920097 | CH44: -108.8309401 | CI44: 350.6493337 | CJ44: 500
BH45: 0.03289192458 | BI45: 0.006245429072 | BJ45: 0.7874506562 | BK45: 1.171875 | BL45: 25.92460393 | BM45: 15.23710325 | BN45: 0.5877468098 | BO45: 0.09786064907 | BP45: -117.364919 | BQ45: -0.01843563837 | BR45: 350.6493337 | BS45: 0.0793150107 | BT45: 500 | BU45: 0 | BV45: 0.02814909197 | BW45: 0.00011 | BX45: 1e-05 | BY45: 2.975218091 | BZ45: 0.1950993929 | CA45: -0.0793150107 | CB45: 0 | CC45: -0.00011 | CD45: 0.007023578146 | CE45: 0 | CF45: 0 | CG45: 0.005659920097 | CH45: -108.8309401 | CI45: 350.6493337 | CJ45: 500
BH46: 0.03293739095 | BI46: 0.006440598731 | BJ46: 0.7635885151 | BK46: 1.101928375 | BL46: 25.96081232 | BM46: 15.13699947 | BN46: 0.583071103 | BO46: 0.0981327904 | BP46: -119.0974246 | BQ46: -0.0187077797 | BR46: 350.6493337 | BS46: 0.0793150107 | BT46: 500 | BU46: 0 | BV46: 0.02813824651 | BW46: 0.00011 | BX46: 1e-05 | BY46: 2.97937352 | BZ46: 0.201196249 | CA46: -0.0793150107 | CB46: 0 | CC46: -0.00011 | CD46: 0.007243064963 | CE46: 0 | CF46: 0 | CG46: 0.005659920097 | CH46: -108.8309401 | CI46: 350.6493337 | CJ46: 500
BH47: 0.03299169412 | BI47: 0.006635768389 | BJ47: 0.7411300293 | BK47: 1.038062284 | BL47: 25.96931419 | BM47: 15.02040224 | BN47: 0.5783904086 | BO47: 0.09832677019 | BP47: -120.3323382 | BQ47: -0.01890175949 | BR47: 350.6493337 | BS47: 0.0793150107 | BT47: 500 | BU47: 0 | BV47: 0.02812515576 | BW47: 0.00011 | BX47: 1e-05 | BY47: 2.980349231 | BZ47: 0.207293105 | CA47: -0.0793150107 | CB47: 0 | CC47: -0.00011 | CD47: 0.00746255178 | CE47: 0 | CF47: 0 | CG47: 0.005659920097 | CH47: -108.8309401 | CI47: 350.6493337 | CJ47: 500
BH48: 0.0330534078 | BI48: 0.006830938048 | BJ48: 0.7199548857 | BK48: 0.9795918367 | BL48: 25.95277425 | BM48: 14.88945536 | BN48: 0.5737134388 | BO48: 0.09844795678 | BP48: -121.103836 | BQ48: -0.01902294607 | BR48: 350.6493337 | BS48: 0.0793150107 | BT48: 500 | BU48: 0 | BV48: 0.02811005224 | BW48: 0.00011 | BX48: 1e-05 | BY48: 2.978451038 | BZ48: 0.213389961 | CA48: -0.0793150107 | CB48: 0 | CC48: -0.00011 | CD48: 0.007682038597 | CE48: 0 | CF48: 0 | CG48: 0.005659920097 | CH48: -108.8309401 | CI48: 350.6493337 | CJ48: 500
BH49: 0.03312128819 | BI49: 0.007026107706 | BJ49: 0.6999561388 | BK49: 0.9259259259 | BL49: 25.91368252 | BM49: 14.74612866 | BN49: 0.5690479787 | BO49: 0.09850154203 | BP49: -121.4449703 | BQ49: -0.01907653133 | BR49: 350.6493337 | BS49: 0.0793150107 | BT49: 500 | BU49: 0 | BV49: 0.02809315494 | BW49: 0.00011 | BX49: 1e-05 | BY49: 2.973964704 | BZ49: 0.219486817 | CA49: -0.0793150107 | CB49: 0 | CC49: -0.00011 | CD49: 0.007901525414 | CE49: 0 | CF49: 0 | CG49: 0.005659920097 | CH49: -108.8309401 | CI49: 350.6493337 | CJ49: 500
BH50: 0.03319425011 | BI50: 0.007221277365 | BJ50: 0.6810384053 | BK50: 0.8765522279 | BL50: 25.85435278 | BM50: 14.59222107 | BN50: 0.5644009424 | BO50: 0.09849251074 | BP50: -121.3874753 | BQ50: -0.01906750004 | BR50: 350.6493337 | BS50: 0.0793150107 | BT50: 500 | BU50: 0 | BV50: 0.02807466886 | BW50: 0.00011 | BX50: 1e-05 | BY50: 2.96715577 | BZ50: 0.2255836731 | CA50: -0.0793150107 | CB50: 0 | CC50: -0.00011 | CD50: 0.008121012231 | CE50: 0 | CF50: 0 | CG50: 0.005659920097 | CH50: -108.8309401 | CI50: 350.6493337 | CJ50: 500
BH51: 0.03327134663 | BI51: 0.007416447023 | BJ51: 0.663116342 | BK51: 0.8310249307 | BL51: 25.77692475 | BM51: 14.42936651 | BN51: 0.5597784318 | BO51: 0.09842561993 | BP51: -120.9616352 | BQ51: -0.01900060922 | BR51: 350.6493337 | BS51: 0.0793150107 | BT51: 500 | BU51: 0 | BV51: 0.02805478497 | BW51: 0.00011 | BX51: 1e-05 | BY51: 2.958269799 | BZ51: 0.2316805291 | CA51: -0.0793150107 | CB51: 0 | CC51: -0.00011 | CD51: 0.008340499048 | CE51: 0 | CF51: 0 | CG51: 0.005659920097 | CH51: -108.8309401 | CI51: 350.6493337 | CJ51: 500
BH52: 0.03335175154 | BI52: 0.007611616682 | BJ52: 0.6461133589 | BK52: 0.7889546351 | BL52: 25.68336898 | BM52: 14.25904172 | BN52: 0.5551857988 | BO52: 0.09830538625 | BP52: -120.1962038 | BQ52: -0.01888037554 | BR52: 350.6493337 | BS52: 0.0793150107 | BT52: 500 | BU52: 0 | BV52: 0.02803368031 | BW52: 0.00011 | BX52: 1e-05 | BY52: 2.947532939 | BZ52: 0.2377773851 | CA52: -0.0793150107 | CB52: 0 | CC52: -0.00011 | CD52: 0.008559985865 | CE52: 0 | CF52: 0 | CG52: 0.005659920097 | CH52: -108.8309401 | CI52: 350.6493337 | CJ52: 500
BH53: 0.03343474421 | BI53: 0.00780678634 | BJ53: 0.6299605249 | BK53: 0.75 | BL53: 25.57549361 | BM53: 14.08257539 | BN53: 0.5506277065 | BO53: 0.09813607982 | BP53: -119.1183656 | BQ53: -0.01871106911 | BR53: 350.6493337 | BS53: 0.0793150107 | BT53: 500 | BU53: 0 | BV53: 0.02801151837 | BW53: 0.00011 | BX53: 1e-05 | BY53: 2.935152702 | BZ53: 0.2438742412 | CA53: -0.0793150107 | CB53: 0 | CC53: -0.00011 | CD53: 0.008779472682 | CE53: 0 | CF53: 0 | CG53: 0.005659920097 | CH53: -108.8309401 | CI53: 350.6493337 | CJ53: 500
BP54: =CH53 -> -108.8309401 | BQ54: -0.0170951241 | BR54: =CI53 -> 350.6493337 | BS54: 0.0793150107 | BT54: =CJ53 -> 500 | BU54: 0
BH55: 0.03282565353 | BI55: =CG53 -> 0.005659920097 | BJ55: =IF($CF$11=1,BI55/($CE$11*$CD$11),2^(1/3)*$CD$11/BI55) -> 0.8689110689 | BK55: =IF($CF$11=1,-($CE$11-2)*BI55/$CD$11,3*($CD$11/BI55)^2) -> 1.426872771 | BL55: =IF(CF$11=1,0.5*(CE$11*BI55*BL$11/CD$11)*(1-CG54^2+(BJ55-BK55)*(BK55^2*(1-CG54^2)+2*BK55*(1-CG54)+2*LN((1-BK55)/(1-BK55*CG54)))/(BK55^3)),BL$11*BK55*(LN((1-BJ55+BJ55^2)/(1+BJ55)^2)/(6*BJ55)+ATAN((2-BJ55)/(BJ55*3^0.5))/(BJ55*3^0.5)-LN((CG54^2-BJ55*CG54+BJ55^2)/(CG54+BJ55)^2)/(6*BJ55)-ATAN((2*CG54-BJ55)/(BJ55*3^0.5))/(BJ55*3^0.5))) -> 25.62186428 | BM55: =IF(CF$11=1,(CE$11*BI55*BL$11/CD$11)*(1-CG54^3-(BJ55-BK55)*(-2*BK55^3*(1-CG54^3)-3*BK55^2*(1-CG54^2)-6*BK55*(1-CG54)-6*LN((1-BK55)/(1-BK55*CG54)))/(2*BK55^4))/3,BL$11*BK55*(LN((1+BJ55^3)/(BJ55^3+CG54^3)))/3) -> 15.41446192 | BN55: =BM55/BL55 -> 0.6016135967 | BO55: =BL55*BH55*BJ$11 -> 0.09652299381 | BP55: =MAX(MIN(BQ$11,CA$11*BP$11*BI55*(BH55-BO$11)/BH55),-BQ$11) -> -108.8491411 | BQ55: -0.0170979831 | BR55: =MIN(BU$11,CA$11*BT$11*BI55*(BI$11-BH55-BS$11)/BH55) -> 350.6493337 | BS55: 0.0793150107 | BT55: =MIN($BY$11,CA$11*$BX$11*BI55*(BI$11-BH55-$BW$11)/BH55) -> 500 | BU55: 0 | BV55: =(0.5*BI$11-BH55+BN55*BH55)*BO55+(0.5*BI$11-BO$11)*BQ55+(0.5*BI$11-BS$11)*BS55+(0.5*BI$11-BW$11)*BU55 -> 0.02816564772 | BW55: =BO55+BQ55-BS55-BU55 -> 0.00011 | BX55: =$CG$11+0.00001 -> 1e-05 | BY55: =BL55*BJ$11 -> 2.940474398 | BZ55: =IF(BP54<BQ$11,CA$11*BI55*BN$11*BP$11,BN$11*BQ$11) -> 0.1768088248 | CA55: =IF(BR54<BU$11,CA$11*BI55*BR$11*BT$11,-BR$11*BU$11) -> -0.0793150107 | CB55: =IF(BT54<BY$11,CA$11*BI55*$BV$11*$BX$11,-$BV$11*BY$11) -> 0 | CC55: =-(BX55+0.0001) -> -0.00011 | CD55: =IF(BP54<BQ$11,BO$11*CA$11*BI55*BN$11*BP$11,0) -> 0.006365117694 | CE55: =IF(BR54<BU$11,(BI$11-BS$11)*CA$11*BI55*BR$11*BT$11,0) -> 0 | CF55: =IF(BT54<BY$11,(BI$11-$BW$11)*CA$11*BI55*$BV$11*$BX$11,0) -> 0
BH56: 0.03282565353 | BI56: =BI55 -> 0.005659920097 | BJ56: =IF($CF$11=1,BI56/($CE$11*$CD$11),2^(1/3)*$CD$11/BI56) -> 0.8689110689 | BK56: =IF($CF$11=1,-($CE$11-2)*BI56/$CD$11,3*($CD$11/BI56)^2) -> 1.426872771 | BL56: =IF(CF$11=1,0.5*(CE$11*BI56*BL$11/CD$11)*(1-CG55^2+(BJ56-BK56)*(BK56^2*(1-CG55^2)+2*BK56*(1-CG55)+2*LN((1-BK56)/(1-BK56*CG55)))/(BK56^3)),BL$11*BK56*(LN((1-BJ56+BJ56^2)/(1+BJ56)^2)/(6*BJ56)+ATAN((2-BJ56)/(BJ56*3^0.5))/(BJ56*3^0.5)-LN((CG55^2-BJ56*CG55+BJ56^2)/(CG55+BJ56)^2)/(6*BJ56)-ATAN((2*CG55-BJ56)/(BJ56*3^0.5))/(BJ56*3^0.5))) -> 25.62186428 | BM56: =IF(CF$11=1,(CE$11*BI56*BL$11/CD$11)*(1-CG55^3-(BJ56-BK56)*(-2*BK56^3*(1-CG55^3)-3*BK56^2*(1-CG55^2)-6*BK56*(1-CG55)-6*LN((1-BK56)/(1-BK56*CG55)))/(2*BK56^4))/3,BL$11*BK56*(LN((1+BJ56^3)/(BJ56^3+CG55^3)))/3) -> 15.41446192 | BN56: =BM56/BL56 -> 0.6016135967 | BO56: =BL56*BH56*BJ$11 -> 0.09652299381 | BP56: =MAX(MIN(BQ$11,CA$11*BP$11*BI56*(BH56-BO$11)/BH56),-BQ$11) -> -108.8491411 | BQ56: -0.0170979831 | BR56: =MIN(BU$11,CA$11*BT$11*BI56*(BI$11-BH56-BS$11)/BH56) -> 350.6493337 | BS56: 0.0793150107 | BT56: =MIN($BY$11,CA$11*$BX$11*BI56*(BI$11-BH56-$BW$11)/BH56) -> 500 | BU56: 0 | BV56: =(0.5*BI$11-BH56+BN56*BH56)*BO56+(0.5*BI$11-BO$11)*BQ56+(0.5*BI$11-BS$11)*BS56+(0.5*BI$11-BW$11)*BU56 -> 0.02816564772 | BW56: =BO56+BQ56-BS56-BU56 -> 0.00011 | BX56: =$CG$11+0.00001 -> 1e-05 | BY56: =BL56*BJ$11 -> 2.940474398 | BZ56: =IF(BP55<BQ$11,CA$11*BI56*BN$11*BP$11,BN$11*BQ$11) -> 0.1768088248 | CA56: =IF(BR55<BU$11,CA$11*BI56*BR$11*BT$11,-BR$11*BU$11) -> -0.0793150107 | CB56: =IF(BT55<BY$11,CA$11*BI56*$BV$11*$BX$11,-$BV$11*BY$11) -> 0 | CC56: =-(BX56+0.0001) -> -0.00011 | CD56: =IF(BP55<BQ$11,BO$11*CA$11*BI56*BN$11*BP$11,0) -> 0.006365117694 | CE56: =IF(BR55<BU$11,(BI$11-BS$11)*CA$11*BI56*BR$11*BT$11,0) -> 0 | CF56: =IF(BT55<BY$11,(BI$11-$BW$11)*CA$11*BI56*$BV$11*$BX$11,0) -> 0
BH57: hc | BI57: e0 | BJ57: a' | BK57: b' | BL57: N' | BM57: tN' | BN57: t' | BO57: Nc | BP57: sac | BQ57: Nac | BR57: sat | BS57: Nat | BT57: sat | BU57: Nat | BV57: Mtot | BW57: N | BX57: N | BY57: A | BZ57: B1 | CA57: B2' | CB57: B2 | CC57: B3 | CD57: C1 | CE57: C2 | CF57: C2'
BH61: FORSKYDNING
BJ63: V | BK63: v | BL63: f_cd | BM63: b | BN63: h | BO63: h_int | BP63: c | BQ63: b | BR63: cot0 | BS63: w | BT63: a | BU63: d | BV63: A | BW63: f_yd
BH64: Betontrykbrud | BJ64: =1000*(BK64*BL64*BR64)/((1+BR64^2)*(1/(BM64*BO64)+BS64/((1.4*BQ64)*(BM64-BQ64*BM64)*(BN64-BQ64*BM64)))) -> 254.4533366 | BK64: =0.7-$L$21/200 -> 0.525 | BL64: =AT29*$L$22 -> 35 | BM64: =BJ11 -> 0.1147642641 | BN64: =BI11 -> 0.382382132 | BO64: =$J$34/1000 -> 0.349922706 | BP64: =($N$13-AT40*L27)/1000 -> 0.01938213204 | BQ64: =MIN(BN64/(2*(BM64+BN64)),0.5) -> 0.3845769928 | BR64: =$O$15 -> 2.5 | BS64: =$O$33/(1000*BM64) -> 0
BH65: Bøjler, type 1 | BJ65: =MIN($BJ$64,1000*BV65*BW65*BR65/(BT65*(1/BO65+BS65*BM65/((BM65-BQ65*BM65)*(BN65-BQ65*BM65))))) -> 125.2517936 | BM65: =BM64 -> 0.1147642641 | BN65: =BN64 -> 0.382382132 | BO65: =BO64 -> 0.349922706 | BP65: =BP64 -> 0.01938213204 | BQ65: =MIN(BN65/(2*(BM65+BN65)),0.5) -> 0.3845769928 | BR65: =$O$15 -> 2.5 | BS65: =BS64 -> 0 | BT65: =$N$15/1000 -> 0.15 | BU65: =M15 -> 6 | BV65: =2*PI()*(BU65/1000)^2/4 -> 5.654866776e-05 | BW65: =AT27*O22 -> 379.7875311
BH66: Bøjler, type 2 | BJ66: =MIN($BJ$64,1000*BV66*BW66*BR66/(BT66*(1/BO66+BS66*BM66/((BM66-BQ66*BM66)*(BN66-BQ66*BM66))))) -> 125.2517936 | BM66: =BM64 -> 0.1147642641 | BN66: =BN65 -> 0.382382132 | BO66: =$J$34/1000 -> 0.349922706 | BP66: =BP64 -> 0.01938213204 | BQ66: 0.3845769928 | BR66: =$O$15 -> 2.5 | BS66: =BS64 -> 0 | BT66: =$N$16/1000 -> 0.15 | BU66: =M16 -> 6 | BV66: =2*PI()*(BU66/1000)^2/4 -> 5.654866776e-05 | BW66: =BW65 -> 379.7875311 | CB66: Vederlagsforankring | CD66: =0.5*BS64*BM64*$AS$22*BR64/(MIN(BN64,BM64)*(1-BQ64))+0.5*$AS$22*BR64 -> 137.0169118 | CE66: KN

Sheet Brand2
B3: Nedbøjninger | K3: p/P | L3: x1 | M3: x2 | N3: R1 | O3: R2 | P3: 0 | Q3: 1 | R3: 2 | S3: 3 | T3: 4 | U3: 5 | V3: 6 | W3: 7 | X3: 8 | Y3: 9 | Z3: 10 | AA3: 11 | AB3: 12 | AC3: 13 | AD3: 14 | AE3: 15 | AF3: 16 | AG3: 17 | AH3: 18 | AI3: 19 | AJ3: 20 | AK3: 21 | AL3: 22 | AM3: 23 | AN3: 24 | AO3: 25 | AP3: 26 | AQ3: 27 | AR3: 28 | AS3: 29 | AT3: 30 | AU3: 31 | AV3: 32 | AW3: 33 | AX3: 34 | AY3: 35 | AZ3: 36 | BA3: 37 | BB3: 38 | BC3: 39 | BD3: 40
B4: L | C4: (m) | D4: =Brand!L8 -> 1.7 | P4: 0 | Q4: =Q3*($BD$4-$P$4)/40 -> 0.0425 | R4: 0.085 | S4: 0.1275 | T4: 0.17 | U4: 0.2125 | V4: 0.255 | W4: 0.2975 | X4: 0.34 | Y4: 0.3825 | Z4: 0.425 | AA4: 0.4675 | AB4: 0.51 | AC4: 0.5525 | AD4: 0.595 | AE4: 0.6375 | AF4: 0.68 | AG4: 0.7225 | AH4: 0.765 | AI4: 0.8075 | AJ4: 0.85 | AK4: 0.8925 | AL4: 0.935 | AM4: 0.9775 | AN4: 1.02 | AO4: 1.0625 | AP4: 1.105 | AQ4: 1.1475 | AR4: 1.19 | AS4: 1.2325 | AT4: 1.275 | AU4: 1.3175 | AV4: 1.36 | AW4: 1.4025 | AX4: 1.445 | AY4: 1.4875 | AZ4: 1.53 | BA4: 1.5725 | BB4: 1.615 | BC4: 1.6575 | BD4: =$D$4 -> 1.7 | BE4: =L18 -> 0.26 | BF4: =L22 -> 0 | BG4: =L26 -> 0
I6: p1 | J6: L | K6: =D12 -> 0 | L6: =D16 -> 0 | M6: =D17 -> 1.7 | N6: =(M6-L6)*K6-O6 -> 0 | O6: =0.5*K6*(M6^2-L6^2)/$D$4 -> 0 | P6: =$N6*P$4-IF(P$4>$L6,0.5*($L6-P$4)^2*$K6)+IF(P$4>$M6,0.5*(P$4-$M6)^2*$K6) -> 0 | Q6: 0 | R6: 0 | S6: 0 | T6: 0 | U6: 0 | V6: 0 | W6: 0 | X6: 0 | Y6: 0 | Z6: =$N6*Z$4-IF(Z$4>$L6,0.5*($L6-Z$4)^2*$K6)+IF(Z$4>$M6,0.5*(Z$4-$M6)^2*$K6) -> 0 | AA6: 0 | AB6: 0 | AC6: 0 | AD6: 0 | AE6: 0 | AF6: 0 | AG6: 0 | AH6: 0 | AI6: 0 | AJ6: =$N6*AJ$4-IF(AJ$4>$L6,0.5*($L6-AJ$4)^2*$K6)+IF(AJ$4>$M6,0.5*(AJ$4-$M6)^2*$K6) -> 0 | AK6: 0 | AL6: 0 | AM6: 0 | AN6: 0 | AO6: 0 | AP6: 0 | AQ6: 0 | AR6: 0 | AS6: 0 | AT6: =$N6*AT$4-IF(AT$4>$L6,0.5*($L6-AT$4)^2*$K6)+IF(AT$4>$M6,0.5*(AT$4-$M6)^2*$K6) -> 0 | AU6: 0 | AV6: 0 | AW6: 0 | AX6: 0 | AY6: 0 | AZ6: 0 | BA6: 0 | BB6: 0 | BC6: 0 | BD6: 0 | BE6: 0 | BF6: 0 | BG6: 0
I7: p1 | J7: K | K7: =D13 -> 1.4 | L7: =D16 -> 0 | M7: =D17 -> 1.7 | N7: =(M7-L7)*K7-O7 -> 1.19 | O7: =0.5*K7*(M7^2-L7^2)/$D$4 -> 1.19 | P7: 0 | Q7: 0.049310625 | R7: 0.0960925 | S7: 0.140345625 | T7: 0.18207 | U7: 0.221265625 | V7: 0.2579325 | W7: 0.292070625 | X7: 0.32368 | Y7: 0.352760625 | Z7: 0.3793125 | AA7: 0.403335625 | AB7: 0.42483 | AC7: 0.443795625 | AD7: 0.4602325 | AE7: 0.474140625 | AF7: 0.48552 | AG7: 0.494370625 | AH7: 0.5006925 | AI7: 0.504485625 | AJ7: 0.50575 | AK7: 0.504485625 | AL7: 0.5006925 | AM7: 0.494370625 | AN7: 0.48552 | AO7: 0.474140625 | AP7: 0.4602325 | AQ7: 0.443795625 | AR7: 0.42483 | AS7: 0.403335625 | AT7: 0.3793125 | AU7: 0.352760625 | AV7: 0.32368 | AW7: 0.292070625 | AX7: 0.2579325 | AY7: 0.221265625 | AZ7: 0.18207 | BA7: 0.140345625 | BB7: 0.0960925 | BC7: 0.049310625 | BD7: 0 | BE7: 0.26208 | BF7: 0 | BG7: 0
I8: p1 | J8: d | K8: =D14 -> 1.4 | L8: =D16 -> 0 | M8: =D17 -> 1.7 | N8: =(M8-L8)*K8-O8 -> 1.19 | O8: =0.5*K8*(M8^2-L8^2)/$D$4 -> 1.19 | P8: 0 | Q8: 0.049310625 | R8: 0.0960925 | S8: 0.140345625 | T8: 0.18207 | U8: 0.221265625 | V8: 0.2579325 | W8: 0.292070625 | X8: 0.32368 | Y8: 0.352760625 | Z8: 0.3793125 | AA8: 0.403335625 | AB8: 0.42483 | AC8: 0.443795625 | AD8: 0.4602325 | AE8: 0.474140625 | AF8: 0.48552 | AG8: 0.494370625 | AH8: 0.5006925 | AI8: 0.504485625 | AJ8: 0.50575 | AK8: 0.504485625 | AL8: 0.5006925 | AM8: 0.494370625 | AN8: 0.48552 | AO8: 0.474140625 | AP8: 0.4602325 | AQ8: 0.443795625 | AR8: 0.42483 | AS8: 0.403335625 | AT8: 0.3793125 | AU8: 0.352760625 | AV8: 0.32368 | AW8: 0.292070625 | AX8: 0.2579325 | AY8: 0.221265625 | AZ8: 0.18207 | BA8: 0.140345625 | BB8: 0.0960925 | BC8: 0.049310625 | BD8: 0 | BE8: 0.26208 | BF8: 0 | BG8: 0
I10: p2 | J10: L | K10: =E12 -> 0 | L10: =E16 -> 0 | M10: =E17 -> 0 | N10: =(M10-L10)*K10-O10 -> 0 | O10: =0.5*K10*(M10^2-L10^2)/$D$4 -> 0 | P10: =$N10*P$4-IF(P$4>$L10,0.5*($L10-P$4)^2*$K10)+IF(P$4>$M10,0.5*(P$4-$M10)^2*$K10)+IF(P$4>$D$4,(P$4-$D$4)*$O10) -> 0 | Q10: =$N10*Q$4-IF(Q$4>$L10,0.5*($L10-Q$4)^2*$K10)+IF(Q$4>$M10,0.5*(Q$4-$M10)^2*$K10) -> 0 | R10: 0 | S10: 0 | T10: 0 | U10: 0 | V10: 0 | W10: 0 | X10: 0 | Y10: 0 | Z10: 0 | AA10: =$N10*AA$4-IF(AA$4>$L10,0.5*($L10-AA$4)^2*$K10)+IF(AA$4>$M10,0.5*(AA$4-$M10)^2*$K10) -> 0 | AB10: 0 | AC10: 0 | AD10: 0 | AE10: 0 | AF10: 0 | AG10: 0 | AH10: 0 | AI10: 0 | AJ10: 0 | AK10: =$N10*AK$4-IF(AK$4>$L10,0.5*($L10-AK$4)^2*$K10)+IF(AK$4>$M10,0.5*(AK$4-$M10)^2*$K10) -> 0 | AL10: 0 | AM10: 0 | AN10: 0 | AO10: 0 | AP10: 0 | AQ10: 0 | AR10: 0 | AS10: 0 | AT10: 0 | AU10: =$N10*AU$4-IF(AU$4>$L10,0.5*($L10-AU$4)^2*$K10)+IF(AU$4>$M10,0.5*(AU$4-$M10)^2*$K10) -> 0 | AV10: 0 | AW10: 0 | AX10: 0 | AY10: 0 | AZ10: 0 | BA10: 0 | BB10: 0 | BC10: 0 | BD10: 0 | BE10: 0 | BF10: 0 | BG10: 0
B11: Jævnt fordelte laste | D11: p1 | E11: p2 | F11: p3 | I11: p2 | J11: K | K11: =E13 -> 0 | L11: =E16 -> 0 | M11: =E17 -> 0 | N11: =(M11-L11)*K11-O11 -> 0 | O11: =0.5*K11*(M11^2-L11^2)/$D$4 -> 0 | P11: =$N11*P$4-IF(P$4>$L11,0.5*($L11-P$4)^2*$K11)+IF(P$4>$M11,0.5*(P$4-$M11)^2*$K11)+IF(P$4>$D$4,(P$4-$D$4)*$O11) -> 0 | Q11: 0 | R11: 0 | S11: 0 | T11: 0 | U11: 0 | V11: 0 | W11: 0 | X11: 0 | Y11: 0 | Z11: 0 | AA11: 0 | AB11: 0 | AC11: 0 | AD11: 0 | AE11: 0 | AF11: 0 | AG11: 0 | AH11: 0 | AI11: 0 | AJ11: 0 | AK11: 0 | AL11: 0 | AM11: 0 | AN11: 0 | AO11: 0 | AP11: 0 | AQ11: 0 | AR11: 0 | AS11: 0 | AT11: 0 | AU11: 0 | AV11: 0 | AW11: 0 | AX11: 0 | AY11: 0 | AZ11: 0 | BA11: 0 | BB11: 0 | BC11: 0 | BD11: 0 | BE11: 0 | BF11: 0 | BG11: 0
I12: p2 | J12: d | K12: =E14 -> 0 | L12: =E16 -> 0 | M12: =E17 -> 0 | N12: =(M12-L12)*K12-O12 -> 0 | O12: =0.5*K12*(M12^2-L12^2)/$D$4 -> 0 | P12: =$N12*P$4-IF(P$4>$L12,0.5*($L12-P$4)^2*$K12)+IF(P$4>$M12,0.5*(P$4-$M12)^2*$K12)+IF(P$4>$D$4,(P$4-$D$4)*$O12) -> 0 | Q12: 0 | R12: 0 | S12: 0 | T12: 0 | U12: 0 | V12: 0 | W12: 0 | X12: 0 | Y12: 0 | Z12: 0 | AA12: 0 | AB12: 0 | AC12: 0 | AD12: 0 | AE12: 0 | AF12: 0 | AG12: 0 | AH12: 0 | AI12: 0 | AJ12: 0 | AK12: 0 | AL12: 0 | AM12: 0 | AN12: 0 | AO12: 0 | AP12: 0 | AQ12: 0 | AR12: 0 | AS12: 0 | AT12: 0 | AU12: 0 | AV12: 0 | AW12: 0 | AX12: 0 | AY12: 0 | AZ12: 0 | BA12: 0 | BB12: 0 | BC12: 0 | BD12: 0 | BE12: 0 | BF12: 0 | BG12: 0
B13: Kar. værdi | C13: (kN/m) | D13: =Brand2!D88*D26 -> 1.4 | E13: =Brand2!E88*D26 -> 0 | F13: =Brand2!F88*D26 -> 0
B14: Regnm. værdi | C14: (kN/m) | D14: =Brand2!D89*D26 -> 1.4 | E14: =Brand2!E89*D26 -> 0 | F14: =Brand2!F89*D26 -> 0 | I14: p3 | J14: L | K14: =F12 -> 0 | L14: =F16 -> 0 | M14: =F17 -> 0 | N14: =(M14-L14)*K14-O14 -> 0 | O14: =0.5*K14*(M14^2-L14^2)/$D$4 -> 0 | P14: =$N14*P$4-IF(P$4>$L14,0.5*($L14-P$4)^2*$K14)+IF(P$4>$M14,0.5*(P$4-$M14)^2*$K14)+IF(P$4>$D$4,(P$4-$D$4)*$O14) -> 0 | Q14: =$N14*Q$4-IF(Q$4>$L14,0.5*($L14-Q$4)^2*$K14)+IF(Q$4>$M14,0.5*(Q$4-$M14)^2*$K14) -> 0 | R14: 0 | S14: 0 | T14: 0 | U14: 0 | V14: 0 | W14: 0 | X14: 0 | Y14: 0 | Z14: 0 | AA14: =$N14*AA$4-IF(AA$4>$L14,0.5*($L14-AA$4)^2*$K14)+IF(AA$4>$M14,0.5*(AA$4-$M14)^2*$K14) -> 0 | AB14: 0 | AC14: 0 | AD14: 0 | AE14: 0 | AF14: 0 | AG14: 0 | AH14: 0 | AI14: 0 | AJ14: 0 | AK14: =$N14*AK$4-IF(AK$4>$L14,0.5*($L14-AK$4)^2*$K14)+IF(AK$4>$M14,0.5*(AK$4-$M14)^2*$K14) -> 0 | AL14: 0 | AM14: 0 | AN14: 0 | AO14: 0 | AP14: 0 | AQ14: 0 | AR14: 0 | AS14: 0 | AT14: 0 | AU14: =$N14*AU$4-IF(AU$4>$L14,0.5*($L14-AU$4)^2*$K14)+IF(AU$4>$M14,0.5*(AU$4-$M14)^2*$K14) -> 0 | AV14: 0 | AW14: 0 | AX14: 0 | AY14: 0 | AZ14: 0 | BA14: 0 | BB14: 0 | BC14: 0 | BD14: 0 | BE14: 0 | BF14: 0 | BG14: 0
B15: exc | C15: (m) | D15: =Brand2!D90 -> 0 | E15: =Brand2!E90 -> 0 | F15: =Brand2!F90 -> 0 | I15: p3 | J15: K | K15: =F13 -> 0 | L15: =F16 -> 0 | M15: =F17 -> 0 | N15: =(M15-L15)*K15-O15 -> 0 | O15: =0.5*K15*(M15^2-L15^2)/$D$4 -> 0 | P15: =$N15*P$4-IF(P$4>$L15,0.5*($L15-P$4)^2*$K15)+IF(P$4>$M15,0.5*(P$4-$M15)^2*$K15)+IF(P$4>$D$4,(P$4-$D$4)*$O15) -> 0 | Q15: 0 | R15: 0 | S15: 0 | T15: 0 | U15: 0 | V15: 0 | W15: 0 | X15: 0 | Y15: 0 | Z15: 0 | AA15: 0 | AB15: 0 | AC15: 0 | AD15: 0 | AE15: 0 | AF15: 0 | AG15: 0 | AH15: 0 | AI15: 0 | AJ15: 0 | AK15: 0 | AL15: 0 | AM15: 0 | AN15: 0 | AO15: 0 | AP15: 0 | AQ15: 0 | AR15: 0 | AS15: 0 | AT15: 0 | AU15: 0 | AV15: 0 | AW15: 0 | AX15: 0 | AY15: 0 | AZ15: 0 | BA15: 0 | BB15: 0 | BC15: 0 | BD15: 0 | BE15: 0 | BF15: 0 | BG15: 0
B16: x1 | C16: (m) | D16: =Brand2!D91 -> 0 | E16: =Brand2!E91 -> 0 | F16: =Brand2!F91 -> 0 | I16: p3 | J16: d | K16: =F14 -> 0 | L16: =F16 -> 0 | M16: =F17 -> 0 | N16: =(M16-L16)*K16-O16 -> 0 | O16: =0.5*K16*(M16^2-L16^2)/$D$4 -> 0 | P16: =$N16*P$4-IF(P$4>$L16,0.5*($L16-P$4)^2*$K16)+IF(P$4>$M16,0.5*(P$4-$M16)^2*$K16)+IF(P$4>$D$4,(P$4-$D$4)*$O16) -> 0 | Q16: 0 | R16: 0 | S16: 0 | T16: 0 | U16: 0 | V16: 0 | W16: 0 | X16: 0 | Y16: 0 | Z16: 0 | AA16: 0 | AB16: 0 | AC16: 0 | AD16: 0 | AE16: 0 | AF16: 0 | AG16: 0 | AH16: 0 | AI16: 0 | AJ16: 0 | AK16: 0 | AL16: 0 | AM16: 0 | AN16: 0 | AO16: 0 | AP16: 0 | AQ16: 0 | AR16: 0 | AS16: 0 | AT16: 0 | AU16: 0 | AV16: 0 | AW16: 0 | AX16: 0 | AY16: 0 | AZ16: 0 | BA16: 0 | BB16: 0 | BC16: 0 | BD16: 0 | BE16: 0 | BF16: 0 | BG16: 0
B17: x2 | C17: (m) | D17: =Brand2!D92 -> 1.7 | E17: =Brand2!E92 -> 0 | F17: =Brand2!F92 -> 0
I18: P1 | J18: L | K18: =D20 -> 0 | L18: =D24 -> 0.26 | N18: =K18-O18 -> 0 | O18: =K18*L18/$D$4 -> 0 | P18: =$N18*P$4-IF(P$4>$L18,(P$4-$L18)*$K18) -> 0 | Q18: 0 | R18: 0 | S18: 0 | T18: 0 | U18: 0 | V18: 0 | W18: 0 | X18: 0 | Y18: 0 | Z18: =$N18*Z$4-IF(Z$4>$L18,(Z$4-$L18)*$K18) -> 0 | AA18: 0 | AB18: 0 | AC18: 0 | AD18: 0 | AE18: 0 | AF18: 0 | AG18: 0 | AH18: 0 | AI18: 0 | AJ18: =$N18*AJ$4-IF(AJ$4>$L18,(AJ$4-$L18)*$K18) -> 0 | AK18: 0 | AL18: 0 | AM18: 0 | AN18: 0 | AO18: 0 | AP18: 0 | AQ18: 0 | AR18: 0 | AS18: 0 | AT18: =$N18*AT$4-IF(AT$4>$L18,(AT$4-$L18)*$K18) -> 0 | AU18: 0 | AV18: 0 | AW18: 0 | AX18: 0 | AY18: 0 | AZ18: 0 | BA18: 0 | BB18: 0 | BC18: 0 | BD18: 0 | BE18: 0 | BF18: 0 | BG18: 0
B19: Punktlaste | D19: P1 | E19: P2 | F19: P3 | I19: P1 | J19: K | K19: =D21 -> 128 | L19: =D24 -> 0.26 | N19: =K19-O19 -> 108.4235294 | O19: =K19*L19/$D$4 -> 19.57647059 | P19: 0 | Q19: 4.608 | R19: 9.216 | S19: 13.824 | T19: 18.432 | U19: 23.04 | V19: 27.648 | W19: 27.456 | X19: 26.624 | Y19: 25.792 | Z19: 24.96 | AA19: 24.128 | AB19: 23.296 | AC19: 22.464 | AD19: 21.632 | AE19: 20.8 | AF19: 19.968 | AG19: 19.136 | AH19: 18.304 | AI19: 17.472 | AJ19: 16.64 | AK19: 15.808 | AL19: 14.976 | AM19: 14.144 | AN19: 13.312 | AO19: 12.48 | AP19: 11.648 | AQ19: 10.816 | AR19: 9.984 | AS19: 9.152 | AT19: 8.32 | AU19: 7.488 | AV19: 6.656 | AW19: 5.824 | AX19: 4.992 | AY19: 4.16 | AZ19: 3.328 | BA19: 2.496 | BB19: 1.664 | BC19: 0.832 | BD19: 0 | BE19: 28.19011765 | BF19: 0 | BG19: 0
I20: P1 | J20: d | K20: =D22 -> 128 | L20: =D24 -> 0.26 | N20: =K20-O20 -> 108.4235294 | O20: =K20*L20/$D$4 -> 19.57647059 | P20: 0 | Q20: 4.608 | R20: 9.216 | S20: 13.824 | T20: 18.432 | U20: 23.04 | V20: 27.648 | W20: 27.456 | X20: 26.624 | Y20: 25.792 | Z20: 24.96 | AA20: 24.128 | AB20: 23.296 | AC20: 22.464 | AD20: 21.632 | AE20: 20.8 | AF20: 19.968 | AG20: 19.136 | AH20: 18.304 | AI20: 17.472 | AJ20: 16.64 | AK20: 15.808 | AL20: 14.976 | AM20: 14.144 | AN20: 13.312 | AO20: 12.48 | AP20: 11.648 | AQ20: 10.816 | AR20: 9.984 | AS20: 9.152 | AT20: 8.32 | AU20: 7.488 | AV20: 6.656 | AW20: 5.824 | AX20: 4.992 | AY20: 4.16 | AZ20: 3.328 | BA20: 2.496 | BB20: 1.664 | BC20: 0.832 | BD20: 0 | BE20: 28.19011765 | BF20: 0 | BG20: 0
B21: Kar. værdi | C21: (kN) | D21: =Brand2!H88*D26 -> 128 | E21: =Brand2!I88*D26 -> 0 | F21: =Brand2!J88*D26 -> 0
B22: Regnm. værdi | C22: (kN) | D22: =Brand2!H89*D26 -> 128 | E22: =Brand2!I89*D26 -> 0 | F22: =Brand2!J89*D26 -> 0 | I22: P2 | J22: L | K22: =E20 -> 0 | L22: =E24 -> 0 | N22: =K22-O22 -> 0 | O22: =K22*L22/$D$4 -> 0 | P22: =$N22*P$4-IF(P$4>$L22,(P$4-$L22)*$K22) -> 0 | Q22: 0 | R22: 0 | S22: 0 | T22: 0 | U22: 0 | V22: 0 | W22: 0 | X22: 0 | Y22: 0 | Z22: =$N22*Z$4-IF(Z$4>$L22,(Z$4-$L22)*$K22) -> 0 | AA22: 0 | AB22: 0 | AC22: 0 | AD22: 0 | AE22: 0 | AF22: 0 | AG22: 0 | AH22: 0 | AI22: 0 | AJ22: =$N22*AJ$4-IF(AJ$4>$L22,(AJ$4-$L22)*$K22) -> 0 | AK22: 0 | AL22: 0 | AM22: 0 | AN22: 0 | AO22: 0 | AP22: 0 | AQ22: 0 | AR22: 0 | AS22: 0 | AT22: =$N22*AT$4-IF(AT$4>$L22,(AT$4-$L22)*$K22) -> 0 | AU22: 0 | AV22: 0 | AW22: 0 | AX22: 0 | AY22: 0 | AZ22: 0 | BA22: 0 | BB22: 0 | BC22: 0 | BD22: 0 | BE22: 0 | BF22: 0 | BG22: 0
B23: exc | C23: (m) | D23: =Brand2!H90 -> 0 | E23: =Brand2!I90 -> 0 | F23: =Brand2!J90 -> 0 | I23: P2 | J23: K | K23: =E21 -> 0 | L23: =E24 -> 0 | N23: =K23-O23 -> 0 | O23: =K23*L23/$D$4 -> 0 | P23: 0 | Q23: 0 | R23: 0 | S23: 0 | T23: 0 | U23: 0 | V23: 0 | W23: 0 | X23: 0 | Y23: 0 | Z23: 0 | AA23: 0 | AB23: 0 | AC23: 0 | AD23: 0 | AE23: 0 | AF23: 0 | AG23: 0 | AH23: 0 | AI23: 0 | AJ23: 0 | AK23: 0 | AL23: 0 | AM23: 0 | AN23: 0 | AO23: 0 | AP23: 0 | AQ23: 0 | AR23: 0 | AS23: 0 | AT23: 0 | AU23: 0 | AV23: 0 | AW23: 0 | AX23: 0 | AY23: 0 | AZ23: 0 | BA23: 0 | BB23: 0 | BC23: 0 | BD23: 0 | BE23: 0 | BF23: 0 | BG23: 0
B24: x | C24: (m) | D24: =Brand2!H91 -> 0.26 | E24: =Brand2!I91 -> 0 | F24: =Brand2!J91 -> 0 | I24: P2 | J24: d | K24: =E22 -> 0 | L24: =E24 -> 0 | N24: =K24-O24 -> 0 | O24: =K24*L24/$D$4 -> 0 | P24: 0 | Q24: 0 | R24: 0 | S24: 0 | T24: 0 | U24: 0 | V24: 0 | W24: 0 | X24: 0 | Y24: 0 | Z24: 0 | AA24: 0 | AB24: 0 | AC24: 0 | AD24: 0 | AE24: 0 | AF24: 0 | AG24: 0 | AH24: 0 | AI24: 0 | AJ24: 0 | AK24: 0 | AL24: 0 | AM24: 0 | AN24: 0 | AO24: 0 | AP24: 0 | AQ24: 0 | AR24: 0 | AS24: 0 | AT24: 0 | AU24: 0 | AV24: 0 | AW24: 0 | AX24: 0 | AY24: 0 | AZ24: 0 | BA24: 0 | BB24: 0 | BC24: 0 | BD24: 0 | BE24: 0 | BF24: 0 | BG24: 0
B26: Inddatatest | C26: =MAX(Brand!BC16:BC45) -> 0 | D26: =IF(C26=1,0,1) -> 1 | I26: P3 | J26: L | K26: =F20 -> 0 | L26: =F24 -> 0 | N26: =K26-O26 -> 0 | O26: =K26*L26/$D$4 -> 0 | P26: =$N26*P$4-IF(P$4>$L26,(P$4-$L26)*$K26) -> 0 | Q26: 0 | R26: 0 | S26: 0 | T26: 0 | U26: 0 | V26: 0 | W26: 0 | X26: 0 | Y26: 0 | Z26: =$N26*Z$4-IF(Z$4>$L26,(Z$4-$L26)*$K26) -> 0 | AA26: 0 | AB26: 0 | AC26: 0 | AD26: 0 | AE26: 0 | AF26: 0 | AG26: 0 | AH26: 0 | AI26: 0 | AJ26: =$N26*AJ$4-IF(AJ$4>$L26,(AJ$4-$L26)*$K26) -> 0 | AK26: 0 | AL26: 0 | AM26: 0 | AN26: 0 | AO26: 0 | AP26: 0 | AQ26: 0 | AR26: 0 | AS26: 0 | AT26: =$N26*AT$4-IF(AT$4>$L26,(AT$4-$L26)*$K26) -> 0 | AU26: 0 | AV26: 0 | AW26: 0 | AX26: 0 | AY26: 0 | AZ26: 0 | BA26: 0 | BB26: 0 | BC26: 0 | BD26: 0 | BE26: 0 | BF26: 0 | BG26: 0
I27: P3 | J27: K | K27: =F21 -> 0 | L27: =F24 -> 0 | N27: =K27-O27 -> 0 | O27: =K27*L27/$D$4 -> 0 | P27: 0 | Q27: 0 | R27: 0 | S27: 0 | T27: 0 | U27: 0 | V27: 0 | W27: 0 | X27: 0 | Y27: 0 | Z27: 0 | AA27: 0 | AB27: 0 | AC27: 0 | AD27: 0 | AE27: 0 | AF27: 0 | AG27: 0 | AH27: 0 | AI27: 0 | AJ27: 0 | AK27: 0 | AL27: 0 | AM27: 0 | AN27: 0 | AO27: 0 | AP27: 0 | AQ27: 0 | AR27: 0 | AS27: 0 | AT27: 0 | AU27: 0 | AV27: 0 | AW27: 0 | AX27: 0 | AY27: 0 | AZ27: 0 | BA27: 0 | BB27: 0 | BC27: 0 | BD27: 0 | BE27: 0 | BF27: 0 | BG27: 0
I28: P3 | J28: d | K28: =F22 -> 0 | L28: =F24 -> 0 | N28: =K28-O28 -> 0 | O28: =K28*L28/$D$4 -> 0 | P28: 0 | Q28: 0 | R28: 0 | S28: 0 | T28: 0 | U28: 0 | V28: 0 | W28: 0 | X28: 0 | Y28: 0 | Z28: 0 | AA28: 0 | AB28: 0 | AC28: 0 | AD28: 0 | AE28: 0 | AF28: 0 | AG28: 0 | AH28: 0 | AI28: 0 | AJ28: 0 | AK28: 0 | AL28: 0 | AM28: 0 | AN28: 0 | AO28: 0 | AP28: 0 | AQ28: 0 | AR28: 0 | AS28: 0 | AT28: 0 | AU28: 0 | AV28: 0 | AW28: 0 | AX28: 0 | AY28: 0 | AZ28: 0 | BA28: 0 | BB28: 0 | BC28: 0 | BD28: 0 | BE28: 0 | BF28: 0 | BG28: 0
I30: MOMENTER | O30: punkt | P30: =P3 -> 0 | Q30: 1 | R30: 2 | S30: 3 | T30: 4 | U30: 5 | V30: 6 | W30: 7 | X30: 8 | Y30: 9 | Z30: 10 | AA30: 11 | AB30: 12 | AC30: 13 | AD30: 14 | AE30: 15 | AF30: 16 | AG30: 17 | AH30: 18 | AI30: 19 | AJ30: 20 | AK30: 21 | AL30: 22 | AM30: 23 | AN30: 24 | AO30: 25 | AP30: 26 | AQ30: 27 | AR30: 28 | AS30: 29 | AT30: 30 | AU30: 31 | AV30: 32 | AW30: 33 | AX30: 34 | AY30: 35 | AZ30: 36 | BA30: 37 | BB30: 38 | BC30: 39 | BD30: 40 | BE30: =BE4*40/$D$4 -> 6.117647059 | BF30: =BF4*40/$D$4 -> 0 | BG30: =BG4*40/$D$4 -> 0
O31: : | P31: =P7+P11+P15+P19+P23+P27 -> 0 | Q31: 4.657310625 | R31: 9.3120925 | S31: 13.96434562 | T31: 18.61407 | U31: 23.26126563 | V31: 27.9059325 | W31: 27.74807063 | X31: 26.94768 | Y31: 26.14476062 | Z31: 25.3393125 | AA31: 24.53133563 | AB31: 23.72083 | AC31: 22.90779562 | AD31: 22.0922325 | AE31: 21.27414062 | AF31: 20.45352 | AG31: 19.63037062 | AH31: 18.8046925 | AI31: 17.97648563 | AJ31: 17.14575 | AK31: 16.31248563 | AL31: 15.4766925 | AM31: 14.63837063 | AN31: 13.79752 | AO31: 12.95414063 | AP31: 12.1082325 | AQ31: 11.25979563 | AR31: 10.40883 | AS31: 9.555335625 | AT31: 8.6993125 | AU31: 7.840760625 | AV31: 6.97968 | AW31: 6.116070625 | AX31: 5.2499325 | AY31: 4.381265625 | AZ31: 3.51007 | BA31: 2.636345625 | BB31: 1.7600925 | BC31: 0.881310625 | BD31: 0 | BE31: 28.45219765 | BF31: 0 | BG31: 0
O32: : | P32: =P8+P12+P16+P20+P24+P28 -> 0 | Q32: 4.657310625 | R32: 9.3120925 | S32: 13.96434562 | T32: 18.61407 | U32: 23.26126563 | V32: 27.9059325 | W32: 27.74807063 | X32: 26.94768 | Y32: 26.14476062 | Z32: 25.3393125 | AA32: 24.53133563 | AB32: 23.72083 | AC32: 22.90779562 | AD32: 22.0922325 | AE32: 21.27414062 | AF32: 20.45352 | AG32: 19.63037062 | AH32: 18.8046925 | AI32: 17.97648563 | AJ32: 17.14575 | AK32: 16.31248563 | AL32: 15.4766925 | AM32: 14.63837063 | AN32: 13.79752 | AO32: 12.95414063 | AP32: 12.1082325 | AQ32: 11.25979563 | AR32: 10.40883 | AS32: 9.555335625 | AT32: 8.6993125 | AU32: 7.840760625 | AV32: 6.97968 | AW32: 6.116070625 | AX32: 5.2499325 | AY32: 4.381265625 | AZ32: 3.51007 | BA32: 2.636345625 | BB32: 1.7600925 | BC32: 0.881310625 | BD32: 0 | BE32: 28.45219765 | BF32: 0 | BG32: 0
K34: p/P | L34: x1 | M34: x2 | P34: 0 | Q34: 1 | R34: 2 | S34: 3 | T34: 4 | U34: 5 | V34: 6 | W34: 7 | X34: 8 | Y34: 9 | Z34: 10 | AA34: 11 | AB34: 12 | AC34: 13 | AD34: 14 | AE34: 15 | AF34: 16 | AG34: 17 | AH34: 18 | AI34: 19 | AJ34: 20 | AK34: 21 | AL34: 22 | AM34: 23 | AN34: 24 | AO34: 25 | AP34: 26 | AQ34: 27 | AR34: 28 | AS34: 29 | AT34: 30 | AU34: 31 | AV34: 32 | AW34: 33 | AX34: 34 | AY34: 35 | AZ34: 36 | BA34: 37 | BB34: 38 | BC34: 39 | BD34: 40 | BJ34: hi cot 0 | BK34: L-hi cot 0 | BM34: ½hi cot 0 | BN34: L-½hi cot 0
P35: 0 | Q35: =Q34*($BD$4-$P$4)/40 -> 0.0425 | R35: 0.085 | S35: 0.1275 | T35: 0.17 | U35: 0.2125 | V35: 0.255 | W35: 0.2975 | X35: 0.34 | Y35: 0.3825 | Z35: 0.425 | AA35: 0.4675 | AB35: 0.51 | AC35: 0.5525 | AD35: 0.595 | AE35: 0.6375 | AF35: 0.68 | AG35: 0.7225 | AH35: 0.765 | AI35: 0.8075 | AJ35: 0.85 | AK35: 0.8925 | AL35: 0.935 | AM35: 0.9775 | AN35: 1.02 | AO35: 1.0625 | AP35: 1.105 | AQ35: 1.1475 | AR35: 1.19 | AS35: 1.2325 | AT35: 1.275 | AU35: 1.3175 | AV35: 1.36 | AW35: 1.4025 | AX35: 1.445 | AY35: 1.4875 | AZ35: 1.53 | BA35: 1.5725 | BB35: 1.615 | BC35: 1.6575 | BD35: =$D$4 -> 1.7 | BE35: 0 | BF35: =Brand!AS16*Brand!O15/1000 -> 0.8748067649 | BG35: =BH35-Brand!AS16*Brand!O15/1000 -> 0.8251932351 | BH35: =Brand!L8 -> 1.7 | BJ35: =BF35 -> 0.8748067649 | BK35: =BG35 -> 0.8251932351 | BM35: =0.5*BJ35 -> 0.4374033824 | BN35: =BH35-BM35 -> 1.262596618
I36: Venstresidig forskydning
B37: Excentriciteter | I37: =I8 -> p1 | J37: =J8 -> d | K37: =K8 -> 1.4 | L37: =L8 -> 0 | M37: =M8 -> 1.7 | P37: =IF(P$35<=$L37,$K37*($M37-$L37)*($D$4-0.5*($L37+$M37))/$D$4,IF(P$35<=$M37,$K37*($M37-P$35)*($D$4-0.5*(P$35+$M37))/$D$4,0)) -> 1.19 | Q37: 1.13124375 | R37: 1.073975 | S37: 1.01819375 | T37: 0.9639 | U37: 0.91109375 | V37: 0.859775 | W37: 0.80994375 | X37: 0.7616 | Y37: 0.71474375 | Z37: =IF(Z$35<=$L37,$K37*($M37-$L37)*($D$4-0.5*($L37+$M37))/$D$4,IF(Z$35<=$M37,$K37*($M37-Z$35)*($D$4-0.5*(Z$35+$M37))/$D$4,0)) -> 0.669375 | AA37: 0.62549375 | AB37: 0.5831 | AC37: 0.54219375 | AD37: 0.502775 | AE37: 0.46484375 | AF37: 0.4284 | AG37: 0.39344375 | AH37: 0.359975 | AI37: 0.32799375 | AJ37: =IF(AJ$35<=$L37,$K37*($M37-$L37)*($D$4-0.5*($L37+$M37))/$D$4,IF(AJ$35<=$M37,$K37*($M37-AJ$35)*($D$4-0.5*(AJ$35+$M37))/$D$4,0)) -> 0.2975 | AK37: 0.26849375 | AL37: 0.240975 | AM37: 0.21494375 | AN37: 0.1904 | AO37: 0.16734375 | AP37: 0.145775 | AQ37: 0.12569375 | AR37: 0.1071 | AS37: 0.08999375 | AT37: =IF(AT$35<=$L37,$K37*($M37-$L37)*($D$4-0.5*($L37+$M37))/$D$4,IF(AT$35<=$M37,$K37*($M37-AT$35)*($D$4-0.5*(AT$35+$M37))/$D$4,0)) -> 0.074375 | AU37: 0.06024375 | AV37: 0.0476 | AW37: 0.03644375 | AX37: 0.026775 | AY37: 0.01859375 | AZ37: 0.0119 | BA37: 0.00669375 | BB37: 0.002975 | BC37: 0.00074375 | BD37: 0 | BJ37: =IF(BJ$35<=$L37,$K37*($M37-$L37)*($D$4-0.5*($L37+$M37))/$D$4,IF(BJ$35<=$M37,$K37*($M37-BJ$35)*($D$4-0.5*(BJ$35+$M37))/$D$4,0)) -> 0.2803886545 | BK37: 0.3151181254 | BM37: =IF(BM$35<=$L37,$K37*($M37-$L37)*($D$4-0.5*($L37+$M37))/$D$4,IF(BM$35<=$M37,$K37*($M37-BM$35)*($D$4-0.5*(BM$35+$M37))/$D$4,0)) -> 0.6564147959 | BN37: 0.07877953134
B38: exc. p_1 | C38: (mm) | D38: =D15 -> 0 | I38: =I12 -> p2 | J38: =J12 -> d | K38: =K12 -> 0 | L38: =L12 -> 0 | M38: =M12 -> 0 | P38: 0 | Q38: 0 | R38: 0 | S38: 0 | T38: 0 | U38: 0 | V38: 0 | W38: 0 | X38: 0 | Y38: 0 | Z38: 0 | AA38: 0 | AB38: 0 | AC38: 0 | AD38: 0 | AE38: 0 | AF38: 0 | AG38: 0 | AH38: 0 | AI38: 0 | AJ38: 0 | AK38: 0 | AL38: 0 | AM38: 0 | AN38: 0 | AO38: 0 | AP38: 0 | AQ38: 0 | AR38: 0 | AS38: 0 | AT38: 0 | AU38: 0 | AV38: 0 | AW38: 0 | AX38: 0 | AY38: 0 | AZ38: 0 | BA38: 0 | BB38: 0 | BC38: 0 | BD38: 0 | BJ38: 0 | BK38: 0 | BM38: 0 | BN38: 0
B39: exc. p_2 | C39: (mm) | D39: =E15 -> 0 | I39: =I16 -> p3 | J39: =J16 -> d | K39: =K16 -> 0 | L39: =L16 -> 0 | M39: =M16 -> 0 | P39: 0 | Q39: 0 | R39: 0 | S39: 0 | T39: 0 | U39: 0 | V39: 0 | W39: 0 | X39: 0 | Y39: 0 | Z39: 0 | AA39: 0 | AB39: 0 | AC39: 0 | AD39: 0 | AE39: 0 | AF39: 0 | AG39: 0 | AH39: 0 | AI39: 0 | AJ39: 0 | AK39: 0 | AL39: 0 | AM39: 0 | AN39: 0 | AO39: 0 | AP39: 0 | AQ39: 0 | AR39: 0 | AS39: 0 | AT39: 0 | AU39: 0 | AV39: 0 | AW39: 0 | AX39: 0 | AY39: 0 | AZ39: 0 | BA39: 0 | BB39: 0 | BC39: 0 | BD39: 0 | BJ39: 0 | BK39: 0 | BM39: 0 | BN39: 0
B40: exc. p_3 | C40: (mm) | D40: =F15 -> 0 | I40: =I20 -> P1 | J40: =J20 -> d | K40: =K20 -> 128 | L40: =L20 -> 0.26 | M40: =M20 -> 0 | P40: =IF(P$35<=$L40,$K40*($D$4-$L40)/$D$4,0) -> 108.4235294 | Q40: 108.4235294 | R40: 108.4235294 | S40: 108.4235294 | T40: 108.4235294 | U40: 108.4235294 | V40: 108.4235294 | W40: 0 | X40: 0 | Y40: 0 | Z40: =IF(Z$35<=$L40,$K40*($D$4-$L40)/$D$4,0) -> 0 | AA40: 0 | AB40: 0 | AC40: 0 | AD40: 0 | AE40: 0 | AF40: 0 | AG40: 0 | AH40: 0 | AI40: 0 | AJ40: =IF(AJ$35<=$L40,$K40*($D$4-$L40)/$D$4,0) -> 0 | AK40: 0 | AL40: 0 | AM40: 0 | AN40: 0 | AO40: 0 | AP40: 0 | AQ40: 0 | AR40: 0 | AS40: 0 | AT40: =IF(AT$35<=$L40,$K40*($D$4-$L40)/$D$4,0) -> 0 | AU40: 0 | AV40: 0 | AW40: 0 | AX40: 0 | AY40: 0 | AZ40: 0 | BA40: 0 | BB40: 0 | BC40: 0 | BD40: 0 | BJ40: =IF(BJ$35<=$L40,$K40*($D$4-$L40)/$D$4,0) -> 0 | BK40: 0 | BM40: =IF(BM$35<=$L40,$K40*($D$4-$L40)/$D$4,0) -> 0 | BN40: 0
B41: exc. P_1 | C41: (mm) | D41: =D23 -> 0 | I41: =I24 -> P2 | J41: =J24 -> d | K41: =K24 -> 0 | L41: =L24 -> 0 | M41: =M24 -> 0 | P41: 0 | Q41: 0 | R41: 0 | S41: 0 | T41: 0 | U41: 0 | V41: 0 | W41: 0 | X41: 0 | Y41: 0 | Z41: 0 | AA41: 0 | AB41: 0 | AC41: 0 | AD41: 0 | AE41: 0 | AF41: 0 | AG41: 0 | AH41: 0 | AI41: 0 | AJ41: 0 | AK41: 0 | AL41: 0 | AM41: 0 | AN41: 0 | AO41: 0 | AP41: 0 | AQ41: 0 | AR41: 0 | AS41: 0 | AT41: 0 | AU41: 0 | AV41: 0 | AW41: 0 | AX41: 0 | AY41: 0 | AZ41: 0 | BA41: 0 | BB41: 0 | BC41: 0 | BD41: 0 | BJ41: 0 | BK41: 0 | BM41: 0 | BN41: 0
B42: exc. P_2 | C42: (mm) | D42: =E23 -> 0 | I42: =I28 -> P3 | J42: =J28 -> d | K42: =K28 -> 0 | L42: =L28 -> 0 | M42: =M28 -> 0 | P42: 0 | Q42: 0 | R42: 0 | S42: 0 | T42: 0 | U42: 0 | V42: 0 | W42: 0 | X42: 0 | Y42: 0 | Z42: 0 | AA42: 0 | AB42: 0 | AC42: 0 | AD42: 0 | AE42: 0 | AF42: 0 | AG42: 0 | AH42: 0 | AI42: 0 | AJ42: 0 | AK42: 0 | AL42: 0 | AM42: 0 | AN42: 0 | AO42: 0 | AP42: 0 | AQ42: 0 | AR42: 0 | AS42: 0 | AT42: 0 | AU42: 0 | AV42: 0 | AW42: 0 | AX42: 0 | AY42: 0 | AZ42: 0 | BA42: 0 | BB42: 0 | BC42: 0 | BD42: 0 | BJ42: 0 | BK42: 0 | BM42: 0 | BN42: 0
B43: exc. P_3 | C43: (mm) | D43: =F23 -> 0 | I43: Højresidig forskydning
I44: =I37 -> p1 | J44: d | K44: 1.4 | L44: 0 | M44: 1.7 | P44: =IF(P$35<$L44,0,IF(P$35<$M44,$K44*(P$35-$L44)*0.5*($L44+P$35)/$D$4,$K44*($M44-$L44)*0.5*($L44+$M44)/$D$4)) -> 0 | Q44: 0.00074375 | R44: 0.002975 | S44: 0.00669375 | T44: 0.0119 | U44: 0.01859375 | V44: 0.026775 | W44: 0.03644375 | X44: 0.0476 | Y44: 0.06024375 | Z44: =IF(Z$35<$L44,0,IF(Z$35<$M44,$K44*(Z$35-$L44)*0.5*($L44+Z$35)/$D$4,$K44*($M44-$L44)*0.5*($L44+$M44)/$D$4)) -> 0.074375 | AA44: 0.08999375 | AB44: 0.1071 | AC44: 0.12569375 | AD44: 0.145775 | AE44: 0.16734375 | AF44: 0.1904 | AG44: 0.21494375 | AH44: 0.240975 | AI44: 0.26849375 | AJ44: =IF(AJ$35<$L44,0,IF(AJ$35<$M44,$K44*(AJ$35-$L44)*0.5*($L44+AJ$35)/$D$4,$K44*($M44-$L44)*0.5*($L44+$M44)/$D$4)) -> 0.2975 | AK44: 0.32799375 | AL44: 0.359975 | AM44: 0.39344375 | AN44: 0.4284 | AO44: 0.46484375 | AP44: 0.502775 | AQ44: 0.54219375 | AR44: 0.5831 | AS44: 0.62549375 | AT44: =IF(AT$35<$L44,0,IF(AT$35<$M44,$K44*(AT$35-$L44)*0.5*($L44+AT$35)/$D$4,$K44*($M44-$L44)*0.5*($L44+$M44)/$D$4)) -> 0.669375 | AU44: 0.71474375 | AV44: 0.7616 | AW44: 0.80994375 | AX44: 0.859775 | AY44: 0.91109375 | AZ44: 0.9639 | BA44: 1.01819375 | BB44: 1.073975 | BC44: 1.13124375 | BD44: 1.19 | BJ44: =IF(BJ$35<$L44,0,IF(BJ$35<$M44,$K44*(BJ$35-$L44)*0.5*($L44+BJ$35)/$D$4,$K44*($M44-$L44)*0.5*($L44+$M44)/$D$4)) -> 0.3151181254 | BK44: 0.2803886545 | BM44: =IF(BM$35<$L44,0,IF(BM$35<$M44,$K44*(BM$35-$L44)*0.5*($L44+BM$35)/$D$4,$K44*($M44-$L44)*0.5*($L44+$M44)/$D$4)) -> 0.07877953134 | BN44: 0.6564147959
I45: p2 | J45: d | K45: 0 | L45: 0 | M45: 0 | P45: 0 | Q45: 0 | R45: 0 | S45: 0 | T45: 0 | U45: 0 | V45: 0 | W45: 0 | X45: 0 | Y45: 0 | Z45: 0 | AA45: 0 | AB45: 0 | AC45: 0 | AD45: 0 | AE45: 0 | AF45: 0 | AG45: 0 | AH45: 0 | AI45: 0 | AJ45: 0 | AK45: 0 | AL45: 0 | AM45: 0 | AN45: 0 | AO45: 0 | AP45: 0 | AQ45: 0 | AR45: 0 | AS45: 0 | AT45: 0 | AU45: 0 | AV45: 0 | AW45: 0 | AX45: 0 | AY45: 0 | AZ45: 0 | BA45: 0 | BB45: 0 | BC45: 0 | BD45: 0 | BJ45: 0 | BK45: 0 | BM45: 0 | BN45: 0
I46: p3 | J46: d | K46: 0 | L46: 0 | M46: 0 | P46: 0 | Q46: 0 | R46: 0 | S46: 0 | T46: 0 | U46: 0 | V46: 0 | W46: 0 | X46: 0 | Y46: 0 | Z46: 0 | AA46: 0 | AB46: 0 | AC46: 0 | AD46: 0 | AE46: 0 | AF46: 0 | AG46: 0 | AH46: 0 | AI46: 0 | AJ46: 0 | AK46: 0 | AL46: 0 | AM46: 0 | AN46: 0 | AO46: 0 | AP46: 0 | AQ46: 0 | AR46: 0 | AS46: 0 | AT46: 0 | AU46: 0 | AV46: 0 | AW46: 0 | AX46: 0 | AY46: 0 | AZ46: 0 | BA46: 0 | BB46: 0 | BC46: 0 | BD46: 0 | BJ46: 0 | BK46: 0 | BM46: 0 | BN46: 0
I47: P1 | J47: d | K47: 128 | L47: 0.26 | M47: 0 | P47: =IF(P$35<$L47,0,$K47*$L47/$D$4) -> 0 | Q47: 0 | R47: 0 | S47: 0 | T47: 0 | U47: 0 | V47: 0 | W47: 19.57647059 | X47: 19.57647059 | Y47: 19.57647059 | Z47: =IF(Z$35<$L47,0,$K47*$L47/$D$4) -> 19.57647059 | AA47: 19.57647059 | AB47: 19.57647059 | AC47: 19.57647059 | AD47: 19.57647059 | AE47: 19.57647059 | AF47: 19.57647059 | AG47: 19.57647059 | AH47: 19.57647059 | AI47: 19.57647059 | AJ47: =IF(AJ$35<$L47,0,$K47*$L47/$D$4) -> 19.57647059 | AK47: 19.57647059 | AL47: 19.57647059 | AM47: 19.57647059 | AN47: 19.57647059 | AO47: 19.57647059 | AP47: 19.57647059 | AQ47: 19.57647059 | AR47: 19.57647059 | AS47: 19.57647059 | AT47: =IF(AT$35<$L47,0,$K47*$L47/$D$4) -> 19.57647059 | AU47: 19.57647059 | AV47: 19.57647059 | AW47: 19.57647059 | AX47: 19.57647059 | AY47: 19.57647059 | AZ47: 19.57647059 | BA47: 19.57647059 | BB47: 19.57647059 | BC47: 19.57647059 | BD47: 19.57647059 | BJ47: =IF(BJ$35<$L47,0,$K47*$L47/$D$4) -> 19.57647059 | BK47: 19.57647059 | BM47: =IF(BM$35<$L47,0,$K47*$L47/$D$4) -> 19.57647059 | BN47: 19.57647059
I48: P2 | J48: d | K48: 0 | L48: 0 | M48: 0 | P48: 0 | Q48: 0 | R48: 0 | S48: 0 | T48: 0 | U48: 0 | V48: 0 | W48: 0 | X48: 0 | Y48: 0 | Z48: 0 | AA48: 0 | AB48: 0 | AC48: 0 | AD48: 0 | AE48: 0 | AF48: 0 | AG48: 0 | AH48: 0 | AI48: 0 | AJ48: 0 | AK48: 0 | AL48: 0 | AM48: 0 | AN48: 0 | AO48: 0 | AP48: 0 | AQ48: 0 | AR48: 0 | AS48: 0 | AT48: 0 | AU48: 0 | AV48: 0 | AW48: 0 | AX48: 0 | AY48: 0 | AZ48: 0 | BA48: 0 | BB48: 0 | BC48: 0 | BD48: 0 | BJ48: 0 | BK48: 0 | BM48: 0 | BN48: 0
I49: P3 | J49: d | K49: 0 | L49: 0 | M49: 0 | P49: 0 | Q49: 0 | R49: 0 | S49: 0 | T49: 0 | U49: 0 | V49: 0 | W49: 0 | X49: 0 | Y49: 0 | Z49: 0 | AA49: 0 | AB49: 0 | AC49: 0 | AD49: 0 | AE49: 0 | AF49: 0 | AG49: 0 | AH49: 0 | AI49: 0 | AJ49: 0 | AK49: 0 | AL49: 0 | AM49: 0 | AN49: 0 | AO49: 0 | AP49: 0 | AQ49: 0 | AR49: 0 | AS49: 0 | AT49: 0 | AU49: 0 | AV49: 0 | AW49: 0 | AX49: 0 | AY49: 0 | AZ49: 0 | BA49: 0 | BB49: 0 | BC49: 0 | BD49: 0 | BJ49: 0 | BK49: 0 | BM49: 0 | BN49: 0
I51: V_d - venstre | P51: =SUM(P37:P42) -> 109.6135294 | Q51: 109.5547732 | R51: 109.4975044 | S51: 109.4417232 | T51: 109.3874294 | U51: 109.3346232 | V51: 109.2833044 | W51: 0.80994375 | X51: 0.7616 | Y51: 0.71474375 | Z51: 0.669375 | AA51: 0.62549375 | AB51: 0.5831 | AC51: 0.54219375 | AD51: 0.502775 | AE51: 0.46484375 | AF51: 0.4284 | AG51: 0.39344375 | AH51: 0.359975 | AI51: 0.32799375 | AJ51: 0.2975 | AK51: 0.26849375 | AL51: 0.240975 | AM51: 0.21494375 | AN51: 0.1904 | AO51: 0.16734375 | AP51: 0.145775 | AQ51: 0.12569375 | AR51: 0.1071 | AS51: 0.08999375 | AT51: 0.074375 | AU51: 0.06024375 | AV51: 0.0476 | AW51: 0.03644375 | AX51: 0.026775 | AY51: 0.01859375 | AZ51: 0.0119 | BA51: 0.00669375 | BB51: 0.002975 | BC51: 0.00074375 | BD51: 0 | BJ51: =SUM(BJ37:BJ42) -> 0.2803886545 | BK51: =SUM(BK37:BK42) -> 0.3151181254 | BM51: =SUM(BM37:BM42) -> 0.6564147959 | BN51: =SUM(BN37:BN42) -> 0.07877953134
I52: V_d - højre | P52: =SUM(P44:P49) -> 0 | Q52: 0.00074375 | R52: 0.002975 | S52: 0.00669375 | T52: 0.0119 | U52: 0.01859375 | V52: 0.026775 | W52: 19.61291434 | X52: 19.62407059 | Y52: 19.63671434 | Z52: 19.65084559 | AA52: 19.66646434 | AB52: 19.68357059 | AC52: 19.70216434 | AD52: 19.72224559 | AE52: 19.74381434 | AF52: 19.76687059 | AG52: 19.79141434 | AH52: 19.81744559 | AI52: 19.84496434 | AJ52: 19.87397059 | AK52: 19.90446434 | AL52: 19.93644559 | AM52: 19.96991434 | AN52: 20.00487059 | AO52: 20.04131434 | AP52: 20.07924559 | AQ52: 20.11866434 | AR52: 20.15957059 | AS52: 20.20196434 | AT52: 20.24584559 | AU52: 20.29121434 | AV52: 20.33807059 | AW52: 20.38641434 | AX52: 20.43624559 | AY52: 20.48756434 | AZ52: 20.54037059 | BA52: 20.59466434 | BB52: 20.65044559 | BC52: 20.70771434 | BD52: 20.76647059 | BJ52: =SUM(BJ44:BJ49) -> 19.89158871 | BK52: =SUM(BK44:BK49) -> 19.85685924 | BM52: =SUM(BM44:BM49) -> 19.65525012 | BN52: =SUM(BN44:BN49) -> 20.23288538
I54: FORSKYDNING | P54: =P34 -> 0 | Q54: 1 | R54: 2 | S54: 3 | T54: 4 | U54: 5 | V54: 6 | W54: 7 | X54: 8 | Y54: 9 | Z54: 10 | AA54: 11 | AB54: 12 | AC54: 13 | AD54: 14 | AE54: 15 | AF54: 16 | AG54: 17 | AH54: 18 | AI54: 19 | AJ54: 20 | AK54: 21 | AL54: 22 | AM54: 23 | AN54: 24 | AO54: 25 | AP54: 26 | AQ54: 27 | AR54: 28 | AS54: 29 | AT54: 30 | AU54: 31 | AV54: 32 | AW54: 33 | AX54: 34 | AY54: 35 | AZ54: 36 | BA54: 37 | BB54: 38 | BC54: 39 | BD54: 40 | BE54: =BF54 -> 20.58368859 | BF54: =40*BF35/Brand!$L$8 -> 20.58368859 | BG54: =40*BG35/Brand!$L$8 -> 19.41631141 | BH54: =BG54 -> 19.41631141
O55: : | P55: =MAX(P52,P51) -> 109.6135294 | Q55: 109.5547732 | R55: 109.4975044 | S55: 109.4417232 | T55: 109.3874294 | U55: 109.3346232 | V55: 109.2833044 | W55: 19.61291434 | X55: 19.62407059 | Y55: 19.63671434 | Z55: 19.65084559 | AA55: 19.66646434 | AB55: 19.68357059 | AC55: 19.70216434 | AD55: 19.72224559 | AE55: 19.74381434 | AF55: 19.76687059 | AG55: 19.79141434 | AH55: 19.81744559 | AI55: 19.84496434 | AJ55: 19.87397059 | AK55: 19.90446434 | AL55: 19.93644559 | AM55: 19.96991434 | AN55: 20.00487059 | AO55: 20.04131434 | AP55: 20.07924559 | AQ55: 20.11866434 | AR55: 20.15957059 | AS55: 20.20196434 | AT55: 20.24584559 | AU55: 20.29121434 | AV55: 20.33807059 | AW55: 20.38641434 | AX55: 20.43624559 | AY55: 20.48756434 | AZ55: 20.54037059 | BA55: 20.59466434 | BB55: 20.65044559 | BC55: 20.70771434 | BD55: 20.76647059
O56: : | P56: =Brand!$O$31 -> 125.2517936 | Q56: =Brand!$O$31 -> 125.2517936 | R56: =Brand!$O$31 -> 125.2517936 | S56: =Brand!$O$31 -> 125.2517936 | T56: =Brand!$O$31 -> 125.2517936 | U56: =Brand!$O$31 -> 125.2517936 | V56: =Brand!$O$31 -> 125.2517936 | W56: =Brand!$O$31 -> 125.2517936 | X56: =Brand!$O$31 -> 125.2517936 | Y56: =Brand!$O$31 -> 125.2517936 | Z56: =Brand!$O$31 -> 125.2517936 | AA56: =Brand!$O$31 -> 125.2517936 | AB56: =Brand!$O$31 -> 125.2517936 | AC56: =Brand!$O$31 -> 125.2517936 | AD56: =Brand!$O$31 -> 125.2517936 | AE56: =Brand!$O$31 -> 125.2517936 | AF56: =Brand!$O$31 -> 125.2517936 | AG56: =Brand!$O$31 -> 125.2517936 | AH56: =Brand!$O$31 -> 125.2517936 | AI56: =Brand!$O$31 -> 125.2517936 | AJ56: =Brand!$O$31 -> 125.2517936 | AK56: =Brand!$O$31 -> 125.2517936 | AL56: =Brand!$O$31 -> 125.2517936 | AM56: =Brand!$O$31 -> 125.2517936 | AN56: =Brand!$O$31 -> 125.2517936 | AO56: =Brand!$O$31 -> 125.2517936 | AP56: =Brand!$O$31 -> 125.2517936 | AQ56: =Brand!$O$31 -> 125.2517936 | AR56: =Brand!$O$31 -> 125.2517936 | AS56: =Brand!$O$31 -> 125.2517936 | AT56: =Brand!$O$31 -> 125.2517936 | AU56: =Brand!$O$31 -> 125.2517936 | AV56: =Brand!$O$31 -> 125.2517936 | AW56: =Brand!$O$31 -> 125.2517936 | AX56: =Brand!$O$31 -> 125.2517936 | AY56: =Brand!$O$31 -> 125.2517936 | AZ56: =Brand!$O$31 -> 125.2517936 | BA56: =Brand!$O$31 -> 125.2517936 | BB56: =Brand!$O$31 -> 125.2517936 | BC56: =Brand!$O$31 -> 125.2517936 | BD56: =Brand!$O$31 -> 125.2517936
O57: : | P57: =Brand!$O$32 -> 125.2517936 | Q57: =Brand!$O$32 -> 125.2517936 | R57: =Brand!$O$32 -> 125.2517936 | S57: =Brand!$O$32 -> 125.2517936 | T57: =Brand!$O$32 -> 125.2517936 | U57: =Brand!$O$32 -> 125.2517936 | V57: =Brand!$O$32 -> 125.2517936 | W57: =Brand!$O$32 -> 125.2517936 | X57: =Brand!$O$32 -> 125.2517936 | Y57: =Brand!$O$32 -> 125.2517936 | Z57: =Brand!$O$32 -> 125.2517936 | AA57: =Brand!$O$32 -> 125.2517936 | AB57: =Brand!$O$32 -> 125.2517936 | AC57: =Brand!$O$32 -> 125.2517936 | AD57: =Brand!$O$32 -> 125.2517936 | AE57: =Brand!$O$32 -> 125.2517936 | AF57: =Brand!$O$32 -> 125.2517936 | AG57: =Brand!$O$32 -> 125.2517936 | AH57: =Brand!$O$32 -> 125.2517936 | AI57: =Brand!$O$32 -> 125.2517936 | AJ57: =Brand!$O$32 -> 125.2517936 | AK57: =Brand!$O$32 -> 125.2517936 | AL57: =Brand!$O$32 -> 125.2517936 | AM57: =Brand!$O$32 -> 125.2517936 | AN57: =Brand!$O$32 -> 125.2517936 | AO57: =Brand!$O$32 -> 125.2517936 | AP57: =Brand!$O$32 -> 125.2517936 | AQ57: =Brand!$O$32 -> 125.2517936 | AR57: =Brand!$O$32 -> 125.2517936 | AS57: =Brand!$O$32 -> 125.2517936 | AT57: =Brand!$O$32 -> 125.2517936 | AU57: =Brand!$O$32 -> 125.2517936 | AV57: =Brand!$O$32 -> 125.2517936 | AW57: =Brand!$O$32 -> 125.2517936 | AX57: =Brand!$O$32 -> 125.2517936 | AY57: =Brand!$O$32 -> 125.2517936 | AZ57: =Brand!$O$32 -> 125.2517936 | BA57: =Brand!$O$32 -> 125.2517936 | BB57: =Brand!$O$32 -> 125.2517936 | BC57: =Brand!$O$32 -> 125.2517936 | BD57: =Brand!$O$32 -> 125.2517936
O58: : | BE58: =1.1*MAX(P55:BD55) -> 120.5748824 | BF58: 0 | BG58: 0 | BH58: =1.1*MAX(P55:BD55) -> 120.5748824
T59: 0 | X59: 0 | AB59: 0 | AF59: 0 | AK59: 0 | AN59: 0 | AR59: 0 | AV59: 0 | AZ59: 0
I60: EXCENTRICITET | P60: =IF(P51>=P52,IF(P51=0,0,SUMPRODUCT($D$38:$D$43,P37:P42)/P51),IF(P52=0,0,SUMPRODUCT($D$38:$D$43,P44:P49)/P52)) -> 0 | Q60: 0 | R60: 0 | S60: 0 | T60: 0 | U60: 0 | V60: 0 | W60: 0 | X60: 0 | Y60: 0 | Z60: 0 | AA60: 0 | AB60: 0 | AC60: 0 | AD60: 0 | AE60: 0 | AF60: 0 | AG60: 0 | AH60: 0 | AI60: 0 | AJ60: 0 | AK60: 0 | AL60: 0 | AM60: 0 | AN60: 0 | AO60: 0 | AP60: 0 | AQ60: 0 | AR60: 0 | AS60: 0 | AT60: 0 | AU60: 0 | AV60: 0 | AW60: 0 | AX60: 0 | AY60: 0 | AZ60: 0 | BA60: 0 | BB60: 0 | BC60: 0 | BD60: 0
I65: Bøjlekapacitet
K66: =IF(Brand2!D4-Brand!J34*Brand!O15/1000>0,2*MAX(Brand!O31,Brand!O32)*Brand2!D4/(Brand2!D4-Brand!J34*Brand!O15/1000)^2,2*Brand!O30/Brand!L8) -> 625.3908931 | L66: 0 | M66: =Brand!L8 -> 1.7 | P66: =IF(P$35<=$L66,$K66*($M66-$L66)*($D$4-0.5*($L66+$M66))/$D$4,IF(P$35<=$M66,$K66*($M66-P$35)*($D$4-0.5*(P$35+$M66))/$D$4,0)) -> 531.5822591 | Q66: 505.3353851 | R66: 479.7529888 | S66: 454.8350704 | T66: 430.5816299 | U66: 406.9926671 | V66: 384.0681822 | W66: 361.8081751 | X66: 340.2126458 | Y66: 319.2815944 | Z66: 299.0150207 | AA66: 279.4129249 | AB66: 260.475307 | AC66: 242.2021668 | AD66: 224.5935045 | AE66: 207.64932 | AF66: 191.3696133 | AG66: 175.7543844 | AH66: 160.8036334 | AI66: 146.5173602 | AJ66: 132.8955648 | AK66: 119.9382472 | AL66: 107.6454075 | AM66: 96.01704555 | AN66: 85.05316146 | AO66: 74.75375519 | AP66: 65.11882674 | AQ66: 56.14837612 | AR66: 47.84240332 | AS66: 40.20090834 | AT66: 33.22389119 | AU66: 26.91135187 | AV66: 21.26329036 | AW66: 16.27970668 | AX66: 11.96060083 | AY66: 8.305972798 | AZ66: 5.315822591 | BA66: 2.990150207 | BB66: 1.328955648 | BC66: 0.3322389119 | BD66: 0
K67: =IF(Brand2!D4-Brand!J34*Brand!O15/1000>0,2*MAX(Brand!O31,Brand!O32)*Brand2!D4/(Brand2!D4-Brand!J34*Brand!O15/1000)^2,2*Brand!O30/Brand!L8) -> 625.3908931 | L67: 0 | M67: =Brand!L8 -> 1.7 | P67: =IF(P$35<$L67,0,IF(P$35<$M67,$K67*(P$35-$L67)*0.5*($L67+P$35)/$D$4,$K67*($M67-$L67)*0.5*($L67+$M67)/$D$4)) -> 0 | Q67: 0.3322389119 | R67: 1.328955648 | S67: 2.990150207 | T67: 5.315822591 | U67: 8.305972798 | V67: 11.96060083 | W67: 16.27970668 | X67: 21.26329036 | Y67: 26.91135187 | Z67: 33.22389119 | AA67: 40.20090834 | AB67: 47.84240332 | AC67: 56.14837612 | AD67: 65.11882674 | AE67: 74.75375519 | AF67: 85.05316146 | AG67: 96.01704555 | AH67: 107.6454075 | AI67: 119.9382472 | AJ67: 132.8955648 | AK67: 146.5173602 | AL67: 160.8036334 | AM67: 175.7543844 | AN67: 191.3696133 | AO67: 207.64932 | AP67: 224.5935045 | AQ67: 242.2021668 | AR67: 260.475307 | AS67: 279.4129249 | AT67: 299.0150207 | AU67: 319.2815944 | AV67: 340.2126458 | AW67: 361.8081751 | AX67: 384.0681822 | AY67: 406.9926671 | AZ67: 430.5816299 | BA67: 454.8350704 | BB67: 479.7529888 | BC67: 505.3353851 | BD67: 531.5822591
I68: =MAX(Q68:BC68) -> 0 | Q68: =IF(Q55>MAX(Q66:Q67,Brand!$O$32,Brand!$O$31),1,0) -> 0 | R68: =IF(R55>MAX(R66:R67,Brand!$O$32,Brand!$O$31),1,0) -> 0 | S68: =IF(S55>MAX(S66:S67,Brand!$O$32,Brand!$O$31),1,0) -> 0 | T68: =IF(T55>MAX(T66:T67,Brand!$O$32,Brand!$O$31),1,0) -> 0 | U68: =IF(U55>MAX(U66:U67,Brand!$O$32,Brand!$O$31),1,0) -> 0 | V68: =IF(V55>MAX(V66:V67,Brand!$O$32,Brand!$O$31),1,0) -> 0 | W68: =IF(W55>MAX(W66:W67,Brand!$O$32,Brand!$O$31),1,0) -> 0 | X68: =IF(X55>MAX(X66:X67,Brand!$O$32,Brand!$O$31),1,0) -> 0 | Y68: =IF(Y55>MAX(Y66:Y67,Brand!$O$32,Brand!$O$31),1,0) -> 0 | Z68: =IF(Z55>MAX(Z66:Z67,Brand!$O$32,Brand!$O$31),1,0) -> 0 | AA68: =IF(AA55>MAX(AA66:AA67,Brand!$O$32,Brand!$O$31),1,0) -> 0 | AB68: =IF(AB55>MAX(AB66:AB67,Brand!$O$32,Brand!$O$31),1,0) -> 0 | AC68: =IF(AC55>MAX(AC66:AC67,Brand!$O$32,Brand!$O$31),1,0) -> 0 | AD68: =IF(AD55>MAX(AD66:AD67,Brand!$O$32,Brand!$O$31),1,0) -> 0 | AE68: =IF(AE55>MAX(AE66:AE67,Brand!$O$32,Brand!$O$31),1,0) -> 0 | AF68: =IF(AF55>MAX(AF66:AF67,Brand!$O$32,Brand!$O$31),1,0) -> 0 | AG68: =IF(AG55>MAX(AG66:AG67,Brand!$O$32,Brand!$O$31),1,0) -> 0 | AH68: =IF(AH55>MAX(AH66:AH67,Brand!$O$32,Brand!$O$31),1,0) -> 0 | AI68: =IF(AI55>MAX(AI66:AI67,Brand!$O$32,Brand!$O$31),1,0) -> 0 | AJ68: =IF(AJ55>MAX(AJ66:AJ67,Brand!$O$32,Brand!$O$31),1,0) -> 0 | AK68: =IF(AK55>MAX(AK66:AK67,Brand!$O$32,Brand!$O$31),1,0) -> 0 | AL68: =IF(AL55>MAX(AL66:AL67,Brand!$O$32,Brand!$O$31),1,0) -> 0 | AM68: =IF(AM55>MAX(AM66:AM67,Brand!$O$32,Brand!$O$31),1,0) -> 0 | AN68: =IF(AN55>MAX(AN66:AN67,Brand!$O$32,Brand!$O$31),1,0) -> 0 | AO68: =IF(AO55>MAX(AO66:AO67,Brand!$O$32,Brand!$O$31),1,0) -> 0 | AP68: =IF(AP55>MAX(AP66:AP67,Brand!$O$32,Brand!$O$31),1,0) -> 0 | AQ68: =IF(AQ55>MAX(AQ66:AQ67,Brand!$O$32,Brand!$O$31),1,0) -> 0 | AR68: =IF(AR55>MAX(AR66:AR67,Brand!$O$32,Brand!$O$31),1,0) -> 0 | AS68: =IF(AS55>MAX(AS66:AS67,Brand!$O$32,Brand!$O$31),1,0) -> 0 | AT68: =IF(AT55>MAX(AT66:AT67,Brand!$O$32,Brand!$O$31),1,0) -> 0 | AU68: =IF(AU55>MAX(AU66:AU67,Brand!$O$32,Brand!$O$31),1,0) -> 0 | AV68: =IF(AV55>MAX(AV66:AV67,Brand!$O$32,Brand!$O$31),1,0) -> 0 | AW68: =IF(AW55>MAX(AW66:AW67,Brand!$O$32,Brand!$O$31),1,0) -> 0 | AX68: =IF(AX55>MAX(AX66:AX67,Brand!$O$32,Brand!$O$31),1,0) -> 0 | AY68: =IF(AY55>MAX(AY66:AY67,Brand!$O$32,Brand!$O$31),1,0) -> 0 | AZ68: =IF(AZ55>MAX(AZ66:AZ67,Brand!$O$32,Brand!$O$31),1,0) -> 0 | BA68: =IF(BA55>MAX(BA66:BA67,Brand!$O$32,Brand!$O$31),1,0) -> 0 | BB68: =IF(BB55>MAX(BB66:BB67,Brand!$O$32,Brand!$O$31),1,0) -> 0 | BC68: =IF(BC55>MAX(BC66:BC67,Brand!$O$32,Brand!$O$31),1,0) -> 0
C85: Jævnt fordelte laste | G85: Punktlaste
D86: p1 | E86: p2 | F86: p3 | H86: P1 | I86: P2 | J86: P3
B88: Kar. værdi | C88: (kN/m) | D88: =Kold2!D88 -> 1.4 | E88: =Kold2!E88 -> 0 | F88: =Kold2!F88 -> 0 | G88: (kN) | H88: =Kold2!H88 -> 128 | I88: =Kold2!I88 -> 0 | J88: =Kold2!J88 -> 0
B89: Regnm. værdi | C89: (kN/m) | D89: =B95+C95*I95 -> 1.4 | E89: =B96+C96*I96 -> 0 | F89: =B97+C97*I97 -> 0 | G89: (kN) | H89: =B99+C99*I99 -> 128 | I89: =B100+C100*I100 -> 0 | J89: =B101+C101*I101 -> 0
B90: Excentricitet, exc. | C90: (mm) | D90: =Kold2!D90 -> 0 | E90: =Kold2!E90 -> 0 | F90: =Kold2!F90 -> 0 | G90: (mm) | H90: =Kold2!H90 -> 0 | I90: =Kold2!I90 -> 0 | J90: =Kold2!J90 -> 0
B91: x1 | C91: (m) | D91: =Kold2!D91 -> 0 | E91: =Kold2!E91 -> 0 | F91: =Kold2!F91 -> 0 | G91: (m) | H91: =Kold2!H91 -> 0.26 | I91: =Kold2!I91 -> 0 | J91: =Kold2!J91 -> 0
B92: x2 | C92: (m) | D92: =Kold2!D92 -> 1.7 | E92: =Kold2!E92 -> 0 | F92: =Kold2!F92 -> 0
A94: =Kold!B21 -> Lastparametre: | B94: =Kold!C21 -> gk [kN/m] | C94: =Kold!D21 -> qk [kN/m] | D94: =Kold!E21 -> e [mm] | E94: =Kold!F21 -> x1 [m] | F94: =Kold!G21 -> x2 [m] | G94: =Kold!H21 -> ϒg | H94: =Kold!I21 -> ϒq | I94: =Kold!J21 -> ψ1 | J94: =Kold!K21 -> ψ2
A95: =Kold!B22 -> p1 | B95: =Kold!C22 -> 1.4 | C95: =Kold!D22 -> 0 | D95: =Kold!E22 -> 0 | E95: =Kold!F22 -> 0 | F95: =Kold!G22 -> 1.7 | G95: =Kold!H22 -> 1 | H95: =Kold!I22 -> 0 | I95: =Kold!J22 -> 0 | J95: =Kold!K22 -> 0
A96: =Kold!B23 -> p2 | B96: =Kold!C23 -> 0 | C96: =Kold!D23 -> 0 | D96: =Kold!E23 -> 0 | E96: =Kold!F23 -> 0 | F96: =Kold!G23 -> 0 | G96: =Kold!H23 -> 1 | H96: =Kold!I23 -> 1.5 | I96: =Kold!J23 -> 0.6 | J96: =Kold!K23 -> 0.5
A97: =Kold!B24 -> p3 | B97: =Kold!C24 -> 0 | C97: =Kold!D24 -> 0 | D97: =Kold!E24 -> 0 | E97: =Kold!F24 -> 0 | F97: =Kold!G24 -> 0 | G97: =Kold!H24 -> 1 | H97: =Kold!I24 -> 1.5 | I97: =Kold!J24 -> 0.6 | J97: =Kold!K24 -> 0.5
A98: =Kold!B25 -> 0 | B98: =Kold!C25 -> Gk [kN] | C98: =Kold!D25 -> Qk [kN] | D98: =Kold!E25 -> e [mm] | E98: =Kold!F25 -> x1 [m] | F98: =Kold!G25 -> 0
A99: =Kold!B26 -> P1 | B99: =Kold!C26 -> 128 | C99: =Kold!D26 -> 0 | D99: =Kold!E26 -> 0 | E99: =Kold!F26 -> 0.26 | F99: =Kold!G26 -> 0 | G99: =Kold!H26 -> 1 | H99: =Kold!I26 -> 1.5 | I99: =Kold!J26 -> 0.6 | J99: =Kold!K26 -> 0.5
A100: =Kold!B27 -> P2 | B100: =Kold!C27 -> 0 | C100: =Kold!D27 -> 0 | D100: =Kold!E27 -> 0 | E100: =Kold!F27 -> 0 | F100: =Kold!G27 -> 0 | G100: =Kold!H27 -> 1 | H100: =Kold!I27 -> 1.5 | I100: =Kold!J27 -> 0.6 | J100: =Kold!K27 -> 0.5
A101: =Kold!B28 -> P3 | B101: =Kold!C28 -> 0 | C101: =Kold!D28 -> 0 | D101: =Kold!E28 -> 0 | E101: =Kold!F28 -> 0 | F101: =Kold!G28 -> 0 | G101: =Kold!H28 -> 1 | H101: =Kold!I28 -> 1.5 | I101: =Kold!J28 -> 0.6 | J101: =Kold!K28 -> 0.5

Sheet Firsidig
D2: 0 | K2: Q | M2: y | N2: Q-3 | V2: Q-4 | Z2: Temp i bøjler | AB2: y | AC2: Q-3 | AK2: Q-4
L3: Punkt | O3: 1 | P3: 2 | Q3: 3 | R3: Midte | S3: 4 | T3: 5 | U3: 6 | AA3: Punkt | AD3: 1 | AE3: 2 | AF3: 3 | AG3: Midte | AH3: 4 | AI3: 5 | AJ3: 6
K4: x | O4: =$E$16/(4*$E$19)+(O3-1)*$E$16/(2*$E$19) -> 0.0125 | P4: =$E$16/(4*$E$19)+(P3-1)*$E$16/(2*$E$19) -> 0.0375 | Q4: =$E$16/(4*$E$19)+(Q3-1)*$E$16/(2*$E$19) -> 0.0625 | R4: =0.5*E16 -> 0.075 | S4: =$E$16/(4*$E$19)+(S3-1)*$E$16/(2*$E$19) -> 0.0875 | T4: =$E$16/(4*$E$19)+(T3-1)*$E$16/(2*$E$19) -> 0.1125 | U4: =$E$16/(4*$E$19)+(U3-1)*$E$16/(2*$E$19) -> 0.1375 | Z4: x | AD4: =E29-0.5*(MAX(Brand!M11:M13)+MAX(Brand!M15:M16))/1000 -> 0.028 | AE4: =AD4+0.4*($AG$4-$AD$4) -> 0.0468 | AF4: =AE4+0.4*($AG$4-$AD$4) -> 0.0656 | AG4: =0.5*E16 -> 0.075 | AH4: =AG4+0.2*($AJ$4-$AG$4) -> 0.0844 | AI4: =AH4+0.4*($AJ$4-$AG$4) -> 0.1032 | AJ4: =E16-AD4 -> 0.122
K5: Q-1 | O5: =MAX(312*LOG10(8*$E$17+1)*EXP(-1.9*O4*$E$18/SQRT($E$17))*SIN(PI()/2-O4*$E$18/SQRT($E$17)),0)*$B$6 -> 581.3144697 | P5: =MAX(312*LOG10(8*$E$17+1)*EXP(-1.9*P4*$E$18/SQRT($E$17))*SIN(PI()/2-P4*$E$18/SQRT($E$17)),0)*$B$6 -> 251.7255809 | Q5: =MAX(312*LOG10(8*$E$17+1)*EXP(-1.9*Q4*$E$18/SQRT($E$17))*SIN(PI()/2-Q4*$E$18/SQRT($E$17)),0)*$B$6 -> 89.84574258 | R5: 47.42381787 | S5: 21.04817415 | T5: 0 | U5: 0 | V5: =MAX(312*LOG10(8*$E$17+1)*EXP(-1.9*($E$16)*$E$18/SQRT($E$17))*SIN(PI()/2-($E$16)*$E$18/SQRT($E$17)),0) -> 0 | Z5: Q-1 | AD5: =MAX(312*LOG10(8*$E$17+1)*EXP(-1.9*AD4*$E$18/SQRT($E$17))*SIN(PI()/2-AD4*$E$18/SQRT($E$17)),0)*$B$6 -> 352.4182036 | AE5: =MAX(312*LOG10(8*$E$17+1)*EXP(-1.9*AE4*$E$18/SQRT($E$17))*SIN(PI()/2-AE4*$E$18/SQRT($E$17)),0)*$B$6 -> 176.4594921 | AF5: 77.48945047 | AG5: 47.42381787 | AH5: 26.39872991 | AI5: 2.884930578 | AJ5: 0
B6: =Brand!AT40 -> 1 | F6: =Brand!AT40 -> 1 | L6: 1 | M6: =$E$15/(4*$E$19)+(L6-1)*$E$15/(2*$E$19) -> 0.03333333333 | N6: =MAX(312*LOG10(8*$E$17+1)*EXP(-1.9*M6*$E$18/SQRT($E$17))*SIN(PI()/2-M6*$E$18/SQRT($E$17)),0)*$D$2 -> 0 | O6: =MAX(((O$5+O$13)*$E$20/($E$20+$V$5))*(1-($N6+$V6)/$E$20)+$N6+$V6,20) -> 581.3202747 | P6: =MAX(((P$5+P$13)*$E$20/($E$20+$V$5))*(1-($N6+$V6)/$E$20)+$N6+$V6,20) -> 251.7388737 | Q6: 110.9104091 | R6: 94.86449268 | S6: 110.9104091 | T6: 251.7388737 | U6: 581.3202747 | V6: =MAX(312*LOG10(8*$E$17+1)*EXP(-1.9*($E$15-M6)*$E$18/SQRT($E$17))*SIN(PI()/2-($E$15-M6)*$E$18/SQRT($E$17)),0)*$D$11 -> 0.0190117653
L7: 2 | M7: =$E$15/(4*$E$19)+(L7-1)*$E$15/(2*$E$19) -> 0.1 | N7: =MAX(312*LOG10(8*$E$17+1)*EXP(-1.9*M7*$E$18/SQRT($E$17))*SIN(PI()/2-M7*$E$18/SQRT($E$17)),0)*$D$2 -> 0 | O7: =MAX(((O$5+O$13)*$E$20/($E$20+$V$5))*(1-($N7+$V7)/$E$20)+$N7+$V7,20) -> 581.3144697 | P7: 251.7255809 | Q7: 110.8939167 | R7: 94.84763574 | S7: 110.8939167 | T7: 251.7255809 | U7: 581.3144697 | V7: =MAX(312*LOG10(8*$E$17+1)*EXP(-1.9*($E$15-M7)*$E$18/SQRT($E$17))*SIN(PI()/2-($E$15-M7)*$E$18/SQRT($E$17)),0)*$D$11 -> 0
L8: 3 | M8: =$E$15/(4*$E$19)+(L8-1)*$E$15/(2*$E$19) -> 0.1666666667 | N8: 0 | O8: =MAX(((O$5+O$13)*$E$20/($E$20+$V$5))*(1-($N8+$V8)/$E$20)+$N8+$V8,20) -> 581.3144697 | P8: 251.7255809 | Q8: 110.8939167 | R8: 94.84763574 | S8: 110.8939167 | T8: 251.7255809 | U8: 581.3144697 | V8: 0
L9: Midte | M9: =0.5*E15 -> 0.2 | N9: 0 | O9: 581.3144697 | P9: 251.7255809 | Q9: 110.8939167 | R9: 94.84763574 | S9: 110.8939167 | T9: 251.7255809 | U9: 581.3144697 | V9: 0 | AA9: Midte | AB9: =0.5*E15 -> 0.2 | AC9: =MAX(312*LOG10(8*$E$17+1)*EXP(-1.9*AB9*$E$18/SQRT($E$17))*SIN(PI()/2-AB9*$E$18/SQRT($E$17)),0)*$D$2 -> 0
L10: 4 | M10: =$E$15/(4*$E$19)+(L10-1)*$E$15/(2*$E$19) -> 0.2333333333 | N10: 0 | O10: 581.3144697 | P10: 251.7255809 | Q10: 110.8939167 | R10: 94.84763574 | S10: 110.8939167 | T10: 251.7255809 | U10: 581.3144697 | V10: 0 | AA10: 4 | AB10: =AB9+0.2*($AB$12-$AB$9) -> 0.2344 | AC10: =MAX(312*LOG10(8*$E$17+1)*EXP(-1.9*AB10*$E$18/SQRT($E$17))*SIN(PI()/2-AB10*$E$18/SQRT($E$17)),0)*$D$2 -> 0 | AD10: =MAX((($AC10+$AK10)*$E$20/($E$20+$V$5))*(1-(AD$5+AD$13)/$E$20)+AD$5+AD$13,20) -> 352.4182036 | AJ10: =MAX((($AC10+$AK10)*$E$20/($E$20+$V$5))*(1-(AJ$5+AJ$13)/$E$20)+AJ$5+AJ$13,20) -> 352.4182036 | AK10: =MAX(312*LOG10(8*$E$17+1)*EXP(-1.9*($E$15-AB10)*$E$18/SQRT($E$17))*SIN(PI()/2-($E$15-AB10)*$E$18/SQRT($E$17)),0)*$D$11 -> 0
D11: =Brand!AT39 -> 1 | L11: 5 | M11: =$E$15/(4*$E$19)+(L11-1)*$E$15/(2*$E$19) -> 0.3 | N11: 0 | O11: 583.0167704 | P11: 255.6236797 | Q11: 115.730269 | R11: 99.79089208 | S11: 115.730269 | T11: 255.6236797 | U11: 583.0167704 | V11: 5.575153434 | AA11: 5 | AB11: =AB10+0.4*($AB$12-$AB$9) -> 0.3032 | AC11: =MAX(312*LOG10(8*$E$17+1)*EXP(-1.9*AB11*$E$18/SQRT($E$17))*SIN(PI()/2-AB11*$E$18/SQRT($E$17)),0)*$D$2 -> 0 | AD11: 357.4703281 | AJ11: 357.4703281 | AK11: =MAX(312*LOG10(8*$E$17+1)*EXP(-1.9*($E$15-AB11)*$E$18/SQRT($E$17))*SIN(PI()/2-($E$15-AB11)*$E$18/SQRT($E$17)),0)*$D$11 -> 8.727638935
L12: 6 | M12: =$E$15/(4*$E$19)+(L12-1)*$E$15/(2*$E$19) -> 0.3666666667 | N12: 0 | O12: 670.6691277 | P12: 456.3388351 | Q12: 364.7565858 | R12: 354.3217556 | S12: 364.7565858 | T12: 456.3388351 | U12: 670.6691277 | V12: 292.64273 | AA12: 6 | AB12: =E15-E29+0.5*(MAX(Brand!M11:M13)+MAX(Brand!M15:M16))/1000 -> 0.372 | AC12: =MAX(312*LOG10(8*$E$17+1)*EXP(-1.9*AB12*$E$18/SQRT($E$17))*SIN(PI()/2-AB12*$E$18/SQRT($E$17)),0)*$D$2 -> 0 | AD12: 556.42076 | AE12: 456.2344093 | AF12: 412.555433 | AG12: 407.3221783 | AH12: 412.555433 | AI12: 456.2344093 | AJ12: 556.42076 | AK12: =MAX(312*LOG10(8*$E$17+1)*EXP(-1.9*($E$15-AB12)*$E$18/SQRT($E$17))*SIN(PI()/2-($E$15-AB12)*$E$18/SQRT($E$17)),0)*$D$11 -> 352.4182036
B13: Betontværsnit | K13: Q-2 | M13: =E15-E27 -> 0.382382132 | O13: =MAX(312*LOG10(8*$E$17+1)*EXP(-1.9*($E$16-O4)*$E$18/SQRT($E$17))*SIN(PI()/2-($E$16-O4)*$E$18/SQRT($E$17)),0)*$F$6 -> 0 | P13: =MAX(312*LOG10(8*$E$17+1)*EXP(-1.9*($E$16-P4)*$E$18/SQRT($E$17))*SIN(PI()/2-($E$16-P4)*$E$18/SQRT($E$17)),0)*$F$6 -> 0 | Q13: 21.04817415 | R13: 47.42381787 | S13: 89.84574258 | T13: 251.7255809 | U13: 581.3144697 | V13: =MAX(312*LOG10(8*$E$17+1)*EXP(-1.9*($E$15-M13)*$E$18/SQRT($E$17))*SIN(PI()/2-($E$15-M13)*$E$18/SQRT($E$17)),20)*$D$11 -> 495.8289833 | Z13: Q-2 | AB13: =E15-E25 -> 0.4 | AC13: =MAX(312*LOG10(8*$E$17+1)*EXP(-1.9*AB13*$E$18/SQRT($E$17))*SIN(PI()/2-AB13*$E$18/SQRT($E$17)),0)*$D$2 -> 0 | AD13: =MAX(312*LOG10(8*$E$17+1)*EXP(-1.9*($E$16-AD4)*$E$18/SQRT($E$17))*SIN(PI()/2-($E$16-AD4)*$E$18/SQRT($E$17)),0)*$F$6 -> 0 | AE13: =MAX(312*LOG10(8*$E$17+1)*EXP(-1.9*($E$16-AE4)*$E$18/SQRT($E$17))*SIN(PI()/2-($E$16-AE4)*$E$18/SQRT($E$17)),0)*$F$6 -> 2.884930578 | AF13: 26.39872991 | AG13: 47.42381787 | AH13: 77.48945047 | AI13: 176.4594921 | AJ13: 352.4182036 | AK13: =MAX(312*LOG10(8*$E$17+1)*EXP(-1.9*($E$15-AB13)*$E$18/SQRT($E$17))*SIN(PI()/2-($E$15-AB13)*$E$18/SQRT($E$17)),0)*$D$11 -> 836.8294892
K14: z-1 | Z14: Middeltemperatur i bøjler: | AC14: =(0.4*(AB12-AB9)*((AD10+AJ10)+(AD11+AJ11)+0.5*(AD12+AJ12))+0.4*(AG4-AD4)*(0.5*(AD12+AJ12)+(AE12+AI12)+(AF12+AH12)))/(2*(AB12-AB9)+(AJ4-AD4)) -> 408.8804078 | AE14: (integreret over den nederste halvdel af bjælken)
D15: h | E15: =Brand!O7/1000 -> 0.4 | F15: m | L15: Punkt | O15: 1 | P15: 2 | Q15: 3 | R15: Midte | S15: 4 | T15: 5 | U15: 6
D16: b | E16: =Brand!O8/1000 -> 0.15 | F16: m
B17: Brandtid | D17: t | E17: =IF(D2+F6+D11+B6=0,0.0001,Brand!L23+0.0001) -> 60.0001 | F17: min
B18: Svækket tværsnit | D18: k | E18: =SQRT(PI()*2300*1000/(750*0.75)) -> 113.338534 | L18: 1 | O18: =INDEX(Bet,VLOOKUP(O6,Bet,5),2)+(INDEX(Bet,VLOOKUP(O6,Bet,5)+1,2)-INDEX(Bet,VLOOKUP(O6,Bet,5),2))*(O6-INDEX(Bet,VLOOKUP(O6,Bet,5),1))/(INDEX(Bet,VLOOKUP(O6,Bet,5)+1,1)-INDEX(Bet,VLOOKUP(O6,Bet,5),1)) -> 0.6373594507 | P18: 0.9655074003 | Q18: 1 | S18: =INDEX(Bet,VLOOKUP(S6,Bet,5),2)+(INDEX(Bet,VLOOKUP(S6,Bet,5)+1,2)-INDEX(Bet,VLOOKUP(S6,Bet,5),2))*(S6-INDEX(Bet,VLOOKUP(S6,Bet,5),1))/(INDEX(Bet,VLOOKUP(S6,Bet,5)+1,1)-INDEX(Bet,VLOOKUP(S6,Bet,5),1)) -> 1 | T18: 0.9655074003 | U18: 0.6373594507
D19: n | E19: 3 | L19: 2 | O19: 0.6373710607 | P19: 0.9655162622 | Q19: 1 | S19: 1 | T19: 0.9655162622 | U19: 0.6373710607
D20: Q-maks | E20: =MAX(312*LOG10(8*$E$17+1)*EXP(-1.9*0*$E$18/SQRT($E$17))*SIN(PI()/2-0*$E$18/SQRT($E$17)),0) -> 836.8294892 | G20: ecu | L20: 3 | O20: 0.6373710607 | P20: 0.9655162622 | Q20: 1 | S20: 1 | T20: 0.9655162622 | U20: 0.6373710607
D21: z-M / e1 | E21: =R21 -> 1 | F21: =INDEX(Bet,VLOOKUP(R9,Bet,5),3)+(INDEX(Bet,VLOOKUP(R9,Bet,5)+1,3)-INDEX(Bet,VLOOKUP(R9,Bet,5),3))*(R9-INDEX(Bet,VLOOKUP(R9,Bet,5),1))/(INDEX(Bet,VLOOKUP(R9,Bet,5)+1,1)-INDEX(Bet,VLOOKUP(R9,Bet,5),1)) -> 0.00390339317 | G21: =INDEX(Bet,VLOOKUP(R9,Bet,5),4)+(INDEX(Bet,VLOOKUP(R9,Bet,5)+1,4)-INDEX(Bet,VLOOKUP(R9,Bet,5),4))*(R9-INDEX(Bet,VLOOKUP(R9,Bet,5),1))/(INDEX(Bet,VLOOKUP(R9,Bet,5)+1,1)-INDEX(Bet,VLOOKUP(R9,Bet,5),1)) -> 0.02233898862 | L21: Midte | R21: =INDEX(Bet,VLOOKUP(R9,Bet,5),2)+(INDEX(Bet,VLOOKUP(R9,Bet,5)+1,2)-INDEX(Bet,VLOOKUP(R9,Bet,5),2))*(R9-INDEX(Bet,VLOOKUP(R9,Bet,5),1))/(INDEX(Bet,VLOOKUP(R9,Bet,5)+1,1)-INDEX(Bet,VLOOKUP(R9,Bet,5),1)) -> 1
D22: z-middel | E22: =((1-0.2/E19)/(2*E19)^2)*IF(AND(D2=1,D11=0),2*SUM(O18:U20),IF(AND(D11=1,D2=0),2*SUM(O22:U24),SUM(O18:U20)+SUM(O22:U24))) -> 0.7650950938 | L22: 4 | O22: =INDEX(Bet,VLOOKUP(O10,Bet,5),2)+(INDEX(Bet,VLOOKUP(O10,Bet,5)+1,2)-INDEX(Bet,VLOOKUP(O10,Bet,5),2))*(O10-INDEX(Bet,VLOOKUP(O10,Bet,5),1))/(INDEX(Bet,VLOOKUP(O10,Bet,5)+1,1)-INDEX(Bet,VLOOKUP(O10,Bet,5),1)) -> 0.6373710607 | P22: 0.9655162622 | Q22: 1 | S22: =INDEX(Bet,VLOOKUP(S10,Bet,5),2)+(INDEX(Bet,VLOOKUP(S10,Bet,5)+1,2)-INDEX(Bet,VLOOKUP(S10,Bet,5),2))*(S10-INDEX(Bet,VLOOKUP(S10,Bet,5),1))/(INDEX(Bet,VLOOKUP(S10,Bet,5)+1,1)-INDEX(Bet,VLOOKUP(S10,Bet,5),1)) -> 1 | T22: 0.9655162622 | U22: 0.6373710607
D23: a (bjælke) | E23: =IF(OR((D11+B6+D2+F6)*E17=0,E17<0.1),0,0.5*IF(B6=0,E15,MIN(E15,E16))*(1-E22/E21)) -> 0.01761786796 | F23: m | L23: 5 | O23: 0.6339664592 | P23: 0.9629175283 | Q23: 1 | S23: 1 | T23: 0.9629175283 | U23: 0.6339664592
D24: a (instabilitet) | E24: =IF(OR((D11+B6+D2+F6)*E17=0,E17<0.1),0,0.5*IF(B6=0,E15,MIN(E15,E16))*(1-(E22/E21)^1.3)) -> 0.02204691027 | F24: m | L24: 6 | O24: 0.4586617446 | P24: 0.8291074141 | Q24: 0.8901622212 | S24: 0.8901622212 | T24: 0.8291074141 | U24: 0.4586617446
B25: Randzoner | D25: atop | E25: =E23*D2 -> 0 | F25: m
D26: aside | E26: =E23*MAX(B6,F6) -> 0.01761786796 | F26: m
D27: abund | E27: =E23*D11 -> 0.01761786796 | F27: m
B28: Stål-gen | C28: type | D28: =IF($E$28="Q",1,IF($E$28="AC",3,5)) -> 3 | E28: =Brand!AR36 -> AC | K28: Træklag 1 | M28: =M95 -> 0.037 | N28: 0.037 | O28: 0.037 | P28: 0.037 | Q28: 0.037 | R28: 0.037 | S28: 0.037 | T28: 0.037 | U28: 0.037 | V28: 0.037
C29: side-"dæklag" | E29: =Brand!M9/1000 -> 0.037 | F29: m | M29: =MAX(312*LOG10(8*$E$17+1)*EXP(-1.9*M28*$E$18/SQRT($E$17))*SIN(PI()/2-M28*$E$18/SQRT($E$17)),0)*$B$6 -> 256.3838058 | N29: =IF(N28=M28,0,MAX(312*LOG10(8*$E$17+1)*EXP(-1.9*N28*$E$18/SQRT($E$17))*SIN(PI()/2-N28*$E$18/SQRT($E$17)),0))*$B$6 -> 0 | O29: =IF(O28=N28,0,MAX(312*LOG10(8*$E$17+1)*EXP(-1.9*O28*$E$18/SQRT($E$17))*SIN(PI()/2-O28*$E$18/SQRT($E$17)),0))*$B$6 -> 0 | P29: 0 | Q29: 0 | R29: 0 | S29: 0 | T29: 0 | U29: 0 | V29: 0
B30: Træklag 1 | D30: nc | E30: =Brand!O12 -> 0 | K30: =-M98 -> 0.4 | L30: =MAX(312*LOG10(8*$E$17+1)*EXP(-1.9*K30*$E$18/SQRT($E$17))*SIN(PI()/2-K30*$E$18/SQRT($E$17)),0)*$D$2 -> 0 | M30: =MAX(((M$29+M$31)*$E$20/($E$20+$V$5))*(1-($L30+$W30)/$E$20)+$L30+$W30,20) -> 836.8294892 | N30: =IF(N28=M28,0,MAX(((N$29+N$31)*$E$20/($E$20+$V$5))*(1-($L30+$W30)/$E$20)+$L30+$W30,20)) -> 0 | O30: =IF(O28=N28,0,MAX(((O$29+O$31)*$E$20/($E$20+$V$5))*(1-($L30+$W30)/$E$20)+$L30+$W30,20)) -> 0 | P30: 0 | Q30: 0 | R30: 0 | S30: 0 | T30: 0 | U30: 0 | V30: 0 | W30: =MAX(312*LOG10(8*$E$17+1)*EXP(-1.9*($E$15-K30)*$E$18/SQRT($E$17))*SIN(PI()/2-($E$15-K30)*$E$18/SQRT($E$17)),0)*$D$11 -> 836.8294892
D31: reduc nc | E31: =MIN(FLOOR(E30,1),10) -> 0 | M31: =MAX(312*LOG10(8*$E$17+1)*EXP(-1.9*($E$16-M28)*$E$18/SQRT($E$17))*SIN(PI()/2-($E$16-M28)*$E$18/SQRT($E$17)),0)*$F$6 -> 0 | N31: =IF(N28=M28,0,MAX(312*LOG10(8*$E$17+1)*EXP(-1.9*($E$16-N28)*$E$18/SQRT($E$17))*SIN(PI()/2-($E$16-N28)*$E$18/SQRT($E$17)),0))*$F$6 -> 0 | O31: =IF(O28=N28,0,MAX(312*LOG10(8*$E$17+1)*EXP(-1.9*($E$16-O28)*$E$18/SQRT($E$17))*SIN(PI()/2-($E$16-O28)*$E$18/SQRT($E$17)),0))*$F$6 -> 0 | P31: 0 | Q31: 0 | R31: 0 | S31: 0 | T31: 0 | U31: 0 | V31: 0
D32: ac | E32: =Brand!N12/1000 -> 0 | F32: m | K32: Træklag 2 | M32: =W95 -> 0.037 | N32: 0.113 | O32: 0.113 | P32: 0.113 | Q32: 0.113 | R32: 0.113 | S32: 0.113 | T32: 0.113 | U32: 0.113 | V32: 0.113
D33: dc | E33: =IF(E30<2,0,(E16-2*E29)/(E31-1)) -> 0 | F33: m | M33: =MAX(312*LOG10(8*$E$17+1)*EXP(-1.9*M32*$E$18/SQRT($E$17))*SIN(PI()/2-M32*$E$18/SQRT($E$17)),0)*$B$6 -> 256.3838058 | N33: =IF(N32=M32,0,MAX(312*LOG10(8*$E$17+1)*EXP(-1.9*N32*$E$18/SQRT($E$17))*SIN(PI()/2-N32*$E$18/SQRT($E$17)),0))*$B$6 -> 0 | O33: =IF(O32=N32,0,MAX(312*LOG10(8*$E$17+1)*EXP(-1.9*O32*$E$18/SQRT($E$17))*SIN(PI()/2-O32*$E$18/SQRT($E$17)),0))*$B$6 -> 0 | P33: 0 | Q33: 0 | R33: 0 | S33: 0 | T33: 0 | U33: 0 | V33: 0
D34: E/Ek | E34: =IF(E30=0,1,(SUM(E53:E62)+0.5*(E30-E31)*(E57+E58))/E30) -> 1 | K34: =-W99 -> 0.363 | L34: =MAX(312*LOG10(8*$E$17+1)*EXP(-1.9*K34*$E$18/SQRT($E$17))*SIN(PI()/2-K34*$E$18/SQRT($E$17)),0)*$D$2 -> 0 | M34: =MAX(((M$33+M$35)*$E$20/($E$20+$V$5))*(1-($L34+$W34)/$E$20)+$L34+$W34,20) -> 434.2179707 | N34: =IF(N32=M32,0,MAX(((N$33+N$35)*$E$20/($E$20+$V$5))*(1-($L34+$W34)/$E$20)+$L34+$W34,20)) -> 434.2179707 | O34: =IF(O32=N32,0,MAX(((O$33+O$35)*$E$20/($E$20+$V$5))*(1-($L34+$W34)/$E$20)+$L34+$W34,20)) -> 0 | P34: 0 | Q34: 0 | R34: 0 | S34: 0 | T34: 0 | U34: 0 | V34: 0 | W34: =MAX(312*LOG10(8*$E$17+1)*EXP(-1.9*($E$15-K34)*$E$18/SQRT($E$17))*SIN(PI()/2-($E$15-K34)*$E$18/SQRT($E$17)),0)*$D$11 -> 256.3838058 | X34: =(SUM(D54:D63)+0.5*(E36-E37)*(D58+D59))/E36 -> 217.1089853
D35: fy/fyk | E35: =IF(E30=0,1,(SUM(F53:F62)+0.5*(E30-E31)*(F57+F58))/E30) -> 1 | M35: =MAX(312*LOG10(8*$E$17+1)*EXP(-1.9*($E$16-M32)*$E$18/SQRT($E$17))*SIN(PI()/2-($E$16-M32)*$E$18/SQRT($E$17)),0)*$F$6 -> 0 | N35: =IF(N32=M32,0,MAX(312*LOG10(8*$E$17+1)*EXP(-1.9*($E$16-N32)*$E$18/SQRT($E$17))*SIN(PI()/2-($E$16-N32)*$E$18/SQRT($E$17)),0))*$F$6 -> 256.3838058 | O35: =IF(O32=N32,0,MAX(312*LOG10(8*$E$17+1)*EXP(-1.9*($E$16-O32)*$E$18/SQRT($E$17))*SIN(PI()/2-($E$16-O32)*$E$18/SQRT($E$17)),0))*$F$6 -> 0 | P35: 0 | Q35: 0 | R35: 0 | S35: 0 | T35: 0 | U35: 0 | V35: 0
B36: Træklag 2 | D36: nt | E36: =Brand!O13 -> 2 | K36: Tryklag | M36: =E29 -> 0.037 | N36: =IF(N40<=$E$43,M36+$E$45,M36) -> 0.113 | O36: =IF(O40<=$E$43,N36+$E$45,N36) -> 0.113 | P36: 0.113 | Q36: 0.113 | R36: 0.113 | S36: 0.113 | T36: 0.113 | U36: 0.113 | V36: 0.113
D37: reduc nt | E37: =MIN(FLOOR(E36,1),10) -> 2 | M37: =MAX(312*LOG10(8*$E$17+1)*EXP(-1.9*M36*$E$18/SQRT($E$17))*SIN(PI()/2-M36*$E$18/SQRT($E$17)),0)*$B$6 -> 256.3838058 | N37: =IF(N36=M36,0,MAX(312*LOG10(8*$E$17+1)*EXP(-1.9*N36*$E$18/SQRT($E$17))*SIN(PI()/2-N36*$E$18/SQRT($E$17)),0))*$B$6 -> 0 | O37: =IF(O36=N36,0,MAX(312*LOG10(8*$E$17+1)*EXP(-1.9*O36*$E$18/SQRT($E$17))*SIN(PI()/2-O36*$E$18/SQRT($E$17)),0))*$B$6 -> 0 | P37: 0 | Q37: 0 | R37: 0 | S37: 0 | T37: 0 | U37: 0 | V37: 0
D38: at | E38: =Brand!N13/1000 -> 0.037 | F38: m | K38: =E44 -> 0.036 | L38: =MAX(312*LOG10(8*$E$17+1)*EXP(-1.9*K38*$E$18/SQRT($E$17))*SIN(PI()/2-K38*$E$18/SQRT($E$17)),0)*$D$2 -> 0 | M38: =MAX(((M$37+M$39)*$E$20/($E$20+$V$5))*(1-($L38+$W38)/$E$20)+$L38+$W38,20) -> 256.397272 | N38: =IF(N36=M36,0,MAX(((N$37+N$39)*$E$20/($E$20+$V$5))*(1-($L38+$W38)/$E$20)+$L38+$W38,20)) -> 256.397272 | O38: =IF(O36=N36,0,MAX(((O$37+O$39)*$E$20/($E$20+$V$5))*(1-($L38+$W38)/$E$20)+$L38+$W38,20)) -> 0 | P38: 0 | Q38: 0 | R38: 0 | S38: 0 | T38: 0 | U38: 0 | V38: 0 | W38: =MAX(312*LOG10(8*$E$17+1)*EXP(-1.9*($E$15-K38)*$E$18/SQRT($E$17))*SIN(PI()/2-($E$15-K38)*$E$18/SQRT($E$17)),0)*$D$11 -> 0.01941431626 | X38: =(SUM(D67:D76)+0.5*(E40-E41)*(D71+D72))/E40 -> 568.6158776
D39: dt | E39: =IF(E36<2,0,(E16-2*E29)/(E37-1)) -> 0.076 | F39: m | M39: =MAX(312*LOG10(8*$E$17+1)*EXP(-1.9*($E$16-M36)*$E$18/SQRT($E$17))*SIN(PI()/2-($E$16-M36)*$E$18/SQRT($E$17)),0)*$F$6 -> 0 | N39: =IF(N36=M36,0,MAX(312*LOG10(8*$E$17+1)*EXP(-1.9*($E$16-N36)*$E$18/SQRT($E$17))*SIN(PI()/2-($E$16-N36)*$E$18/SQRT($E$17)),0))*$F$6 -> 256.3838058 | O39: =IF(O36=N36,0,MAX(312*LOG10(8*$E$17+1)*EXP(-1.9*($E$16-O36)*$E$18/SQRT($E$17))*SIN(PI()/2-($E$16-O36)*$E$18/SQRT($E$17)),0))*$F$6 -> 0 | P39: 0 | Q39: 0 | R39: 0 | S39: 0 | T39: 0 | U39: 0 | V39: 0
D40: E/Ek | E40: =IF(E36=0,1,(SUM(E63:E72)+0.5*(E36-E37)*(E67+E68))/E36) -> 0.9018294499 | M40: 1 | N40: 2 | O40: 3 | P40: 4 | Q40: 5 | R40: 6 | S40: 7 | T40: 8 | U40: 9 | V40: 10
D41: fy/fyk | E41: =IF(E36=0,1,(SUM(F63:F72)+0.5*(E36-E37)*(F67+F68))/E36) -> 0.7012986675
B42: Tryklag | D42: nt | E42: =Brand!O11 -> 2 | K42: Træklag 1 | R42: Træklag 2 | Y42: Tryklag | AF42: Bøjler
D43: reduc nt | E43: =MIN(FLOOR(E42,1),10) -> 2 | K43: Tabel | L43: type (+Q) | N43: type (+AC) | P43: type (+C) | R43: Tabel | S43: type (+Q) | U43: type (+AC) | W43: type (+C) | Y43: Tabel | Z43: type (+Q) | AB43: type (+AC) | AD43: type (+C) | AF43: Tabel | AG43: type (+Q) | AI43: type (+AC) | AK43: type (+C)
D44: atr | E44: =Brand!N11/1000 -> 0.036 | F44: m | K44: Q-stål | L44: E/Ek | M44: fy/fyk | N44: E/Ek | O44: fy/fyk | P44: E/Ek | Q44: fy/fyk | R44: Q-stål | S44: E/Ek | T44: fy/fyk | U44: E/Ek | V44: fy/fyk | W44: E/Ek | X44: fy/fyk | Y44: Q-stål | Z44: E/Ek | AA44: fy/fyk | AB44: E/Ek | AC44: fy/fyk | AD44: E/Ek | AE44: fy/fyk | AF44: Q-stål | AG44: E/Ek | AH44: fy/fyk | AI44: E/Ek | AJ44: fy/fyk | AK44: E/Ek | AL44: fy/fyk
D45: dt | E45: =IF(E42<2,0,(E16-2*E29)/(E43-1)) -> 0.076 | F45: m | K45: Temp-1 | R45: Temp-11 | Y45: Temp-21 | AF45: Temp-31
D46: E/Ek | E46: =IF(E42=0,1,(SUM(E73:E82)+0.5*(E42-E43)*(E77+E78))/E42) -> 0.9943602728 | K46: =D53 -> 836.8294892 | L46: =IF(K46=K48,L48,L48+(L47-L48)*(K46-K48)/(K47-K48)) -> 0.08263410216 | M46: =IF(K46=K48,M48,M48+(M47-M48)*(K46-K48)/(K47-K48)) -> 0.03895115324 | N46: =IF(K46=K48,N48,N48+(N47-N48)*(K46-K48)/(K47-K48)) -> 0.0615852554 | O46: =IF(K46=K48,O48,O48+(O47-O48)*(K46-K48)/(K47-K48)) -> 0 | P46: =IF(K46=K48,P48,P48+(P47-P48)*(K46-K48)/(K47-K48)) -> 0.05631705108 | Q46: =IF(K46=K48,Q48,Q48+(Q47-Q48)*(K46-K48)/(K47-K48)) -> 0.03895115324 | R46: =D63 -> 434.2179707 | S46: =IF(R46=R48,S48,S48+(S47-S48)*(R46-R48)/(R47-R48)) -> 0.6657820293 | T46: =IF(R46=R48,T48,T48+(T47-T48)*(R46-R48)/(R47-R48)) -> 0.5884076528 | U46: =IF(R46=R48,U48,U48+(U47-U48)*(R46-R48)/(R47-R48)) -> 0.9018294499 | V46: =IF(R46=R48,V48,V48+(V47-V48)*(R46-R48)/(R47-R48)) -> 0.7012986675 | W46: =IF(R46=R48,W48,W48+(W47-W48)*(R46-R48)/(R47-R48)) -> 0.505251247 | X46: =IF(R46=R48,X48,X48+(X47-X48)*(R46-R48)/(R47-R48)) -> 0.7081422616 | Y46: =D73 -> 256.397272 | Z46: =IF(Y46=Y48,Z48,Z48+(Z47-Z48)*(Y46-Y48)/(Y47-Y48)) -> 0.843602728 | AA46: =IF(Y46=Y48,AA48,AA48+(AA47-AA48)*(Y46-Y48)/(Y47-Y48)) -> 0.8179630008 | AB46: =IF(Y46=Y48,AB48,AB48+(AB47-AB48)*(Y46-Y48)/(Y47-Y48)) -> 0.9943602728 | AC46: =IF(Y46=Y48,AC48,AC48+(AC47-AC48)*(Y46-Y48)/(Y47-Y48)) -> 0.911801364 | AD46: =IF(Y46=Y48,AD48,AD48+(AD47-AD48)*(Y46-Y48)/(Y47-Y48)) -> 0.785404092 | AE46: =IF(Y46=Y48,AE48,AE48+(AE47-AE48)*(Y46-Y48)/(Y47-Y48)) -> 0.9161616368 | AF46: =AC14 -> 408.8804078 | AG46: =IF(AF46=AF48,AG48,AG48+(AG47-AG48)*(AF46-AF48)/(AF47-AF48)) -> 0.6911195922 | AH46: =IF(AF46=AF48,AH48,AH48+(AH47-AH48)*(AF46-AF48)/(AF47-AF48)) -> 0.634015266 | AI46: =IF(AF46=AF48,AI48,AI48+(AI47-AI48)*(AF46-AF48)/(AF47-AF48)) -> 0.9449033068 | AJ46: =IF(AF46=AF48,AJ48,AJ48+(AJ47-AJ48)*(AF46-AF48)/(AF47-AF48)) -> 0.7595750622 | AK46: =IF(AF46=AF48,AK48,AK48+(AK47-AK48)*(AF46-AF48)/(AF47-AF48)) -> 0.5457913476 | AL46: =IF(AF46=AF48,AL48,AL48+(AL47-AL48)*(AF46-AF48)/(AF47-AF48)) -> 0.7613511437
D47: fy/fyk | E47: =IF(E42=0,1,(SUM(F73:F82)+0.5*(E42-E43)*(F77+F78))/E42) -> 0.911801364 | K47: =CEILING(K46,100) -> 900 | L47: =VLOOKUP(K47,$B$105:$H$117,2,TRUE) -> 0.07 | M47: =VLOOKUP(K47,$B$105:$H$117,3,TRUE) -> 0.02 | N47: =VLOOKUP(K47,$B$105:$H$117,4,TRUE) -> 0.03 | O47: =VLOOKUP(K47,$B$105:$H$117,5,TRUE) -> 0 | P47: =VLOOKUP(K47,$B$105:$H$117,6,TRUE) -> 0.05 | Q47: =VLOOKUP(K47,$B$105:$H$117,7,TRUE) -> 0.02 | R47: =CEILING(R46,100) -> 500 | S47: =VLOOKUP(R47,$B$105:$H$117,2,TRUE) -> 0.6 | T47: =VLOOKUP(R47,$B$105:$H$117,3,TRUE) -> 0.47 | U47: =VLOOKUP(R47,$B$105:$H$117,4,TRUE) -> 0.79 | V47: =VLOOKUP(R47,$B$105:$H$117,5,TRUE) -> 0.55 | W47: =VLOOKUP(R47,$B$105:$H$117,6,TRUE) -> 0.4 | X47: =VLOOKUP(R47,$B$105:$H$117,7,TRUE) -> 0.57 | Y47: =CEILING(Y46,100) -> 300 | Z47: =VLOOKUP(Y47,$B$105:$H$117,2,TRUE) -> 0.8 | AA47: =VLOOKUP(Y47,$B$105:$H$117,3,TRUE) -> 0.77 | AB47: =VLOOKUP(Y47,$B$105:$H$117,4,TRUE) -> 0.99 | AC47: =VLOOKUP(Y47,$B$105:$H$117,5,TRUE) -> 0.89 | AD47: =VLOOKUP(Y47,$B$105:$H$117,6,TRUE) -> 0.72 | AE47: =VLOOKUP(Y47,$B$105:$H$117,7,TRUE) -> 0.89 | AF47: =CEILING(AF46,100) -> 500 | AG47: =VLOOKUP(AF47,$B$105:$H$117,2,TRUE) -> 0.6 | AH47: =VLOOKUP(AF47,$B$105:$H$117,3,TRUE) -> 0.47 | AI47: =VLOOKUP(AF47,$B$105:$H$117,4,TRUE) -> 0.79 | AJ47: =VLOOKUP(AF47,$B$105:$H$117,5,TRUE) -> 0.55 | AK47: =VLOOKUP(AF47,$B$105:$H$117,6,TRUE) -> 0.4 | AL47: =VLOOKUP(AF47,$B$105:$H$117,7,TRUE) -> 0.57
B48: Bøjler | D48: E/Ek | E48: =E83 -> 0.9449033068 | K48: =MAX(FLOOR(K46,100),20) -> 800 | L48: =VLOOKUP(K48,$B$105:$H$117,2,TRUE) -> 0.09 | M48: =VLOOKUP(K48,$B$105:$H$117,3,TRUE) -> 0.05 | N48: =VLOOKUP(K48,$B$105:$H$117,4,TRUE) -> 0.08 | O48: =VLOOKUP(K48,$B$105:$H$117,5,TRUE) -> 0 | P48: =VLOOKUP(K48,$B$105:$H$117,6,TRUE) -> 0.06 | Q48: =VLOOKUP(K48,$B$105:$H$117,7,TRUE) -> 0.05 | R48: =MAX(FLOOR(R46,100),20) -> 400 | S48: =VLOOKUP(R48,$B$105:$H$117,2,TRUE) -> 0.7 | T48: =VLOOKUP(R48,$B$105:$H$117,3,TRUE) -> 0.65 | U48: =VLOOKUP(R48,$B$105:$H$117,4,TRUE) -> 0.96 | V48: =VLOOKUP(R48,$B$105:$H$117,5,TRUE) -> 0.78 | W48: =VLOOKUP(R48,$B$105:$H$117,6,TRUE) -> 0.56 | X48: =VLOOKUP(R48,$B$105:$H$117,7,TRUE) -> 0.78 | Y48: =MAX(FLOOR(Y46,100),20) -> 200 | Z48: =VLOOKUP(Y48,$B$105:$H$117,2,TRUE) -> 0.9 | AA48: =VLOOKUP(Y48,$B$105:$H$117,3,TRUE) -> 0.88 | AB48: =VLOOKUP(Y48,$B$105:$H$117,4,TRUE) -> 1 | AC48: =VLOOKUP(Y48,$B$105:$H$117,5,TRUE) -> 0.94 | AD48: =VLOOKUP(Y48,$B$105:$H$117,6,TRUE) -> 0.87 | AE48: =VLOOKUP(Y48,$B$105:$H$117,7,TRUE) -> 0.95 | AF48: =MAX(FLOOR(AF46,100),20) -> 400 | AG48: =VLOOKUP(AF48,$B$105:$H$117,2,TRUE) -> 0.7 | AH48: =VLOOKUP(AF48,$B$105:$H$117,3,TRUE) -> 0.65 | AI48: =VLOOKUP(AF48,$B$105:$H$117,4,TRUE) -> 0.96 | AJ48: =VLOOKUP(AF48,$B$105:$H$117,5,TRUE) -> 0.78 | AK48: =VLOOKUP(AF48,$B$105:$H$117,6,TRUE) -> 0.56 | AL48: =VLOOKUP(AF48,$B$105:$H$117,7,TRUE) -> 0.78
D49: fy/fyk | E49: =F83 -> 0.7595750622 | K49: Temp-2 | R49: Temp-12 | Y49: Temp-22
K50: =D54 -> 0 | L50: =IF(K50=K52,L52,L52+(L51-L52)*(K50-K52)/(K51-K52)) ->  | M50: =IF(K50=K52,M52,M52+(M51-M52)*(K50-K52)/(K51-K52)) ->  | N50: =IF(K50=K52,N52,N52+(N51-N52)*(K50-K52)/(K51-K52)) ->  | O50: =IF(K50=K52,O52,O52+(O51-O52)*(K50-K52)/(K51-K52)) ->  | P50: =IF(K50=K52,P52,P52+(P51-P52)*(K50-K52)/(K51-K52)) ->  | Q50: =IF(K50=K52,Q52,Q52+(Q51-Q52)*(K50-K52)/(K51-K52)) ->  | R50: =D64 -> 434.2179707 | S50: =IF(R50=R52,S52,S52+(S51-S52)*(R50-R52)/(R51-R52)) -> 0.6657820293 | T50: =IF(R50=R52,T52,T52+(T51-T52)*(R50-R52)/(R51-R52)) -> 0.5884076528 | U50: =IF(R50=R52,U52,U52+(U51-U52)*(R50-R52)/(R51-R52)) -> 0.9018294499 | V50: =IF(R50=R52,V52,V52+(V51-V52)*(R50-R52)/(R51-R52)) -> 0.7012986675 | W50: =IF(R50=R52,W52,W52+(W51-W52)*(R50-R52)/(R51-R52)) -> 0.505251247 | X50: =IF(R50=R52,X52,X52+(X51-X52)*(R50-R52)/(R51-R52)) -> 0.7081422616 | Y50: =D74 -> 256.397272 | Z50: =IF(Y50=Y52,Z52,Z52+(Z51-Z52)*(Y50-Y52)/(Y51-Y52)) -> 0.843602728 | AA50: =IF(Y50=Y52,AA52,AA52+(AA51-AA52)*(Y50-Y52)/(Y51-Y52)) -> 0.8179630008 | AB50: =IF(Y50=Y52,AB52,AB52+(AB51-AB52)*(Y50-Y52)/(Y51-Y52)) -> 0.9943602728 | AC50: =IF(Y50=Y52,AC52,AC52+(AC51-AC52)*(Y50-Y52)/(Y51-Y52)) -> 0.911801364 | AD50: =IF(Y50=Y52,AD52,AD52+(AD51-AD52)*(Y50-Y52)/(Y51-Y52)) -> 0.785404092 | AE50: =IF(Y50=Y52,AE52,AE52+(AE51-AE52)*(Y50-Y52)/(Y51-Y52)) -> 0.9161616368
K51: =CEILING(K50,100) -> 0 | L51: =VLOOKUP(K51,$B$105:$H$117,2,TRUE) ->  | M51: =VLOOKUP(K51,$B$105:$H$117,3,TRUE) ->  | N51: =VLOOKUP(K51,$B$105:$H$117,4,TRUE) ->  | O51: =VLOOKUP(K51,$B$105:$H$117,5,TRUE) ->  | P51: =VLOOKUP(K51,$B$105:$H$117,6,TRUE) ->  | Q51: =VLOOKUP(K51,$B$105:$H$117,7,TRUE) ->  | R51: =CEILING(R50,100) -> 500 | S51: =VLOOKUP(R51,$B$105:$H$117,2,TRUE) -> 0.6 | T51: =VLOOKUP(R51,$B$105:$H$117,3,TRUE) -> 0.47 | U51: =VLOOKUP(R51,$B$105:$H$117,4,TRUE) -> 0.79 | V51: =VLOOKUP(R51,$B$105:$H$117,5,TRUE) -> 0.55 | W51: =VLOOKUP(R51,$B$105:$H$117,6,TRUE) -> 0.4 | X51: =VLOOKUP(R51,$B$105:$H$117,7,TRUE) -> 0.57 | Y51: =CEILING(Y50,100) -> 300 | Z51: =VLOOKUP(Y51,$B$105:$H$117,2,TRUE) -> 0.8 | AA51: =VLOOKUP(Y51,$B$105:$H$117,3,TRUE) -> 0.77 | AB51: =VLOOKUP(Y51,$B$105:$H$117,4,TRUE) -> 0.99 | AC51: =VLOOKUP(Y51,$B$105:$H$117,5,TRUE) -> 0.89 | AD51: =VLOOKUP(Y51,$B$105:$H$117,6,TRUE) -> 0.72 | AE51: =VLOOKUP(Y51,$B$105:$H$117,7,TRUE) -> 0.89
D52: Temp | E52: E/Ek | F52: fy/fyk | K52: =MAX(FLOOR(K50,100),20) -> 20 | L52: =VLOOKUP(K52,$B$105:$H$117,2,TRUE) -> 1 | M52: =VLOOKUP(K52,$B$105:$H$117,3,TRUE) -> 1 | N52: =VLOOKUP(K52,$B$105:$H$117,4,TRUE) -> 1 | O52: =VLOOKUP(K52,$B$105:$H$117,5,TRUE) -> 1 | P52: =VLOOKUP(K52,$B$105:$H$117,6,TRUE) -> 1 | Q52: =VLOOKUP(K52,$B$105:$H$117,7,TRUE) -> 1 | R52: =MAX(FLOOR(R50,100),20) -> 400 | S52: =VLOOKUP(R52,$B$105:$H$117,2,TRUE) -> 0.7 | T52: =VLOOKUP(R52,$B$105:$H$117,3,TRUE) -> 0.65 | U52: =VLOOKUP(R52,$B$105:$H$117,4,TRUE) -> 0.96 | V52: =VLOOKUP(R52,$B$105:$H$117,5,TRUE) -> 0.78 | W52: =VLOOKUP(R52,$B$105:$H$117,6,TRUE) -> 0.56 | X52: =VLOOKUP(R52,$B$105:$H$117,7,TRUE) -> 0.78 | Y52: =MAX(FLOOR(Y50,100),20) -> 200 | Z52: =VLOOKUP(Y52,$B$105:$H$117,2,TRUE) -> 0.9 | AA52: =VLOOKUP(Y52,$B$105:$H$117,3,TRUE) -> 0.88 | AB52: =VLOOKUP(Y52,$B$105:$H$117,4,TRUE) -> 1 | AC52: =VLOOKUP(Y52,$B$105:$H$117,5,TRUE) -> 0.94 | AD52: =VLOOKUP(Y52,$B$105:$H$117,6,TRUE) -> 0.87 | AE52: =VLOOKUP(Y52,$B$105:$H$117,7,TRUE) -> 0.95
B53: Træklag 1 | C53: 1 | D53: =M30 -> 836.8294892 | E53: =IF(D53=0,0,INDEX($L$45:$Q$84,2+(C53-1)*4,$D$28)) -> 0.0615852554 | F53: =IF(D53=0,0,INDEX($L$45:$Q$84,2+(C53-1)*4,$D$28+1)) -> 0 | K53: Temp-3 | R53: Temp-13 | Y53: Temp-23
C54: 2 | D54: =N30 -> 0 | E54: 0 | F54: 0 | K54: =D55 -> 0 | L54: =IF(K54=K56,L56,L56+(L55-L56)*(K54-K56)/(K55-K56)) ->  | M54: =IF(K54=K56,M56,M56+(M55-M56)*(K54-K56)/(K55-K56)) ->  | N54: =IF(K54=K56,N56,N56+(N55-N56)*(K54-K56)/(K55-K56)) ->  | O54: =IF(K54=K56,O56,O56+(O55-O56)*(K54-K56)/(K55-K56)) ->  | P54: =IF(K54=K56,P56,P56+(P55-P56)*(K54-K56)/(K55-K56)) ->  | Q54: =IF(K54=K56,Q56,Q56+(Q55-Q56)*(K54-K56)/(K55-K56)) ->  | R54: =D65 -> 0 | S54: =IF(R54=R56,S56,S56+(S55-S56)*(R54-R56)/(R55-R56)) ->  | T54: =IF(R54=R56,T56,T56+(T55-T56)*(R54-R56)/(R55-R56)) ->  | U54: =IF(R54=R56,U56,U56+(U55-U56)*(R54-R56)/(R55-R56)) ->  | V54: =IF(R54=R56,V56,V56+(V55-V56)*(R54-R56)/(R55-R56)) ->  | W54: =IF(R54=R56,W56,W56+(W55-W56)*(R54-R56)/(R55-R56)) ->  | X54: =IF(R54=R56,X56,X56+(X55-X56)*(R54-R56)/(R55-R56)) ->  | Y54: =D75 -> 0 | Z54: =IF(Y54=Y56,Z56,Z56+(Z55-Z56)*(Y54-Y56)/(Y55-Y56)) ->  | AA54: =IF(Y54=Y56,AA56,AA56+(AA55-AA56)*(Y54-Y56)/(Y55-Y56)) ->  | AB54: =IF(Y54=Y56,AB56,AB56+(AB55-AB56)*(Y54-Y56)/(Y55-Y56)) ->  | AC54: =IF(Y54=Y56,AC56,AC56+(AC55-AC56)*(Y54-Y56)/(Y55-Y56)) ->  | AD54: =IF(Y54=Y56,AD56,AD56+(AD55-AD56)*(Y54-Y56)/(Y55-Y56)) ->  | AE54: =IF(Y54=Y56,AE56,AE56+(AE55-AE56)*(Y54-Y56)/(Y55-Y56)) -> 
C55: 3 | D55: =O30 -> 0 | E55: 0 | F55: 0 | K55: =CEILING(K54,100) -> 0 | L55: =VLOOKUP(K55,$B$105:$H$117,2,TRUE) ->  | M55: =VLOOKUP(K55,$B$105:$H$117,3,TRUE) ->  | N55: =VLOOKUP(K55,$B$105:$H$117,4,TRUE) ->  | O55: =VLOOKUP(K55,$B$105:$H$117,5,TRUE) ->  | P55: =VLOOKUP(K55,$B$105:$H$117,6,TRUE) ->  | Q55: =VLOOKUP(K55,$B$105:$H$117,7,TRUE) ->  | R55: =CEILING(R54,100) -> 0 | S55: =VLOOKUP(R55,$B$105:$H$117,2,TRUE) ->  | T55: =VLOOKUP(R55,$B$105:$H$117,3,TRUE) ->  | U55: =VLOOKUP(R55,$B$105:$H$117,4,TRUE) ->  | V55: =VLOOKUP(R55,$B$105:$H$117,5,TRUE) ->  | W55: =VLOOKUP(R55,$B$105:$H$117,6,TRUE) ->  | X55: =VLOOKUP(R55,$B$105:$H$117,7,TRUE) ->  | Y55: =CEILING(Y54,100) -> 0 | Z55: =VLOOKUP(Y55,$B$105:$H$117,2,TRUE) ->  | AA55: =VLOOKUP(Y55,$B$105:$H$117,3,TRUE) ->  | AB55: =VLOOKUP(Y55,$B$105:$H$117,4,TRUE) ->  | AC55: =VLOOKUP(Y55,$B$105:$H$117,5,TRUE) ->  | AD55: =VLOOKUP(Y55,$B$105:$H$117,6,TRUE) ->  | AE55: =VLOOKUP(Y55,$B$105:$H$117,7,TRUE) -> 
C56: 4 | D56: =P30 -> 0 | E56: 0 | F56: 0 | K56: =MAX(FLOOR(K54,100),20) -> 20 | L56: =VLOOKUP(K56,$B$105:$H$117,2,TRUE) -> 1 | M56: =VLOOKUP(K56,$B$105:$H$117,3,TRUE) -> 1 | N56: =VLOOKUP(K56,$B$105:$H$117,4,TRUE) -> 1 | O56: =VLOOKUP(K56,$B$105:$H$117,5,TRUE) -> 1 | P56: =VLOOKUP(K56,$B$105:$H$117,6,TRUE) -> 1 | Q56: =VLOOKUP(K56,$B$105:$H$117,7,TRUE) -> 1 | R56: =MAX(FLOOR(R54,100),20) -> 20 | S56: =VLOOKUP(R56,$B$105:$H$117,2,TRUE) -> 1 | T56: =VLOOKUP(R56,$B$105:$H$117,3,TRUE) -> 1 | U56: =VLOOKUP(R56,$B$105:$H$117,4,TRUE) -> 1 | V56: =VLOOKUP(R56,$B$105:$H$117,5,TRUE) -> 1 | W56: =VLOOKUP(R56,$B$105:$H$117,6,TRUE) -> 1 | X56: =VLOOKUP(R56,$B$105:$H$117,7,TRUE) -> 1 | Y56: =MAX(FLOOR(Y54,100),20) -> 20 | Z56: =VLOOKUP(Y56,$B$105:$H$117,2,TRUE) -> 1 | AA56: =VLOOKUP(Y56,$B$105:$H$117,3,TRUE) -> 1 | AB56: =VLOOKUP(Y56,$B$105:$H$117,4,TRUE) -> 1 | AC56: =VLOOKUP(Y56,$B$105:$H$117,5,TRUE) -> 1 | AD56: =VLOOKUP(Y56,$B$105:$H$117,6,TRUE) -> 1 | AE56: =VLOOKUP(Y56,$B$105:$H$117,7,TRUE) -> 1
C57: 5 | D57: =Q30 -> 0 | E57: 0 | F57: 0 | K57: Temp-4 | R57: Temp-14 | Y57: Temp-24
C58: 6 | D58: =R30 -> 0 | E58: 0 | F58: 0 | K58: =D56 -> 0 | L58: =IF(K58=K60,L60,L60+(L59-L60)*(K58-K60)/(K59-K60)) ->  | M58: =IF(K58=K60,M60,M60+(M59-M60)*(K58-K60)/(K59-K60)) ->  | N58: =IF(K58=K60,N60,N60+(N59-N60)*(K58-K60)/(K59-K60)) ->  | O58: =IF(K58=K60,O60,O60+(O59-O60)*(K58-K60)/(K59-K60)) ->  | P58: =IF(K58=K60,P60,P60+(P59-P60)*(K58-K60)/(K59-K60)) ->  | Q58: =IF(K58=K60,Q60,Q60+(Q59-Q60)*(K58-K60)/(K59-K60)) ->  | R58: =D66 -> 0 | S58: =IF(R58=R60,S60,S60+(S59-S60)*(R58-R60)/(R59-R60)) ->  | T58: =IF(R58=R60,T60,T60+(T59-T60)*(R58-R60)/(R59-R60)) ->  | U58: =IF(R58=R60,U60,U60+(U59-U60)*(R58-R60)/(R59-R60)) ->  | V58: =IF(R58=R60,V60,V60+(V59-V60)*(R58-R60)/(R59-R60)) ->  | W58: =IF(R58=R60,W60,W60+(W59-W60)*(R58-R60)/(R59-R60)) ->  | X58: =IF(R58=R60,X60,X60+(X59-X60)*(R58-R60)/(R59-R60)) ->  | Y58: =D76 -> 0 | Z58: =IF(Y58=Y60,Z60,Z60+(Z59-Z60)*(Y58-Y60)/(Y59-Y60)) ->  | AA58: =IF(Y58=Y60,AA60,AA60+(AA59-AA60)*(Y58-Y60)/(Y59-Y60)) ->  | AB58: =IF(Y58=Y60,AB60,AB60+(AB59-AB60)*(Y58-Y60)/(Y59-Y60)) ->  | AC58: =IF(Y58=Y60,AC60,AC60+(AC59-AC60)*(Y58-Y60)/(Y59-Y60)) ->  | AD58: =IF(Y58=Y60,AD60,AD60+(AD59-AD60)*(Y58-Y60)/(Y59-Y60)) ->  | AE58: =IF(Y58=Y60,AE60,AE60+(AE59-AE60)*(Y58-Y60)/(Y59-Y60)) -> 
C59: 7 | D59: =S30 -> 0 | E59: 0 | F59: 0 | K59: =CEILING(K58,100) -> 0 | L59: =VLOOKUP(K59,$B$105:$H$117,2,TRUE) ->  | M59: =VLOOKUP(K59,$B$105:$H$117,3,TRUE) ->  | N59: =VLOOKUP(K59,$B$105:$H$117,4,TRUE) ->  | O59: =VLOOKUP(K59,$B$105:$H$117,5,TRUE) ->  | P59: =VLOOKUP(K59,$B$105:$H$117,6,TRUE) ->  | Q59: =VLOOKUP(K59,$B$105:$H$117,7,TRUE) ->  | R59: =CEILING(R58,100) -> 0 | S59: =VLOOKUP(R59,$B$105:$H$117,2,TRUE) ->  | T59: =VLOOKUP(R59,$B$105:$H$117,3,TRUE) ->  | U59: =VLOOKUP(R59,$B$105:$H$117,4,TRUE) ->  | V59: =VLOOKUP(R59,$B$105:$H$117,5,TRUE) ->  | W59: =VLOOKUP(R59,$B$105:$H$117,6,TRUE) ->  | X59: =VLOOKUP(R59,$B$105:$H$117,7,TRUE) ->  | Y59: =CEILING(Y58,100) -> 0 | Z59: =VLOOKUP(Y59,$B$105:$H$117,2,TRUE) ->  | AA59: =VLOOKUP(Y59,$B$105:$H$117,3,TRUE) ->  | AB59: =VLOOKUP(Y59,$B$105:$H$117,4,TRUE) ->  | AC59: =VLOOKUP(Y59,$B$105:$H$117,5,TRUE) ->  | AD59: =VLOOKUP(Y59,$B$105:$H$117,6,TRUE) ->  | AE59: =VLOOKUP(Y59,$B$105:$H$117,7,TRUE) -> 
C60: 8 | D60: =T30 -> 0 | E60: 0 | F60: 0 | K60: =MAX(FLOOR(K58,100),20) -> 20 | L60: =VLOOKUP(K60,$B$105:$H$117,2,TRUE) -> 1 | M60: =VLOOKUP(K60,$B$105:$H$117,3,TRUE) -> 1 | N60: =VLOOKUP(K60,$B$105:$H$117,4,TRUE) -> 1 | O60: =VLOOKUP(K60,$B$105:$H$117,5,TRUE) -> 1 | P60: =VLOOKUP(K60,$B$105:$H$117,6,TRUE) -> 1 | Q60: =VLOOKUP(K60,$B$105:$H$117,7,TRUE) -> 1 | R60: =MAX(FLOOR(R58,100),20) -> 20 | S60: =VLOOKUP(R60,$B$105:$H$117,2,TRUE) -> 1 | T60: =VLOOKUP(R60,$B$105:$H$117,3,TRUE) -> 1 | U60: =VLOOKUP(R60,$B$105:$H$117,4,TRUE) -> 1 | V60: =VLOOKUP(R60,$B$105:$H$117,5,TRUE) -> 1 | W60: =VLOOKUP(R60,$B$105:$H$117,6,TRUE) -> 1 | X60: =VLOOKUP(R60,$B$105:$H$117,7,TRUE) -> 1 | Y60: =MAX(FLOOR(Y58,100),20) -> 20 | Z60: =VLOOKUP(Y60,$B$105:$H$117,2,TRUE) -> 1 | AA60: =VLOOKUP(Y60,$B$105:$H$117,3,TRUE) -> 1 | AB60: =VLOOKUP(Y60,$B$105:$H$117,4,TRUE) -> 1 | AC60: =VLOOKUP(Y60,$B$105:$H$117,5,TRUE) -> 1 | AD60: =VLOOKUP(Y60,$B$105:$H$117,6,TRUE) -> 1 | AE60: =VLOOKUP(Y60,$B$105:$H$117,7,TRUE) -> 1
C61: 9 | D61: =U30 -> 0 | E61: 0 | F61: 0 | K61: Temp-5 | R61: Temp-15 | Y61: Temp-25
C62: 10 | D62: =V30 -> 0 | E62: 0 | F62: 0 | K62: =D57 -> 0 | L62: =IF(K62=K64,L64,L64+(L63-L64)*(K62-K64)/(K63-K64)) ->  | M62: =IF(K62=K64,M64,M64+(M63-M64)*(K62-K64)/(K63-K64)) ->  | N62: =IF(K62=K64,N64,N64+(N63-N64)*(K62-K64)/(K63-K64)) ->  | O62: =IF(K62=K64,O64,O64+(O63-O64)*(K62-K64)/(K63-K64)) ->  | P62: =IF(K62=K64,P64,P64+(P63-P64)*(K62-K64)/(K63-K64)) ->  | Q62: =IF(K62=K64,Q64,Q64+(Q63-Q64)*(K62-K64)/(K63-K64)) ->  | R62: =D67 -> 0 | S62: =IF(R62=R64,S64,S64+(S63-S64)*(R62-R64)/(R63-R64)) ->  | T62: =IF(R62=R64,T64,T64+(T63-T64)*(R62-R64)/(R63-R64)) ->  | U62: =IF(R62=R64,U64,U64+(U63-U64)*(R62-R64)/(R63-R64)) ->  | V62: =IF(R62=R64,V64,V64+(V63-V64)*(R62-R64)/(R63-R64)) ->  | W62: =IF(R62=R64,W64,W64+(W63-W64)*(R62-R64)/(R63-R64)) ->  | X62: =IF(R62=R64,X64,X64+(X63-X64)*(R62-R64)/(R63-R64)) ->  | Y62: =D77 -> 0 | Z62: =IF(Y62=Y64,Z64,Z64+(Z63-Z64)*(Y62-Y64)/(Y63-Y64)) ->  | AA62: =IF(Y62=Y64,AA64,AA64+(AA63-AA64)*(Y62-Y64)/(Y63-Y64)) ->  | AB62: =IF(Y62=Y64,AB64,AB64+(AB63-AB64)*(Y62-Y64)/(Y63-Y64)) ->  | AC62: =IF(Y62=Y64,AC64,AC64+(AC63-AC64)*(Y62-Y64)/(Y63-Y64)) ->  | AD62: =IF(Y62=Y64,AD64,AD64+(AD63-AD64)*(Y62-Y64)/(Y63-Y64)) ->  | AE62: =IF(Y62=Y64,AE64,AE64+(AE63-AE64)*(Y62-Y64)/(Y63-Y64)) -> 
B63: Træklag 2 | C63: 11 | D63: =M34 -> 434.2179707 | E63: =IF(D63=0,0,INDEX($S$45:$X$84,2+(C63-11)*4,$D$28)) -> 0.9018294499 | F63: =IF(D63=0,0,INDEX($S$45:$X$84,2+(C63-11)*4,$D$28+1)) -> 0.7012986675 | K63: =CEILING(K62,100) -> 0 | L63: =VLOOKUP(K63,$B$105:$H$117,2,TRUE) ->  | M63: =VLOOKUP(K63,$B$105:$H$117,3,TRUE) ->  | N63: =VLOOKUP(K63,$B$105:$H$117,4,TRUE) ->  | O63: =VLOOKUP(K63,$B$105:$H$117,5,TRUE) ->  | P63: =VLOOKUP(K63,$B$105:$H$117,6,TRUE) ->  | Q63: =VLOOKUP(K63,$B$105:$H$117,7,TRUE) ->  | R63: =CEILING(R62,100) -> 0 | S63: =VLOOKUP(R63,$B$105:$H$117,2,TRUE) ->  | T63: =VLOOKUP(R63,$B$105:$H$117,3,TRUE) ->  | U63: =VLOOKUP(R63,$B$105:$H$117,4,TRUE) ->  | V63: =VLOOKUP(R63,$B$105:$H$117,5,TRUE) ->  | W63: =VLOOKUP(R63,$B$105:$H$117,6,TRUE) ->  | X63: =VLOOKUP(R63,$B$105:$H$117,7,TRUE) ->  | Y63: =CEILING(Y62,100) -> 0 | Z63: =VLOOKUP(Y63,$B$105:$H$117,2,TRUE) ->  | AA63: =VLOOKUP(Y63,$B$105:$H$117,3,TRUE) ->  | AB63: =VLOOKUP(Y63,$B$105:$H$117,4,TRUE) ->  | AC63: =VLOOKUP(Y63,$B$105:$H$117,5,TRUE) ->  | AD63: =VLOOKUP(Y63,$B$105:$H$117,6,TRUE) ->  | AE63: =VLOOKUP(Y63,$B$105:$H$117,7,TRUE) -> 
C64: 12 | D64: =N34 -> 434.2179707 | E64: 0.9018294499 | F64: 0.7012986675 | K64: =MAX(FLOOR(K62,100),20) -> 20 | L64: =VLOOKUP(K64,$B$105:$H$117,2,TRUE) -> 1 | M64: =VLOOKUP(K64,$B$105:$H$117,3,TRUE) -> 1 | N64: =VLOOKUP(K64,$B$105:$H$117,4,TRUE) -> 1 | O64: =VLOOKUP(K64,$B$105:$H$117,5,TRUE) -> 1 | P64: =VLOOKUP(K64,$B$105:$H$117,6,TRUE) -> 1 | Q64: =VLOOKUP(K64,$B$105:$H$117,7,TRUE) -> 1 | R64: =MAX(FLOOR(R62,100),20) -> 20 | S64: =VLOOKUP(R64,$B$105:$H$117,2,TRUE) -> 1 | T64: =VLOOKUP(R64,$B$105:$H$117,3,TRUE) -> 1 | U64: =VLOOKUP(R64,$B$105:$H$117,4,TRUE) -> 1 | V64: =VLOOKUP(R64,$B$105:$H$117,5,TRUE) -> 1 | W64: =VLOOKUP(R64,$B$105:$H$117,6,TRUE) -> 1 | X64: =VLOOKUP(R64,$B$105:$H$117,7,TRUE) -> 1 | Y64: =MAX(FLOOR(Y62,100),20) -> 20 | Z64: =VLOOKUP(Y64,$B$105:$H$117,2,TRUE) -> 1 | AA64: =VLOOKUP(Y64,$B$105:$H$117,3,TRUE) -> 1 | AB64: =VLOOKUP(Y64,$B$105:$H$117,4,TRUE) -> 1 | AC64: =VLOOKUP(Y64,$B$105:$H$117,5,TRUE) -> 1 | AD64: =VLOOKUP(Y64,$B$105:$H$117,6,TRUE) -> 1 | AE64: =VLOOKUP(Y64,$B$105:$H$117,7,TRUE) -> 1
C65: 13 | D65: =O34 -> 0 | E65: 0 | F65: 0 | K65: Temp-6 | R65: Temp-16 | Y65: Temp-26
C66: 14 | D66: =P34 -> 0 | E66: 0 | F66: 0 | K66: =D58 -> 0 | L66: =IF(K66=K68,L68,L68+(L67-L68)*(K66-K68)/(K67-K68)) ->  | M66: =IF(K66=K68,M68,M68+(M67-M68)*(K66-K68)/(K67-K68)) ->  | N66: =IF(K66=K68,N68,N68+(N67-N68)*(K66-K68)/(K67-K68)) ->  | O66: =IF(K66=K68,O68,O68+(O67-O68)*(K66-K68)/(K67-K68)) ->  | P66: =IF(K66=K68,P68,P68+(P67-P68)*(K66-K68)/(K67-K68)) ->  | Q66: =IF(K66=K68,Q68,Q68+(Q67-Q68)*(K66-K68)/(K67-K68)) ->  | R66: =D68 -> 0 | S66: =IF(R66=R68,S68,S68+(S67-S68)*(R66-R68)/(R67-R68)) ->  | T66: =IF(R66=R68,T68,T68+(T67-T68)*(R66-R68)/(R67-R68)) ->  | U66: =IF(R66=R68,U68,U68+(U67-U68)*(R66-R68)/(R67-R68)) ->  | V66: =IF(R66=R68,V68,V68+(V67-V68)*(R66-R68)/(R67-R68)) ->  | W66: =IF(R66=R68,W68,W68+(W67-W68)*(R66-R68)/(R67-R68)) ->  | X66: =IF(R66=R68,X68,X68+(X67-X68)*(R66-R68)/(R67-R68)) ->  | Y66: =D78 -> 0 | Z66: =IF(Y66=Y68,Z68,Z68+(Z67-Z68)*(Y66-Y68)/(Y67-Y68)) ->  | AA66: =IF(Y66=Y68,AA68,AA68+(AA67-AA68)*(Y66-Y68)/(Y67-Y68)) ->  | AB66: =IF(Y66=Y68,AB68,AB68+(AB67-AB68)*(Y66-Y68)/(Y67-Y68)) ->  | AC66: =IF(Y66=Y68,AC68,AC68+(AC67-AC68)*(Y66-Y68)/(Y67-Y68)) ->  | AD66: =IF(Y66=Y68,AD68,AD68+(AD67-AD68)*(Y66-Y68)/(Y67-Y68)) ->  | AE66: =IF(Y66=Y68,AE68,AE68+(AE67-AE68)*(Y66-Y68)/(Y67-Y68)) -> 
C67: 15 | D67: =Q34 -> 0 | E67: 0 | F67: 0 | K67: =CEILING(K66,100) -> 0 | L67: =VLOOKUP(K67,$B$105:$H$117,2,TRUE) ->  | M67: =VLOOKUP(K67,$B$105:$H$117,3,TRUE) ->  | N67: =VLOOKUP(K67,$B$105:$H$117,4,TRUE) ->  | O67: =VLOOKUP(K67,$B$105:$H$117,5,TRUE) ->  | P67: =VLOOKUP(K67,$B$105:$H$117,6,TRUE) ->  | Q67: =VLOOKUP(K67,$B$105:$H$117,7,TRUE) ->  | R67: =CEILING(R66,100) -> 0 | S67: =VLOOKUP(R67,$B$105:$H$117,2,TRUE) ->  | T67: =VLOOKUP(R67,$B$105:$H$117,3,TRUE) ->  | U67: =VLOOKUP(R67,$B$105:$H$117,4,TRUE) ->  | V67: =VLOOKUP(R67,$B$105:$H$117,5,TRUE) ->  | W67: =VLOOKUP(R67,$B$105:$H$117,6,TRUE) ->  | X67: =VLOOKUP(R67,$B$105:$H$117,7,TRUE) ->  | Y67: =CEILING(Y66,100) -> 0 | Z67: =VLOOKUP(Y67,$B$105:$H$117,2,TRUE) ->  | AA67: =VLOOKUP(Y67,$B$105:$H$117,3,TRUE) ->  | AB67: =VLOOKUP(Y67,$B$105:$H$117,4,TRUE) ->  | AC67: =VLOOKUP(Y67,$B$105:$H$117,5,TRUE) ->  | AD67: =VLOOKUP(Y67,$B$105:$H$117,6,TRUE) ->  | AE67: =VLOOKUP(Y67,$B$105:$H$117,7,TRUE) -> 
C68: 16 | D68: =R34 -> 0 | E68: 0 | F68: 0 | K68: =MAX(FLOOR(K66,100),20) -> 20 | L68: =VLOOKUP(K68,$B$105:$H$117,2,TRUE) -> 1 | M68: =VLOOKUP(K68,$B$105:$H$117,3,TRUE) -> 1 | N68: =VLOOKUP(K68,$B$105:$H$117,4,TRUE) -> 1 | O68: =VLOOKUP(K68,$B$105:$H$117,5,TRUE) -> 1 | P68: =VLOOKUP(K68,$B$105:$H$117,6,TRUE) -> 1 | Q68: =VLOOKUP(K68,$B$105:$H$117,7,TRUE) -> 1 | R68: =MAX(FLOOR(R66,100),20) -> 20 | S68: =VLOOKUP(R68,$B$105:$H$117,2,TRUE) -> 1 | T68: =VLOOKUP(R68,$B$105:$H$117,3,TRUE) -> 1 | U68: =VLOOKUP(R68,$B$105:$H$117,4,TRUE) -> 1 | V68: =VLOOKUP(R68,$B$105:$H$117,5,TRUE) -> 1 | W68: =VLOOKUP(R68,$B$105:$H$117,6,TRUE) -> 1 | X68: =VLOOKUP(R68,$B$105:$H$117,7,TRUE) -> 1 | Y68: =MAX(FLOOR(Y66,100),20) -> 20 | Z68: =VLOOKUP(Y68,$B$105:$H$117,2,TRUE) -> 1 | AA68: =VLOOKUP(Y68,$B$105:$H$117,3,TRUE) -> 1 | AB68: =VLOOKUP(Y68,$B$105:$H$117,4,TRUE) -> 1 | AC68: =VLOOKUP(Y68,$B$105:$H$117,5,TRUE) -> 1 | AD68: =VLOOKUP(Y68,$B$105:$H$117,6,TRUE) -> 1 | AE68: =VLOOKUP(Y68,$B$105:$H$117,7,TRUE) -> 1
C69: 17 | D69: =S34 -> 0 | E69: 0 | F69: 0 | K69: Temp-7 | R69: Temp-17 | Y69: Temp-27
C70: 18 | D70: =T34 -> 0 | E70: 0 | F70: 0 | K70: =D59 -> 0 | L70: =IF(K70=K72,L72,L72+(L71-L72)*(K70-K72)/(K71-K72)) ->  | M70: =IF(K70=K72,M72,M72+(M71-M72)*(K70-K72)/(K71-K72)) ->  | N70: =IF(K70=K72,N72,N72+(N71-N72)*(K70-K72)/(K71-K72)) ->  | O70: =IF(K70=K72,O72,O72+(O71-O72)*(K70-K72)/(K71-K72)) ->  | P70: =IF(K70=K72,P72,P72+(P71-P72)*(K70-K72)/(K71-K72)) ->  | Q70: =IF(K70=K72,Q72,Q72+(Q71-Q72)*(K70-K72)/(K71-K72)) ->  | R70: =D69 -> 0 | S70: =IF(R70=R72,S72,S72+(S71-S72)*(R70-R72)/(R71-R72)) ->  | T70: =IF(R70=R72,T72,T72+(T71-T72)*(R70-R72)/(R71-R72)) ->  | U70: =IF(R70=R72,U72,U72+(U71-U72)*(R70-R72)/(R71-R72)) ->  | V70: =IF(R70=R72,V72,V72+(V71-V72)*(R70-R72)/(R71-R72)) ->  | W70: =IF(R70=R72,W72,W72+(W71-W72)*(R70-R72)/(R71-R72)) ->  | X70: =IF(R70=R72,X72,X72+(X71-X72)*(R70-R72)/(R71-R72)) ->  | Y70: =D79 -> 0 | Z70: =IF(Y70=Y72,Z72,Z72+(Z71-Z72)*(Y70-Y72)/(Y71-Y72)) ->  | AA70: =IF(Y70=Y72,AA72,AA72+(AA71-AA72)*(Y70-Y72)/(Y71-Y72)) ->  | AB70: =IF(Y70=Y72,AB72,AB72+(AB71-AB72)*(Y70-Y72)/(Y71-Y72)) ->  | AC70: =IF(Y70=Y72,AC72,AC72+(AC71-AC72)*(Y70-Y72)/(Y71-Y72)) ->  | AD70: =IF(Y70=Y72,AD72,AD72+(AD71-AD72)*(Y70-Y72)/(Y71-Y72)) ->  | AE70: =IF(Y70=Y72,AE72,AE72+(AE71-AE72)*(Y70-Y72)/(Y71-Y72)) -> 
C71: 19 | D71: =U34 -> 0 | E71: 0 | F71: 0 | K71: =CEILING(K70,100) -> 0 | L71: =VLOOKUP(K71,$B$105:$H$117,2,TRUE) ->  | M71: =VLOOKUP(K71,$B$105:$H$117,3,TRUE) ->  | N71: =VLOOKUP(K71,$B$105:$H$117,4,TRUE) ->  | O71: =VLOOKUP(K71,$B$105:$H$117,5,TRUE) ->  | P71: =VLOOKUP(K71,$B$105:$H$117,6,TRUE) ->  | Q71: =VLOOKUP(K71,$B$105:$H$117,7,TRUE) ->  | R71: =CEILING(R70,100) -> 0 | S71: =VLOOKUP(R71,$B$105:$H$117,2,TRUE) ->  | T71: =VLOOKUP(R71,$B$105:$H$117,3,TRUE) ->  | U71: =VLOOKUP(R71,$B$105:$H$117,4,TRUE) ->  | V71: =VLOOKUP(R71,$B$105:$H$117,5,TRUE) ->  | W71: =VLOOKUP(R71,$B$105:$H$117,6,TRUE) ->  | X71: =VLOOKUP(R71,$B$105:$H$117,7,TRUE) ->  | Y71: =CEILING(Y70,100) -> 0 | Z71: =VLOOKUP(Y71,$B$105:$H$117,2,TRUE) ->  | AA71: =VLOOKUP(Y71,$B$105:$H$117,3,TRUE) ->  | AB71: =VLOOKUP(Y71,$B$105:$H$117,4,TRUE) ->  | AC71: =VLOOKUP(Y71,$B$105:$H$117,5,TRUE) ->  | AD71: =VLOOKUP(Y71,$B$105:$H$117,6,TRUE) ->  | AE71: =VLOOKUP(Y71,$B$105:$H$117,7,TRUE) -> 
C72: 20 | D72: =V34 -> 0 | E72: 0 | F72: 0 | K72: =MAX(FLOOR(K70,100),20) -> 20 | L72: =VLOOKUP(K72,$B$105:$H$117,2,TRUE) -> 1 | M72: =VLOOKUP(K72,$B$105:$H$117,3,TRUE) -> 1 | N72: =VLOOKUP(K72,$B$105:$H$117,4,TRUE) -> 1 | O72: =VLOOKUP(K72,$B$105:$H$117,5,TRUE) -> 1 | P72: =VLOOKUP(K72,$B$105:$H$117,6,TRUE) -> 1 | Q72: =VLOOKUP(K72,$B$105:$H$117,7,TRUE) -> 1 | R72: =MAX(FLOOR(R70,100),20) -> 20 | S72: =VLOOKUP(R72,$B$105:$H$117,2,TRUE) -> 1 | T72: =VLOOKUP(R72,$B$105:$H$117,3,TRUE) -> 1 | U72: =VLOOKUP(R72,$B$105:$H$117,4,TRUE) -> 1 | V72: =VLOOKUP(R72,$B$105:$H$117,5,TRUE) -> 1 | W72: =VLOOKUP(R72,$B$105:$H$117,6,TRUE) -> 1 | X72: =VLOOKUP(R72,$B$105:$H$117,7,TRUE) -> 1 | Y72: =MAX(FLOOR(Y70,100),20) -> 20 | Z72: =VLOOKUP(Y72,$B$105:$H$117,2,TRUE) -> 1 | AA72: =VLOOKUP(Y72,$B$105:$H$117,3,TRUE) -> 1 | AB72: =VLOOKUP(Y72,$B$105:$H$117,4,TRUE) -> 1 | AC72: =VLOOKUP(Y72,$B$105:$H$117,5,TRUE) -> 1 | AD72: =VLOOKUP(Y72,$B$105:$H$117,6,TRUE) -> 1 | AE72: =VLOOKUP(Y72,$B$105:$H$117,7,TRUE) -> 1
B73: Tryklag | C73: 21 | D73: =M38 -> 256.397272 | E73: =IF(D73=0,0,INDEX($Z$45:$AE$84,2+(C73-21)*4,$D$28)) -> 0.9943602728 | F73: =IF(D73=0,0,INDEX($Z$45:$AE$84,2+(C73-21)*4,$D$28+1)) -> 0.911801364 | K73: Temp-8 | R73: Temp-18 | Y73: Temp-28
C74: 22 | D74: =N38 -> 256.397272 | E74: 0.9943602728 | F74: 0.911801364 | K74: =D60 -> 0 | L74: =IF(K74=K76,L76,L76+(L75-L76)*(K74-K76)/(K75-K76)) ->  | M74: =IF(K74=K76,M76,M76+(M75-M76)*(K74-K76)/(K75-K76)) ->  | N74: =IF(K74=K76,N76,N76+(N75-N76)*(K74-K76)/(K75-K76)) ->  | O74: =IF(K74=K76,O76,O76+(O75-O76)*(K74-K76)/(K75-K76)) ->  | P74: =IF(K74=K76,P76,P76+(P75-P76)*(K74-K76)/(K75-K76)) ->  | Q74: =IF(K74=K76,Q76,Q76+(Q75-Q76)*(K74-K76)/(K75-K76)) ->  | R74: =D70 -> 0 | S74: =IF(R74=R76,S76,S76+(S75-S76)*(R74-R76)/(R75-R76)) ->  | T74: =IF(R74=R76,T76,T76+(T75-T76)*(R74-R76)/(R75-R76)) ->  | U74: =IF(R74=R76,U76,U76+(U75-U76)*(R74-R76)/(R75-R76)) ->  | V74: =IF(R74=R76,V76,V76+(V75-V76)*(R74-R76)/(R75-R76)) ->  | W74: =IF(R74=R76,W76,W76+(W75-W76)*(R74-R76)/(R75-R76)) ->  | X74: =IF(R74=R76,X76,X76+(X75-X76)*(R74-R76)/(R75-R76)) ->  | Y74: =D80 -> 0 | Z74: =IF(Y74=Y76,Z76,Z76+(Z75-Z76)*(Y74-Y76)/(Y75-Y76)) ->  | AA74: =IF(Y74=Y76,AA76,AA76+(AA75-AA76)*(Y74-Y76)/(Y75-Y76)) ->  | AB74: =IF(Y74=Y76,AB76,AB76+(AB75-AB76)*(Y74-Y76)/(Y75-Y76)) ->  | AC74: =IF(Y74=Y76,AC76,AC76+(AC75-AC76)*(Y74-Y76)/(Y75-Y76)) ->  | AD74: =IF(Y74=Y76,AD76,AD76+(AD75-AD76)*(Y74-Y76)/(Y75-Y76)) ->  | AE74: =IF(Y74=Y76,AE76,AE76+(AE75-AE76)*(Y74-Y76)/(Y75-Y76)) -> 
C75: 23 | D75: =O38 -> 0 | E75: 0 | F75: 0 | K75: =CEILING(K74,100) -> 0 | L75: =VLOOKUP(K75,$B$105:$H$117,2,TRUE) ->  | M75: =VLOOKUP(K75,$B$105:$H$117,3,TRUE) ->  | N75: =VLOOKUP(K75,$B$105:$H$117,4,TRUE) ->  | O75: =VLOOKUP(K75,$B$105:$H$117,5,TRUE) ->  | P75: =VLOOKUP(K75,$B$105:$H$117,6,TRUE) ->  | Q75: =VLOOKUP(K75,$B$105:$H$117,7,TRUE) ->  | R75: =CEILING(R74,100) -> 0 | S75: =VLOOKUP(R75,$B$105:$H$117,2,TRUE) ->  | T75: =VLOOKUP(R75,$B$105:$H$117,3,TRUE) ->  | U75: =VLOOKUP(R75,$B$105:$H$117,4,TRUE) ->  | V75: =VLOOKUP(R75,$B$105:$H$117,5,TRUE) ->  | W75: =VLOOKUP(R75,$B$105:$H$117,6,TRUE) ->  | X75: =VLOOKUP(R75,$B$105:$H$117,7,TRUE) ->  | Y75: =CEILING(Y74,100) -> 0 | Z75: =VLOOKUP(Y75,$B$105:$H$117,2,TRUE) ->  | AA75: =VLOOKUP(Y75,$B$105:$H$117,3,TRUE) ->  | AB75: =VLOOKUP(Y75,$B$105:$H$117,4,TRUE) ->  | AC75: =VLOOKUP(Y75,$B$105:$H$117,5,TRUE) ->  | AD75: =VLOOKUP(Y75,$B$105:$H$117,6,TRUE) ->  | AE75: =VLOOKUP(Y75,$B$105:$H$117,7,TRUE) -> 
C76: 24 | D76: =P38 -> 0 | E76: 0 | F76: 0 | K76: =MAX(FLOOR(K74,100),20) -> 20 | L76: =VLOOKUP(K76,$B$105:$H$117,2,TRUE) -> 1 | M76: =VLOOKUP(K76,$B$105:$H$117,3,TRUE) -> 1 | N76: =VLOOKUP(K76,$B$105:$H$117,4,TRUE) -> 1 | O76: =VLOOKUP(K76,$B$105:$H$117,5,TRUE) -> 1 | P76: =VLOOKUP(K76,$B$105:$H$117,6,TRUE) -> 1 | Q76: =VLOOKUP(K76,$B$105:$H$117,7,TRUE) -> 1 | R76: =MAX(FLOOR(R74,100),20) -> 20 | S76: =VLOOKUP(R76,$B$105:$H$117,2,TRUE) -> 1 | T76: =VLOOKUP(R76,$B$105:$H$117,3,TRUE) -> 1 | U76: =VLOOKUP(R76,$B$105:$H$117,4,TRUE) -> 1 | V76: =VLOOKUP(R76,$B$105:$H$117,5,TRUE) -> 1 | W76: =VLOOKUP(R76,$B$105:$H$117,6,TRUE) -> 1 | X76: =VLOOKUP(R76,$B$105:$H$117,7,TRUE) -> 1 | Y76: =MAX(FLOOR(Y74,100),20) -> 20 | Z76: =VLOOKUP(Y76,$B$105:$H$117,2,TRUE) -> 1 | AA76: =VLOOKUP(Y76,$B$105:$H$117,3,TRUE) -> 1 | AB76: =VLOOKUP(Y76,$B$105:$H$117,4,TRUE) -> 1 | AC76: =VLOOKUP(Y76,$B$105:$H$117,5,TRUE) -> 1 | AD76: =VLOOKUP(Y76,$B$105:$H$117,6,TRUE) -> 1 | AE76: =VLOOKUP(Y76,$B$105:$H$117,7,TRUE) -> 1
C77: 25 | D77: =Q38 -> 0 | E77: 0 | F77: 0 | K77: Temp-9 | R77: Temp-19 | Y77: Temp-29
C78: 26 | D78: =R38 -> 0 | E78: 0 | F78: 0 | K78: =D61 -> 0 | L78: =IF(K78=K80,L80,L80+(L79-L80)*(K78-K80)/(K79-K80)) ->  | M78: =IF(K78=K80,M80,M80+(M79-M80)*(K78-K80)/(K79-K80)) ->  | N78: =IF(K78=K80,N80,N80+(N79-N80)*(K78-K80)/(K79-K80)) ->  | O78: =IF(K78=K80,O80,O80+(O79-O80)*(K78-K80)/(K79-K80)) ->  | P78: =IF(K78=K80,P80,P80+(P79-P80)*(K78-K80)/(K79-K80)) ->  | Q78: =IF(K78=K80,Q80,Q80+(Q79-Q80)*(K78-K80)/(K79-K80)) ->  | R78: =D71 -> 0 | S78: =IF(R78=R80,S80,S80+(S79-S80)*(R78-R80)/(R79-R80)) ->  | T78: =IF(R78=R80,T80,T80+(T79-T80)*(R78-R80)/(R79-R80)) ->  | U78: =IF(R78=R80,U80,U80+(U79-U80)*(R78-R80)/(R79-R80)) ->  | V78: =IF(R78=R80,V80,V80+(V79-V80)*(R78-R80)/(R79-R80)) ->  | W78: =IF(R78=R80,W80,W80+(W79-W80)*(R78-R80)/(R79-R80)) ->  | X78: =IF(R78=R80,X80,X80+(X79-X80)*(R78-R80)/(R79-R80)) ->  | Y78: =D81 -> 0 | Z78: =IF(Y78=Y80,Z80,Z80+(Z79-Z80)*(Y78-Y80)/(Y79-Y80)) ->  | AA78: =IF(Y78=Y80,AA80,AA80+(AA79-AA80)*(Y78-Y80)/(Y79-Y80)) ->  | AB78: =IF(Y78=Y80,AB80,AB80+(AB79-AB80)*(Y78-Y80)/(Y79-Y80)) ->  | AC78: =IF(Y78=Y80,AC80,AC80+(AC79-AC80)*(Y78-Y80)/(Y79-Y80)) ->  | AD78: =IF(Y78=Y80,AD80,AD80+(AD79-AD80)*(Y78-Y80)/(Y79-Y80)) ->  | AE78: =IF(Y78=Y80,AE80,AE80+(AE79-AE80)*(Y78-Y80)/(Y79-Y80)) -> 
C79: 27 | D79: =S38 -> 0 | E79: 0 | F79: 0 | K79: =CEILING(K78,100) -> 0 | L79: =VLOOKUP(K79,$B$105:$H$117,2,TRUE) ->  | M79: =VLOOKUP(K79,$B$105:$H$117,3,TRUE) ->  | N79: =VLOOKUP(K79,$B$105:$H$117,4,TRUE) ->  | O79: =VLOOKUP(K79,$B$105:$H$117,5,TRUE) ->  | P79: =VLOOKUP(K79,$B$105:$H$117,6,TRUE) ->  | Q79: =VLOOKUP(K79,$B$105:$H$117,7,TRUE) ->  | R79: =CEILING(R78,100) -> 0 | S79: =VLOOKUP(R79,$B$105:$H$117,2,TRUE) ->  | T79: =VLOOKUP(R79,$B$105:$H$117,3,TRUE) ->  | U79: =VLOOKUP(R79,$B$105:$H$117,4,TRUE) ->  | V79: =VLOOKUP(R79,$B$105:$H$117,5,TRUE) ->  | W79: =VLOOKUP(R79,$B$105:$H$117,6,TRUE) ->  | X79: =VLOOKUP(R79,$B$105:$H$117,7,TRUE) ->  | Y79: =CEILING(Y78,100) -> 0 | Z79: =VLOOKUP(Y79,$B$105:$H$117,2,TRUE) ->  | AA79: =VLOOKUP(Y79,$B$105:$H$117,3,TRUE) ->  | AB79: =VLOOKUP(Y79,$B$105:$H$117,4,TRUE) ->  | AC79: =VLOOKUP(Y79,$B$105:$H$117,5,TRUE) ->  | AD79: =VLOOKUP(Y79,$B$105:$H$117,6,TRUE) ->  | AE79: =VLOOKUP(Y79,$B$105:$H$117,7,TRUE) -> 
C80: 28 | D80: =T38 -> 0 | E80: 0 | F80: 0 | K80: =MAX(FLOOR(K78,100),20) -> 20 | L80: =VLOOKUP(K80,$B$105:$H$117,2,TRUE) -> 1 | M80: =VLOOKUP(K80,$B$105:$H$117,3,TRUE) -> 1 | N80: =VLOOKUP(K80,$B$105:$H$117,4,TRUE) -> 1 | O80: =VLOOKUP(K80,$B$105:$H$117,5,TRUE) -> 1 | P80: =VLOOKUP(K80,$B$105:$H$117,6,TRUE) -> 1 | Q80: =VLOOKUP(K80,$B$105:$H$117,7,TRUE) -> 1 | R80: =MAX(FLOOR(R78,100),20) -> 20 | S80: =VLOOKUP(R80,$B$105:$H$117,2,TRUE) -> 1 | T80: =VLOOKUP(R80,$B$105:$H$117,3,TRUE) -> 1 | U80: =VLOOKUP(R80,$B$105:$H$117,4,TRUE) -> 1 | V80: =VLOOKUP(R80,$B$105:$H$117,5,TRUE) -> 1 | W80: =VLOOKUP(R80,$B$105:$H$117,6,TRUE) -> 1 | X80: =VLOOKUP(R80,$B$105:$H$117,7,TRUE) -> 1 | Y80: =MAX(FLOOR(Y78,100),20) -> 20 | Z80: =VLOOKUP(Y80,$B$105:$H$117,2,TRUE) -> 1 | AA80: =VLOOKUP(Y80,$B$105:$H$117,3,TRUE) -> 1 | AB80: =VLOOKUP(Y80,$B$105:$H$117,4,TRUE) -> 1 | AC80: =VLOOKUP(Y80,$B$105:$H$117,5,TRUE) -> 1 | AD80: =VLOOKUP(Y80,$B$105:$H$117,6,TRUE) -> 1 | AE80: =VLOOKUP(Y80,$B$105:$H$117,7,TRUE) -> 1
C81: 29 | D81: =U38 -> 0 | E81: 0 | F81: 0 | K81: Temp-10 | R81: Temp-20 | Y81: Temp-300
C82: 30 | D82: =V38 -> 0 | E82: 0 | F82: 0 | K82: =D62 -> 0 | L82: =IF(K82=K84,L84,L84+(L83-L84)*(K82-K84)/(K83-K84)) ->  | M82: =IF(K82=K84,M84,M84+(M83-M84)*(K82-K84)/(K83-K84)) ->  | N82: =IF(K82=K84,N84,N84+(N83-N84)*(K82-K84)/(K83-K84)) ->  | O82: =IF(K82=K84,O84,O84+(O83-O84)*(K82-K84)/(K83-K84)) ->  | P82: =IF(K82=K84,P84,P84+(P83-P84)*(K82-K84)/(K83-K84)) ->  | Q82: =IF(K82=K84,Q84,Q84+(Q83-Q84)*(K82-K84)/(K83-K84)) ->  | R82: =D72 -> 0 | S82: =IF(R82=R84,S84,S84+(S83-S84)*(R82-R84)/(R83-R84)) ->  | T82: =IF(R82=R84,T84,T84+(T83-T84)*(R82-R84)/(R83-R84)) ->  | U82: =IF(R82=R84,U84,U84+(U83-U84)*(R82-R84)/(R83-R84)) ->  | V82: =IF(R82=R84,V84,V84+(V83-V84)*(R82-R84)/(R83-R84)) ->  | W82: =IF(R82=R84,W84,W84+(W83-W84)*(R82-R84)/(R83-R84)) ->  | X82: =IF(R82=R84,X84,X84+(X83-X84)*(R82-R84)/(R83-R84)) ->  | Y82: =D82 -> 0 | Z82: =IF(Y82=Y84,Z84,Z84+(Z83-Z84)*(Y82-Y84)/(Y83-Y84)) ->  | AA82: =IF(Y82=Y84,AA84,AA84+(AA83-AA84)*(Y82-Y84)/(Y83-Y84)) ->  | AB82: =IF(Y82=Y84,AB84,AB84+(AB83-AB84)*(Y82-Y84)/(Y83-Y84)) ->  | AC82: =IF(Y82=Y84,AC84,AC84+(AC83-AC84)*(Y82-Y84)/(Y83-Y84)) ->  | AD82: =IF(Y82=Y84,AD84,AD84+(AD83-AD84)*(Y82-Y84)/(Y83-Y84)) ->  | AE82: =IF(Y82=Y84,AE84,AE84+(AE83-AE84)*(Y82-Y84)/(Y83-Y84)) -> 
B83: Bøjler | C83: 31 | D83: =AC14 -> 408.8804078 | E83: =IF(D83=0,0,INDEX($AG$45:$AL$48,2+(C83-31)*4,$D$28)) -> 0.9449033068 | F83: =IF(D83=0,0,INDEX($AG$45:$AL$84,2+(C83-31)*4,$D$28+1)) -> 0.7595750622 | K83: =CEILING(K82,100) -> 0 | L83: =VLOOKUP(K83,$B$105:$H$117,2,TRUE) ->  | M83: =VLOOKUP(K83,$B$105:$H$117,3,TRUE) ->  | N83: =VLOOKUP(K83,$B$105:$H$117,4,TRUE) ->  | O83: =VLOOKUP(K83,$B$105:$H$117,5,TRUE) ->  | P83: =VLOOKUP(K83,$B$105:$H$117,6,TRUE) ->  | Q83: =VLOOKUP(K83,$B$105:$H$117,7,TRUE) ->  | R83: =CEILING(R82,100) -> 0 | S83: =VLOOKUP(R83,$B$105:$H$117,2,TRUE) ->  | T83: =VLOOKUP(R83,$B$105:$H$117,3,TRUE) ->  | U83: =VLOOKUP(R83,$B$105:$H$117,4,TRUE) ->  | V83: =VLOOKUP(R83,$B$105:$H$117,5,TRUE) ->  | W83: =VLOOKUP(R83,$B$105:$H$117,6,TRUE) ->  | X83: =VLOOKUP(R83,$B$105:$H$117,7,TRUE) ->  | Y83: =CEILING(Y82,100) -> 0 | Z83: =VLOOKUP(Y83,$B$105:$H$117,2,TRUE) ->  | AA83: =VLOOKUP(Y83,$B$105:$H$117,3,TRUE) ->  | AB83: =VLOOKUP(Y83,$B$105:$H$117,4,TRUE) ->  | AC83: =VLOOKUP(Y83,$B$105:$H$117,5,TRUE) ->  | AD83: =VLOOKUP(Y83,$B$105:$H$117,6,TRUE) ->  | AE83: =VLOOKUP(Y83,$B$105:$H$117,7,TRUE) -> 
K84: =MAX(FLOOR(K82,100),20) -> 20 | L84: =VLOOKUP(K84,$B$105:$H$117,2,TRUE) -> 1 | M84: =VLOOKUP(K84,$B$105:$H$117,3,TRUE) -> 1 | N84: =VLOOKUP(K84,$B$105:$H$117,4,TRUE) -> 1 | O84: =VLOOKUP(K84,$B$105:$H$117,5,TRUE) -> 1 | P84: =VLOOKUP(K84,$B$105:$H$117,6,TRUE) -> 1 | Q84: =VLOOKUP(K84,$B$105:$H$117,7,TRUE) -> 1 | R84: =MAX(FLOOR(R82,100),20) -> 20 | S84: =VLOOKUP(R84,$B$105:$H$117,2,TRUE) -> 1 | T84: =VLOOKUP(R84,$B$105:$H$117,3,TRUE) -> 1 | U84: =VLOOKUP(R84,$B$105:$H$117,4,TRUE) -> 1 | V84: =VLOOKUP(R84,$B$105:$H$117,5,TRUE) -> 1 | W84: =VLOOKUP(R84,$B$105:$H$117,6,TRUE) -> 1 | X84: =VLOOKUP(R84,$B$105:$H$117,7,TRUE) -> 1 | Y84: =MAX(FLOOR(Y82,100),20) -> 20 | Z84: =VLOOKUP(Y84,$B$105:$H$117,2,TRUE) -> 1 | AA84: =VLOOKUP(Y84,$B$105:$H$117,3,TRUE) -> 1 | AB84: =VLOOKUP(Y84,$B$105:$H$117,4,TRUE) -> 1 | AC84: =VLOOKUP(Y84,$B$105:$H$117,5,TRUE) -> 1 | AD84: =VLOOKUP(Y84,$B$105:$H$117,6,TRUE) -> 1 | AE84: =VLOOKUP(Y84,$B$105:$H$117,7,TRUE) -> 1
B94: GRAF | M94: 1 | N94: 2 | O94: 3 | P94: 4 | Q94: 5 | R94: 6 | S94: 7 | T94: 8 | U94: 9 | V94: 10 | W94: 1 | X94: 2 | Y94: 3 | Z94: 4 | AA94: 5 | AB94: 6 | AC94: 7 | AD94: 8 | AE94: 9 | AF94: 10
B95: x | C95: 0 | D95: =E16 -> 0.15 | E95: =E16 -> 0.15 | F95: 0 | G95: 0 | H95: =E26 -> 0.01761786796 | I95: =D95-E26 -> 0.132382132 | J95: =E95-E26 -> 0.132382132 | K95: =E26 -> 0.01761786796 | L95: =E26 -> 0.01761786796 | M95: =E29 -> 0.037 | N95: =IF(N94>$E$31,M95,M95+$E$33) -> 0.037 | O95: 0.037 | P95: 0.037 | Q95: 0.037 | R95: 0.037 | S95: 0.037 | T95: 0.037 | U95: 0.037 | V95: 0.037 | W95: =E29 -> 0.037 | X95: =IF(X94>$E$37,W95,W95+$E$39) -> 0.113 | Y95: 0.113 | Z95: 0.113 | AA95: 0.113 | AB95: 0.113 | AC95: 0.113 | AD95: 0.113 | AE95: 0.113 | AF95: 0.113 | AG95: =IF(E15>E16,E15,E16) -> 0.4
B96: Opr rand | C96: 0 | D96: 0 | E96: =-E15 -> -0.4 | F96: =-E15 -> -0.4 | G96: 0
B97: Reduc rand | H97: =-E25 -> 0 | I97: =-E25 -> 0 | J97: =E96+E27 -> -0.382382132 | K97: =F96+E27 -> -0.382382132 | L97: =-E25 -> 0
B98: Træklag 1 | M98: =-$E$15+$E$32 -> -0.4 | N98: =-$E$15+$E$32 -> -0.4 | O98: -0.4 | P98: -0.4 | Q98: -0.4 | R98: -0.4 | S98: -0.4 | T98: -0.4 | U98: -0.4 | V98: -0.4
B99: Træklag 2 | W99: =-$E$15+$E$38 -> -0.363 | X99: -0.363 | Y99: -0.363 | Z99: -0.363 | AA99: -0.363 | AB99: -0.363 | AC99: -0.363 | AD99: -0.363 | AE99: -0.363 | AF99: -0.363
B100: Skala | AG100: =IF(E15>E16,-E15,-E16) -> -0.4
B103: Tabel | C103: type (+Q) | E103: type (+AC) | G103: type (+C)
B104: Q-stål | C104: E/Ek | D104: fy/fyk | E104: E/Ek | F104: fy/fyk | G104: E/Ek | H104: fy/fyk
B105: 20 | C105: 1 | D105: 1 | E105: 1 | F105: 1 | G105: 1 | H105: 1
B106: 100 | C106: 1 | D106: 0.96 | E106: 1 | F106: 0.98 | G106: 1 | H106: 0.99
B107: 200 | C107: 0.9 | D107: 0.88 | E107: 1 | F107: 0.94 | G107: 0.87 | H107: 0.95
B108: 300 | C108: 0.8 | D108: 0.77 | E108: 0.99 | F108: 0.89 | G108: 0.72 | H108: 0.89
B109: 400 | C109: 0.7 | D109: 0.65 | E109: 0.96 | F109: 0.78 | G109: 0.56 | H109: 0.78
B110: 500 | C110: 0.6 | D110: 0.47 | E110: 0.79 | F110: 0.55 | G110: 0.4 | H110: 0.57
B111: 600 | C111: 0.31 | D111: 0.27 | E111: 0.48 | F111: 0.27 | G111: 0.24 | H111: 0.3
B112: 700 | C112: 0.13 | D112: 0.13 | E112: 0.21 | F112: 0.1 | G112: 0.08 | H112: 0.12
B113: 800 | C113: 0.09 | D113: 0.05 | E113: 0.08 | F113: 0 | G113: 0.06 | H113: 0.05
B114: 900 | C114: 0.07 | D114: 0.02 | E114: 0.03 | F114: 0 | G114: 0.05 | H114: 0.02
B115: 1000 | C115: 0.04 | D115: 0.01 | E115: 0 | F115: 0 | G115: 0.03 | H115: 0.01
B116: 1100 | C116: 0.02 | D116: 0.01 | E116: 0 | F116: 0 | G116: 0.02 | H116: 0
B117: 1200 | C117: 0 | D117: 0 | E117: 0 | F117: 0 | G117: 0 | H117: 0
B121: Betontype | C121: =Makro!A3 -> 2
B122: Reduktionsparametre, beton | G122: Betontype, fc,t/fck
B123: q | C123: fc,t/fck | D123: ec1 | E123: ecu1,t | F123: Indeks | G123: 1 | H123: 2
B124: 20 | C124: =IF($C$121=1,G124,H124) -> 1 | D124: 0.0025 | E124: 0.02 | F124: 1 | G124: 1 | H124: 1
B125: 100 | C125: =IF($C$121=1,G125,H125) -> 1 | D125: 0.004 | E125: 0.0225 | F125: 2 | G125: 1 | H125: 1
B126: 200 | C126: 1 | D126: 0.0055 | E126: 0.025 | F126: 3 | G126: 0.95 | H126: 1
B127: 300 | C127: 0.9333333 | D127: 0.007 | E127: 0.0275 | F127: 4 | G127: 0.85 | H127: =H126-0.0666667 -> 0.9333333
B128: 400 | C128: 0.8666666 | D128: 0.01 | E128: 0.03 | F128: 5 | G128: 0.75 | H128: =H127-0.0666667 -> 0.8666666
B129: 500 | C129: 0.8 | D129: 0.015 | E129: 0.0325 | F129: 6 | G129: 0.6 | H129: 0.8
B130: 600 | C130: 0.6 | D130: 0.025 | E130: 0.035 | F130: 7 | G130: 0.45 | H130: =H129-0.2 -> 0.6
B131: 700 | C131: 0.4 | D131: 0.025 | E131: 0.0375 | F131: 8 | G131: 0.3 | H131: =H130-0.2 -> 0.4
B132: 800 | C132: 0.2 | D132: 0.025 | E132: 0.04 | F132: 9 | G132: 0.15 | H132: =H131-0.2 -> 0.2
B133: 900 | C133: 0 | D133: 0.025 | E133: 0.0425 | F133: 10 | G133: 0.08 | H133: 0
B134: 1000 | C134: 0 | D134: 0.025 | E134: 0.045 | F134: 11 | G134: 0.04 | H134: 0
B135: 1100 | C135: 0.002042648973 | D135: 0.025 | E135: 0.0475 | F135: 12 | G135: 0.01 | H135: =0+(1-0)/(1+(B135/100000)+(B135/1080)^2+(B135/690)^8+(B135/1000)^64) -> 0.002042648973
B136: 1200 | C136: 8.552261303e-06 | F136: 13 | G136: 0 | H136: =0+(1-0)/(1+(B136/100000)+(B136/1080)^2+(B136/690)^8+(B136/1000)^64) -> 8.552261303e-06

Sheet Makro
A1: 2 | B1: Brand ja/nej
A2: 2 | B2: Brand ja/nej
A3: 2 | B3: Tilslag
A4: 2 | B4: Bratkølet eller
A20: =IF(E20=1,0,1000000) -> 1000000 | E20: 0
